{"text_format":"1","workbook":"xlsx","n_sheets":13,"sheets":["Sheet1","User Interface","Visual 1","Visual 2","Visual 3","Visual 4","Raw (Cleaned) Data","Cleaning Up + Formulas","Sheet4","City Freq","Country Freq","Position","Sheet11"],"not_rendered":{"charts":4,"images":3,"macros":1,"external_links":0,"defined_names":4,"comments":0,"pivot_tables":0},"unopened":[],"bounds":{"document_bytes":16777216,"sheet_cells":100000,"rows_first":2000,"rows_last":500,"rows_between":2000,"halvings":0,"cell_chars":16384,"cell_head_chars":4096},"cells_cut":0,"cells_raw":0,"read":"whole","date_system":"1900"}

{"sheet":"Sheet1","index":0,"n_rows":6525,"n_cols":17,"rows_kept":6525,"cut":false,"hidden":true,"merged":[]}
["Showing 762 results.",null,null,1294,1294]
["Cédric, you’re approaching the commercial use limit.",null,null,1427,1427,null,null,null,null,"Name","Position","Location","Other info"]
["Please upgrade to LinkedIn Premium Business, Sales Navigator, or Recruiter to get unlimited people browsing.",null,null,1511,1511,null,null,null,1,"Michael Etkin","University of Manitoba Actuarial Club Promotions Coordinator","Winnipeg, Canada Area","Current: Actuarial Intern at Manitoba Public Insurance",null,"Student at University of Manitoba","Winnipeg, Canada Area","Summary: ...at the University of Manitoba... in Actuarial Mathematics. I..."]
["Try Premium for free",null,null,1540,1540,null,null,null,2,"Patrick Solmundson","Actuarial Student, University of Manitoba","Winnipeg, Canada Area","Summary: ...and articulate actuarial student... of the University of Manitoba...",null,"Student at University of Manitoba","Winnipeg, Canada Area","Education: University of Manitoba"]
["Learn more",null,null,1718,1718,null,null,null,3,"Nolan Kennedy","Actuarial Student, Asper School of Business - University of Manitoba","Manitoba, Canada","Past: Student Internet Technician at University of Manitoba",null,"Student at University of Manitoba","Winnipeg, Canada Area","Education: University of Manitoba"]
["Chunli Liang",null,null,2429,2429,null,null,null,4,"Ben Tallin","Actuarial Mathematics Student at The University of Manitoba","Winnipeg, Canada Area","Summary: ...actuarial mathematics... with the University of Manitoba...",null,"Attended University of Manitoba","Winnipeg, Canada Area","Education: University of Manitoba"]
["Chunli Liang  1st degree connection1st",null,null,3279,3279,null,null,null,5,"Eric Dufault","Actuarial Student - University of Manitoba","Winnipeg, Canada Area","Current: Actuarial Student at University of Manitoba",null,"Student at University of Manitoba","Canada","Education: University of Manitoba"]
["Actuarial Research Assistant at University of Manitoba",null,null,3349,3349,null,null,null,6,"Yifan Jiang","Actuarial Mathematics & Accounting student at University of Manitoba","Winnipeg, Canada Area","Education: University of Manitoba",null,"Actuarial Mathematics Student","Winnipeg, Canada Area","Education: University of Manitoba"]
["Winnipeg, Canada Area",null,null,3931,3931,null,null,null,7,"Andrew Hewett","Actuary Student at University of Manitoba","Winnipeg, Canada Area","Education: University of Manitoba",null,"Senior Actuarial Analyst at Delta Dental","San Francisco Bay Area","Education: University of Manitoba"]
["Current: Research Assistant at University of Manitoba",null,null,4102,4102,null,null,null,8,"Karl Reyes","Actuarial Mathematics Student at the University of Manitoba","Winnipeg, Canada Area","Education: University of Manitoba",null,"Student at University of Alberta","Edmonton, Canada Area","Education: University of Manitoba"]
["Ivraj Plaha",null,null,4355,4355,null,null,null,9,"Adam Oye","Actuarial Analyst - WCB Manitoba","Winnipeg, Canada Area","Current: Actuarial Analyst at WCB Manitoba",null,"Financial Services Professional","Vancouver, Canada Area","Education: University of Manitoba"]
["Owais Jafry",null,null,4389,4389,null,null,null,10,"Sharon, Ruiyun Long","Student at University of Manitoba","Winnipeg, Canada Area","Education: University of Manitoba",null,"--","Canada","Education: University of Manitoba"]
["David Senensky",null,null,4425,4425,null,null,null,11,"Melissa Hrichishen","Actuarial Mathematics Student at University of Manitoba","Winnipeg, Canada Area","Education: University of Manitoba",null,"Senior Vice-President, Products & Financial Planning at Investors Group","Winnipeg, Canada Area","Education: University of Manitoba"]
["95 shared connections",null,null,4558,4558,null,null,null,12,"yan ying wu","Student at University of Manitoba","Canada","Education: University of Manitoba",null,"Senior Consultant at CGI","Toronto, Canada Area","Education: University of Manitoba"]
["Message",null,null,4620,4620,null,null,null,13,"Sean Seavers","Student at University of Manitoba","Winnipeg, Canada Area","Summary: ...of Manitoba studying Actuarial... - University of Manitoba...",null,"Consultant","Toronto, Canada Area","Education: University of Manitoba"]
["Michael Etkin",null,null,4668,4668,null,null,null,14,"Alexander Loscerbo","Student at University of Manitoba","Winnipeg, Canada Area","Education: University of Manitoba",null,"General Manager at True North Capital","Toronto, Canada Area","Education: University of Manitoba"]
["Michael Etkin  2nd degree connection2nd",null,null,4734,4734,null,null,null,15,"Yash Rajpara","Actuarial Student at University of Manitoba","Winnipeg, Canada Area","Education: University of Manitoba",null,"--","Winnipeg, Canada Area","Education: University of Manitoba"]
["University of Manitoba Actuarial Club Promotions Coordinator",null,null,4926,4926,null,null,null,16,"Trevor Panchyshyn","Student at University of Manitoba","Manitoba, Canada","Education: University of Manitoba",null,"Retail Professional","Winnipeg, Canada Area","Education: University of Manitoba"]
["Winnipeg, Canada Area",null,null,4931,4931,null,null,null,17,"Linghua Wei","Research Assistant at University of Manitoba","Winnipeg, Canada Area","Current: ...Actuarial Research Conference, University of Minnesota...",null,"Actuarial Consultant at Deloitte Consulting, ASA","Greater Minneapolis-St. Paul Area","Past: Consultant at Deloitte Consulting"]
["Current: Actuarial Intern at Manitoba Public Insurance",null,null,4936,4936,null,null,null,18,"Alexander Sachs","Student at University of Manitoba","Winnipeg, Canada Area","Education: University of Manitoba",null,"Associate at RBC","Winnipeg, Canada Area","Education: University of Manitoba"]
["Hadi Saleh",null,null,5045,5045,null,null,null,19,"Gabrielle Lemire","Student at University of Manitoba","Winnipeg, Canada Area","Education: University of Manitoba",null,"sales at STAPLES Canada","Winnipeg, Canada Area","Education: university of manitoba"]
["Bryn Peppler",null,null,5102,5102,null,null,null,20,"Kim Kim Ly","Account Payable Assistant at University of Manitoba","Winnipeg, Canada Area","Michael Benarroch",null,"Manager, I.T. at NGM Investment Ltd","Vancouver, Canada Area","Education: University of Manitoba"]
["Howard Harmatz",null,null,5107,5107,null,null,null,21,"Guangyu Xing","Student at University of Manitoba","Winnipeg, Canada Area","Past: Research Assistant at University of Manitoba",null,"Pension and Benefits Strategist","Edmonton, Canada Area","Education: University of Manitoba"]
["10 shared connections",null,null,5182,5182,null,null,null,22,"Christian Torfason","Student at University of Manitoba","Winnipeg, Canada Area","Education: University of Manitoba",null,"Senior Consultant and Actuary at Donaldson Vincent Associates Limited","Toronto, Canada Area","Education: University of Manitoba"]
["Invite Sent",null,null,5573,5573,null,null,null,23,"Jeffray Nicolas","Graduate Actuary from the University of Manitoba","Winnipeg, Canada Area","Summary: ...in actuarial mathematics... of gaining actuarial...",null,"Insurance Professional","Kitchener, Canada Area","Education: University of Manitoba"]
["Patrick Solmundson",null,null,5590,5590,null,null,null,24,"Mengqi Zhang","Student Leadership Development Program Facilitator at University of Manitoba","Winnipeg, Canada Area","Current: Student Leadership Workshop Facilitator at University of Manitoba",null,"--","Toronto, Canada Area","Education: University of Manitoba"]
["Patrick Solmundson  1st degree connection1st",null,null,5672,5672,null,null,null,25,"Sergiu Buda","Actuarial Student at The Great-West Life Assurance Company","Winnipeg, Canada Area","Past: Research Assistant at University of Manitoba",null,"VP of Finance and Administrative Services at Vein Clinic PA","Greater Minneapolis-St. Paul Area","Education: University of Manitoba"]
["Actuarial Student, University of Manitoba",null,null,5683,5683,null,null,null,26,"RONGMEI LI","Actuarial Student at University of Manitoba","Canada","Education: University of Manitoba",null,"Sales Administration Manager at SG Gaming","Macao","Education: University of Manitoba"]
["Winnipeg, Canada Area",null,null,5850,5850,null,null,null,27,"Aaron Yanofsky, ASA, ACIA, CERA","Actuarial Associate at Great-West Life","Winnipeg, Canada Area","Past: Marker - Asper School of Business at University of Manitoba",null,"Leisure, Travel & Tourism Professional","Winnipeg, Canada Area","Education: University of Manitoba"]
["Summary: ...and articulate actuarial student... of the University of Manitoba...",null,null,5926,5926,null,null,null,28,"Elizabeth Wanke","Actuarial Co-op at Munich Re Canada","Winnipeg, Canada Area","Past: Co-President at University of Manitoba Actuarial Club",null,"Public Works and Government Services Canada","Ottawa, Canada Area","Education: University of Manitoba"]
["Chunli Liang",null,null,5955,5955,null,null,null,29,"chenxi zhao","Student at University of Manitoba","Winnipeg, Canada Area","Education: University of Manitoba",null,"Wealth Planner UHNW, UBS AG Singapore","Singapore","Education: University of Manitoba"]
["Lucas Szczepanski",null,null,6127,6127,null,null,null,30,"Lorena Ardebol","Student at University of Manitoba","Winnipeg, Canada Area","Education: University of Manitoba",null,"Insurance Professional","Winnipeg, Canada Area","Education: The University of Manitoba"]
["Evan Shaw",null,null,6280,6280,null,null,null,31,"Christian Guevarra","Student at University of Manitoba","Winnipeg, Canada Area","Education: University of Manitoba",null,"CEO at BridgeWorks, LLC","San Francisco Bay Area","Education: University of Manitoba"]
["62 shared connections",null,null,6291,6291,null,null,null,32,"Barbara Hanchard","Director, Staff Benefits at University of Manitoba","Winnipeg, Canada Area","Past: Senior Actuarial Systems Analyst at Great West Life Assurance",null,"President & CEO at FPB Financial Strategies Inc.","Saskatchewan, Canada","Education: University of Manitoba"]
["Message",null,null,6309,6309,null,null,null,33,"Jeffrey Umandap","Actuarial Intern at Great-West Life","Winnipeg, Canada Area","Education: University of Manitoba",null,"Self Employed","Selangor, Malaysia","Education: University of Manitoba"]
["Nolan Kennedy",null,null,6328,6328,null,null,null,34,"David Senensky","Actuarial Associate at Great-West Life","Winnipeg, Canada Area","Education: University of Manitoba",null,"university of Manitoba毕业","Winnipeg, Canada Area","Education: university of Manitoba"]
["Nolan Kennedy  1st degree connection1st",null,null,6333,6333,null,null,null,35,"Devin Kinley","Actuarial Intern, Wawanesa Mutual Insurance Co.","Winnipeg, Canada Area","Past: Interest Theory Grader at University of Manitoba",null,"Coachpraktijk Vrij Eten","The Hague Area, Netherlands","Summary: OPLEIDINGEN 2014-2015... : University of Manitoba [CA..."]
["Actuarial Student, Asper School of Business - University of Manitoba",null,null,6369,6369,null,null,null,36,"Roger Tran","Actuarial Analyst at Sun Life Financial","Winnipeg, Canada Area","Education: University of Manitoba",null,"Consultant at N-Dimensional Computers inc.","Toronto, Canada Area","Education: University of Manitoba"]
["Manitoba, Canada",null,null,6382,6382,null,null,null,37,"PARTHKUMAR PATEL","Accounting Grader/Marker at University of Manitoba","Winnipeg, Canada Area","Ivraj Plaha",null,"--","Selangor, Malaysia","Education: University of Manitoba"]
["Past: Student Internet Technician at University of Manitoba",null,null,6448,6448,null,null,null,38,"Nathania Frederica","Actuarial Student at Investors Group","Winnipeg, Canada Area","Current: Grader / Marker at University of Manitoba",null,"Owner, Barca Capital Management","Toronto, Canada Area","Education: University of Manitoba"]
["Avi Saper",null,null,6521,6521,null,null,null,39,"Kyle A. Casalla","Actuarial Analyst at Sun Life Financial, Actuarial Science Student at Asper School of Business","Winnipeg, Canada Area","Summary: ...in Actuarial Mathematics... the University of Manitoba...",null,"Independent Financial Services Professional","Melbourne, Australia","Education: University of Manitoba"]
["Keira Fangyuan Dong",null,null,1294,null,null,null,null,40,"Neil Redpath","Actuarial Intern at Great-West Life","Winnipeg, Canada Area","Avi Saper",null,"Actuary at Baker Actuarial Services","Ottawa, Canada Area","Education: University of Manitoba"]
["Chunli Liang",null,null,1427,null,null,null,null,41,"Ziwei Jiang","Student at University of Manitoba","Winnipeg, Canada Area","Education: University of Manitoba",null,"Office Manager at Samena Capital Hong Kong Ltd.","Hong Kong","Education: University of Manitoba (Canada)"]
["89 shared connections",null,null,1511,null,null,null,null,42,"Taylor Mitchell","Actuarial Intern at Wawanesa Insurance","Winnipeg, Canada Area","Education: University of Manitoba"]
["Message",null,null,1540,null,null,null,null,43,"Andrea Leong","Actuarial Analyst at Great-West Life","Winnipeg, Canada Area","Education: University of Manitoba"]
["Ben Tallin",null,null,1718,null,null,null,null,44,"Bradley Abells","Actuarial Intern at Munich Re Canada","Winnipeg, Canada Area","Education: University of Manitoba"]
["Ben Tallin  1st degree connection1st",null,null,2429,null,null,null,null,45,"Chipwa Banda","Student at University of Manitoba","Winnipeg, Canada Area","Summary: ...at the University of Manitoba... in Actuarial Mathematics and a..."]
["Actuarial Mathematics Student at The University of Manitoba",null,null,3279,null,null,null,null,46,"Stefan Baluta","Actuarial Analyst at Wawanesa Insurance","Winnipeg, Canada Area","Summary: ...of the University of Manitoba... in Actuarial Math and Finance. I..."]
["Winnipeg, Canada Area",null,null,3349,null,null,null,null,47,"Timothy Rempel","Actuarial Analyst at Great-West Life","Winnipeg, Canada Area","Education: University of Manitoba"]
["Summary: ...actuarial mathematics... with the University of Manitoba...",null,null,3931,null,null,null,null,48,"Thanh Thanh Nguyen","Actuarial Analyst at Benchmark Decisions Ltd","Winnipeg, Canada Area","Education: University of Manitoba"]
["Avi Saper",null,null,4102,null,null,null,null,49,"Alexandra Gorlick","Actuarial Analyst at Ellement Consulting Group","Winnipeg, Canada Area","Education: University of Manitoba"]
["Neil Redpath",null,null,4355,null,null,null,null,50,"Julia Gudmundson","Actuarial Associate at Great-West Life","Winnipeg, Canada Area","Education: University of Manitoba"]
["Bradley Abells",null,null,4389,null,null,null,null,51,"Anh Pham","Actuarial Co-op at Aon Hewitt","Vancouver, Canada Area","Education: University of Manitoba"]
["38 shared connections",null,null,4425,null,null,null,null,52,"Sean McFetridge","Actuarial Analyst at Mercer","Toronto, Canada Area","Past: Research Assistant, Executive Compensation at University of Manitoba"]
["Message",null,null,4558,null,null,null,null,53,"Ella Nguyen","Student at University of Manitoba","Winnipeg, Canada Area","Education: University of Manitoba"]
["Eric Dufault",null,null,4620,null,null,null,null,54,"Maria Santiano","Student, University of Manitoba","Winnipeg, Canada Area","Education: University of Manitoba"]
["Eric Dufault  3rd degree connection3rd",null,null,4668,null,null,null,null,55,"Brad Perrella","Student at University of Manitoba","Winnipeg, Canada Area","Education: University of Manitoba"]
["Actuarial Student - University of Manitoba",null,null,4734,null,null,null,null,56,"Stephen Swenarchuk","Senior Actuarial Associate at Worden Zaluski Consulting Actuaries Ltd.","Winnipeg, Canada Area","Education: University of Manitoba"]
["Winnipeg, Canada Area",null,null,4926,null,null,null,null,57,"adam wishnowski","Attended University of Manitoba","Winnipeg, Canada Area","Education: University of Manitoba"]
["Current: Actuarial Student at University of Manitoba",null,null,4931,null,null,null,null,58,"Melanie Skiarski","Actuarial Analyst at Mercer","Toronto, Canada Area","Past: Co-President at University of Manitoba Actuarial Club"]
["Send InMail",null,null,4936,null,null,null,null,59,"Justin Scott","Actuarial Associate at Great-West Life","Manitoba, Canada","Education: University of Manitoba"]
["Yifan Jiang",null,null,5045,null,null,null,null,60,"ERICA ASAWO","Attended University of Manitoba","Winnipeg, Canada Area","Education: University of Manitoba"]
["Yifan Jiang  1st degree connection1st",null,null,5102,null,null,null,null,61,"Shuai Chen","Actuarial Assistant at Manulife","Kitchener, Canada Area","Past: Grader at University of Manitoba"]
["Actuarial Mathematics & Accounting student at University of Manitoba",null,null,5107,null,null,null,null,62,"Tinotenda Marova","Assistant Actuarial Analyst at Wawanesa Insurance","Winnipeg, Canada Area","Past: Student Research Assistant at University of Manitoba"]
["Winnipeg, Canada Area",null,null,5182,null,null,null,null,63,"Erin Kavanagh","Actuarial Analyst at Great-West Life","Winnipeg, Canada Area","Education: University of Manitoba"]
["Education: University of Manitoba",null,null,5573,null,null,null,null,64,"Zifeng(Joseph) Qian","Actuarial Analyst, Corporate Research at Investors Group","Winnipeg, Canada Area","Education: University of Manitoba"]
["Chunli Liang",null,null,5590,null,null,null,null,65,"Keri Guenther","Actuarial Summer Student at Great-West Life","Winnipeg, Canada Area","Past: Co-President at University of Manitoba Actuarial Club"]
["Sean Seavers",null,null,5672,null,null,null,null,66,"Kim Middagh","Benefits Manager at University of Manitoba","Winnipeg, Canada Area","Current: Manager, Group Insurance at University of Manitoba"]
["Calvin Cheng",null,null,5683,null,null,null,null,67,"Francis Seah","Actuarial Intern at Investors Group","Winnipeg, Canada Area","Past: Part-time Tutor at Self Employed"]
["17 shared connections",null,null,5850,null,null,null,null,68,"Michael Vo","Actuarial Analyst at Willis Towers Watson","Toronto, Canada Area","Education: University of Manitoba"]
["Message",null,null,5926,null,null,null,null,69,"Tannis Wiebe","Manager, Actuarial Pricing Western Canada at Wawanesa Insurance","Winnipeg, Canada Area","Education: University of Manitoba"]
["Andrew Hewett",null,null,5955,null,null,null,null,70,"Paul Avery","Attended University of Manitoba","Winnipeg, Canada Area","Education: University of Manitoba"]
["Andrew Hewett  1st degree connection1st",null,null,6127,null,null,null,null,71,"Desiree Ferbers","Actuarial Intern at Great-West Life","Winnipeg, Canada Area","Summary: ...at the University of Victoria... at the University..."]
["Actuary Student at University of Manitoba",null,null,6280,null,null,null,null,72,"Amber Anseeuw, ACAS, ACIA","Manager, Actuarial Services at Portage Mutual Insurance","Winnipeg, Canada Area","Education: University of Manitoba"]
["Winnipeg, Canada Area",null,null,6291,null,null,null,null,73,"Eric Padua","Actuarial Student - Co-op at Great-West Life","Winnipeg, Canada Area","Summary: ..., Actuarial, Finance... ). Actively pursuing actuarial..."]
["Education: University of Manitoba",null,null,6309,null,null,null,null,74,"Yiming Hu","Actuarial Student at Great-West Life","Winnipeg, Canada Area","Education: University of Manitoba"]
["Chunli Liang",null,null,6328,null,null,null,null,75,"Vishal Guliani","Actuarial Analyst","Winnipeg, Canada Area","Education: University of Manitoba"]
["Curtis Tooke",null,null,6333,null,null,null,null,76,"Hadi Saleh","Actuarial Analyst at Deloitte Canada","Toronto, Canada Area","Education: University of Manitoba"]
["JR Alexander",null,null,6369,null,null,null,null,77,"Beilin Ye","Actuarial Intern at Manulife","Winnipeg, Canada Area","Past: Grader/Marker at University of Manitoba"]
["72 shared connections",null,null,6382,null,null,null,null,78,"Jarrod Mikolajczyk","Assistant Actuarial Analyst at Wawanesa Insurance","Winnipeg, Canada Area","Education: University of Manitoba"]
["Message",null,null,6448,null,null,null,null,79,"Naomi Kirshenblatt","Student at Asper School of Business, University of Manitoba","Ottawa, Canada Area","Education: University of Manitoba"]
["Karl Reyes",null,null,6521,null,null,null,null,80,"Jan Paolo Medina","Actuarial Analyst at Sun Life Financial","Winnipeg, Canada Area","Education: University of Manitoba"]
["Karl Reyes  1st degree connection1st",null,null,1294,null,null,null,null,81,"Tanner Klippenstein","Manager Actuarial Pricing - Commercial Lines at Wawanesa Insurance","Winnipeg, Canada Area","Education: University of Manitoba"]
["Actuarial Mathematics Student at the University of Manitoba",null,null,1427,null,null,null,null,82,"Asherah Bock","Actuarial Student","Winnipeg, Canada Area","Past: Actuarial Intern at Manitoba Public Insurance"]
["Winnipeg, Canada Area",null,null,1511,null,null,null,null,83,"Rebecca Craig","Student at University of Manitoba","Winnipeg, Canada Area","Education: University of Manitoba"]
["Education: University of Manitoba",null,null,1540,null,null,null,null,84,"Clive Ngoma","Student at University of Manitoba","Winnipeg, Canada Area","Education: University of Manitoba"]
["Phil Allan",null,null,1718,null,null,null,null,85,"Justin Pursaga","Director, Actuarial Analytics","Winnipeg, Canada Area","Past: Sessional Instructor at University of Manitoba"]
["Chris A Tweten",null,null,2429,null,null,null,null,86,"Naitao Zeng(Audrey)","University of Manitoba","Winnipeg, Canada Area","Sean Klayh"]
["Nikolai Kryvoruchko",null,null,3279,null,null,null,null,87,"Alexa Simpson","Actuarial Assistant at Great-West Life","Winnipeg, Canada Area","Past: Teacher’s Assistant - Introduction to Risk Management at University of Manitoba"]
["11 shared connections",null,null,3349,null,null,null,null,88,"Avi Saper","Actuarial Analyst","Winnipeg, Canada Area","Education: University of Manitoba"]
["Message",null,null,3931,null,null,null,null,89,"Kerem Leylek","Actuarial Analyst at Mercer","Winnipeg, Canada Area","Education: University of Manitoba"]
["Adam Oye",null,null,4102,null,null,null,null,90,"Wayne Heppner","Manager, Actuarial Pricing - Eastern Canada at Wawanesa Insurance","Winnipeg, Canada Area","Education: University of Manitoba"]
["Adam Oye  2nd degree connection2nd",null,null,4355,null,null,null,null,91,"Kyle Meilleur","Actuarial Analyst at Ellement Consulting Group","Canada","Education: University of Manitoba"]
["Actuarial Analyst - WCB Manitoba",null,null,4389,null,null,null,null,92,"Danrui Li","Student at University of Manitoba","Winnipeg, Canada Area","Education: University of Manitoba"]
["Winnipeg, Canada Area",null,null,4425,null,null,null,null,93,"Tafadzwa Alifasi","Student at University of Manitoba","Winnipeg, Canada Area","Education: University of Manitoba"]
["Current: Actuarial Analyst at WCB Manitoba",null,null,4558,null,null,null,null,94,"Kondwelani Kalinda","Student at University of Manitoba","Winnipeg, Canada Area","Education: University of Manitoba"]
["Arielle Gates",null,null,4620,null,null,null,null,95,"Gordon Yestrau","Actuarial Summer Student at Great-West Life","Winnipeg, Canada Area","Education: University of Manitoba"]
["Chunli Liang",null,null,4668,null,null,null,null,96,"Vivi Rihanti","CPA Student, Actuarial Internal Audit at Great-West Life","Winnipeg, Canada Area","Past: Grader at University of Manitoba"]
["Clayton Zaluski, FCIA, FSA",null,null,4734,null,null,null,null,97,"Dylan Allary","Student at University of Manitoba","Winnipeg, Canada Area","Education: University of Manitoba"]
["39 shared connections",null,null,4926,null,null,null,null,98,"Cherity Ostapowich","Senior Actuarial Analyst at Wawanesa Insurance","Winnipeg, Canada Area","Education: University of Manitoba"]
["Connect",null,null,4931,null,null,null,null,99,"Rowena dela Torre","Actuarial Analyst at Willis Towers Watson","Calgary, Canada Area","Education: University of Manitoba"]
["Showing 762 results.",null,null,4936,null,null,null,null,100,"David Ng","Senior Actuarial Associate at Manulife","Toronto, Canada Area","Education: University of Manitoba"]
["Cédric, you’re approaching the commercial use limit.",null,null,5045,null,null,null,null,101,"Zoe Jing Chua","Actuarial Analyst","Winnipeg, Canada Area","Past: Teaching Assistant at Asper School of Business, University of Manitoba."]
["Please upgrade to LinkedIn Premium Business, Sales Navigator, or Recruiter to get unlimited people browsing.",null,null,5102,null,null,null,null,102,"Cara Low","VP Corporate Actuarial & Appointed Actuary","Winnipeg, Canada Area","Education: University of Manitoba"]
["Try Premium for free",null,null,5107,null,null,null,null,103,"Jingsha(Sarah) Yuan","Actuarial Assistant at Great-West Life","Winnipeg, Canada Area","Education: University of Manitoba"]
["Learn more",null,null,5182,null,null,null,null,104,"Mwila Mvula","Student at University of Manitoba","Winnipeg, Canada Area","Education: University of Manitoba"]
["Sharon, Ruiyun Long",null,null,5573,null,null,null,null,105,"Megan Booth","Actuarial Student","Winnipeg, Canada Area","Summary: ...and Actuarial Science. Currently... at the University of Manitoba in the Co..."]
["Sharon, Ruiyun Long  1st degree connection1st",null,null,5590,null,null,null,null,106,"Jared Pursaga","Manager Actuarial Pricing Direct Markets at Wawanesa Insurance","Winnipeg, Canada Area","Education: University of Manitoba"]
["Student at University of Manitoba",null,null,5672,null,null,null,null,107,"Rosena Chan","Actuarial Analyst","Kitchener, Canada Area","Education: University of Manitoba"]
["Winnipeg, Canada Area",null,null,5683,null,null,null,null,108,"hetty asiamah","Grader/marker at Department of Economics, University of Manitoba","Winnipeg, Canada Area","Past: teaching assistant at university of ghana( statistics dept)"]
["Education: University of Manitoba",null,null,5850,null,null,null,null,109,"Justin Lasker, ASA, ACIA","Senior Actuarial Analyst at Sunlife","Canada","Education: University of Manitoba"]
["Yan Wu",null,null,5926,null,null,null,null,110,"Bill MacMillan","Actuarial Consultant at Manulife Financial","Winnipeg, Canada Area","Education: University of Manitoba"]
["Julia Gudmundson",null,null,5955,null,null,null,null,111,"Sara Moffat","Actuarial Analyst at Wawanesa Insurance","Winnipeg, Canada Area","Education: University of Manitoba"]
["Stephen Swenarchuk",null,null,6127,null,null,null,null,112,"wajiha shahzad","Student at University of Manitoba","Winnipeg, Canada Area","Education: University of Manitoba"]
["25 shared connections",null,null,6280,null,null,null,null,113,"Shiyan Jin","Actuarial Associate at Great-West Life","Canada","Education: University of Manitoba"]
["Message",null,null,6291,null,null,null,null,114,"Maxim Kharitonov","Senior Actuarial Analyst at Sun Life Financial","Kitchener, Canada Area","Education: University of Manitoba"]
["Melissa Hrichishen",null,null,6309,null,null,null,null,115,"Liji Huang","Actuarial Analyst at Great-West Life","Winnipeg, Canada Area","Education: University of Manitoba"]
["Melissa Hrichishen  2nd degree connection2nd",null,null,6328,null,null,null,null,116,"Steven Duplak","Student at University of Manitoba","Winnipeg, Canada Area","Education: University of Manitoba"]
["Actuarial Mathematics Student at University of Manitoba",null,null,6333,null,null,null,null,117,"Jenna Young, ASA, ACIA","Senior Actuarial Analyst at Willis Towers Watson","Calgary, Canada Area","Education: University of Manitoba"]
["Winnipeg, Canada Area",null,null,6369,null,null,null,null,118,"varun sharma","Actuarial Associate at The Co-operators","Winnipeg, Canada Area","Summary: Actuarial Analyst... in Insurance and Actuarial..."]
["Education: University of Manitoba",null,null,6382,null,null,null,null,119,"Leon Lo","Student at University of Manitoba","Winnipeg, Canada Area","Education: University of Manitoba"]
["Ben Tallin",null,null,6448,null,null,null,null,120,"Edward Swerhone","Vice-President, Actuarial Reporting and Product Management at Sun Life Financial","Toronto, Canada Area","Summary: ...actuarial students... actuarial nature, looking..."]
["Aaron Menon",null,null,6521,null,null,null,null,121,"Sergey Voronin","University Graduate- Actuarial Mathematics","Toronto, Canada Area","Education: University of Manitoba"]
["Shannon Wylie",null,null,1294,null,null,null,null,122,"Michael Correa","Vice President, Global Actuarial Consulting Group at Munich Re Canada","Toronto, Canada Area","Education: University of Manitoba"]
["3 shared connections",null,null,1427,null,null,null,null,123,"Irina Kretskaia","Actuarial Analyst at Wawanesa Insurance","Winnipeg, Canada Area","Education: University of Manitoba"]
["Connect",null,null,1511,null,null,null,null,124,"Wei Wang","Student at University of Manitoba","Winnipeg, Canada Area","Education: University of Manitoba"]
["yan ying wu",null,null,1540,null,null,null,null,125,"Faza Raflis","Student at University of Manitoba","Winnipeg, Canada Area","Education: University of Manitoba"]
["yan ying wu  1st degree connection1st",null,null,1718,null,null,null,null,126,"Gary Stoller","Actuarial Consultant at School Boards Co-operative Inc.","Toronto, Canada Area","Education: University of Manitoba"]
["Student at University of Manitoba",null,null,2429,null,null,null,null,127,"Ryan Sharman","Actuarial Co-op at John Hancock Financial Services","Toronto, Canada Area","Education: University of Manitoba"]
["Canada",null,null,3279,null,null,null,null,128,"Christopher Prendergast","Actuarial Analyst at Sun Life Financial","Winnipeg, Canada Area","Summary: ...-Op term as an Actuarial... at the University of Manitoba Asper..."]
["Education: University of Manitoba",null,null,3349,null,null,null,null,129,"Samantha Allen","Associate at Mercer","Toronto, Canada Area","Education: University of Manitoba"]
["Julia Gudmundson",null,null,3931,null,null,null,null,130,"Jade Randall","Actuarial Intern at Wawanesa Mutual Insurance","Winnipeg, Canada Area","Education: University of Manitoba"]
["Jordan Gerry",null,null,4102,null,null,null,null,131,"Abel Nyamori","Sales Representative and University Student","Winnipeg, Canada Area","Current: Vice President of Corporate Relations at University of Manitoba Investment group"]
["Sean McFetridge",null,null,4355,null,null,null,null,132,"Shuo Wang","Actuarial Analyst at Great-West Life","Canada","Education: University of Manitoba"]
["31 shared connections",null,null,4389,null,null,null,null,133,"Wenqiang Kang","Student at University of Manitoba","Winnipeg, Canada Area","Education: University of Manitoba"]
["Message",null,null,4425,null,null,null,null,134,"Yiran (Cecilia) Lu","Student at University of Manitoba","Winnipeg, Canada Area","Education: University of Manitoba"]
["Sean Seavers",null,null,4558,null,null,null,null,135,"Hao (Charlie) Zhang","Actuarial Analyst at Workers' Compensation Board","Edmonton, Canada Area","Education: University of Manitoba"]
["Sean Seavers  1st degree connection1st",null,null,4620,null,null,null,null,136,"ira vashisht","Student at University of Manitoba","Winnipeg, Canada Area","Education: University of Manitoba"]
["Student at University of Manitoba",null,null,4668,null,null,null,null,137,"Mostofa Sarkar","Social Statistics & Performance Indicators Statistician at Manitoba Bureau of Statistics","Winnipeg, Canada Area","Past: Research Assistant at University of Manitoba"]
["Winnipeg, Canada Area",null,null,4734,null,null,null,null,138,"Travis Olson","Manager, Group Actuarial Pricing at Co-operators Life","Saskatchewan, Canada","Education: University of Manitoba"]
["Summary: ...of Manitoba studying Actuarial... - University of Manitoba...",null,null,4926,null,null,null,null,139,"Nicole Johnson","Actuarial Officer at Agriculture and Agri-Food Canada","Ottawa, Canada Area","Education: University of Manitoba"]
["Leah Suderman",null,null,4931,null,null,null,null,140,"Jamie Sutherland","Actuarial student at Asper School of Business","Winnipeg, Canada Area","Summary: ..., and persistent Actuarial... and grow my actuarial..."]
["David Senensky",null,null,4936,null,null,null,null,141,"Fangzhu Shen","Student at University of Manitoba","Winnipeg, Canada Area","Education: University of Manitoba"]
["Selena Kaatz",null,null,5045,null,null,null,null,142,"Emma Gao","Actuarial Manager at Intact","Calgary, Canada Area","Education: University of Manitoba"]
["87 shared connections",null,null,5102,null,null,null,null,143,"Lisa Bjornson","Senior Actuarial Analyst at Morneau Shepell","Toronto, Canada Area","Education: University of Manitoba"]
["Message",null,null,5107,null,null,null,null,144,"WENTING LI","Actuarial Graduate","Winnipeg, Canada Area","Summary: A recent Actuarial graduate from University..."]
["Alexander Loscerbo",null,null,5182,null,null,null,null,145,"Stephen Szaura","Graduate Student at McGill University","Montreal, Canada Area","Summary: ...of Management McGill University... and actuarial mathematics..."]
["Alexander Loscerbo  1st degree connection1st",null,null,5573,null,null,null,null,146,"Ella Young","Corporate Director, Enterprise Risk Management and Director, Care Continuum and Actuarial Analytics at VCH","Vancouver, Canada Area","Summary: ...in energy in Manitoba... . Hons (Actuarial Science..."]
["Student at University of Manitoba",null,null,5590,null,null,null,null,147,"Nadia Daoudi","Actuarial Student","Winnipeg, Canada Area","Past: Customer Service Representative at University of Manitoba"]
["Winnipeg, Canada Area",null,null,5672,null,null,null,null,148,"Samantha Gopaul","Student at University of Manitoba","Winnipeg, Canada Area","Education: University of Manitoba"]
["Education: University of Manitoba",null,null,5683,null,null,null,null,149,"John Campbell","AVP, Group Finance Actuarial, at Manulife Financial","Toronto, Canada Area","Past: AVP, External Reporting and Policy at Manulife Financial"]
["Neil Redpath",null,null,5850,null,null,null,null,150,"Joiely Evangelista","Actuarial Student","Canada","Education: University of Manitoba"]
["Sean Seavers",null,null,5926,null,null,null,null,151,"Keith Richtik","Manager, Actuarial Financial Reporting","Winnipeg, Canada Area","Education: University of Manitoba"]
["Tracy Antoniuk",null,null,5955,null,null,null,null,152,"卢枭","University of Manitoba学生","Winnipeg, Canada Area","Education: University of Manitoba"]
["10 shared connections",null,null,6127,null,null,null,null,153,"Wali Naqvi","Majoring in Actuarial Mathematics, Finance and Minoring in Marketing","Winnipeg, Canada Area","Current: Student at University of Manitoba"]
["Message",null,null,6280,null,null,null,null,154,"Erik W.","Student at the University of Manitoba","Vancouver, Canada Area","Education: University of Manitoba"]
["Yash Rajpara",null,null,6291,null,null,null,null,155,"Stuart Tisdale","Actuarial Analyst - New York Life Insurance Company","Greater New York City Area","Past: Teaching Assistant - Department of Statistics at University of Manitoba"]
["Yash Rajpara  1st degree connection1st",null,null,6309,null,null,null,null,156,"Vladimir Krepkiy","Actuarial Associate at BMO Bank of Montreal","Canada","Education: University of Manitoba"]
["Actuarial Student at University of Manitoba",null,null,6328,null,null,null,null,157,"Wisdom Ugbah","Student at University of Manitoba","Canada","Education: University of Manitoba"]
["Winnipeg, Canada Area",null,null,6333,null,null,null,null,158,"Monica Otulak","Student at University of Manitoba","Winnipeg, Canada Area","Education: University of Manitoba"]
["Education: University of Manitoba",null,null,6369,null,null,null,null,159,"Maryana Gange","Actuarial Analyst","Winnipeg, Canada Area","Past: Teacher's Assistant - Introductory Ukrainian and Intermediate Ukrainian at University of Manitoba"]
["Message",null,null,6382,null,null,null,null,160,"Cameron Smart","Senior Actuarial Analyst at Cigna","Hartford, Connecticut Area","Education: University of Manitoba"]
["Trevor Panchyshyn",null,null,6448,null,null,null,null,161,"Bryn Peppler","Actuarial Associate at New York Life Insurance Company","Greater New York City Area","Education: University of Manitoba"]
["Trevor Panchyshyn  1st degree connection1st",null,null,6521,null,null,null,null,162,"Yemurai Bgwoni","Actuarial Graduate - Asper School of Business","Winnipeg, Canada Area","Education: University of Manitoba"]
["Student at University of Manitoba",null,null,1294,null,null,null,null,163,"Dyemila Narrainsawmy","Actuarial Student at University of Manitoba","Winnipeg, Canada Area","Past: Student Worker at University of Manitoba"]
["Manitoba, Canada",null,null,1427,null,null,null,null,164,"Jiabin(Francis) Dong","Actuarial Analyst at Aviva Canada","Toronto, Canada Area","Education: University of Manitoba"]
["Education: University of Manitoba",null,null,1511,null,null,null,null,165,"Hung Manh Le","Actuarial Analyst","Toronto, Canada Area","Past: Student Group Resource Centre Coordinator at University of Manitoba Students' Union"]
["Francis Seah",null,null,1540,null,null,null,null,166,"Ben-Iddo Manda","Actuarial Science Student (BSc) Hons","Winnipeg, Canada Area","Current: Student Office Assistant - Donor Relations at University of Manitoba"]
["Shane O&#39;Connor",null,null,1718,null,null,null,null,167,"Dan Clark","Actuarial Consultant at DRC Actuarial Services","Toronto, Canada Area","Education: University of Manitoba"]
["Tracy Antoniuk",null,null,2429,null,null,null,null,168,"Yu Cheng","Senior Actuarial Officer at OSFI","Ottawa, Canada Area","Education: University of Manitoba"]
["10 shared connections",null,null,3279,null,null,null,null,169,"Maja Bakija","Actuarial Associate at New York Life | Dancer/Choreographer","Greater New York City Area","Past: Grader/Marker at University of Manitoba"]
["Message",null,null,3349,null,null,null,null,170,"Greg Komatich","Actuarial Associate at Financial Services Commission of Ontario","Toronto, Canada Area","Education: University of Manitoba"]
["Linghua Wei",null,null,3931,null,null,null,null,171,"Carolina Faustino","Senior Actuarial Analyst at Morneau Shepell","Vancouver, Canada Area","Education: University of Manitoba"]
["Linghua Wei  1st degree connection1st",null,null,4102,null,null,null,null,172,"Krista P Cortez","Sr. Actuarial Assistant at John Hancock","Greater Boston Area","Past: Lab Demonstrator and Private Tutor at University of Manitoba - Access Program"]
["Research Assistant at University of Manitoba",null,null,4355,null,null,null,null,173,"Mingxuan Cheng","Student at University of Manitoba","Huaian, Jiangsu, China","Past: Lab technician at University of Manitoba"]
["Winnipeg, Canada Area",null,null,4389,null,null,null,null,174,"Luke Johnston","Chief Actuary at Manitoba Public Insurance","Winnipeg, Canada Area","Education: University of Manitoba"]
["Current: ...Actuarial Research Conference, University of Minnesota...",null,null,4425,null,null,null,null,175,"Alyssa Nigh","Student at the University of Manitoba","Greater Milwaukee Area","Education: University of Manitoba"]
["Avi Saper",null,null,4558,null,null,null,null,176,"Ray Huynh","Actuarial Associate at Canada Life Assurance Company (Barbados Branch)","Barbados","Education: University of Manitoba"]
["Stephen Swenarchuk",null,null,4620,null,null,null,null,177,"Maambo Mujala","Actuarial Associate at New York Life Insurance Company","Greater New York City Area","Education: University of Manitoba"]
["Chunli Liang",null,null,4668,null,null,null,null,178,"Charles Manty","Investment Consultant at PBI Actuarial Consultants","Vancouver, Canada Area","Education: University of Manitoba"]
["39 shared connections",null,null,4734,null,null,null,null,179,"Savannah Yeroschak","Actuarial Science Student","Winnipeg, Canada Area","Education: University of Manitoba"]
["Message",null,null,4926,null,null,null,null,180,"Landon Stewart","Retirement Consulting Associate - Aon Hewitt","Winnipeg, Canada Area","Education: University of Manitoba"]
["Alexander Sachs",null,null,4931,null,null,null,null,181,"Sydney Rubert","Actuarial Associate at John Hancock Financial Services","Greater Boston Area","Education: University of Manitoba"]
["Alexander Sachs  2nd degree connection2nd",null,null,4936,null,null,null,null,182,"Pierra Chan","Senior Actuarial Analyst","Toronto, Canada Area","Education: University of Manitoba"]
["Student at University of Manitoba",null,null,5045,null,null,null,null,183,"Melissa Luff","Labour Market and Survey Statistician at Manitoba Bureau of Statistics","Winnipeg, Canada Area","Education: University of Manitoba"]
["Winnipeg, Canada Area",null,null,5102,null,null,null,null,184,"Winny Wu","Actuarial Mathematics Student","Winnipeg, Canada Area","Past: Teaching Assistant at University of Manitoba"]
["Education: University of Manitoba",null,null,5107,null,null,null,null,185,"Cam Bredin, CFA Level II Candidate","Commodity Logistics Coordinator","Winnipeg, Canada Area","Education: University of Manitoba"]
["Hadi Saleh",null,null,5182,null,null,null,null,186,"Avinash Maniram","Consultant, Group and Health Care at PBI Actuarial Consultants Ltd.","Vancouver, Canada Area","Past: Instructor - Actuarial Department at Simon Fraser University"]
["Bryn Peppler",null,null,5573,null,null,null,null,187,"Alexander Zeif","Double honours graduate in Actuarial Math and Statistics","Winnipeg, Canada Area","Summary: ...graduate of the University of Manitoba in Actuarial..."]
["Aaron Yanofsky, ASA, ACIA, CERA",null,null,5590,null,null,null,null,188,"Talia Pankewycz, FSA","Assistant Actuary, Group Benefits at Sun Life Financial","Toronto, Canada Area","Education: University of Manitoba"]
["11 shared connections",null,null,5672,null,null,null,null,189,"Leslee Lefteruk","Coordinator, Occupancy and Data Management at Western University","London, Canada Area","Education: University of Manitoba"]
["Connect",null,null,5683,null,null,null,null,190,"Tyler Smith","Actuarial and Investment Consultant for Coughlin & Associates Ltd.","Canada","Education: University of Manitoba"]
["Gabrielle Lemire",null,null,5850,null,null,null,null,191,"Brenlee Claman","Human Resources at Carleton University","Ottawa, Canada Area","Education: University of Manitoba"]
["Gabrielle Lemire  1st degree connection1st",null,null,5926,null,null,null,null,192,"Bronagh Nazarko, FSA, FCIA","Actuary at Manulife Financial","Winnipeg, Canada Area","Education: University of Manitoba"]
["Student at University of Manitoba",null,null,5955,null,null,null,null,193,"Daniel Neves","Actuarial & Financial Analyst","Toronto, Canada Area","Education: University of Manitoba"]
["Winnipeg, Canada Area",null,null,6127,null,null,null,null,194,"Boaz Michael Twesigye","Actuarial Mathematics and Finance student","Canada","Education: University of Manitoba"]
["Education: University of Manitoba",null,null,6280,null,null,null,null,195,"Pratik Gupta","Actuarial Consultant","Greater New York City Area","Education: University of Manitoba"]
["Neil Redpath",null,null,6291,null,null,null,null,196,"Mark Lee, PMP","Development Manager and Senior Business Consultant at Actuarial System Transformation, Manulife Financial","Toronto, Canada Area","Education: University of Manitoba"]
["Bradley Abells",null,null,6309,null,null,null,null,197,"Ajay Pandey","Business Immigration Officer at Government of Manitoba","Winnipeg, Canada Area","Education: University of Manitoba"]
["Chunli Liang",null,null,6328,null,null,null,null,198,"Kelly Cruise","Actuarial Manager at Deloitte","Toronto, Canada Area","Past: Physics/Astronomy/Mathematics/Statistics Lab Demonstrator at University of Manitoba"]
["37 shared connections",null,null,6333,null,null,null,null,199,"Tapiwa Maswera","Actuarial and Quantitative Finance","Winnipeg, Canada Area","Current: Teaching Assistant at University of Manitoba"]
["Message",null,null,6369,null,null,null,null,200,"Tony Maslanka, CFA","Director, Treasury Risk and Compliance at Credit Union Central of Manitoba","Winnipeg, Canada Area","Education: University of Manitoba"]
["Showing 762 results.",null,null,6382,null,null,null,null,201,"Debbie Rehn Doyle, CFA","Director Treasury/Pensions at MTS (Manitoba Telecom Services)","Winnipeg, Canada Area","Current: Responsible for 5... actuarial valuations..."]
["Cédric, you’re approaching the commercial use limit.",null,null,6448,null,null,null,null,202,"Yan Wu","Manager Group Planning & Risk","Winnipeg, Canada Area","Past: Master student at University of Manitoba"]
["Please upgrade to LinkedIn Premium Business, Sales Navigator, or Recruiter to get unlimited people browsing.",null,null,6521,null,null,null,null,203,"Kelly Ramsay","Statistics MSc. Student","Winnipeg, Canada Area","Past: Research Assistant at University of Manitoba"]
["Try Premium for free",null,null,1294,null,null,null,null,204,"Evan Shaw","Actuarial Intern at Great-West Life","Winnipeg, Canada Area","Education: University of Manitoba"]
["Learn more",null,null,1427,null,null,null,null,205,"Brigitte Scheffer, ACAS","Insurance Professional","Winnipeg, Canada Area","Education: University of Manitoba"]
["Kim Kim Ly",null,null,1511,null,null,null,null,206,"Andrea Sherry","Vice President, Insurance Solutions The Wawanesa Mutual Insurance Company","Winnipeg, Canada Area","Education: University of Manitoba"]
["Kim Kim Ly  2nd degree connection2nd",null,null,1540,null,null,null,null,207,"Clayton Zaluski, FCIA, FSA","Consulting Actuary at Worden Zaluski Consulting Actuaries","Winnipeg, Canada Area","Summary: ...responsibilities, actuarial... other actuarial services. I..."]
["Account Payable Assistant at University of Manitoba",null,null,1718,null,null,null,null,208,"Wan Fen (Melanie) Heng","Actuarial Intern at Great Eastern Life","Kuala Lumpur, Malaysia","Current: Grader / marker at University of Manitoba"]
["Winnipeg, Canada Area",null,null,2429,null,null,null,null,209,"Adam Burns","Actuarial Associate at New York Life Insurance Company","Greater New York City Area","Education: University of Manitoba"]
["Michael Benarroch",null,null,3279,null,null,null,null,210,"Ya(Amy) Tang","Actuarial Analyst at ISO (Verisk Analytics)","Greater New York City Area","Education: University of Manitoba"]
["Chunli Liang",null,null,3349,null,null,null,null,211,"Arissa Reis","Student at RBC Dominion Securities","Winnipeg, Canada Area","Education: University of Manitoba"]
["Calvin Cheng",null,null,3931,null,null,null,null,212,"Chris Jansen","AVP, Group Business Technology Operations at Great-West Life","Winnipeg, Canada Area","Education: University of Manitoba"]
["21 shared connections",null,null,4102,null,null,null,null,213,"Pervin Baylan İrven","Actuarial Science Visiting PhD Student","Winnipeg, Canada Area","Education: University of Manitoba"]
["Connect",null,null,4355,null,null,null,null,214,"Ko Yang","Actuarial Associate - ASA/ACIA","Kansas City, Missouri Area","Education: University of Manitoba"]
["Guangyu Xing",null,null,4389,null,null,null,null,215,"Bo Yuan","Intern at Ernst & Young Hua Ming LLp","Canada","Past: Grader at University of Manitoba"]
["Guangyu Xing  2nd degree connection2nd",null,null,4425,null,null,null,null,216,"Lucas Szczepanski","Actuarial Mathematics Student","Winnipeg, Canada Area","Summary: ..., and results oriented actuarial... . Experience in Actuarial..."]
["Student at University of Manitoba",null,null,4558,null,null,null,null,217,"Sai Man, CFA, FSA, MAAA","Actuarial Life Modeling at Pacific Life","Orange County, California Area","Summary: ...actuarial software... management, corporate actuarial..."]
["Winnipeg, Canada Area",null,null,4620,null,null,null,null,218,"David Bailey, CPA, CMA","Manager, Risk Strategy & Innovation at Province of Manitoba, Treasury Division","Winnipeg, Canada Area","Education: University of Manitoba"]
["Past: Research Assistant at University of Manitoba",null,null,4668,null,null,null,null,219,"Michael Gussakovsky","Special Projects Manager at Birchwood Automotive Group","Winnipeg, Canada Area","Past: Senator at Commerce Students' Association"]
["Chunli Liang",null,null,4734,null,null,null,null,220,"Shane Moulton","Special Projects Manager at the Birchwood Automotive Group","Winnipeg, Canada Area","Summary: ...the University of Manitoba... , the University of Manitoba..."]
["Stephen Thomas",null,null,4926,null,null,null,null,221,"Wilson Low","Value Investor | Financial Services","Winnipeg, Canada Area","Past: Bloomberg Lab Instructor at University of Manitoba"]
["Theresa Van Walleghem",null,null,4931,null,null,null,null,222,"Lindsey Rioux, CFA","Analyst, Equities at GWL Investment Management (GWLIM)","Winnipeg, Canada Area","Education: University of Manitoba"]
["21 shared connections",null,null,4936,null,null,null,null,223,"Rory Mulhern","Associate Director at Sun Life Financial","Canada","Education: University of Manitoba"]
["Connect",null,null,5045,null,null,null,null,224,"Eric Elford","Senior Analyst, Costing & Risk Analysis at Winnipeg Regional Health Authority","Winnipeg, Canada Area","Education: University of Manitoba"]
["Christian Torfason",null,null,5102,null,null,null,null,225,"Kimberly Palatnick, FSA, FCIA","Director, Group Operations at Wawanesa Life Insurance Company","Winnipeg, Canada Area","Education: University of Manitoba"]
["Christian Torfason  1st degree connection1st",null,null,5107,null,null,null,null,226,"Rafe Hunt, FSA","Actuary at Manulife","Toronto, Canada Area","Education: University of Manitoba"]
["Student at University of Manitoba",null,null,5182,null,null,null,null,227,"Gregg Melnyk","AVP, Group Expense Management & Analysis at Great-West Life","Winnipeg, Canada Area","Education: University of Manitoba"]
["Winnipeg, Canada Area",null,null,5573,null,null,null,null,228,"Paul Rothery","Director at Great-West Life","Winnipeg, Canada Area","Education: University of Manitoba"]
["Education: University of Manitoba",null,null,5590,null,null,null,null,229,"Li Kee Ong","Lecturer & Programme Leader at Asia Pacific University","Malaysia","Current: Lecturer & Programme Leader, Actuarial Studies at Asia Pacific University of Technology and Innovation (APU / APIIT)"]
["Michael Vo",null,null,5672,null,null,null,null,230,"Vilok Guliani","Business Analyst, Management Consulting at Deloitte Canada","Winnipeg, Canada Area","Past: Data Entry Specialist at University of Manitoba"]
["Sean Seavers",null,null,5683,null,null,null,null,231,"Keegan Lacroix","Actuarial Student","Winnipeg, Canada Area","Education: University of Manitoba"]
["Calvin Cheng",null,null,5850,null,null,null,null,232,"Kevin Strong","Exploring career and business opportunities","Winnipeg, Canada Area","Education: University of Manitoba"]
["22 shared connections",null,null,5926,null,null,null,null,233,"Shelley Sjoberg","Director, Group Marketing Planning and Field Support at Great-West Life","Winnipeg, Canada Area","Education: University of Manitoba"]
["Message",null,null,5955,null,null,null,null,234,"Charly Pazdor","Consulting actuary at Eckler Ltd.","Winnipeg, Canada Area","Education: University of Manitoba"]
["Jeffray Nicolas",null,null,6127,null,null,null,null,235,"Derek Dagg","I.H. Asper School of Business: Accounting and International Business","Winnipeg, Canada Area","Past: Director of Corporate Relations at University of Manitoba Investment Group"]
["Jeffray Nicolas  1st degree connection1st",null,null,6280,null,null,null,null,236,"Michael Arnold, FSA","Owner and CEO, Arnold Tutoring","Canada","Education: University of Manitoba"]
["Graduate Actuary from the University of Manitoba",null,null,6291,null,null,null,null,237,"Faisal Abidi","Student at University of Manitoba","Winnipeg, Canada Area","Education: University of Manitoba"]
["Winnipeg, Canada Area",null,null,6309,null,null,null,null,238,"Michael Peters","Actuarial Student","Winnipeg, Canada Area","Education: University of Manitoba"]
["Summary: ...in actuarial mathematics... of gaining actuarial...",null,null,6328,null,null,null,null,239,"Shane O'Connor","at","Winnipeg, Canada Area","Education: University of Manitoba"]
["Bradley Abells",null,null,6333,null,null,null,null,240,"Tyler Nguyen","Analyst, Real Estate & Mortgages, Greystone Managed Investments","Winnipeg, Canada Area","Past: Computer Lab Advisor, Scotia Technology Center at Asper School of Business - University of Manitoba"]
["Owais Jafry",null,null,6369,null,null,null,null,241,"Cory Wiebe","Actuary at Sunlife Financial","Canada","Education: University of Manitoba"]
["Ben Tallin",null,null,6382,null,null,null,null,242,"Brian Cameron","Vice President, Actuarial Consulting at OptumInsight","Greater Minneapolis-St. Paul Area","Education: University of Manitoba"]
["30 shared connections",null,null,6448,null,null,null,null,243,"Aaron Tenenbein","Professor of Statistics and Actuarial Science at NYU Stern School of Business","Greater New York City Area","Education: University of Manitoba"]
["Message",null,null,6521,null,null,null,null,244,"Kyla Herzog","Manager at MNP LLP","Winnipeg, Canada Area","Summary: ...from the University Of Manitoba Asper School..."]
["Mengqi Zhang",null,null,1294,null,null,null,null,245,"Owais Jafry","Student at Asper School of Business","Winnipeg, Canada Area","Education: University of Manitoba"]
["Mengqi Zhang  1st degree connection1st",null,null,1427,null,null,null,null,246,"Krizsia Praznik","Pricing Actuary, International Division at Reinsurance Group of America, Incorporated","Toronto, Canada Area","Education: University of Manitoba"]
["Student Leadership Development Program Facilitator at University of Manitoba",null,null,1511,null,null,null,null,247,"Josh Rowson","Senior Leader, Sales and Operations Planning at Princess Auto Ltd.","Winnipeg, Canada Area","Education: University of Manitoba"]
["Winnipeg, Canada Area",null,null,1540,null,null,null,null,248,"Mike Daciw","Director of Corporate Development","Calgary, Canada Area","Summary: ...) after graduating from the University of Manitoba, and spent..."]
["Current: Student Leadership Workshop Facilitator at University of Manitoba",null,null,1718,null,null,null,null,249,"Eric Seah","actuarial consultant","Singapore","Education: University of Manitoba"]
["Chunli Liang",null,null,2429,null,null,null,null,250,"俞京成","学生 - University of Manitoba","Hangzhou, Zhejiang, China","Education: Asper school of Business, University of Manitoba"]
["Edrian Soria",null,null,3279,null,null,null,null,251,"Le Keat Ong","AGM, Actuarial and Family Retakaful","Malaysia","Education: University of Manitoba"]
["David Senensky",null,null,3349,null,null,null,null,252,"Joyce Calderon","Business Owner/Manager at NuCosmetique","Winnipeg, Canada Area","Education: University of Manitoba"]
["21 shared connections",null,null,3931,null,null,null,null,253,"Sheldon Nemeth","Modelling Actuary","Winnipeg, Canada Area","Past: Senior Valuation Analyst at Manulife"]
["Message",null,null,4102,null,null,null,null,254,"Louise Hoeppner, FSA","Actuary, Capital Management at Manulife Financial","Toronto, Canada Area","Past: Research Assistant & Office Assistant, Warren Centre for Actuarial Studies and Research at University of Manitoba"]
["Sergiu Buda",null,null,4355,null,null,null,null,255,"Jamie Rakhra","Junior Analyst at Arctic Glacier Premium Ice","Canada","Education: University of Manitoba"]
["Sergiu Buda  1st degree connection1st",null,null,4389,null,null,null,null,256,"Mang Feng","Actuarial analyst","Toronto, Canada Area","Education: University of Manitoba"]
["Actuarial Student at The Great-West Life Assurance Company",null,null,4425,null,null,null,null,257,"Bryan Luc","New Graduate from the Asper School of Business","Winnipeg, Canada Area","Education: University of Manitoba"]
["Winnipeg, Canada Area",null,null,4558,null,null,null,null,258,"James LaPage","Business Transformation Specialist, Wawanesa Insurance","Winnipeg, Canada Area","Current: Business Transformation Specialist, Actuarial Services at Wawanesa Insurance"]
["Past: Research Assistant at University of Manitoba",null,null,4620,null,null,null,null,259,"Takunda Taimu","Actuarial mathematics student.","Winnipeg, Canada Area","Education: University of Manitoba"]
["Chunli Liang",null,null,4668,null,null,null,null,260,"Nora Fien","Articling Student at Fillmore Riley LLP","Winnipeg, Canada Area","Past: Summer Legal Research Assistant at University of Manitoba"]
["Ivraj Plaha",null,null,4734,null,null,null,null,261,"Alon Halbrich, FCIA, FSA","Director, Pricing, Defined Benefit Solutions at Sun Life Financial","Canada","Summary: ...of actuarial, investment... at the University..."]
["Ainsley Yoong",null,null,4926,null,null,null,null,262,"FARHAN ISLAM","Adjunct Instructor at International College Manitoba","Winnipeg, Canada Area","Current: Sessional Lecturer and Researcher - Asper School of Business at University of Manitoba"]
["172 shared connections",null,null,4931,null,null,null,null,263,"Angel Yong","Actuarial Audit Manager, Prudential Corporation Asia","Singapore","Education: University of Manitoba"]
["Message",null,null,4936,null,null,null,null,264,"Ammar Shaheen","Actuarial Grad","Greater Chicago Area","Education: University of Manitoba"]
["RONGMEI LI",null,null,5045,null,null,null,null,265,"Sergey Voronin","Attended University of Manitoba","Winnipeg, Canada Area","Education: University of Manitoba"]
["RONGMEI LI  2nd degree connection2nd",null,null,5102,null,null,null,null,266,"Irina Ledenev","PeopleSoft Analyst","Winnipeg, Canada Area","Past: Invigilator/Teaching Assistant - Corporate Finance, Financial Accounting and Statistics at University of Manitoba"]
["Actuarial Student at University of Manitoba",null,null,5107,null,null,null,null,267,"Brent Simmons","Senior Managing Director, DB Solutions","Toronto, Canada Area","Summary: ...of experienced actuarial... from the University of Manitoba with a..."]
["Canada",null,null,5182,null,null,null,null,268,"Lorin Hoeppner","VP - Life and Annuity Operations - Actuarial at Swiss Re","Dallas/Fort Worth Area","Education: University of Manitoba"]
["Education: University of Manitoba",null,null,5573,null,null,null,null,269,"Femi Adefabi","Student at University of Manitoba.","Winnipeg, Canada Area","Education: University of Manitoba"]
["Chunli Liang",null,null,5590,null,null,null,null,270,"Maja Dos Santos","FCAS, FCIA, MAAA","Canada","Education: University of Manitoba"]
["Chris A Tweten",null,null,5672,null,null,null,null,271,"Yuriy Krepkiy, MMF","Quantitative Finance Professional at IBM","Toronto, Canada Area","Education: University of Manitoba"]
["Howard Heller",null,null,5683,null,null,null,null,272,"Max Feierstein","Owner, Mirage Consulting Ltd.","Winnipeg, Canada Area","Education: University of Manitoba"]
["6 shared connections",null,null,5850,null,null,null,null,273,"Justine Gratton","Student at the Asper School of Business","Winnipeg, Canada Area","Education: University of Manitoba"]
["Connect",null,null,5926,null,null,null,null,274,"Loretta Kulchycki","Vice President, Group Marketing at Great-West Life","Canada","Education: University of Manitoba"]
["Aaron Yanofsky, ASA, ACIA, CERA",null,null,5955,null,null,null,null,275,"Aaron Dufault","Director, Non-Par Universal Life Valuation","Kitchener, Canada Area","Education: University of Manitoba"]
["Aaron Yanofsky, ASA, ACIA, CERA  1st degree connection1st",null,null,6127,null,null,null,null,276,"Ngoc Ly","ASA","Canada","Education: University of Manitoba"]
["Actuarial Associate at Great-West Life",null,null,6280,null,null,null,null,277,"Mavis (Xiaoyu) Shang, FSA","Senior Director, Financial Actuary & Risk Management at RBC Insurance","Canada","Current: ...for the actuarial financial... , and development of robust actuarial..."]
["Winnipeg, Canada Area",null,null,6291,null,null,null,null,278,"Alfred Yau","Compensation Manager, North America Total Rewards at PepsiCo","Toronto, Canada Area","Education: University of Manitoba"]
["Past: Marker - Asper School of Business at University of Manitoba",null,null,6309,null,null,null,null,279,"David Andrich, CFA","Global Equity Analyst - AGF Management Limited","Toronto, Canada Area","Summary: ...: Actuarial Exams Passed... of Actuarial Practice course"]
["Chunli Liang",null,null,6328,null,null,null,null,280,"Xuan Ren Lim","Actuarial Officer at Great Eastern Life","Malaysia","Education: University of Manitoba"]
["Gerald Hoeppner",null,null,6333,null,null,null,null,281,"Daniel Turenne","Research Assistant","Winnipeg, Canada Area","Current: Research Assistant at University of Manitoba"]
["Ainsley Yoong",null,null,6369,null,null,null,null,282,"Lynn Grenier-Lew","Head of Global Life and Longevity Products at Reinsurance Group of America, Incorporated","Toronto, Canada Area","Education: University of Manitoba"]
["109 shared connections",null,null,6382,null,null,null,null,283,"Ivraj Plaha","Throw at me a challenge... I throw back a result! Hard working student looking to fulfill his dreams!","Winnipeg, Canada Area","Summary: A third year student... at the University of Manitoba..."]
["Message",null,null,6448,null,null,null,null,284,"Huinian-Kelvin Wang","Underwriter - China Market at Odyssey Re","Toronto, Canada Area","Education: University of Manitoba"]
["Elizabeth Wanke",null,null,6521,null,null,null,null,285,"Boon Thye Ho","Actuary at Manulife Financial","Toronto, Canada Area","Education: University of Manitoba"]
["Elizabeth Wanke  1st degree connection1st",null,null,1294,null,null,null,null,286,"Amy Coates","Owner and Trainer at Stoke Strength and Conditioning","Kitchener, Canada Area","Education: University of Manitoba"]
["Actuarial Co-op at Munich Re Canada",null,null,1427,null,null,null,null,287,"Larysa Zubach, FSA, MAAA","Principal at Mercer","Toronto, Canada Area","Past: Health Actuary at Aon Hewitt"]
["Winnipeg, Canada Area",null,null,1511,null,null,null,null,288,"Chen (Victor) Hu","Director of Communications at Asper MISA (Management Information Systems Association)","Winnipeg, Canada Area","Current: Food Service Worker at University of Manitoba"]
["Past: Co-President at University of Manitoba Actuarial Club",null,null,1540,null,null,null,null,289,"Melissa Davies","Research Consultant at InterGroup Consultants Ltd.","Winnipeg, Canada Area","Education: University of Manitoba"]
["Chunli Liang",null,null,1718,null,null,null,null,290,"Christi Sisco","Senior Consultant at Willis Towers Watson","Calgary, Canada Area","Education: University of Manitoba"]
["Owais Jafry",null,null,2429,null,null,null,null,291,"Devon Kirkwood","Associate, Commercial Banking at CIBC","Winnipeg, Canada Area","Education: University of Manitoba"]
["Sasha Towfigh",null,null,3279,null,null,null,null,292,"Juan Fernando Martins","Income Tax Auditor at Canada Revenue Agency - Agence du revenu du Canada","Winnipeg, Canada Area","Past: Chief Actuary at Nuevo Mundo Insurance Co., Caracas, Venezuela"]
["94 shared connections",null,null,3349,null,null,null,null,293,"Miranda Ewashko","Student","Winnipeg, Canada Area","Summary: I am a actuarial... at the University of Manitoba..."]
["Message",null,null,3931,null,null,null,null,294,"Karen Kulchyski","Consultant at Willis Towers Watson","Calgary, Canada Area","Education: University of Manitoba"]
["chenxi zhao",null,null,4102,null,null,null,null,295,"John Devos","Product Line Manager, Seed and Crop Protection at Parrish & Heimbecker","Winnipeg, Canada Area","Education: University of Manitoba"]
["chenxi zhao  1st degree connection1st",null,null,4355,null,null,null,null,296,"Chris Hurlburt","Director, Capital Management at Great-West Life","Winnipeg, Canada Area","Education: University of Manitoba"]
["Student at University of Manitoba",null,null,4389,null,null,null,null,297,"Leo Gu","Assistant Vice President at Swiss Re","Toronto, Canada Area","Education: University of Manitoba"]
["Winnipeg, Canada Area",null,null,4425,null,null,null,null,298,"Hao Gao","Treasurer at London Drugs Action Committee","Winnipeg, Canada Area","Education: University of Manitoba"]
["Education: University of Manitoba",null,null,4558,null,null,null,null,299,"Sehajdeep Sandhu","BComm (Hons) Candidate","Canada","Past: Director of Finance at University of Manitoba Investment Group (UMIG)"]
["Chunli Liang",null,null,4620,null,null,null,null,300,"Charlie Allegro","Senior Consultant at Willis Towers Watson","Calgary, Canada Area","Education: University of Manitoba"]
["Calvin Cheng",null,null,4668,null,null,null,null,301,"Bartholomew Ghanney","Predictive Analyst at Fireseeds North Infrastructure","Winnipeg, Canada Area","Past: Statistician and Research Assistant at University of Manitoba,Winnipeg,Canada"]
["Christian Torfason",null,null,4734,null,null,null,null,302,"Naomi Bazak","AVP, Industry and Regulatory Affairs at Manulife","Toronto, Canada Area","Education: University of Manitoba"]
["23 shared connections",null,null,4926,null,null,null,null,303,"Gerald Hoeppner","Group Planning and Risk","Winnipeg, Canada Area","Education: University of Manitoba"]
["Message",null,null,4931,null,null,null,null,304,"Ryan Ma","Actuary/Director at Manulife","Toronto, Canada Area","Education: University of Manitoba"]
["Showing 762 results.",null,null,4936,null,null,null,null,305,"Paul Young","Actuary Student, U of M","Canada","Education: University of Manitoba"]
["Cédric, you’re approaching the commercial use limit.",null,null,5045,null,null,null,null,306,"Adam Scarth","Director, Commercial Lines Pricing and Analytics at Northbridge Financial Corporation","Toronto, Canada Area","Education: University of Manitoba"]
["Please upgrade to LinkedIn Premium Business, Sales Navigator, or Recruiter to get unlimited people browsing.",null,null,5102,null,null,null,null,307,"Edith Samuels","Principal at Mercer","Winnipeg, Canada Area","Education: University of Manitoba"]
["Try Premium for free",null,null,5107,null,null,null,null,308,"Paul Kawchuk","Equity Analyst at Sarbit Advisory Services Inc","Canada","Past: Homework Club Coordinator at Spence Neighbourhood Association"]
["Learn more",null,null,5182,null,null,null,null,309,"Gaetan Ruest","Vice-President of Corporate Research at Investors Group","Winnipeg, Canada Area","Education: University of Manitoba"]
["Lorena Ardebol",null,null,5573,null,null,null,null,310,"Carole Field, FCIA","Vice President, Human Resources at ATCO Group","Calgary, Canada Area","Education: University of Manitoba"]
["Lorena Ardebol  1st degree connection1st",null,null,5590,null,null,null,null,311,"Eli Gotthilf","N/A","Winnipeg, Canada Area","Education: University of Manitoba"]
["Student at University of Manitoba",null,null,5672,null,null,null,null,312,"Karthigesan Arasu","Project Management Assistant at Great-West Life","Winnipeg, Canada Area","Education: University of Manitoba"]
["Winnipeg, Canada Area",null,null,5683,null,null,null,null,313,"Tony C L Williams, FCIA, FSA","Consulting Actuary","Vancouver, Canada Area","Summary: ...President of PBI Actuarial... held senior actuarial..."]
["Education: University of Manitoba",null,null,5850,null,null,null,null,314,"Michael McDermid","Actuary specializing in processes and controls","Toronto, Canada Area","Past: Director, Internal Audit at Sun Life Financial"]
["Gabrielle Lemire",null,null,5926,null,null,null,null,315,"Hang Gao","Pension Administrator at Coughlin & Associates","Winnipeg, Canada Area","Education: University of Manitoba"]
["Ben Tallin",null,null,5955,null,null,null,null,316,"Ramogi Nyonje, B.Comm(Hons)","ALM Senior Analyst at Great-West Life","Winnipeg, Canada Area","Past: International Student Representative at University of Manitoba Students'​ Union (UMSU)"]
["Cassidy Coutts",null,null,6127,null,null,null,null,317,"Michel Marcon","Senior Consultant at Willis Towers Watson","Calgary, Canada Area","Education: University of Manitoba"]
["16 shared connections",null,null,6280,null,null,null,null,318,"Lucinda McMaster","Health and Benefits Practice Leader Calgary at Willis Towers Watson","Calgary, Canada Area","Summary: ...leader of actuarial benefit... in the actuarial analysis..."]
["Message",null,null,6291,null,null,null,null,319,"Joel Newbury","Director, Budgeting and Planning at Great-West Life","Winnipeg, Canada Area","Education: University of Manitoba"]
["Christian Guevarra",null,null,6309,null,null,null,null,320,"Kim Doan","Digital Communications Associate at We Are Patio","Vancouver, Canada Area","Education: University of Manitoba"]
["Christian Guevarra  1st degree connection1st",null,null,6328,null,null,null,null,321,"Rudy Maharajh","Building and protection of financial security for individuals, families and business owners","Winnipeg, Canada Area","Education: University of Manitoba"]
["Student at University of Manitoba",null,null,6333,null,null,null,null,322,"Debbie Wiebe","at Great-West Life","Winnipeg, Canada Area","Education: University of Manitoba"]
["Winnipeg, Canada Area",null,null,6369,null,null,null,null,323,"Michael Wach","Senior Consultant at Wills Towers Watson","Vancouver, Canada Area","Education: University of Manitoba"]
["Education: University of Manitoba",null,null,6382,null,null,null,null,324,"Brad Fedorchuk","VP, Group Major Accounts at Great-West Life","Winnipeg, Canada Area","Education: University of Manitoba"]
["Jan Paolo Medina",null,null,6448,null,null,null,null,325,"Cody Baldauf","Referee Assignor at Phoenix Soccer Association","Winnipeg, Canada Area","Education: University of Manitoba"]
["Jeffrey Umandap",null,null,6521,null,null,null,null,326,"Anne Dang","Financial Analyst at Kitchen Craft","Winnipeg, Canada Area","Past: Teaching Assistant (Calculus for Engineering, Techniques of Classical and Linear Algebra) at University of Manitoba"]
["Kyle A. Casalla",null,null,1294,null,null,null,null,327,"Andrew Kulyk","Actuary at Eckler Ltd.","Winnipeg, Canada Area","Education: University of Manitoba"]
["16 shared connections",null,null,1427,null,null,null,null,328,"Alex Lam","Director, Individual Insurance Valuation at Great-West Life","Winnipeg, Canada Area","Education: University of Manitoba"]
["Message",null,null,1511,null,null,null,null,329,"Gayle Martin","Supervisor, Client Services, Chamber Group Insurance Plan (Johnston Group Inc.)","Winnipeg, Canada Area","Education: University of Manitoba"]
["Barbara Hanchard",null,null,1540,null,null,null,null,330,"Fred Horbaty","Director, Finance at Federated Insurance Company of Canada","Winnipeg, Canada Area","Education: University of Manitoba"]
["Barbara Hanchard  2nd degree connection2nd",null,null,1718,null,null,null,null,331,"Jack Zhang","System Analytics Analyst At Enbridge","Calgary, Canada Area","Past: Teaching Assistant/Marker at University of Manitoba"]
["Director, Staff Benefits at University of Manitoba",null,null,2429,null,null,null,null,332,"Angela Morelli","AVP Group Pricing at Great-West Life","Winnipeg, Canada Area","Education: University of Manitoba"]
["Winnipeg, Canada Area",null,null,3279,null,null,null,null,333,"Troy Haugen","SVP, New Business and Claims, Individual Insurance at Great-West Life","Winnipeg, Canada Area","Education: University of Manitoba"]
["Past: Senior Actuarial Systems Analyst at Great West Life Assurance",null,null,3349,null,null,null,null,334,"Kasey Boisselle","President, Group Benefits & Pensions at Belton Boisselle Benefits & Pensions","Winnipeg, Canada Area","Education: University of Manitoba"]
["Charly Pazdor",null,null,3931,null,null,null,null,335,"Clare Cremer","Independent Management Consulting Professional","Winnipeg, Canada Area","Education: University of Manitoba"]
["1 shared connection",null,null,4102,null,null,null,null,336,"Rui Wang","Branch Manager at RBC","Winnipeg, Canada Area","Education: University of Manitoba"]
["Connect",null,null,4355,null,null,null,null,337,"Onesime David Deha","Étudiant(e) (University of Ghana)","Ghana","Education: University of Manitoba"]
["Jeffrey Umandap",null,null,4389,null,null,null,null,338,"Jason Bean, ASA, B. Comm (Hons)","Senior Associate at BFP | Bajus Financial Partners Ltd.","Vancouver, Canada Area","Past: Summer Student at Towers Perrin"]
["Jeffrey Umandap  1st degree connection1st",null,null,4425,null,null,null,null,339,"Grant Buchanan","VP, Reinsurance, Group Office at Manulife Financial","Toronto, Canada Area","Education: University of Manitoba"]
["Actuarial Intern at Great-West Life",null,null,4558,null,null,null,null,340,"Gordon Clarke B. Comm (Honours), CHRP, CCP","HR Professional at Gordon Clarke","Winnipeg, Canada Area","Past: HR Consultant at KPMG/Watson Wyatt"]
["Winnipeg, Canada Area",null,null,4620,null,null,null,null,341,"Stephen Lui","Vice President at IDC Worldsource Insurance Network","Toronto, Canada Area","Education: University of Manitoba"]
["Education: University of Manitoba",null,null,4668,null,null,null,null,342,"Barry Gros","Consulting Pension Actuary (retired)","British Columbia, Canada","Education: University of Manitoba"]
["Leah Suderman",null,null,4734,null,null,null,null,343,"Wynnell De Landro","Regulator","Toronto, Canada Area","Education: University of Manitoba"]
["Ivraj Plaha",null,null,4926,null,null,null,null,344,"Kristin Ramlal, B. Comm. (Hons), PFP®, CIM®","Qtrade Advisor | Securities Specialist","Canada","Summary: ...in Actuarial Mathematics... at the University of Manitoba. Since, I..."]
["Quinn Kirkpatrick",null,null,4931,null,null,null,null,345,"Martyn Daly","Regional Director, Group Benefits at Great-West Life","Winnipeg, Canada Area","Education: University of Manitoba"]
["91 shared connections",null,null,4936,null,null,null,null,346,"Adam Rogocki","Analyst at Canada ICI Capital Corporation","Canada","Education: University of Manitoba"]
["Message",null,null,5045,null,null,null,null,347,"Sheila Mwema","Accounts Receivable and Payable Associate at Arctic Glacier Premium Ice","Winnipeg, Canada Area","Education: University of Manitoba"]
["David Senensky",null,null,5102,null,null,null,null,348,"Amanda Evenson, FCIP","Manager, Product Innovation at Wawanesa Insurance","Manitoba, Canada","Past: Actuarial Technician at Wawanesa Insurance"]
["David Senensky  1st degree connection1st",null,null,5107,null,null,null,null,349,"Samantha Dakin","Financial Planning Administrator","Vancouver, Canada Area","Past: Office Administration Manager & Planning Assistant at Gillis Agency Ltd"]
["Actuarial Associate at Great-West Life",null,null,5182,null,null,null,null,350,"Robert MacKay, CFA","Founding Partner","Winnipeg, Canada Area","Education: University of Manitoba"]
["Winnipeg, Canada Area",null,null,5573,null,null,null,null,351,"Mark Struck","Vice President, Enterprise Risk Management","Winnipeg, Canada Area","Education: University of Manitoba"]
["Education: University of Manitoba",null,null,5590,null,null,null,null,352,"Arvelle Zacharias","Director, Home Pricing - The Co-operators","Kitchener, Canada Area","Education: University of Manitoba"]
["Chunli Liang",null,null,5672,null,null,null,null,353,"Jim Snell","Enjoying Retirement","Winnipeg, Canada Area","Education: University Of Manitoba"]
["Justin Gagnon",null,null,5683,null,null,null,null,354,"Patricia Khoe","Consultant, Ellement Consulting Group","Winnipeg, Canada Area","Education: University of Manitoba"]
["Curtis Tooke",null,null,5850,null,null,null,null,355,"Jeffrey Huang","Senior Manager, Financial Model Development","Toronto, Canada Area","Education: University of Manitoba"]
["72 shared connections",null,null,5926,null,null,null,null,356,"Amhlaoibh Lynch","General Manager at Hannover Re (Ireland) DAC Canadian Life Branch","Toronto, Canada Area","Education: University of Manitoba"]
["Message",null,null,5955,null,null,null,null,357,"Jasbir Jaswal, CFA","Risk Manager at BroadGrain Commodities Inc.","Toronto, Canada Area","Education: University of Manitoba"]
["Devin Kinley",null,null,6127,null,null,null,null,358,"Jared Mickall","Actuary at Mercer","Winnipeg, Canada Area","Current: ...of Mercer's Actuarial Resource... from the University of Manitoba in 2000..."]
["Devin Kinley  1st degree connection1st",null,null,6280,null,null,null,null,359,"Ritchie Hok","Capital Specialist at Office of the Superintendent of Financial Institutions of Canada","Canada","Education: University of Manitoba"]
["Actuarial Intern, Wawanesa Mutual Insurance Co.",null,null,6291,null,null,null,null,360,"Jimmy Tan, PFP®","Financial Planner - RBC","Canada","Education: University of Manitoba"]
["Winnipeg, Canada Area",null,null,6309,null,null,null,null,361,"Neazul Karim","Senior Analyst at Xerox","Toronto, Canada Area","Past: Human Resources Assistant at University of Manitoba"]
["Past: Interest Theory Grader at University of Manitoba",null,null,6328,null,null,null,null,362,"Carmen Cochrane","Manager, Data Services at Farm Credit Canada / Financement agricole Canada","Canada","Education: University of Manitoba"]
["Leah Suderman",null,null,6333,null,null,null,null,363,"Enxi Dong, CFA","Senior Capital Management Analyst at GWL","Canada","Education: University of Manitoba"]
["Chunli Liang",null,null,6369,null,null,null,null,364,"Irene Lee","Technical Writer at Buhler Versatile","Winnipeg, Canada Area","Education: University of Manitoba"]
["Ivraj Plaha",null,null,6382,null,null,null,null,365,"Anesu Machoko, ACIA,FRM,CAIA,G.Dip.F.E","MBA & Graduate Diploma, Financial Engineering candidate at Schulich School of Business","Toronto, Canada Area","Education: University of Manitoba"]
["86 shared connections",null,null,6448,null,null,null,null,366,"Teck Go","Actuary","Toronto, Canada Area","Education: University of Manitoba"]
["Message",null,null,6521,null,null,null,null,367,"Ron Heck","Business Analyst at Shaw Communications","Calgary, Canada Area","Education: University of Manitoba"]
["Roger Tran",null,null,1294,null,null,null,null,368,"Harmandeep Sandhu","Software Developer - UX Design - Java - Python - C","Winnipeg, Canada Area","Summary: ..., Finance, Actuarial Studies... at University of Manitoba..."]
["Roger Tran  1st degree connection1st",null,null,1427,null,null,null,null,369,"Sheldon Laveman, FSA, FCIA, PMP","Business Program Management | Enterprise PMO Executive","Toronto, Canada Area","Education: University of Manitoba"]
["Actuarial Analyst at Sun Life Financial",null,null,1511,null,null,null,null,370,"Vanessa Heichert, AFIS, CIP","Manager, Business Transformation - Distribution at Wawanesa Insurance","Winnipeg, Canada Area","Education: University of Manitoba"]
["Winnipeg, Canada Area",null,null,1540,null,null,null,null,371,"Martin Petras","Manager, Commercial Banking","Winnipeg, Canada Area","Education: University of Manitoba"]
["Education: University of Manitoba",null,null,1718,null,null,null,null,372,"Fran Yaffe","Principal at Mercer","Winnipeg, Canada Area","Education: University of Manitoba"]
["Chunli Liang",null,null,2429,null,null,null,null,373,"Cheryl de Leon, FSA, FCIA","Director, NAVA US Reporting & Analytics at Sun Life Financial","Toronto, Canada Area","Current: Director, NAVA US Reporting and Analytics at Sun Life Financial"]
["Sasha Towfigh",null,null,3279,null,null,null,null,374,"Fatima Calimbas","Sales Analyst at The North West Company","Winnipeg, Canada Area","Summary: ...at the University of Manitoba... in Actuarial Mathematics during..."]
["David Senensky",null,null,3349,null,null,null,null,375,"Dave Giesbrecht","VP, Investment Counselling, Institutional Investment Solutions at Great-West Life","Vancouver, Canada Area","Education: University of Manitoba"]
["100 shared connections",null,null,3931,null,null,null,null,376,"Bob Mersereau","Associate Vice President, Digital","Calgary, Canada Area","Education: University of Manitoba"]
["Message",null,null,4102,null,null,null,null,377,"Esther Friesen","Credit/Risk/Lending Leader - Seizes Opportunities/Makes Sound Decisions","Canada","Education: University of Manitoba"]
["PARTHKUMAR PATEL",null,null,4355,null,null,null,null,378,"Kim Karpenko, MBA","Finance Professional","Calgary, Canada Area","Past: Pension Clerk at University of Manitoba"]
["PARTHKUMAR PATEL  2nd degree connection2nd",null,null,4389,null,null,null,null,379,"Savvy Ghuman","Client Advisor at RBC","Canada","Education: University of Manitoba"]
["Accounting Grader/Marker at University of Manitoba",null,null,4425,null,null,null,null,380,"Brad Wallis","Actuary at Manulife","NCR - National Capital Region, Philippines","Education: University of Manitoba"]
["Winnipeg, Canada Area",null,null,4558,null,null,null,null,381,"Yao Wan","BComm (Hons) graduate","Winnipeg, Canada Area","Past: Academic Tutor at University of Manitoba"]
["Ivraj Plaha",null,null,4620,null,null,null,null,382,"Corinne Harrison","Administrative Professional","London, Canada Area","Past: Administrative Assistant / Academic Counsellor at Department of Statistical & Actuarial Sciences | Western University"]
["Mclaren Shaw",null,null,4668,null,null,null,null,383,"August Chow","Retired","Canada","Education: University of Manitoba"]
["Felipe Andrés Garcia Recio",null,null,4734,null,null,null,null,384,"Andrea Mitchell","--","Winnipeg, Canada Area","Education: University of Manitoba"]
["11 shared connections",null,null,4926,null,null,null,null,385,"Vanessa Izan","Consultant at Morneau Shepell","Canada","Education: University of Manitoba"]
["Nathania Frederica",null,null,4931,null,null,null,null,386,"Giang LeGrice","Senior Director, Global Business Insights & Analytics at Hootsuite","Vancouver, Canada Area","Education: University of Manitoba"]
["Nathania Frederica  1st degree connection1st",null,null,4936,null,null,null,null,387,"Carlin Thiessen","Experienced Transportation Entrepreneur and Executive","Winnipeg, Canada Area","Education: University of Manitoba"]
["Actuarial Student at Investors Group",null,null,5045,null,null,null,null,388,"Swan Nguyen","_","Winnipeg, Canada Area","Education: University of Manitoba"]
["Winnipeg, Canada Area",null,null,5102,null,null,null,null,389,"Jonathan Seah","Immigration Consultant at Silver Lining Immigration Inc.","Winnipeg, Canada Area","Past: Business Intelligence Analyst (Contract) at University of Manitoba"]
["Current: Grader / Marker at University of Manitoba",null,null,5107,null,null,null,null,390,"Tracey Vincent","Mercer - Senior Associate, Pension Administration Centre of Excellence","Winnipeg, Canada Area","Education: University of Manitoba"]
["Chunli Liang",null,null,5182,null,null,null,null,391,"Adam Pazdor","Sessional Instructor / Master Student","Winnipeg, Canada Area","Current: Sessional Instructor at University of Manitoba"]
["Owais Jafry",null,null,5573,null,null,null,null,392,"Victoria Ho","Student at Sauder School of Business at UBC","Winnipeg, Canada Area","Education: University of Manitoba"]
["Stephen Thomas",null,null,5590,null,null,null,null,393,"Brent Delveaux, CEBS","Benefits Consultant, TRG Group Benefits and Pensions Inc.","Vancouver, Canada Area","Education: University of Manitoba"]
["55 shared connections",null,null,5672,null,null,null,null,394,"Robbie Wu","Associate Actuary at Manulife Financial Reinsurance Finance","Toronto, Canada Area","Education: University of Manitoba"]
["Message",null,null,5683,null,null,null,null,395,"Alyson Scoths","Pension Administrator at Mercer","Winnipeg, Canada Area","Education: University of Manitoba"]
["Kyle A. Casalla",null,null,5850,null,null,null,null,396,"Ben Nevile","CTO at Breather","Montreal, Canada Area","Education: University of Manitoba"]
["Kyle A. Casalla  1st degree connection1st",null,null,5926,null,null,null,null,397,"Sandee Bachalo","Vice President, Pension, Benefits & Payroll at Investors Group Financial Services Inc.","Winnipeg, Canada Area","Education: University of Manitoba"]
["Actuarial Analyst at Sun Life Financial, Actuarial Science Student at Asper School of Business",null,null,5955,null,null,null,null,398,"Emmett Ishak","--","Toronto, Canada Area","Education: University of Manitoba"]
["Winnipeg, Canada Area",null,null,6127,null,null,null,null,399,"Harindra Chandrasena","Assistant Vice President & Actuary at Swiss Re","Toronto, Canada Area","Education: University of Manitoba"]
["Summary: ...in Actuarial Mathematics... the University of Manitoba...",null,null,6280,null,null,null,null,400,"Dino Trudeau","Manager Compensation and Benefits at Agrium","Calgary, Canada Area","Education: University of Manitoba"]
["Leah Suderman",null,null,6291,null,null,null,null,401,"Jason Rempel","Manager, Pension & Benefits at TransCanada","Calgary, Canada Area","Education: University of Manitoba"]
["Ivraj Plaha",null,null,6309,null,null,null,null,402,"Naomi Ali, B. Comm (Hons), CAIB, RIB (Ont)","Director of Underwriting at IC Specialty Brokers LP","Winnipeg, Canada Area","Education: University of Manitoba"]
["Owais Jafry",null,null,6328,null,null,null,null,403,"Sheila R.","Branch Manager at RBC","Edmonton, Canada Area","Education: University of Manitoba"]
["94 shared connections",null,null,6333,null,null,null,null,404,"Dimitra Tsourpis","Senior Consultant at Aon Hewitt","Vancouver, Canada Area","Summary: ...actuarial analyst... from the University of Calgary with a..."]
["Message",null,null,6369,null,null,null,null,405,"Cecilia G.","Senior Analyst at Aon Hewitt","Toronto, Canada Area","Education: University of Manitoba"]
["Showing 762 results.",null,null,6382,null,null,null,null,406,"Dave Gillies","Enabling Entrepreneurship at Shopify Plus","Winnipeg, Canada Area","Past: Technical Architect at University of Manitoba"]
["Cédric, you’re approaching the commercial use limit.",null,null,6448,null,null,null,null,407,"Ying Huang, CEBS","Underwriting Manager at GroupHEALTH","Vancouver, Canada Area","Summary: ...focused in Actuarial Science from University..."]
["Please upgrade to LinkedIn Premium Business, Sales Navigator, or Recruiter to get unlimited people browsing.",null,null,6521,null,null,null,null,408,"Ivan Vakhtine","Financial Advisor at Scotiabank","Winnipeg, Canada Area","Education: University of Manitoba"]
["Try Premium for free",null,null,1294,null,null,null,null,409,"Mark Nagelberg","Data Scientist working in Market Research Consulting","Winnipeg, Canada Area","Past: Research Assistant at University of Manitoba"]
["Learn more",null,null,1427,null,null,null,null,410,"Chris Molinski","Continuous Improvement Specialist at MasterBrand Cabinets","Winnipeg, Canada Area","Education: University of Manitoba"]
["Neil Redpath",null,null,1511,null,null,null,null,411,"Punya Wijetunge","Insurance Professional","Winnipeg, Canada Area","Summary: ..., University of Manitoba. My... by Manitoba Hydro..."]
["Neil Redpath  1st degree connection1st",null,null,1540,null,null,null,null,412,"Margaret Proven","Director, HR Total Rewards at Shaw Communications","Winnipeg, Canada Area","Education: University of Manitoba"]
["Actuarial Intern at Great-West Life",null,null,1718,null,null,null,null,413,"Ryan O'Hara","Manager - Informatics and Process Improvement - WRHA Emergency Program","Winnipeg, Canada Area","Education: University of Manitoba"]
["Winnipeg, Canada Area",null,null,2429,null,null,null,null,414,"Todd Asman","Executive Vice-President, Products and Financial Planning at Investors Group","Winnipeg, Canada Area","Education: University of Manitoba"]
["Avi Saper",null,null,3279,null,null,null,null,415,"Scott Nichols","Senior Risk Analyst at Cross Canada Financial Inc.","Winnipeg, Canada Area","Education: University of Manitoba"]
["Chunli Liang",null,null,3349,null,null,null,null,416,"Carlos Hernandez","Manager, Portfolio Analytics at Scotiabank","Toronto, Canada Area","Education: University of Manitoba"]
["Ainsley Yoong",null,null,3931,null,null,null,null,417,"Wayne Fingas","Retired Actuary with HR consulting and insurance executive experience","Alberta, Canada","Education: University of Manitoba"]
["76 shared connections",null,null,4102,null,null,null,null,418,"Heng He","Bachelor of Commerce - Honours","Winnipeg, Canada Area","Summary: Graduate from University of Manitoba..."]
["Message",null,null,4355,null,null,null,null,419,"Siluo Wang","Program Operations Analyst at Monsanto Company","Canada","Education: University of Manitoba"]
["Ziwei Jiang",null,null,4389,null,null,null,null,420,"Joel Stevens","Electrical Engineering Technologist","Winnipeg, Canada Area","Education: University of Manitoba"]
["Ziwei Jiang  2nd degree connection2nd",null,null,4425,null,null,null,null,421,"Nony Nkwonta","Home Financing Advisor at Scotiabank","Winnipeg, Canada Area","Education: University of Manitoba"]
["Student at University of Manitoba",null,null,4558,null,null,null,null,422,"Marc Lynch","President at Randall Plumbing & Heating Limited","Winnipeg, Canada Area","Education: University of Manitoba"]
["Winnipeg, Canada Area",null,null,4620,null,null,null,null,423,"Srinah Lutchia","Supervisor at SBM Bank","Winnipeg, Canada Area","Current: Undergraduate Student at University of Manitoba"]
["Education: University of Manitoba",null,null,4668,null,null,null,null,424,"Brock Zimak","Broker at PZM Financial","Winnipeg, Canada Area","Education: University of Manitoba, Bcomm Honors"]
["Edrian Soria",null,null,4734,null,null,null,null,425,"Garrett Fast","Financial Security Advisor","Winnipeg, Canada Area","Education: University of Manitoba"]
["Calvin Cheng",null,null,4926,null,null,null,null,426,"Gwen Yager","Retired","Calgary, Canada Area","Education: University of Manitoba"]
["Oleksandr Kovalchuk",null,null,4931,null,null,null,null,427,"Jasmine Tabuzo","Co-op Student at the Asper School of Business","Winnipeg, Canada Area","Education: Asper School of Business, University of Manitoba"]
["16 shared connections",null,null,4936,null,null,null,null,428,"May Zheng","GGY, FSA","Toronto, Canada Area","Education: University of Manitoba"]
["Connect",null,null,5045,null,null,null,null,429,"Edwin Budianto","Education Management Professional","Winnipeg, Canada Area","Past: Grader Marker at University of Manitoba"]
["Taylor Mitchell",null,null,5102,null,null,null,null,430,"Michelle Gibbs","AVP at Sun Life Financial","Toronto, Canada Area","Education: University of Manitoba"]
["Taylor Mitchell  1st degree connection1st",null,null,5107,null,null,null,null,431,"Mary Sanders","Information & Data Integrity Analyst","Winnipeg, Canada Area","Education: University of Manitoba"]
["Actuarial Intern at Wawanesa Insurance",null,null,5182,null,null,null,null,432,"Firman Steve","Manager, Internal Audit at Great-West Life Assurance Company","Winnipeg, Canada Area","Education: University of Manitoba"]
["Winnipeg, Canada Area",null,null,5573,null,null,null,null,433,"Kirk McIntyre","President, Group Insurance Services at Ontario Teachers Insurance Plan","Kitchener, Canada Area","Education: University of Manitoba"]
["Education: University of Manitoba",null,null,5590,null,null,null,null,434,"Jordan B. Peixoto","Driven to improve healthcare","Toronto, Canada Area","Education: University of Manitoba"]
["Chunli Liang",null,null,5672,null,null,null,null,435,"Chuck Hamilton, C.Dir., FSA, FCIA","President & CEO at Educators Financial Group Inc.","Ottawa, Canada Area","Education: University of Manitoba"]
["Owais Jafry",null,null,5683,null,null,null,null,436,"Gregory Ward","Data Management, Privacy, and Quality Assurance Administrator at Kenora Chiefs Advisory","Ontario, Canada","Education: University of Manitoba"]
["Sasha Towfigh",null,null,5850,null,null,null,null,437,"Richard Jones","Vice President, Infrastructure and Governance at Wawanesa Insurance","Winnipeg, Canada Area","Education: University of Manitoba"]
["62 shared connections",null,null,5926,null,null,null,null,438,"Karen Figueiredo","VP, Global Pension & Benefits at Sun Life Financial","Toronto, Canada Area","Education: University of Manitoba"]
["Message",null,null,5955,null,null,null,null,439,"Sherry Wendt","Associate General Counsel & Assistant Corporate Secretary at Cenovus Energy","Calgary, Canada Area","Education: University of Manitoba"]
["Andrea Leong",null,null,6127,null,null,null,null,440,"Greg van Ginkel","President, Knight Archer Commercial Insurance","Saskatchewan, Canada","Education: University of Manitoba"]
["Andrea Leong  1st degree connection1st",null,null,6280,null,null,null,null,441,"Rob Rosenblat, FSA, FCIA, C.Dir.","Actuary","Canada","Education: University of Manitoba"]
["Actuarial Analyst at Great-West Life",null,null,6291,null,null,null,null,442,"Reese Gelley","Analyst at KPMG Corporate Finance LLC","Washington D.C. Metro Area","Education: University of Manitoba"]
["Winnipeg, Canada Area",null,null,6309,null,null,null,null,443,"Keith Meyer","AVP, Information Technology at DMT Development Systems Group Inc.","Winnipeg, Canada Area","Education: University of Manitoba"]
["Education: University of Manitoba",null,null,6328,null,null,null,null,444,"Wendy Mizuno","Partner, Mercer (Canada) Limited","Toronto, Canada Area","Education: University of Manitoba"]
["Chunli Liang",null,null,6333,null,null,null,null,445,"Adrian Yasay","Student Asper School of Business--","Winnipeg, Canada Area","Education: University of Manitoba"]
["Gerald Hoeppner",null,null,6369,null,null,null,null,446,"Andrew Hargrave","Senior Auditor at Cangene Corporation","Winnipeg, Canada Area","Education: University of Manitoba"]
["David Senensky",null,null,6382,null,null,null,null,447,"Richard Gould","ASA","Greater Minneapolis-St. Paul Area","Education: University of Manitoba"]
["63 shared connections",null,null,6448,null,null,null,null,448,"Ina Eng","Partner at Ascenda Financial Consultants","Winnipeg, Canada Area","Education: University of Manitoba"]
["Message",null,null,6521,null,null,null,null,449,"Craig Wild","Product Manager at Ceridian","Winnipeg, Canada Area","Education: University of Manitoba"]
["Bradley Abells",null,null,1294,null,null,null,null,450,"Brett MacKinnon","Vice President and Chief Actuary at Wawanesa Insurance","Winnipeg, Canada Area","Education: University of Manitoba"]
["Bradley Abells  1st degree connection1st",null,null,1427,null,null,null,null,451,"William (Bill) Sloan","Financial Risk Manager","Winnipeg, Canada Area","Education: University of Manitoba"]
["Actuarial Intern at Munich Re Canada",null,null,1511,null,null,null,null,452,"Louis Ellement","Retired Actuary","Winnipeg, Canada Area","Education: University of Manitoba"]
["Winnipeg, Canada Area",null,null,1540,null,null,null,null,453,"Dennis Schettler","Financial Services Consultant and Contractor","Toronto, Canada Area","Education: University of Manitoba"]
["Education: University of Manitoba",null,null,1718,null,null,null,null,454,"Jim Bremer","Independent Investment Management Professional","Toronto, Canada Area","Education: University of Manitoba"]
["Quinn Kirkpatrick",null,null,2429,null,null,null,null,455,"Kathryn Qin","Corporate VP & Actuary at SCAN Health Plan","Greater Los Angeles Area","Education: University of Manitoba"]
["David Senensky",null,null,3279,null,null,null,null,456,"Tianluo Li","--","Winnipeg, Canada Area","Education: University of Manitoba"]
["Lucas Szczepanski",null,null,3349,null,null,null,null,457,"Sandra Kulchyski","Commercial Real Estate Appraiser at Altus Group","Winnipeg, Canada Area","Education: University of Manitoba"]
["64 shared connections",null,null,3931,null,null,null,null,458,"Tamira Loewen","Senior Risk Management Professional","Toronto, Canada Area","Education: University of Manitoba"]
["Message",null,null,4102,null,null,null,null,459,"Chang Sheila","Senior Customer Analyst at ATB financial","Calgary, Canada Area","Education: University of Manitoba"]
["Chipwa Banda",null,null,4355,null,null,null,null,460,"Phil Rivard","VP, Pension Policy and Funding at Local Authorities Pension Plan","Edmonton, Canada Area","Education: University of Manitoba"]
["Chipwa Banda  2nd degree connection2nd",null,null,4389,null,null,null,null,461,"Punya Wijetunge","Client and Field Support Senior Analyst- Group Division at Great-West Life","Winnipeg, Canada Area","Education: University of Manitoba"]
["Student at University of Manitoba",null,null,4425,null,null,null,null,462,"Jason Novak","Director, Group Benefits at Great-West Life","Toronto, Canada Area","Education: University of Manitoba"]
["Winnipeg, Canada Area",null,null,4558,null,null,null,null,463,"Robert Dyck, FRM, CAIA, CIM","Head of Investment Analytics at Connor, Clark & Lunn Financial Group","Vancouver, Canada Area","Past: Consultant & Head of Research at API Asset Performance Inc."]
["Summary: ...at the University of Manitoba... in Actuarial Mathematics and a...",null,null,4620,null,null,null,null,464,"Mark Christie","Salesforce is hard. I make it less hard.","Toronto, Canada Area","Education: University of Manitoba"]
["Mclaren Shaw",null,null,4668,null,null,null,null,465,"Aimee Kanyankogote, FRM","FRTB Specialist","Toronto, Canada Area","Education: University of Manitoba"]
["Ben-Iddo Manda",null,null,4734,null,null,null,null,466,"Arnold Shell","President, Arnold J. Shell Financial Services","Toronto, Canada Area","Education: University of Manitoba"]
["Yemurai Bgwoni",null,null,4926,null,null,null,null,467,"John Stevenson","Regional Vice President at Great-West Life","Toronto, Canada Area","Education: University of Manitoba"]
["6 shared connections",null,null,4931,null,null,null,null,468,"See Tong Lim","Senior Manager at Scotiabank International","Toronto, Canada Area","Education: University of Manitoba"]
["Connect",null,null,4936,null,null,null,null,469,"Wendell Krahn, CFA, CPA, CGA, CVA","Financial Modeling, Planning & Analysis, M&A including Valuations and Due Diligence","Ottawa, Canada Area","Education: University of Manitoba"]
["Stefan Baluta",null,null,5045,null,null,null,null,470,"Greg Gillis, CFA, FCIA, FSA","Financial Advisor/Consulting Actuary at Lawton Partners","Winnipeg, Canada Area","Past: Vice President at Aon Consulting"]
["Stefan Baluta  1st degree connection1st",null,null,5102,null,null,null,null,471,"Doug Olsen","Optical Systems Engineer at Shaw Communications","Calgary, Canada Area","Education: University of Manitoba"]
["Actuarial Analyst at Wawanesa Insurance",null,null,5107,null,null,null,null,472,"Claude Boily","Financial Services Professional","Calgary, Canada Area","Education: University of Manitoba"]
["Winnipeg, Canada Area",null,null,5182,null,null,null,null,473,"Louise Comeau","Manager, Financial Services at Department of Finance - Province of Nova Scotia","Halifax, Canada Area","Education: University of Manitoba"]
["Summary: ...of the University of Manitoba... in Actuarial Math and Finance. I...",null,null,5573,null,null,null,null,474,"Don Smith","Partner at Smith Pension & Actuarial Consultants Inc.","Vancouver, Canada Area","Education: University of Manitoba"]
["Julia Gudmundson",null,null,5590,null,null,null,null,475,"Zack Wang","Franchise Owner at Edo Japan","Canada","Education: University of Manitoba"]
["Owais Jafry",null,null,5672,null,null,null,null,476,"Corey Haverstick","Retail Associate","Winnipeg, Canada Area","Summary: Attending the University of Manitoba, majoring..."]
["David Senensky",null,null,5683,null,null,null,null,477,"Drew Bailey","Loss Adjuster at ClaimsPro Inc.","London, Canada Area","Education: University of Manitoba"]
["51 shared connections",null,null,5850,null,null,null,null,478,"Jeffe Li","Contracts Manager","Calgary, Canada Area","Education: University of Manitoba"]
["Message",null,null,5926,null,null,null,null,479,"Anne Parsonage","Director and Yoga teacher at Yoga from the Heart Canada","Toronto, Canada Area","Education: University of Manitoba"]
["Timothy Rempel",null,null,5955,null,null,null,null,480,"Paul Schaubroeck","Buyer","Ottawa, Canada Area","Education: University of Manitoba"]
["Timothy Rempel  1st degree connection1st",null,null,6127,null,null,null,null,481,"Gerry Thiessen","Director, Business Development at Sun Life Financial","Vancouver, Canada Area","Past: Account Executive at Sun Life Financial"]
["Actuarial Analyst at Great-West Life",null,null,6280,null,null,null,null,482,"Dave Poole","Risk Management Consultant","Calgary, Canada Area","Education: University of Manitoba"]
["Winnipeg, Canada Area",null,null,6291,null,null,null,null,483,"Shayne Egert","Director, Corporate Analytics at SGI Canada","Saskatchewan, Canada","Education: University of Manitoba"]
["Education: University of Manitoba",null,null,6309,null,null,null,null,484,"Jason Wiebe, FCIA, FSAI","Chief Risk Offficer at RGA International Reinsurance Company dac","Ireland","Past: Vice President at RBC Insurance"]
["Avi Saper",null,null,6328,null,null,null,null,485,"Yifan Gao","--","Canada","Education: University of Manitoba"]
["Chunli Liang",null,null,6333,null,null,null,null,486,"Angus Ng, CISSP PMP Cert.APM","Project Manager","Toronto, Canada Area","Education: University of Manitoba"]
["Owais Jafry",null,null,6369,null,null,null,null,487,"Mike Lazaruk","--","Winnipeg, Canada Area","Education: University of Manitoba"]
["69 shared connections",null,null,6382,null,null,null,null,488,"Sharon Xu","Managing Director at Aaron Consulting Inc.","Toronto, Canada Area","Education: University of Manitoba"]
["Message",null,null,6448,null,null,null,null,489,"Derek Schaen","Sales Analyst at Great-West Life","Winnipeg, Canada Area","Education: University of Manitoba"]
["Thanh Thanh Nguyen",null,null,6521,null,null,null,null,490,"Wei (Gavin) He","Banking Professional","Calgary, Canada Area","Education: University of Manitoba"]
["Thanh Thanh Nguyen  1st degree connection1st",null,null,1294,null,null,null,null,491,"Neil Harrison","Partner at Deloitte Canada","Toronto, Canada Area","Education: University of Manitoba"]
["Actuarial Analyst at Benchmark Decisions Ltd",null,null,1427,null,null,null,null,492,"Stu Starkey","Transportation Executive","Edmonton, Canada Area","Education: University of Manitoba"]
["Winnipeg, Canada Area",null,null,1511,null,null,null,null,493,"Shaharyar Noordin","Student at Asper School of Business Actuarial Mathematics","Winnipeg, Canada Area","Current: Financial Accounting Grader/Marker at University of Manitoba"]
["Education: University of Manitoba",null,null,1540,null,null,null,null,494,"Kenneth Clark","Retired Principal at Eckler Ltd.","Toronto, Canada Area","Education: University of Manitoba"]
["Arielle Gates",null,null,1718,null,null,null,null,495,"Steve Makins","Regional CFO, Canada/Asia","Toronto, Canada Area","Education: University of Manitoba"]
["Stephen Swenarchuk",null,null,2429,null,null,null,null,496,"Marcia P Hunt","President and Principal Broker at Mortgage Alliance Performa Mortgage Inc. , Financial Consultant -- Hunt & Associates","Toronto, Canada Area","Education: University of Manitoba"]
["Theresa Van Walleghem",null,null,3279,null,null,null,null,497,"Philip Fosu","Consultant at Morneau Shepell","Toronto, Canada Area","Education: University of Manitoba"]
["46 shared connections",null,null,3349,null,null,null,null,498,"Sean Hayward","VP - Solutions Manager, US Risk at FIS","Greater Atlanta Area","Education: University of Manitoba"]
["Message",null,null,3931,null,null,null,null,499,"Billy Ray Tejones","Senior Reporting Analyst at Investors Group","Winnipeg, Canada Area","Education: University of Manitoba"]
["Alexandra Gorlick",null,null,4102,null,null,null,null,500,"Jeff Moir","Partner and Lead, Human Capital at Deloitte Canada","Toronto, Canada Area","Education: University of Manitoba"]
["Alexandra Gorlick  2nd degree connection2nd",null,null,4355,null,null,null,null,501,"Tawheed (Taw) Ismail   PMP, CPPP","Project Manager │ Marketing │ Creative Services | Management","Toronto, Canada Area","Education: University of Manitoba"]
["Actuarial Analyst at Ellement Consulting Group",null,null,4389,null,null,null,null,502,"Sharon Chandler","Canadian Cancer Society Regional Representative","Toronto, Canada Area","Education: University of Manitoba"]
["Winnipeg, Canada Area",null,null,4425,null,null,null,null,503,"Andrea Sexsmith","Pharmaceuticals Professional","Saskatchewan, Canada","Education: University of Manitoba"]
["Education: University of Manitoba",null,null,4558,null,null,null,null,504,"Nicolas Nguyen","Associate at BMO Financial Group","Montreal, Canada Area","Education: University of Manitoba"]
["Julia Gudmundson",null,null,4620,null,null,null,null,505,"Sym Gill","Member of the Board of Trustees at Canadian Wheat Board Retirees Employee Life and Health Trust","Toronto, Canada Area","Education: University of Manitoba"]
["Chunli Liang",null,null,4668,null,null,null,null,506,"weinan sun","--","Canada","Education: University of Manitoba"]
["Stephen Thomas",null,null,4734,null,null,null,null,507,"Tyrell Jolley-Campbell","Student at Red River College","Winnipeg, Canada Area","Education: University of Manitoba"]
["41 shared connections",null,null,4926,null,null,null,null,508,"Nadine Orr","VP, Pensions and Benefits at RBC","Toronto, Canada Area","Education: University of Manitoba"]
["Connect",null,null,4931,null,null,null,null,509,"James Furutani CIM","Senior Associate at Assante Financial Management Ltd.","Vancouver, Canada Area","Education: Universtiy of Manitoba"]
["Showing 762 results.",null,null,4936,null,null,null,null,510,"Don Armstrong","Actuary / Consultant at Donaldson Vincent Associates Limited","Toronto, Canada Area","Education: University of Manitoba"]
["Cédric, you’re approaching the commercial use limit.",null,null,5045,null,null,null,null,511,"Dawn Power","Actuary/Principal at Eckler Ltd.","Canada","Education: University of Manitoba"]
["Please upgrade to LinkedIn Premium Business, Sales Navigator, or Recruiter to get unlimited people browsing.",null,null,5102,null,null,null,null,512,"Gerald Boychuk","Chief Investments Officer","Toronto, Canada Area","Education: University of Manitoba B.Sc., MBA, CFA"]
["Try Premium for free",null,null,5107,null,null,null,null,513,"yang jin","Quality Assurance Analyst - Content at CaseWare International Inc.","Toronto, Canada Area","Education: University of Manitoba"]
["Learn more",null,null,5182,null,null,null,null,514,"Parminder Mangat","--","Winnipeg, Canada Area","Education: University of Manitoba"]
["Julia Gudmundson",null,null,5573,null,null,null,null,515,"John Kmetic","Director, Senior Actuary at Office of the Superintendent of Financial Institutions of Canada","Ottawa, Canada Area","Education: University of Manitoba"]
["Julia Gudmundson  1st degree connection1st",null,null,5590,null,null,null,null,516,"Susan Demedash","Methodologist at Statistics Canada","Canada","Education: University of Manitoba"]
["Actuarial Associate at Great-West Life",null,null,5672,null,null,null,null,517,"Igor Mugisha","--","Winnipeg, Canada Area","Education: University of Manitoba"]
["Winnipeg, Canada Area",null,null,5683,null,null,null,null,518,"Nicole Levesque, CPA, CGA","Manager, Monitoring","Winnipeg, Canada Area","Education: University of Manitoba"]
["Education: University of Manitoba",null,null,5850,null,null,null,null,519,"Blake Swedlo","Level III Umpire at Baseball Canada","Winnipeg, Canada Area","Education: University of Manitoba"]
["Stephen Swenarchuk",null,null,5926,null,null,null,null,520,"Weilun Zhang","Student","Winnipeg, Canada Area","Education: University of Manitoba"]
["Amy Guenther",null,null,5955,null,null,null,null,521,"Jun Shih","Senior SW Developer at Pason Systems","Calgary, Canada Area","Past: Alumni at University of Manitoba"]
["Justin Gagnon",null,null,6127,null,null,null,null,522,"Deepesh Rijal","Applied Mathematics, Statistics and Economics","Winnipeg, Canada Area","Summary: ...at University of Manitoba, pursuing Actuarial Mathematics..."]
["35 shared connections",null,null,6280,null,null,null,null,523,"竺心怡","corporate actuary","China","Past: Teaching Assistant at University of Manitoba"]
["Message",null,null,6291,null,null,null,null,524,"Ron Loch","Independent Investment Management Professional","Toronto, Canada Area","Education: University of Manitoba"]
["Anh Pham",null,null,6309,null,null,null,null,525,"Louise Thiessen","Higher Education Professional","Edmonton, Canada Area","Education: University of Manitoba"]
["Anh Pham  1st degree connection1st",null,null,6328,null,null,null,null,526,"Li Dong","FSA at Moody's GGY AXIS","Toronto, Canada Area","Education: University of Manitoba"]
["Actuarial Co-op at Aon Hewitt",null,null,6333,null,null,null,null,527,"Darryl Ingham","President at Group Health Global Benefit Solutions","Toronto, Canada Area","Education: University of Manitoba"]
["Vancouver, Canada Area",null,null,6369,null,null,null,null,528,"Darrell Peters","Senior Consultant at Willis Towers Watson (Retired)","Toronto, Canada Area","Education: University of Manitoba"]
["Education: University of Manitoba",null,null,6382,null,null,null,null,529,"Mathieu Poissant","Statisticien spécialisé en immobilier","Canada","Education: University of Manitoba"]
["Chunli Liang",null,null,6448,null,null,null,null,530,"Michael Guest","Owner, Guest Consulting","Toronto, Canada Area","Education: University of Manitoba"]
["Owais Jafry",null,null,6521,null,null,null,null,531,"John Louis","Managing Director at JCL Management Consulting","Calgary, Canada Area","Education: University of Manitoba"]
["Theresa Van Walleghem",null,null,1294,null,null,null,null,532,"Laura Nickols","Membership Development Representative at Merit Contractors Association","Edmonton, Canada Area","Education: University of Manitoba"]
["86 shared connections",null,null,1427,null,null,null,null,533,"Weihong Dan, FSA, FCIA","GGY AXIS Inc","Toronto, Canada Area","Education: University of Manitoba"]
["Message",null,null,1511,null,null,null,null,534,"Kathy Kirkpatrick","Career Advisor at Career Development Centre Asper School of Business","Winnipeg, Canada Area","Education: University of Manitoba"]
["Sean McFetridge",null,null,1540,null,null,null,null,535,"Lyle Semchyshyn","2nd VP & Corporate Actuary at Security Benefit","Kansas City, Missouri Area","Education: University of Manitoba"]
["Sean McFetridge  1st degree connection1st",null,null,1718,null,null,null,null,536,"Yingjie Zhang, CPA,CGA,MFRM","Financial Manager at Atelier Capital Partners Inc.","Vancouver, Canada Area","Education: University of Manitoba"]
["Actuarial Analyst at Mercer",null,null,2429,null,null,null,null,537,"Sian McAlpin","AVP Finance, Risk & Controls at Sun Life Financial","Greater Boston Area","Education: University of Manitoba"]
["Toronto, Canada Area",null,null,3279,null,null,null,null,538,"Rob Edwards","Advanced Healthcare Analytics Executive","Greater Los Angeles Area","Past: Staff VP & Actuary III at Anthem, Inc."]
["Past: Research Assistant, Executive Compensation at University of Manitoba",null,null,3349,null,null,null,null,539,"Gabrielle Martinez","Member service representative at Access Credit Union","Canada","Education: University of Manitoba"]
["Chunli Liang",null,null,3931,null,null,null,null,540,"Diana Ginpil PMP","PrincipaL, Diana Ginpil Consulting","Toronto, Canada Area","Education: University of Manitoba"]
["Simon Deschenes FSA, FCIA, CFA",null,null,4102,null,null,null,null,541,"Rob Verrier","Actuary at Genesis Financial Development, Inc.","Greater Boston Area","Education: University of Manitoba"]
["David Senensky",null,null,4355,null,null,null,null,542,"Brad Rokosh","Director, LTC Margin Analytics at Transamerica","Dallas/Fort Worth Area","Education: University of Manitoba"]
["90 shared connections",null,null,4389,null,null,null,null,543,"Gerald Petkau","Senior Vice President, Chief Operating Officer at Blue Cross Blue Shield of North Carolina","Raleigh-Durham, North Carolina Area","Education: University of Manitoba"]
["Message",null,null,4425,null,null,null,null,544,"Peter Cliche","AVP Quantatative Analysis, Enterprise Risk Management at MetLife","Greater New York City Area","Education: University of Manitoba"]
["Ella Nguyen",null,null,4558,null,null,null,null,545,"Dirk Ackbar","Associate Actuary at KR Consulting","Trinidad and Tobago","Education: University of Manitoba"]
["Ella Nguyen  2nd degree connection2nd",null,null,4620,null,null,null,null,546,"Frank Reynolds","President at Reynolds, Thorvardson, Ltd","Kitchener, Canada Area","Education: University of Manitoba"]
["Student at University of Manitoba",null,null,4668,null,null,null,null,547,"James Dalton","Senior Associate at Mercer","Toronto, Canada Area","Summary: James Dalton is a... from the University of Manitoba..."]
["Winnipeg, Canada Area",null,null,4734,null,null,null,null,548,"Kim Dwornick","Actuary Team Lead at Emerge.me","Greater Minneapolis-St. Paul Area","Education: University of Manitoba"]
["Education: University of Manitoba",null,null,4926,null,null,null,null,549,"Michael Kula","Vice President at New York Life Insurance Company","Greater New York City Area","Education: University of Manitoba"]
["Mark Acala",null,null,4931,null,null,null,null,550,"Hal Pedersen","Director, Risk & Capital Management Solutions at Conning","Hartford, Connecticut Area","Past: Warren Professor of Actuarial Science at University of Manitoba"]
["Matt Pierce",null,null,4936,null,null,null,null,551,"My-Hong Truong","Retirement Systems Consultant, EA at Willis Towers Watson","Greater Seattle Area","Education: University of Manitoba"]
["hasanur rahman",null,null,5045,null,null,null,null,552,"John Hong","Senior Consultant at EY","Greater New York City Area","Education: University of Manitoba"]
["16 shared connections",null,null,5102,null,null,null,null,553,"Joyce Liew","--","Winnipeg, Canada Area","Education: University of Manitoba"]
["Connect",null,null,5107,null,null,null,null,554,"Zhibin Zhang","Actuary at RGA","Beijing City, China","Education: University of Manitoba"]
["Maria Santiano",null,null,5182,null,null,null,null,555,"Yunan Deng","--","Bloomington/Normal, Illinois Area","Past: Actuarial Class Teaching Assistant at University of Manitoba"]
["Maria Santiano  2nd degree connection2nd",null,null,5573,null,null,null,null,556,"Bertrand Boyle","--","Canada","Education: University of Manitoba"]
["Student, University of Manitoba",null,null,5590,null,null,null,null,557,"Kelly Grebinsky","Owner, Actuaries Northwest, LLC","Greater Seattle Area","Education: University of Manitoba"]
["Winnipeg, Canada Area",null,null,5672,null,null,null,null,558,"Graham Cox","Executive Vice President, Global Risk Management at MetLife","Greater New York City Area","Education: University of Manitoba"]
["Education: University of Manitoba",null,null,5683,null,null,null,null,559,"Tenny Chong","Actuary","Hong Kong","Education: University of Manitoba"]
["Chris A Tweten",null,null,5850,null,null,null,null,560,"Lucille Doucette","--","Alberta, Canada","Education: University of Manitoba"]
["Greg Chubaty",null,null,5926,null,null,null,null,561,"Stephan Bazin","Consulting Actuary at Willis Towers Watson","Greater New York City Area","Education: University of Manitoba"]
["Adam Pawlak",null,null,5955,null,null,null,null,562,"Florence Wu -  PhD, AIAA, ASA, MSc","Executive Manager > Senior Actuary > Empowering Leader > Cultivate High Performance Teams","Sydney, Australia","Summary: ...model; actuarial software... Actuarial Modelling skills – DFA..."]
["6 shared connections",null,null,6127,null,null,null,null,563,"Janine Bender","Life Insurance Consultant","Hartford, Connecticut Area","Education: University of Manitoba"]
["Connect",null,null,6280,null,null,null,null,564,"Ron Wan","experienced actuary, insurance and reinsurance, business & product development, risk managment","Hong Kong","Education: University of Manitoba"]
["Brad Perrella",null,null,6291,null,null,null,null,565,"Katrina Lee-Kwen","Senior Vice-President, Insurance Solutions at Canada Life / Great-West Life / London Life","Winnipeg, Canada Area","Education: University of Manitoba"]
["Brad Perrella  2nd degree connection2nd",null,null,6309,null,null,null,null,566,"Denis Dondo","VBA developper chez SAIL Plein Air / SAIL Outdoors","Montreal, Canada Area","Summary: ...degree from the University of Manitoba with a major..."]
["Student at University of Manitoba",null,null,6328,null,null,null,null,567,"Yuan Choong Eng","Experienced Financial Services Professional","Greater Jakarta Area, Indonesia","Education: University of Manitoba"]
["Winnipeg, Canada Area",null,null,6333,null,null,null,null,568,"Chu Yu","PPP Consultant","Chengdu, Sichuan, China","Education: University of Manitoba"]
["Education: University of Manitoba",null,null,6369,null,null,null,null,569,"Vivian Gao","Claims Administrator at BMO Life Assurance","Toronto, Canada Area","Education: University of Manitoba"]
["Howard Harmatz",null,null,6382,null,null,null,null,570,"Po Fu","Passionate New York Life Agent helping to protect families in Irvine California","Orange County, California Area","Education: University of Manitoba"]
["Meredith Bara",null,null,6448,null,null,null,null,571,"Prakash Vanguri","Head of Enterprise Risk Management","Greater New York City Area","Education: University of Manitoba"]
["Jo DePape",null,null,6521,null,null,null,null,572,"Danny Yap","General Manager, Personal Lines","Malaysia","Education: University of Manitoba"]
["6 shared connections",null,null,1294,null,null,null,null,573,"Dennis Martin","Senior Vice-President, Product & Business Development","Indianapolis, Indiana Area","Education: University of Manitoba"]
["Connect",null,null,1427,null,null,null,null,574,"Gabriela Macra","Head of Reserving at QBE European Operations","London, United Kingdom","Education: University of Manitoba"]
["Stephen Swenarchuk",null,null,1511,null,null,null,null,575,"Stanley Ko","VP & AA at Ageas Insurance Company (Asia) Limited","Hong Kong","Education: University of Manitoba"]
["Stephen Swenarchuk  1st degree connection1st",null,null,1540,null,null,null,null,576,"Ann Wong","Director of Product Management at Constitution Group","San Francisco Bay Area","Education: University of Manitoba"]
["Senior Actuarial Associate at Worden Zaluski Consulting Actuaries Ltd.",null,null,1718,null,null,null,null,577,"Henry Wong","HR Business Partner at Euroclear","Hong Kong","Education: University of Manitoba"]
["Winnipeg, Canada Area",null,null,2429,null,null,null,null,578,"Avinash Jahajeeah","Head - International Banking at Banque des Mascareignes Ltee (BPCE Group)","Mauritius","Education: University of Manitoba"]
["Education: University of Manitoba",null,null,3279,null,null,null,null,579,"Edward Lim Wei Sin","HSBC Product Implementation","Singapore","Education: University of Manitoba"]
["Yan Wu",null,null,3349,null,null,null,null,580,"Doug Brown BCom(Hons), FCIA, FSA","Executive Vice President and CEO, UK Division at Canada Life","London, United Kingdom","Education: University of Manitoba"]
["Julia Gudmundson",null,null,3931,null,null,null,null,581,"Harindra Sebastian","Senior Consulting Actuary at Willis Towers Watson","Greater Atlanta Area","Education: University of Manitoba"]
["Arielle Gates",null,null,4102,null,null,null,null,582,"R. Jason Cook","Actuary at TigerRisk Partners","Greater Minneapolis-St. Paul Area","Past: Actuarial Analyst at Manitoba Public Insurance"]
["25 shared connections",null,null,4355,null,null,null,null,583,"Eli Cohen","Data Analysis and Project Management Consultant","Flagstaff, Arizona Area","Education: University of Manitoba"]
["Message",null,null,4389,null,null,null,null,584,"Jaiganesh Baskaran","Executive Manager at Zurich Insurance Company Ltd","Kuala Lumpur, Malaysia","Education: University of Manitoba"]
["adam wishnowski",null,null,4425,null,null,null,null,585,"Avery Cook","Managing Director Global Agriculture Analytics at Aon Benfield","Greater Chicago Area","Education: University of Manitoba"]
["adam wishnowski  2nd degree connection2nd",null,null,4558,null,null,null,null,586,"Rob Bacher","Manager, International Benefits","Houston, Texas Area","Education: University of Manitoba"]
["Attended University of Manitoba",null,null,4620,null,null,null,null,587,"Vernisha Budhia","Student at Asper School of Business","Winnipeg, Canada Area","Past: Actuarial Intern at Great-West Life"]
["Winnipeg, Canada Area",null,null,4668,null,null,null,null,588,"Jason Ellement","Senior Vice President at Callan Associates","San Francisco Bay Area","Education: University of Manitoba"]
["Education: University of Manitoba",null,null,4734,null,null,null,null,589,"Adrian Kryszak, FSA MAAA","Actuary at Cambia Health Solutions","Greater Seattle Area","Education: University of Manitoba"]
["Bryn Peppler",null,null,4926,null,null,null,null,590,"Julie Pavlik","Director, Medical Cost Affordability, Community & State at UnitedHealthcare","Greater Minneapolis-St. Paul Area","Education: University of Manitoba"]
["Daniel Turenne",null,null,4931,null,null,null,null,591,"George Melnik","Insurance Professional","Kitchener, Canada Area","Education: University of Manitoba"]
["Justin Scott",null,null,4936,null,null,null,null,592,"Nancy Williams","Middle School Math Teacher","Greater Boston Area","Education: University of Manitoba"]
["8 shared connections",null,null,5045,null,null,null,null,593,"George Harris","Volunteering with Cuso International","Winnipeg, Canada Area","Summary: ...between Manitoba and Africa... background in actuarial..."]
["Connect",null,null,5102,null,null,null,null,594,"Edwin Steinberg, ASA,MAAA","at EJS Associates","Miami/Fort Lauderdale Area","Education: University of Manitoba"]
["Melanie Skiarski",null,null,5107,null,null,null,null,595,"Dennis Ho","CEO at Longitude RE Limited","Bermuda","Education: The University of Manitoba"]
["Melanie Skiarski  1st degree connection1st",null,null,5182,null,null,null,null,596,"Alice Fontaine","President and Consulting Actuary in Life and Health Insurance Industry, FSA, FCIA, MAAA","Austin, Texas Area","Education: University of Manitoba"]
["Actuarial Analyst at Mercer",null,null,5573,null,null,null,null,597,"Mike Morhun","President Sage Pension Resources","Greater Chicago Area","Education: University of Manitoba"]
["Toronto, Canada Area",null,null,5590,null,null,null,null,598,"Martin Reeves","VP, Product Solutions at Sun Life Financial Hong Kong","Hong Kong","Education: University of Manitoba"]
["Past: Co-President at University of Manitoba Actuarial Club",null,null,5672,null,null,null,null,599,"Genghui Wu","Vice President & Actuary at Prudential Financial","Greater New York City Area","Education: University of Manitoba"]
["Adam Pawlak",null,null,5683,null,null,null,null,600,"Rainer Germann","Emerging Markets Portfolio Manager","Greater Seattle Area","Education: University of Manitoba"]
["Sasha Towfigh",null,null,5850,null,null,null,null,601,"Gordon Creber","- at GGY AXIS","Toronto, Canada Area","Education: University of Manitoba"]
["David Senensky",null,null,5926,null,null,null,null,602,"Bill Gooden","President, Gooden Actuarial Consultants Ltd.","Calgary, Canada Area","Education: University of Manitoba"]
["71 shared connections",null,null,5955,null,null,null,null,603,"Markus Lill","Studium: Technische Universität München","Munich Area, Germany","Education: University of Manitoba"]
["Message",null,null,6127,null,null,null,null,604,"Alex Kogan","Senior Vice President and Actuary at Chubb","Greater New York City Area","Education: University of Manitoba"]
["Justin Scott",null,null,6280,null,null,null,null,605,"Kwasi Foh-Asare","Client Service Representative at Investors Group","Winnipeg, Canada Area","Past: Teaching Assistant and Grader/Marker at University of Manitoba"]
["Justin Scott  1st degree connection1st",null,null,6291,null,null,null,null,606,"Frederick Sackey","Actuarial Intern at Great-West Life","Winnipeg, Canada Area","Education: University of Manitoba"]
["Actuarial Associate at Great-West Life",null,null,6309,null,null,null,null,607,"Kumar Kanisan","Senior Manager at Deloitte Consulting","Greater Chicago Area","Education: University of Manitoba"]
["Manitoba, Canada",null,null,6328,null,null,null,null,608,"Genghui Wu","Senior Investment Vice President at Prudential Financial","Greater New York City Area","Education: University of Manitoba"]
["Education: University of Manitoba",null,null,6333,null,null,null,null,609,"Bob Chmielnicki","Financial Advisor at The Co-operators","Canada","Education: University of Manitoba"]
["Justin Gagnon",null,null,6369,null,null,null,null,610,"Philip Fosu","Consultant at Morneau Sobeco","Toronto, Canada Area","Education: University of Manitoba"]
["David Senensky",null,null,6382,null,null,null,null,611,"Miao Zhang","Statistical Data Analyst in Programming, Vaccine","Beijing City, China","Summary: ...from the University of Manitoba... and Actuarial Science..."]
["Theresa Van Walleghem",null,null,6448,null,null,null,null,612,"Georg Huber","Werkstudent im Aktuariat Kraftfahrt/Sach bei Versicherungskammer Bayern","Munich Area, Germany","Education: University of Manitoba"]
["72 shared connections",null,null,6521,null,null,null,null,613,"Vrad Vodrazka","VP Actuary at Hannover Re","Orlando, Florida Area","Education: University of Manitoba"]
["Message",null,null,1294,null,null,null,null,614,"Gord Latter","EVP at Ryan Labs Asset Management","Greater Minneapolis-St. Paul Area","Education: University of Manitoba"]
["Showing 762 results.",null,null,1427,null,null,null,null,615,"Marc Rochon","Director of Analytics at Periscope","Greater Minneapolis-St. Paul Area","Summary: ...in Actuarial Mathematics from the University..."]
["Cédric, you’re approaching the commercial use limit.",null,null,1511,null,null,null,null,616,"Karen Christie","Consulting Actuary at Towers Watson","Greater Chicago Area","Education: University of Manitoba"]
["Please upgrade to LinkedIn Premium Business, Sales Navigator, or Recruiter to get unlimited people browsing.",null,null,1540,null,null,null,null,617,"George Kesselman","Revolutionising Insurance via InsurTech","Singapore","Education: University of Manitoba"]
["Try Premium for free",null,null,1718,null,null,null,null,618,"Benny Chung-Ying Zee","Professor/Head of Biostatistics, JC School of Public Health and Primary Care, CUHK","Hong Kong","Education: University of Manitoba"]
["Learn more",null,null,2429,null,null,null,null,619,"Paul Shapansky","Partner at B2B CFO® specializing in M&A, Exit Strategies, Increasing Profitability, Cash Flow, and Company Value","Miami/Fort Lauderdale Area","Education: University of Manitoba"]
["ERICA ASAWO",null,null,3279,null,null,null,null,620,"Jun(Jon) Chang","Account Assistant at Aon-COFCO","Shanghai Suburb, China","Education: University of Manitoba"]
["ERICA ASAWO  2nd degree connection2nd",null,null,3349,null,null,null,null,621,"Marissa Strominger","VP Senior Director Marketing | Expertise in B2B, B2C, Software | Open to New Opportunities","Greater New York City Area","Education: University of Manitoba - Asper School of Business Management"]
["Attended University of Manitoba",null,null,3931,null,null,null,null,622,"Judith Segal","Director Biostatistics at Puma Biotechnology","Greater Minneapolis-St. Paul Area","Education: University of Manitoba"]
["Winnipeg, Canada Area",null,null,4102,null,null,null,null,623,"Leo He","Data Analyst Seeking New Opportunities","San Francisco Bay Area","Education: Univesity of Manitoba"]
["Education: University of Manitoba",null,null,4355,null,null,null,null,624,"Jimmy Lu","Partner at Fancy Star China 毅星中国","San Francisco Bay Area","Education: University of Manitoba"]
["Maambo Mujala",null,null,4389,null,null,null,null,625,"Leo Cheung","Deputy General Manager at Four Seas Mercantile Limited","Hong Kong","Education: University of Manitoba"]
["Yemurai Bgwoni",null,null,4425,null,null,null,null,626,"Kyle Baley","Software Engineer at Particular Software","Panama","Education: University of Manitoba"]
["Irina Ledenev",null,null,4558,null,null,null,null,627,"Les Kuklinski","Senior Solution Architect at CSS International","Greater Los Angeles Area","Education: University of Manitoba"]
["5 shared connections",null,null,4620,null,null,null,null,628,"Samuel Suen","Private Venture Investments","Hong Kong","Education: University of Manitoba"]
["Connect",null,null,4668,null,null,null,null,629,"Cheng Wee Cheat","Regional Finance Director at Johnson & Johnson","Singapore","Education: University of Manitoba"]
["Shuai Chen",null,null,4734,null,null,null,null,630,"Kirby Richter","Principal Database Architect / Administrator at Dell EMC","Greater Minneapolis-St. Paul Area","Education: University of Manitoba"]
["Shuai Chen  1st degree connection1st",null,null,4926,null,null,null,null,631,"Allen Wu","Bloomberg","Singapore","Education: University of Manitoba"]
["Actuarial Assistant at Manulife",null,null,4931,null,null,null,null,632,"Edmond Wong","Strategy Alliance at Metlife LIMITED","Hong Kong","Education: University of Manitoba"]
["Kitchener, Canada Area",null,null,4936,null,null,null,null,633,"Wong Shiaw Shien","Mortgage Loan Specialist @ United Overseas Bank (Malaysia) Ltd","Sarawak, Malaysia","Education: University of Manitoba"]
["Past: Grader at University of Manitoba",null,null,5045,null,null,null,null,634,"Paarthiban Krishnan","Group Controller at ON Semiconductor","Phoenix, Arizona Area","Education: University of Manitoba"]
["Chunli Liang",null,null,5102,null,null,null,null,635,"Bo Wang","负责人","Shanghai Suburb, China","Education: University of Manitoba"]
["Sasha Towfigh",null,null,5107,null,null,null,null,636,"Alex Tan","Founder of GoFun.Asia","Kuala Lumpur, Malaysia","Education: University of Manitoba"]
["Justin Gagnon",null,null,5182,null,null,null,null,637,"David Haverick","Sr. Director, Corporate Benefits & HR Finance at PotashCorp","Greater Chicago Area","Education: University of Manitoba"]
["68 shared connections",null,null,5573,null,null,null,null,638,"Mel Todd","Managing Principal at COLI Consulting Group LLC","Greensboro/Winston-Salem, North Carolina Area","Education: University of Manitoba"]
["Message",null,null,5590,null,null,null,null,639,"Peggy Man","Associate at Coutts","Hong Kong","Education: University of Manitoba"]
["Tinotenda Marova",null,null,5672,null,null,null,null,640,"Dawna Bennett","Senior Operations Professional","Greater Denver Area","Education: University of Manitoba"]
["Tinotenda Marova  2nd degree connection2nd",null,null,5683,null,null,null,null,641,"Meng Li","Finance","Winnipeg, Canada Area","Education: University of Manitoba"]
["Assistant Actuarial Analyst at Wawanesa Insurance",null,null,5850,null,null,null,null,642,"Hong Yick Khor","Planning and Controlling at Allianz SE Reinsurance Branch Asia Pacific","Singapore","Education: University of Manitoba"]
["Winnipeg, Canada Area",null,null,5926,null,null,null,null,643,"Ounesh Reebye","Vice President, Streaming Operations & Metal Sales at Silver Wheaton (Cayman)","Cayman Islands","Education: University of Manitoba"]
["Past: Student Research Assistant at University of Manitoba",null,null,5955,null,null,null,null,644,"Ivan Lee","Localization Expert Looking for Opportunities","Greater Seattle Area","Education: University of Manitoba"]
["Julia Gudmundson",null,null,6127,null,null,null,null,645,"Geok Bee Teh","Manager at PAMB","Malaysia","Education: University of Manitoba"]
["Chunli Liang",null,null,6280,null,null,null,null,646,"Karl Froese","Strategic Product Leader | Managed Healthcare |","Greater Minneapolis-St. Paul Area","Education: University of Manitoba"]
["Alon Halbrich, FCIA, FSA",null,null,6291,null,null,null,null,647,"Yi Yang","Supply Chain Operations Analyst","Winnipeg, Canada Area","Education: University of Manitoba"]
["24 shared connections",null,null,6309,null,null,null,null,648,"Dan Anderson","Financial and Business Analysis - Canada","Toronto, Canada Area","Summary: Intuitive and analytical... professional actuarial..."]
["Connect",null,null,6328,null,null,null,null,649,"Peter Stalder","Owner at Peter Stalder Consultant","San Francisco Bay Area","Education: University of Manitoba"]
["Erin Kavanagh",null,null,6333,null,null,null,null,650,"Bob Shaw","President, Individual Markets at Great-West Financial","Greater Denver Area","Education: University of Manitoba"]
["Erin Kavanagh  1st degree connection1st",null,null,6369,null,null,null,null,651,"Elaine Hwang","Director, Benefits Hong Kong at Willis Towers Watson","Hong Kong","Education: University of Manitoba"]
["Actuarial Analyst at Great-West Life",null,null,6382,null,null,null,null,652,"Sharon Cheung","Senior Manager, CEO office","Hong Kong","Education: University of Manitoba"]
["Winnipeg, Canada Area",null,null,6448,null,null,null,null,653,"Ivan Chak","CEO - Life Insurance Hong Kong (Under Preparation) at Fosun Insurance Group","Hong Kong","Past: Chief Marketing Officer at AIA Korea"]
["Education: University of Manitoba",null,null,6521,null,null,null,null,654,"Andrew Schellenberg, CA","Senior Financial Analyst at Google","San Francisco Bay Area","Education: University of Manitoba"]
["Karlee Moist",null,null,1294,null,null,null,null,655,"David Grapko","Retired at Cigna","Greater Denver Area","Education: University of Manitoba"]
["Sean Seavers",null,null,1427,null,null,null,null,656,"Marianne Cumming","Senior Vice President at Swiss Re","Fort Wayne, Indiana Area","Education: University of Manitoba"]
["Victor Cui",null,null,1511,null,null,null,null,657,"May Shuang Yu","Senior Pension Actuary at CalPERS","Sacramento, California Area","Education: University of Manitoba"]
["22 shared connections",null,null,1540,null,null,null,null,658,"Richard Rougeau","Medical Director at AXA","Greater St. Louis Area","Education: University of Manitoba"]
["Message",null,null,1718,null,null,null,null,659,"Albert Lo","Owner, Teamwork Investment Asia Ltd","Hong Kong","Education: University of Manitoba"]
["Zifeng(Joseph) Qian",null,null,2429,null,null,null,null,660,"David Pauls","Western Europe Regional Leader, Global Services & Solutions at Willis Towers Watson","Zürich Area, Switzerland","Education: University of Manitoba"]
["Zifeng(Joseph) Qian  2nd degree connection2nd",null,null,3279,null,null,null,null,661,"Tracy Witter","Partner, Retirement Market Leader N. California and Pacific Northwest at Aon Hewitt","San Francisco Bay Area","Education: University of Manitoba"]
["Actuarial Analyst, Corporate Research at Investors Group",null,null,3349,null,null,null,null,662,"Karl Gagnon","Assistant Actuary at Allianz Life","Greater Minneapolis-St. Paul Area","Education: University of Manitoba"]
["Winnipeg, Canada Area",null,null,3931,null,null,null,null,663,"Michael Fong","Managing Director, Charles Schwab Hong Kong at Charles Schwab","Hong Kong","Education: University of Manitoba"]
["Education: University of Manitoba",null,null,4102,null,null,null,null,664,"Nicole Delahanty","Pavilion Advisory Group Inc.","Greater Minneapolis-St. Paul Area","Education: University of Manitoba"]
["Yan Wu",null,null,4355,null,null,null,null,665,"Todd Owen","Chief Executive Officer at Windsor Strategy Solutions","Greater New York City Area","Education: University of Manitoba"]
["David Senensky",null,null,4389,null,null,null,null,666,"Eric Thorlacius","Head Financial Market Risk at Catlin","Washington D.C. Metro Area","Education: University of Manitoba"]
["Rafe Hunt, FSA",null,null,4425,null,null,null,null,667,"Chris Drome","Technical Yahoo at Yahoo Search","San Francisco Bay Area","Education: University of Manitoba"]
["20 shared connections",null,null,4558,null,null,null,null,668,"Trevor Holland","Retired from emloyee benefits and actuarual fields","Greater St. Louis Area","Education: University of Manitoba"]
["Connect",null,null,4620,null,null,null,null,669,"Wayne Froese","at MCG Energy Solutions LLC","Greater Minneapolis-St. Paul Area","Education: University of Manitoba"]
["Keri Guenther",null,null,4668,null,null,null,null,670,"Vivian Chang","Associate Actuary at WellPoint","Greater Boston Area","Education: University of Manitoba"]
["Keri Guenther  2nd degree connection2nd",null,null,4734,null,null,null,null,671,"Derek Popkes","Chief Risk Officer, Europe","Ireland","Education: University of Manitoba"]
["Actuarial Summer Student at Great-West Life",null,null,4926,null,null,null,null,672,"Gabriel Yeung","Vice President HNW Underwriting at AIA","Hong Kong","Education: University of Manitoba"]
["Winnipeg, Canada Area",null,null,4931,null,null,null,null,673,"Jane Yeo","Regional VP at AIG","Singapore","Education: University of Manitoba"]
["Past: Co-President at University of Manitoba Actuarial Club",null,null,4936,null,null,null,null,674,"Peter Tilley","Chief Financial Risk Officer at Great-West Financial","Greater Denver Area","Education: University of Manitoba"]
["Julia Gudmundson",null,null,5045,null,null,null,null,675,"Marty Rosenbaum","Senior Health Care Consultant at MRC & Associates","Greater Denver Area","Education: University of Manitoba"]
["Howard Harmatz",null,null,5102,null,null,null,null,676,"Hock Eng Mah","COO at Ozura Firstlogix","Malaysia","Education: University of Manitoba"]
["Amy Guenther",null,null,5107,null,null,null,null,677,"Vincent Leung","Branch Manager at Top Image Systems","Hong Kong","Education: University of Manitoba"]
["21 shared connections",null,null,5182,null,null,null,null,678,"刘欣","Inventory Project Manager","Shanghai Suburb, China","Education: University of Manitoba"]
["Invite Sent",null,null,5573,null,null,null,null,679,"Yvonne Gao","Senior Actuairal Associate at Ernst & Young","China","Education: University of Manitoba"]
["Kim Middagh",null,null,5590,null,null,null,null,680,"Larry Gerelus","Owner, Stag's Hollow Winery","Canada","Education: University of Manitoba"]
["Kim Middagh  2nd degree connection2nd",null,null,5672,null,null,null,null,681,"裘國偉博士Caleb Kau, Psy.D.","--","Hong Kong","Education: University of Manitoba"]
["Benefits Manager at University of Manitoba",null,null,5683,null,null,null,null,682,"Paul Stefansson","Leader (former CEO) and Sales Manager with expertise in Discretionary Mandates, Funds, Hedge Funds and Private Equity","Singapore","Education: University of Manitoba"]
["Winnipeg, Canada Area",null,null,5850,null,null,null,null,683,"Siew Ding Lo","Associate","Singapore","Education: University of Manitoba"]
["Current: Manager, Group Insurance at University of Manitoba",null,null,5926,null,null,null,null,684,"Fred Abbott","Director of Client Management, Northern California at Willis Towers Watson","San Francisco Bay Area","Summary: Fred Abbott is a Senior... from the University of Manitoba..."]
["Simon Deschenes FSA, FCIA, CFA",null,null,5955,null,null,null,null,685,"Chris Kam, CPA, CGA","Financial Analyst at AECOM","Vancouver, Canada Area","Education: University of Manitoba"]
["Gregg Melnyk",null,null,6127,null,null,null,null,686,"Raj Bal","Consultant / Healthcare Entrepreneur","Greater Milwaukee Area","Education: University of Manitoba"]
["2 shared connections",null,null,6280,null,null,null,null,687,"David Wilson","President at Windsor Strategy Partners and Owner, Windsor Strategy Partners","Greater New York City Area","Education: University of Manitoba"]
["Connect",null,null,6291,null,null,null,null,688,"Yu Chen Mu","Quantitative Derivatives Analyst at Allianz Life","Greater Minneapolis-St. Paul Area","Education: University of Manitoba"]
["Francis Seah",null,null,6309,null,null,null,null,689,"King Lai","Associate Director at AIA HK","Hong Kong","Education: University of Manitoba"]
["Francis Seah  1st degree connection1st",null,null,6328,null,null,null,null,690,"Poong Shen Lai","--","Selangor, Malaysia","Education: University of Manitoba"]
["Actuarial Intern at Investors Group",null,null,6333,null,null,null,null,691,"Shui Lan Joanna Ng","Statistical Reporting Analyst at WR Berkley","Greater Chicago Area","Education: University of Manitoba"]
["Winnipeg, Canada Area",null,null,6369,null,null,null,null,692,"Gai Hing Alex Wong","Executive Director","Hong Kong","Education: University of Manitoba"]
["Past: Part-time Tutor at Self Employed",null,null,6382,null,null,null,null,693,"Bob Zoltok","Transitioning to Bridge (cards, not structural)","Vancouver, Canada Area","Education: University of Manitoba"]
["Bradley Abells",null,null,6448,null,null,null,null,694,"Max Ng","Business Development Manager at Micon Solid-State Engineering","Hong Kong","Education: University of Manitoba"]
["Owais Jafry",null,null,6521,null,null,null,null,695,"Daniel Lennington, FSA, EA","Senior Consulting Actuary at Willis Towers Watson","Greater Chicago Area","Education: University of Manitoba"]
["Jeffray Nicolas",null,null,1294,null,null,null,null,696,"Sam Gu","Master student at Yale School of Public Health","Greater New York City Area","Education: University of Manitoba"]
["41 shared connections",null,null,1427,null,null,null,null,697,"Ching-Fai Pang","principal consultant at Phi Consulting Group, Inc.","San Francisco Bay Area","Education: University of Manitoba"]
["Message",null,null,1511,null,null,null,null,698,"Jeff Howatt","Head of Retirement, Technology and Administration Services, North Asia (Japan and Korea) at Willis Towers Watson","Within 23 wards, Tokyo, Japan","Education: University of Manitoba"]
["Michael Vo",null,null,1540,null,null,null,null,699,"Brad Wladyka","Owner, Total Mortgage & Credit Services - The MORTGAGE Centre","Winnipeg, Canada Area","Education: University of Manitoba"]
["Michael Vo  1st degree connection1st",null,null,1718,null,null,null,null,700,"Lorne Cooper","--","Ottawa, Canada Area","Summary: ...and is actuarial consultant... been a actuarial..."]
["Actuarial Analyst at Willis Towers Watson",null,null,2429,null,null,null,null,701,"Raymond Tam","Chief Risk Officer, Asia at Ageas","Hong Kong","Education: University of Manitoba"]
["Toronto, Canada Area",null,null,3279,null,null,null,null,702,"Elaine Noel-Bentley","Board member","Calgary, Canada Area","Education: University of Manitoba"]
["Education: University of Manitoba",null,null,3349,null,null,null,null,703,"K Heather Power","Legislative Representative at Opticians of Manitoba","Winnipeg, Canada Area","Education: University of Manitoba"]
["David Senensky",null,null,3931,null,null,null,null,704,"Jerry Dong","Head of Asset Allocation and Research Dpt. at Shanghai Life Insurance Co. Ltd","Shanghai City, China","Education: University of Manitoba"]
["Jamie Sutherland",null,null,4102,null,null,null,null,705,"Ruiqi Zeng","Bilingual Market Research Coder at Ipsos in North America","Winnipeg, Canada Area","Education: University of Manitoba"]
["Bryan Luc",null,null,4355,null,null,null,null,706,"Denis Garand","President at DGA","Saskatchewan, Canada","Education: University of Manitoba"]
["58 shared connections",null,null,4389,null,null,null,null,707,"Raman Dhaliwal","Director Administration at Faculty of Health Sciences- University of Manitoba","Canada","Current: Director of Administration at Faculty of Health Sciences- University of Manitoba"]
["Message",null,null,4425,null,null,null,null,708,"Alfred Schorath","Certified Financial Planner at Sun Life Financial","Calgary, Canada Area","Education: University of Manitoba"]
["Tannis Wiebe",null,null,4558,null,null,null,null,709,"Matthew Segal ASA, ACIA","Actuarial Associate at Munich Re Canada","Winnipeg, Canada Area","Past: Statistics Teaching Assistant at University of Manitoba"]
["Tannis Wiebe  2nd degree connection2nd",null,null,4620,null,null,null,null,710,"Calvin Cheng","Actuarial Mathematics Student","Winnipeg, Canada Area","Past: Secretary at University of Manitoba Actuarial Club"]
["Manager, Actuarial Pricing Western Canada at Wawanesa Insurance",null,null,4668,null,null,null,null,711,"Ian Baker","Consulting Actuary at Baker Actuarial Services","British Columbia, Canada","Education: University of Manitoba"]
["Winnipeg, Canada Area",null,null,4734,null,null,null,null,712,"Ling Chen (Tony) Shi","Support Worker At St.Amant Foundation","Winnipeg, Canada Area","Current: Grader/Marker at University of Manitoba"]
["Education: University of Manitoba",null,null,4926,null,null,null,null,713,"Frank Withoos","Instructor at Kumon of Fort Garry","Winnipeg, Canada Area","Education: University of Manitoba"]
["Stephen Swenarchuk",null,null,4931,null,null,null,null,714,"Corwin Zass","Actuarial Risk Management Principal & Industry Leading Senior Consulting Actuary serving BDO and Top 30 Accounting Firms","Austin, Texas Area","Summary: ...Actuary of Actuarial Risk... for solid actuarial advice..."]
["Owais Jafry",null,null,4936,null,null,null,null,715,"Rebecca Burrows","Owner Bleue Coyote Bar & Grill.","British Columbia, Canada","Education: University of Manitoba"]
["Clayton Zaluski, FCIA, FSA",null,null,5045,null,null,null,null,716,"Margaret Proven","Director, HR Corporate Office, Exec Comp & Pensions at Canwest","Winnipeg, Canada Area","Education: University of Manitoba"]
["15 shared connections",null,null,5102,null,null,null,null,717,"Arkadiusz Bandosz","Managing Director, RGA Italy","Rome Area, Italy","Education: University of Manitoba"]
["Connect",null,null,5107,null,null,null,null,718,"Ethan Huberman","Manager at Jubilee Rose Enterprises Ltd.","Vancouver, Canada Area","Education: University of Manitoba"]
["Showing 762 results.",null,null,5182,null,null,null,null,719,"Wayne Macedo","AVP - Chief Underwriter and Claims Head - Latin America at SCOR Global Life Americas","Charlotte, North Carolina Area","Education: University of Manitoba"]
["Cédric, you’re approaching the commercial use limit.",null,null,5573,null,null,null,null,720,"LinkedIn Member","Student at University of Manitoba","Winnipeg, Canada Area","Summary: ...at the University of Manitoba... in Actuarial Mathematics. I..."]
["Please upgrade to LinkedIn Premium Business, Sales Navigator, or Recruiter to get unlimited people browsing.",null,null,5590,null,null,null,null,721,"LinkedIn Member","Student at University of Manitoba","Winnipeg, Canada Area","Education: University of Manitoba"]
["Try Premium for free",null,null,5672,null,null,null,null,722,"LinkedIn Member","Student at University of Manitoba","Winnipeg, Canada Area","Education: University of Manitoba"]
["Learn more",null,null,5683,null,null,null,null,723,"LinkedIn Member","Attended University of Manitoba","Winnipeg, Canada Area","Education: University of Manitoba"]
["Paul Avery",null,null,5850,null,null,null,null,724,"LinkedIn Member","Student at University of Manitoba","Canada","Education: University of Manitoba"]
["Paul Avery  2nd degree connection2nd",null,null,5926,null,null,null,null,725,"LinkedIn Member","Actuarial Mathematics Student","Winnipeg, Canada Area","Education: University of Manitoba"]
["Attended University of Manitoba",null,null,5955,null,null,null,null,726,"LinkedIn Member","Senior Actuarial Analyst at Delta Dental","San Francisco Bay Area","Education: University of Manitoba"]
["Winnipeg, Canada Area",null,null,6127,null,null,null,null,727,"LinkedIn Member","Student at University of Alberta","Edmonton, Canada Area","Education: University of Manitoba"]
["Education: University of Manitoba",null,null,6280,null,null,null,null,728,"LinkedIn Member","Financial Services Professional","Vancouver, Canada Area","Education: University of Manitoba"]
["Hadi Saleh",null,null,6291,null,null,null,null,729,"LinkedIn Member","--","Canada","Education: University of Manitoba"]
["Bryn Peppler",null,null,6309,null,null,null,null,730,"LinkedIn Member","Senior Vice-President, Products & Financial Planning at Investors Group","Winnipeg, Canada Area","Education: University of Manitoba"]
["Julia Gudmundson",null,null,6328,null,null,null,null,731,"LinkedIn Member","Senior Consultant at CGI","Toronto, Canada Area","Education: University of Manitoba"]
["12 shared connections",null,null,6333,null,null,null,null,732,"LinkedIn Member","Consultant","Toronto, Canada Area","Education: University of Manitoba"]
["Connect",null,null,6369,null,null,null,null,733,"LinkedIn Member","General Manager at True North Capital","Toronto, Canada Area","Education: University of Manitoba"]
["Desiree Ferbers",null,null,6382,null,null,null,null,734,"LinkedIn Member","--","Winnipeg, Canada Area","Education: University of Manitoba"]
["Desiree Ferbers  1st degree connection1st",null,null,6448,null,null,null,null,735,"LinkedIn Member","Retail Professional","Winnipeg, Canada Area","Education: University of Manitoba"]
["Actuarial Intern at Great-West Life",null,null,6521,null,null,null,null,736,"LinkedIn Member","Actuarial Consultant at Deloitte Consulting, ASA","Greater Minneapolis-St. Paul Area","Past: Consultant at Deloitte Consulting"]
["Winnipeg, Canada Area",null,null,1294,null,null,null,null,737,"LinkedIn Member","Associate at RBC","Winnipeg, Canada Area","Education: University of Manitoba"]
["Summary: ...at the University of Victoria... at the University...",null,null,1427,null,null,null,null,738,"LinkedIn Member","sales at STAPLES Canada","Winnipeg, Canada Area","Education: university of manitoba"]
["Neil Redpath",null,null,1511,null,null,null,null,739,"LinkedIn Member","Manager, I.T. at NGM Investment Ltd","Vancouver, Canada Area","Education: University of Manitoba"]
["Chunli Liang",null,null,1540,null,null,null,null,740,"LinkedIn Member","Pension and Benefits Strategist","Edmonton, Canada Area","Education: University of Manitoba"]
["Owais Jafry",null,null,1718,null,null,null,null,741,"LinkedIn Member","Senior Consultant and Actuary at Donaldson Vincent Associates Limited","Toronto, Canada Area","Education: University of Manitoba"]
["21 shared connections",null,null,null,null,null,null,null,742,"LinkedIn Member","Insurance Professional","Kitchener, Canada Area","Education: University of Manitoba"]
["Message",null,null,null,null,null,null,null,743,"LinkedIn Member","--","Toronto, Canada Area","Education: University of Manitoba"]
["Amber Anseeuw, ACAS, ACIA",null,null,null,null,null,null,null,744,"LinkedIn Member","VP of Finance and Administrative Services at Vein Clinic PA","Greater Minneapolis-St. Paul Area","Education: University of Manitoba"]
["Amber Anseeuw, ACAS, ACIA  2nd degree connection2nd",null,null,null,null,null,null,null,745,"LinkedIn Member","Sales Administration Manager at SG Gaming","Macao","Education: University of Manitoba"]
["Manager, Actuarial Services at Portage Mutual Insurance",null,null,null,null,null,null,null,746,"LinkedIn Member","Leisure, Travel & Tourism Professional","Winnipeg, Canada Area","Education: University of Manitoba"]
["Winnipeg, Canada Area",null,null,null,null,null,null,null,747,"LinkedIn Member","Public Works and Government Services Canada","Ottawa, Canada Area","Education: University of Manitoba"]
["Education: University of Manitoba",null,null,null,null,null,null,null,748,"LinkedIn Member","Wealth Planner UHNW, UBS AG Singapore","Singapore","Education: University of Manitoba"]
["Howard Harmatz",null,null,null,null,null,null,null,749,"LinkedIn Member","Insurance Professional","Winnipeg, Canada Area","Education: The University of Manitoba"]
["Rafe Hunt, FSA",null,null,null,null,null,null,null,750,"LinkedIn Member","CEO at BridgeWorks, LLC","San Francisco Bay Area","Education: University of Manitoba"]
["Clayton Zaluski, FCIA, FSA",null,null,null,null,null,null,null,751,"LinkedIn Member","President & CEO at FPB Financial Strategies Inc.","Saskatchewan, Canada","Education: University of Manitoba"]
["14 shared connections",null,null,null,null,null,null,null,752,"LinkedIn Member","Self Employed","Selangor, Malaysia","Education: University of Manitoba"]
["Connect",null,null,null,null,null,null,null,753,"LinkedIn Member","university of Manitoba毕业","Winnipeg, Canada Area","Education: university of Manitoba"]
["Eric Padua",null,null,null,null,null,null,null,754,"LinkedIn Member","Coachpraktijk Vrij Eten","The Hague Area, Netherlands","Summary: OPLEIDINGEN 2014-2015... : University of Manitoba [CA..."]
["Eric Padua  1st degree connection1st",null,null,null,null,null,null,null,755,"LinkedIn Member","Consultant at N-Dimensional Computers inc.","Toronto, Canada Area","Education: University of Manitoba"]
["Actuarial Student - Co-op at Great-West Life",null,null,null,null,null,null,null,756,"LinkedIn Member","--","Selangor, Malaysia","Education: University of Manitoba"]
["Winnipeg, Canada Area",null,null,null,null,null,null,null,757,"LinkedIn Member","Owner, Barca Capital Management","Toronto, Canada Area","Education: University of Manitoba"]
["Summary: ..., Actuarial, Finance... ). Actively pursuing actuarial...",null,null,null,null,null,null,null,758,"LinkedIn Member","Independent Financial Services Professional","Melbourne, Australia","Education: University of Manitoba"]
["Jeffrey Umandap",null,null,null,null,null,null,null,759,"LinkedIn Member","Actuary at Baker Actuarial Services","Ottawa, Canada Area","Education: University of Manitoba"]
["Jill Latschislaw",null,null,null,null,null,null,null,760,"LinkedIn Member","Office Manager at Samena Capital Hong Kong Ltd.","Hong Kong","Education: University of Manitoba (Canada)"]
["Cam Bredin, CFA Level II Candidate"]
["20 shared connections"]
["Message"]
["Yiming Hu"]
["Yiming Hu  2nd degree connection2nd"]
["Actuarial Student at Great-West Life"]
["Winnipeg, Canada Area"]
["Education: University of Manitoba"]
["hasanur rahman"]
["Jordan Gerry"]
["Mengqi Zhang"]
["29 shared connections"]
["Connect"]
["Vishal Guliani"]
["Vishal Guliani  2nd degree connection2nd"]
["Actuarial Analyst"]
["Winnipeg, Canada Area"]
["Education: University of Manitoba"]
["Michael Benarroch"]
["Arjun Nirula"]
["Rafe Hunt, FSA"]
["21 shared connections"]
["Connect"]
["Hadi Saleh"]
["Hadi Saleh  1st degree connection1st"]
["Actuarial Analyst at Deloitte Canada"]
["Toronto, Canada Area"]
["Education: University of Manitoba"]
["Julia Gudmundson"]
["Bradley Abells"]
["David Senensky"]
["47 shared connections"]
["Message"]
["Beilin Ye"]
["Beilin Ye  1st degree connection1st"]
["Actuarial Intern at Manulife"]
["Winnipeg, Canada Area"]
["Past: Grader/Marker at University of Manitoba"]
["Chunli Liang"]
["Nicole Barnabé"]
["Sasha Towfigh"]
["104 shared connections"]
["Message"]
["Jarrod Mikolajczyk"]
["Jarrod Mikolajczyk  2nd degree connection2nd"]
["Assistant Actuarial Analyst at Wawanesa Insurance"]
["Winnipeg, Canada Area"]
["Education: University of Manitoba"]
["Chunli Liang"]
["Michael Vo"]
["David Senensky"]
["14 shared connections"]
["Connect"]
["Naomi Kirshenblatt"]
["Naomi Kirshenblatt  2nd degree connection2nd"]
["Student at Asper School of Business, University of Manitoba"]
["Ottawa, Canada Area"]
["Education: University of Manitoba"]
["Abel Nyamori"]
["Frederick Sackey"]
["2 shared connections"]
["Connect"]
["Showing 762 results."]
["Cédric, you’re approaching the commercial use limit."]
["Please upgrade to LinkedIn Premium Business, Sales Navigator, or Recruiter to get unlimited people browsing."]
["Try Premium for free"]
["Learn more"]
["Jan Paolo Medina"]
["Jan Paolo Medina  1st degree connection1st"]
["Actuarial Analyst at Sun Life Financial"]
["Winnipeg, Canada Area"]
["Education: University of Manitoba"]
["Christian Guevarra"]
["Francis Seah"]
["Michael Vo"]
["13 shared connections"]
["Message"]
["Tanner Klippenstein"]
["Tanner Klippenstein  1st degree connection1st"]
["Manager Actuarial Pricing - Commercial Lines at Wawanesa Insurance"]
["Winnipeg, Canada Area"]
["Education: University of Manitoba"]
["Iqbal Shah"]
["Chunli Liang"]
["Aaron Yanofsky, ASA, ACIA, CERA"]
["13 shared connections"]
["Message"]
["Asherah Bock"]
["Asherah Bock  1st degree connection1st"]
["Actuarial Student"]
["Winnipeg, Canada Area"]
["Past: Actuarial Intern at Manitoba Public Insurance"]
["Chunli Liang"]
["Simon Deschenes FSA, FCIA, CFA"]
["Quinn Kirkpatrick"]
["66 shared connections"]
["Message"]
["Rebecca Craig"]
["Rebecca Craig  2nd degree connection2nd"]
["Student at University of Manitoba"]
["Winnipeg, Canada Area"]
["Education: University of Manitoba"]
["Ling Chen (Tony) Shi"]
["Beilin Ye"]
["2 shared connections"]
["Connect"]
["Clive Ngoma"]
["Clive Ngoma  2nd degree connection2nd"]
["Student at University of Manitoba"]
["Winnipeg, Canada Area"]
["Education: University of Manitoba"]
["Maambo Mujala"]
["Charles Beckley"]
["Ben-Iddo Manda"]
["4 shared connections"]
["Connect"]
["Justin Pursaga"]
["Justin Pursaga  2nd degree connection2nd"]
["Director, Actuarial Analytics"]
["Winnipeg, Canada Area"]
["Past: Sessional Instructor at University of Manitoba"]
["Tanner Klippenstein"]
["Aaron Yanofsky, ASA, ACIA, CERA"]
["Stephen Nighswander-Rempel"]
["10 shared connections"]
["Connect"]
["Naitao Zeng(Audrey)"]
["Naitao Zeng(Audrey)  1st degree connection1st"]
["University of Manitoba"]
["Winnipeg, Canada Area"]
["Sean Klayh"]
["Yining Wang"]
["2 shared connections"]
["Message"]
["Alexa Simpson"]
["Alexa Simpson  2nd degree connection2nd"]
["Actuarial Assistant at Great-West Life"]
["Winnipeg, Canada Area"]
["Past: Teacher’s Assistant - Introduction to Risk Management at University of Manitoba"]
["Chunli Liang"]
["Adrian Katchur"]
["Ainsley Yoong"]
["10 shared connections"]
["Connect"]
["Avi Saper"]
["Avi Saper  1st degree connection1st"]
["Actuarial Analyst"]
["Winnipeg, Canada Area"]
["Education: University of Manitoba"]
["Linghua Wei"]
["Neil Redpath"]
["Ben Tallin"]
["9 shared connections"]
["Message"]
["Kerem Leylek"]
["Kerem Leylek  1st degree connection1st"]
["Actuarial Analyst at Mercer"]
["Winnipeg, Canada Area"]
["Education: University of Manitoba"]
["Sean McFetridge"]
["Aaron Yanofsky, ASA, ACIA, CERA"]
["Stefan Baluta"]
["12 shared connections"]
["Message"]
["Showing 762 results."]
["Cédric, you’re approaching the commercial use limit."]
["Please upgrade to LinkedIn Premium Business, Sales Navigator, or Recruiter to get unlimited people browsing."]
["Try Premium for free"]
["Learn more"]
["Wayne Heppner"]
["Wayne Heppner  2nd degree connection2nd"]
["Manager, Actuarial Pricing - Eastern Canada at Wawanesa Insurance"]
["Winnipeg, Canada Area"]
["Education: University of Manitoba"]
["Tanner Klippenstein"]
["David Loewen"]
["Aaron Yanofsky, ASA, ACIA, CERA"]
["11 shared connections"]
["Connect"]
["Kyle Meilleur"]
["Kyle Meilleur  1st degree connection1st"]
["Actuarial Analyst at Ellement Consulting Group"]
["Canada"]
["Education: University of Manitoba"]
["Avi Saper"]
["Stephen Swenarchuk"]
["Owais Jafry"]
["30 shared connections"]
["Message"]
["Danrui Li"]
["Danrui Li  2nd degree connection2nd"]
["Student at University of Manitoba"]
["Winnipeg, Canada Area"]
["Education: University of Manitoba"]
["Chunli Liang"]
["Yipin Guo"]
["Mengqi Zhang"]
["3 shared connections"]
["Connect"]
["Tafadzwa Alifasi"]
["Tafadzwa Alifasi  2nd degree connection2nd"]
["Student at University of Manitoba"]
["Winnipeg, Canada Area"]
["Education: University of Manitoba"]
["Ben-Iddo Manda"]
["1 shared connection"]
["Connect"]
["Kondwelani Kalinda"]
["Kondwelani Kalinda  2nd degree connection2nd"]
["Student at University of Manitoba"]
["Winnipeg, Canada Area"]
["Education: University of Manitoba"]
["Felipe Andrés Garcia Recio"]
["Aaron Menon"]
["Abel Nyamori"]
["5 shared connections"]
["Connect"]
["Gordon Yestrau"]
["Gordon Yestrau  2nd degree connection2nd"]
["Actuarial Summer Student at Great-West Life"]
["Winnipeg, Canada Area"]
["Education: University of Manitoba"]
["Hadi Saleh"]
["Bryn Peppler"]
["Justin Scott"]
["12 shared connections"]
["Connect"]
["Vivi Rihanti"]
["Vivi Rihanti  2nd degree connection2nd"]
["CPA Student, Actuarial Internal Audit at Great-West Life"]
["Winnipeg, Canada Area"]
["Past: Grader at University of Manitoba"]
["Jessica Tjahjadi"]
["Howard Heller"]
["Meredith Bara"]
["8 shared connections"]
["Connect"]
["Dylan Allary"]
["Dylan Allary  2nd degree connection2nd"]
["Student at University of Manitoba"]
["Winnipeg, Canada Area"]
["Education: University of Manitoba"]
["Kyle A. Casalla"]
["Jamie Rakhra"]
["2 shared connections"]
["Connect"]
["Cherity Ostapowich"]
["Cherity Ostapowich  2nd degree connection2nd"]
["Senior Actuarial Analyst at Wawanesa Insurance"]
["Winnipeg, Canada Area"]
["Education: University of Manitoba"]
["Tanner Klippenstein"]
["Stefan Baluta"]
["Maambo Mujala"]
["9 shared connections"]
["Connect"]
["Rowena dela Torre"]
["Rowena dela Torre  2nd degree connection2nd"]
["Actuarial Analyst at Willis Towers Watson"]
["Calgary, Canada Area"]
["Education: University of Manitoba"]
["Owais Jafry"]
["David Senensky"]
["Rafe Hunt, FSA"]
["24 shared connections"]
["Connect"]
["Showing 762 results."]
["Cédric, you’re approaching the commercial use limit."]
["Please upgrade to LinkedIn Premium Business, Sales Navigator, or Recruiter to get unlimited people browsing."]
["Try Premium for free"]
["Learn more"]
["David Ng"]
["David Ng  2nd degree connection2nd"]
["Senior Actuarial Associate at Manulife"]
["Toronto, Canada Area"]
["Education: University of Manitoba"]
["Vilok Guliani"]
["Michael Benarroch"]
["Howard Harmatz"]
["20 shared connections"]
["Connect"]
["Zoe Jing Chua"]
["Zoe Jing Chua  2nd degree connection2nd"]
["Actuarial Analyst"]
["Winnipeg, Canada Area"]
["Past: Teaching Assistant at Asper School of Business, University of Manitoba."]
["Iqbal Shah"]
["Chunli Liang"]
["Stefan Baluta"]
["6 shared connections"]
["Connect"]
["Cara Low"]
["Cara Low  2nd degree connection2nd"]
["VP Corporate Actuarial & Appointed Actuary"]
["Winnipeg, Canada Area"]
["Education: University of Manitoba"]
["Iqbal Shah"]
["Owais Jafry"]
["Shane O&#39;Connor"]
["6 shared connections"]
["Connect"]
["Jingsha(Sarah) Yuan"]
["Jingsha(Sarah) Yuan  2nd degree connection2nd"]
["Actuarial Assistant at Great-West Life"]
["Winnipeg, Canada Area"]
["Education: University of Manitoba"]
["Yan Wu"]
["Julia Gudmundson"]
["Justin Scott"]
["11 shared connections"]
["Connect"]
["Mwila Mvula"]
["Mwila Mvula  2nd degree connection2nd"]
["Student at University of Manitoba"]
["Winnipeg, Canada Area"]
["Education: University of Manitoba"]
["Charles Beckley"]
["Yemurai Bgwoni"]
["2 shared connections"]
["Connect"]
["Megan Booth"]
["Megan Booth  1st degree connection1st"]
["Actuarial Student"]
["Winnipeg, Canada Area"]
["Summary: ...and Actuarial Science. Currently... at the University of Manitoba in the Co..."]
["Neil Redpath"]
["Ben Tallin"]
["Jeffrey Umandap"]
["41 shared connections"]
["Message"]
["Jared Pursaga"]
["Jared Pursaga  2nd degree connection2nd"]
["Manager Actuarial Pricing Direct Markets at Wawanesa Insurance"]
["Winnipeg, Canada Area"]
["Education: University of Manitoba"]
["Tanner Klippenstein"]
["Aaron Yanofsky, ASA, ACIA, CERA"]
["Stefan Baluta"]
["7 shared connections"]
["Connect"]
["Rosena Chan"]
["Rosena Chan  2nd degree connection2nd"]
["Actuarial Analyst"]
["Kitchener, Canada Area"]
["Education: University of Manitoba"]
["Vilok Guliani"]
["Julia Gudmundson"]
["Arielle Gates"]
["17 shared connections"]
["Connect"]
["hetty asiamah"]
["hetty asiamah  3rd degree connection3rd"]
["Grader/marker at Department of Economics, University of Manitoba"]
["Winnipeg, Canada Area"]
["Past: teaching assistant at university of ghana( statistics dept)"]
["Send InMail"]
["Justin Lasker, ASA, ACIA"]
["Justin Lasker, ASA, ACIA  2nd degree connection2nd"]
["Senior Actuarial Analyst at Sunlife"]
["Canada"]
["Education: University of Manitoba"]
["Hadi Saleh"]
["Bryn Peppler"]
["Bradley Abells"]
["11 shared connections"]
["Connect"]
["Showing 762 results."]
["Cédric, you’re approaching the commercial use limit."]
["Please upgrade to LinkedIn Premium Business, Sales Navigator, or Recruiter to get unlimited people browsing."]
["Try Premium for free"]
["Learn more"]
["Bill MacMillan"]
["Bill MacMillan  2nd degree connection2nd"]
["Actuarial Consultant at Manulife Financial"]
["Winnipeg, Canada Area"]
["Education: University of Manitoba"]
["Edward Swerhone"]
["Tim Butterfield"]
["Charly Pazdor"]
["4 shared connections"]
["Connect"]
["Sara Moffat"]
["Sara Moffat  2nd degree connection2nd"]
["Actuarial Analyst at Wawanesa Insurance"]
["Winnipeg, Canada Area"]
["Education: University of Manitoba"]
["Ling Chen (Tony) Shi"]
["Chunli Liang"]
["Stefan Baluta"]
["3 shared connections"]
["Connect"]
["wajiha shahzad"]
["wajiha shahzad  2nd degree connection2nd"]
["Student at University of Manitoba"]
["Winnipeg, Canada Area"]
["Education: University of Manitoba"]
["Masroor Khan"]
["1 shared connection"]
["Connect"]
["Shiyan Jin"]
["Shiyan Jin  2nd degree connection2nd"]
["Actuarial Associate at Great-West Life"]
["Canada"]
["Education: University of Manitoba"]
["Yan Wu"]
["Arielle Gates"]
["Aaron Yanofsky, ASA, ACIA, CERA"]
["9 shared connections"]
["Connect"]
["Maxim Kharitonov"]
["Maxim Kharitonov  2nd degree connection2nd"]
["Senior Actuarial Analyst at Sun Life Financial"]
["Kitchener, Canada Area"]
["Education: University of Manitoba"]
["Arielle Gates"]
["Howard Harmatz"]
["Rafe Hunt, FSA"]
["16 shared connections"]
["Connect"]
["Liji Huang"]
["Liji Huang  2nd degree connection2nd"]
["Actuarial Analyst at Great-West Life"]
["Winnipeg, Canada Area"]
["Education: University of Manitoba"]
["Yan Wu"]
["Aaron Yanofsky, ASA, ACIA, CERA"]
["David Senensky"]
["4 shared connections"]
["Connect"]
["Steven Duplak"]
["Steven Duplak  2nd degree connection2nd"]
["Student at University of Manitoba"]
["Winnipeg, Canada Area"]
["Education: University of Manitoba"]
["Stefan Baluta"]
["1 shared connection"]
["Connect"]
["Jenna Young, ASA, ACIA"]
["Jenna Young, ASA, ACIA  2nd degree connection2nd"]
["Senior Actuarial Analyst at Willis Towers Watson"]
["Calgary, Canada Area"]
["Education: University of Manitoba"]
["Bryn Peppler"]
["Aaron Yanofsky, ASA, ACIA, CERA"]
["David Senensky"]
["8 shared connections"]
["Connect"]
["varun sharma"]
["varun sharma  2nd degree connection2nd"]
["Actuarial Associate at The Co-operators"]
["Winnipeg, Canada Area"]
["Summary: Actuarial Analyst... in Insurance and Actuarial..."]
["Julia Gudmundson"]
["Howard Harmatz"]
["Michael Benarroch"]
["17 shared connections"]
["Connect"]
["Leon Lo"]
["Leon Lo  3rd degree connection3rd"]
["Student at University of Manitoba"]
["Winnipeg, Canada Area"]
["Education: University of Manitoba"]
["Send InMail"]
["Showing 762 results."]
["Cédric, you’re approaching the commercial use limit."]
["Please upgrade to LinkedIn Premium Business, Sales Navigator, or Recruiter to get unlimited people browsing."]
["Try Premium for free"]
["Learn more"]
["Edward Swerhone"]
["Edward Swerhone  1st degree connection1st"]
["Vice-President, Actuarial Reporting and Product Management at Sun Life Financial"]
["Toronto, Canada Area"]
["Summary: ...actuarial students... actuarial nature, looking..."]
["Iqbal Shah"]
["Neil Redpath"]
["John Horosko"]
["6 shared connections"]
["Message"]
["Sergey Voronin"]
["Sergey Voronin  2nd degree connection2nd"]
["University Graduate- Actuarial Mathematics"]
["Toronto, Canada Area"]
["Education: University of Manitoba"]
["Aaron Yanofsky, ASA, ACIA, CERA"]
["Irina Ledenev"]
["2 shared connections"]
["Connect"]
["Michael Correa"]
["Michael Correa  2nd degree connection2nd"]
["Vice President, Global Actuarial Consulting Group at Munich Re Canada"]
["Toronto, Canada Area"]
["Education: University of Manitoba"]
["Alon Halbrich, FCIA, FSA"]
["Simon Deschenes FSA, FCIA, CFA"]
["Bronagh Nazarko, FSA, FCIA"]
["5 shared connections"]
["Connect"]
["Irina Kretskaia"]
["Irina Kretskaia  2nd degree connection2nd"]
["Actuarial Analyst at Wawanesa Insurance"]
["Winnipeg, Canada Area"]
["Education: University of Manitoba"]
["Tanner Klippenstein"]
["Stefan Baluta"]
["2 shared connections"]
["Connect"]
["Wei Wang"]
["Wei Wang  2nd degree connection2nd"]
["Student at University of Manitoba"]
["Winnipeg, Canada Area"]
["Education: University of Manitoba"]
["Chunli Liang"]
["Linghua Wei"]
["2 shared connections"]
["Connect"]
["Faza Raflis"]
["Faza Raflis  3rd degree connection3rd"]
["Student at University of Manitoba"]
["Winnipeg, Canada Area"]
["Education: University of Manitoba"]
["Send InMail"]
["Gary Stoller"]
["Gary Stoller  2nd degree connection2nd"]
["Actuarial Consultant at School Boards Co-operative Inc."]
["Toronto, Canada Area"]
["Education: University of Manitoba"]
["Iqbal Shah"]
["Dhruv Gupta"]
["Simon Deschenes FSA, FCIA, CFA"]
["7 shared connections"]
["Connect"]
["LinkedIn Member"]
["Student at University of Manitoba"]
["Winnipeg, Canada Area"]
["Summary: ...at the University of Manitoba... in Actuarial Mathematics. I..."]
["Connect"]
["Ryan Sharman"]
["Ryan Sharman  1st degree connection1st"]
["Actuarial Co-op at John Hancock Financial Services"]
["Toronto, Canada Area"]
["Education: University of Manitoba"]
["Michael Vo"]
["Victor Cui"]
["David Senensky"]
["26 shared connections"]
["Message"]
["Christopher Prendergast"]
["Christopher Prendergast  1st degree connection1st"]
["Actuarial Analyst at Sun Life Financial"]
["Winnipeg, Canada Area"]
["Summary: ...-Op term as an Actuarial... at the University of Manitoba Asper..."]
["Asherah Bock"]
["Neil Redpath"]
["Sean Seavers"]
["10 shared connections"]
["Message"]
["Showing 762 results."]
["Cédric, you’re approaching the commercial use limit."]
["Please upgrade to LinkedIn Premium Business, Sales Navigator, or Recruiter to get unlimited people browsing."]
["Try Premium for free"]
["Learn more"]
["Samantha Allen"]
["Samantha Allen  2nd degree connection2nd"]
["Associate at Mercer"]
["Toronto, Canada Area"]
["Education: University of Manitoba"]
["Julia Gudmundson"]
["Michael Benarroch"]
["Michael Vo"]
["22 shared connections"]
["Connect"]
["Jade Randall"]
["Jade Randall  1st degree connection1st"]
["Actuarial Intern at Wawanesa Mutual Insurance"]
["Winnipeg, Canada Area"]
["Education: University of Manitoba"]
["Sean Klayh"]
["K.T. Werboweski"]
["Sergiu Buda"]
["8 shared connections"]
["Message"]
["Abel Nyamori"]
["Abel Nyamori  1st degree connection1st"]
["Sales Representative and University Student"]
["Winnipeg, Canada Area"]
["Current: Vice President of Corporate Relations at University of Manitoba Investment group"]
["Quinn Kirkpatrick"]
["Sasha Towfigh"]
["Taylor Caldwell B.Comm (Hons.)"]
["68 shared connections"]
["Message"]
["Shuo Wang"]
["Shuo Wang  2nd degree connection2nd"]
["Actuarial Analyst at Great-West Life"]
["Canada"]
["Education: University of Manitoba"]
["Iqbal Shah"]
["Yeyu Gu"]
["Chunli Liang"]
["4 shared connections"]
["Connect"]
["Wenqiang Kang"]
["Wenqiang Kang  3rd degree connection3rd"]
["Student at University of Manitoba"]
["Winnipeg, Canada Area"]
["Education: University of Manitoba"]
["Send InMail"]
["Yiran (Cecilia) Lu"]
["Yiran (Cecilia) Lu  2nd degree connection2nd"]
["Student at University of Manitoba"]
["Winnipeg, Canada Area"]
["Education: University of Manitoba"]
["Timothy Rempel"]
["1 shared connection"]
["Connect"]
["Hao (Charlie) Zhang"]
["Hao (Charlie) Zhang  2nd degree connection2nd"]
["Actuarial Analyst at Workers' Compensation Board"]
["Edmonton, Canada Area"]
["Education: University of Manitoba"]
["Matt Younger, CPA, CA, MPAcc"]
["Amber Pohl"]
["Jill Latschislaw"]
["3 shared connections"]
["Connect"]
["ira vashisht"]
["ira vashisht  3rd degree connection3rd"]
["Student at University of Manitoba"]
["Winnipeg, Canada Area"]
["Education: University of Manitoba"]
["Send InMail"]
["Mostofa Sarkar"]
["Mostofa Sarkar  2nd degree connection2nd"]
["Social Statistics & Performance Indicators Statistician at Manitoba Bureau of Statistics"]
["Winnipeg, Canada Area"]
["Past: Research Assistant at University of Manitoba"]
["Randy D. Penner"]
["Tim Butterfield"]
["Mark Acala"]
["4 shared connections"]
["Connect"]
["Travis Olson"]
["Travis Olson  2nd degree connection2nd"]
["Manager, Group Actuarial Pricing at Co-operators Life"]
["Saskatchewan, Canada"]
["Education: University of Manitoba"]
["Paul Young"]
["Brad Bulger, FSA, FCIA"]
["2 shared connections"]
["Connect"]
["Showing 762 results."]
["Cédric, you’re approaching the commercial use limit."]
["Please upgrade to LinkedIn Premium Business, Sales Navigator, or Recruiter to get unlimited people browsing."]
["Try Premium for free"]
["Learn more"]
["Nicole Johnson"]
["Nicole Johnson  2nd degree connection2nd"]
["Actuarial Officer at Agriculture and Agri-Food Canada"]
["Ottawa, Canada Area"]
["Education: University of Manitoba"]
["Louise Hoeppner, FSA"]
["Troy Schuster, PHR"]
["2 shared connections"]
["Connect"]
["LinkedIn Member"]
["Student at University of Manitoba"]
["Winnipeg, Canada Area"]
["Education: University of Manitoba"]
["Connect"]
["Jamie Sutherland"]
["Jamie Sutherland  1st degree connection1st"]
["Actuarial student at Asper School of Business"]
["Winnipeg, Canada Area"]
["Summary: ..., and persistent Actuarial... and grow my actuarial..."]
["Ivraj Plaha"]
["Owais Jafry"]
["Lucas Szczepanski"]
["72 shared connections"]
["Message"]
["Fangzhu Shen"]
["Fangzhu Shen  2nd degree connection2nd"]
["Student at University of Manitoba"]
["Winnipeg, Canada Area"]
["Education: University of Manitoba"]
["Linghua Wei"]
["1 shared connection"]
["Connect"]
["Emma Gao"]
["Emma Gao  2nd degree connection2nd"]
["Actuarial Manager at Intact"]
["Calgary, Canada Area"]
["Education: University of Manitoba"]
["Jay Lee, FSA, FCIA"]
["Brad Bulger, FSA, FCIA"]
["2 shared connections"]
["Connect"]
["Lisa Bjornson"]
["Lisa Bjornson  2nd degree connection2nd"]
["Senior Actuarial Analyst at Morneau Shepell"]
["Toronto, Canada Area"]
["Education: University of Manitoba"]
["Shelley Sjoberg"]
["Charly Pazdor"]
["2 shared connections"]
["Connect"]
["WENTING LI"]
["WENTING LI  2nd degree connection2nd"]
["Actuarial Graduate"]
["Winnipeg, Canada Area"]
["Summary: A recent Actuarial graduate from University..."]
["Stephen Thomas"]
["David Senensky"]
["Lucas Szczepanski"]
["39 shared connections"]
["Connect"]
["Stephen Szaura"]
["Stephen Szaura  2nd degree connection2nd"]
["Graduate Student at McGill University"]
["Montreal, Canada Area"]
["Summary: ...of Management McGill University... and actuarial mathematics..."]
["Yan Wu"]
["Stuart Klugman"]
["Alon Halbrich, FCIA, FSA"]
["8 shared connections"]
["Connect"]
["Ella Young"]
["Ella Young  2nd degree connection2nd"]
["Corporate Director, Enterprise Risk Management and Director, Care Continuum and Actuarial Analytics at VCH"]
["Vancouver, Canada Area"]
["Summary: ...in energy in Manitoba... . Hons (Actuarial Science..."]
["Jerry Brown"]
["1 shared connection"]
["Connect"]
["Nadia Daoudi"]
["Nadia Daoudi  1st degree connection1st"]
["Actuarial Student"]
["Winnipeg, Canada Area"]
["Past: Customer Service Representative at University of Manitoba"]
["Thomas Miles"]
["Gabrielle Lemire"]
["Ben Tallin"]
["24 shared connections"]
["Message"]
["Showing 762 results."]
["Cédric, you’re approaching the commercial use limit."]
["Please upgrade to LinkedIn Premium Business, Sales Navigator, or Recruiter to get unlimited people browsing."]
["Try Premium for free"]
["Learn more"]
["LinkedIn Member"]
["Student at University of Manitoba"]
["Winnipeg, Canada Area"]
["Education: University of Manitoba"]
["Connect"]
["Samantha Gopaul"]
["Samantha Gopaul  3rd degree connection3rd"]
["Student at University of Manitoba"]
["Winnipeg, Canada Area"]
["Education: University of Manitoba"]
["Send InMail"]
["John Campbell"]
["John Campbell  2nd degree connection2nd"]
["AVP, Group Finance Actuarial, at Manulife Financial"]
["Toronto, Canada Area"]
["Past: AVP, External Reporting and Policy at Manulife Financial"]
["Rafe Hunt, FSA"]
["1 shared connection"]
["Connect"]
["Joiely Evangelista"]
["Joiely Evangelista  1st degree connection1st"]
["Actuarial Student"]
["Canada"]
["Education: University of Manitoba"]
["Chunli Liang"]
["Owais Jafry"]
["Nicole Barnabé"]
["68 shared connections"]
["Message"]
["LinkedIn Member"]
["Attended University of Manitoba"]
["Winnipeg, Canada Area"]
["Education: University of Manitoba"]
["Connect"]
["Keith Richtik"]
["Keith Richtik  3rd degree connection3rd"]
["Manager, Actuarial Financial Reporting"]
["Winnipeg, Canada Area"]
["Education: University of Manitoba"]
["Send InMail"]
["卢枭"]
["卢枭  3rd degree connection3rd"]
["University of Manitoba学生"]
["Winnipeg, Canada Area"]
["Education: University of Manitoba"]
["Send InMail"]
["Wali Naqvi"]
["Wali Naqvi  1st degree connection1st"]
["Majoring in Actuarial Mathematics, Finance and Minoring in Marketing"]
["Winnipeg, Canada Area"]
["Current: Student at University of Manitoba"]
["Ivraj Plaha"]
["Edrian Soria"]
["Oleksandr Kovalchuk"]
["22 shared connections"]
["Message"]
["Erik W."]
["Erik W.  3rd degree connection3rd"]
["Student at the University of Manitoba"]
["Vancouver, Canada Area"]
["Education: University of Manitoba"]
["Send InMail"]
["Stuart Tisdale"]
["Stuart Tisdale  1st degree connection1st"]
["Actuarial Analyst - New York Life Insurance Company"]
["Greater New York City Area"]
["Past: Teaching Assistant - Department of Statistics at University of Manitoba"]
["Chunli Liang"]
["Barry Franklin"]
["Owais Jafry"]
["124 shared connections"]
["Message"]
["Showing 762 results."]
["Cédric, you’re approaching the commercial use limit."]
["Please upgrade to LinkedIn Premium Business, Sales Navigator, or Recruiter to get unlimited people browsing."]
["Try Premium for free"]
["Learn more"]
["Vladimir Krepkiy"]
["Vladimir Krepkiy  2nd degree connection2nd"]
["Actuarial Associate at BMO Bank of Montreal"]
["Canada"]
["Education: University of Manitoba"]
["Iqbal Shah"]
["Edward Swerhone"]
["Louise Hoeppner, FSA"]
["6 shared connections"]
["Connect"]
["Wisdom Ugbah"]
["Wisdom Ugbah  3rd degree connection3rd"]
["Student at University of Manitoba"]
["Canada"]
["Education: University of Manitoba"]
["Send InMail"]
["Monica Otulak"]
["Monica Otulak  3rd degree connection3rd"]
["Student at University of Manitoba"]
["Winnipeg, Canada Area"]
["Education: University of Manitoba"]
["Send InMail"]
["Maryana Gange"]
["Maryana Gange  2nd degree connection2nd"]
["Actuarial Analyst"]
["Winnipeg, Canada Area"]
["Past: Teacher's Assistant - Introductory Ukrainian and Intermediate Ukrainian at University of Manitoba"]
["Julia Gudmundson"]
["Stephen Swenarchuk"]
["David Senensky"]
["16 shared connections"]
["Connect"]
["Cameron Smart"]
["Cameron Smart  1st degree connection1st"]
["Senior Actuarial Analyst at Cigna"]
["Hartford, Connecticut Area"]
["Education: University of Manitoba"]
["Chunli Liang"]
["David Senensky"]
["Edith Samuels"]
["146 shared connections"]
["Message"]
["Bryn Peppler"]
["Bryn Peppler  1st degree connection1st"]
["Actuarial Associate at New York Life Insurance Company"]
["Greater New York City Area"]
["Education: University of Manitoba"]
["Nkenge Blue, ASA"]
["Sean Reddy"]
["Chunli Liang"]
["107 shared connections"]
["Message"]
["Yemurai Bgwoni"]
["Yemurai Bgwoni  1st degree connection1st"]
["Actuarial Graduate - Asper School of Business"]
["Winnipeg, Canada Area"]
["Education: University of Manitoba"]
["Bradley Abells"]
["Ben Tallin"]
["David Senensky"]
["48 shared connections"]
["Message"]
["Dyemila Narrainsawmy"]
["Dyemila Narrainsawmy  3rd degree connection3rd"]
["Actuarial Student at University of Manitoba"]
["Winnipeg, Canada Area"]
["Past: Student Worker at University of Manitoba"]
["Send InMail"]
["Jiabin(Francis) Dong"]
["Jiabin(Francis) Dong  3rd degree connection3rd"]
["Actuarial Analyst at Aviva Canada"]
["Toronto, Canada Area"]
["Education: University of Manitoba"]
["Send InMail"]
["Hung Manh Le"]
["Hung Manh Le  2nd degree connection2nd"]
["Actuarial Analyst"]
["Toronto, Canada Area"]
["Past: Student Group Resource Centre Coordinator at University of Manitoba Students' Union"]
["Yan Wu"]
["Kelly Mahoney"]
["Guillaume Giasson-Morin, MBA"]
["3 shared connections"]
["Connect"]
["Showing 762 results."]
["Cédric, you’re approaching the commercial use limit."]
["Please upgrade to LinkedIn Premium Business, Sales Navigator, or Recruiter to get unlimited people browsing."]
["Try Premium for free"]
["Learn more"]
["Ben-Iddo Manda"]
["Ben-Iddo Manda  1st degree connection1st"]
["Actuarial Science Student (BSc) Hons"]
["Winnipeg, Canada Area"]
["Current: Student Office Assistant - Donor Relations at University of Manitoba"]
["Stephen Swenarchuk"]
["Chunli Liang"]
["Beilin Ye"]
["12 shared connections"]
["Message"]
["Dan Clark"]
["Dan Clark  3rd degree connection3rd"]
["Actuarial Consultant at DRC Actuarial Services"]
["Toronto, Canada Area"]
["Education: University of Manitoba"]
["Send InMail"]
["Yu Cheng"]
["Yu Cheng  3rd degree connection3rd"]
["Senior Actuarial Officer at OSFI"]
["Ottawa, Canada Area"]
["Education: University of Manitoba"]
["Send InMail"]
["Maja Bakija"]
["Maja Bakija  1st degree connection1st"]
["Actuarial Associate at New York Life | Dancer/Choreographer"]
["Greater New York City Area"]
["Past: Grader/Marker at University of Manitoba"]
["Nkenge Blue, ASA"]
["Sean Reddy"]
["Chunli Liang"]
["62 shared connections"]
["Message"]
["Cédric Gousseau"]
["Cédric Gousseau   You"]
["Actuarial Intern at New York Life Insurance Company"]
["Winnipeg, Canada Area"]
["Current: Co-President at University of Manitoba Actuarial Club"]
["Gerald Hoeppner"]
["Owais Jafry"]
["Theresa Van Walleghem"]
["558 shared connections"]
["LinkedIn Member"]
["Student at University of Manitoba"]
["Canada"]
["Education: University of Manitoba"]
["Connect"]
["Greg Komatich"]
["Greg Komatich  3rd degree connection3rd"]
["Actuarial Associate at Financial Services Commission of Ontario"]
["Toronto, Canada Area"]
["Education: University of Manitoba"]
["Send InMail"]
["Carolina Faustino"]
["Carolina Faustino  3rd degree connection3rd"]
["Senior Actuarial Analyst at Morneau Shepell"]
["Vancouver, Canada Area"]
["Education: University of Manitoba"]
["Send InMail"]
["Krista P Cortez"]
["Krista P Cortez  2nd degree connection2nd"]
["Sr. Actuarial Assistant at John Hancock"]
["Greater Boston Area"]
["Past: Lab Demonstrator and Private Tutor at University of Manitoba - Access Program"]
["Arielle Gates"]
["Bradley Abells"]
["David Senensky"]
["51 shared connections"]
["Connect"]
["Mingxuan Cheng"]
["Mingxuan Cheng  2nd degree connection2nd"]
["Student at University of Manitoba"]
["Huaian, Jiangsu, China"]
["Past: Lab technician at University of Manitoba"]
["Bryn Peppler"]
["Aaron Yanofsky, ASA, ACIA, CERA"]
["Sean Klayh"]
["7 shared connections"]
["Connect"]
["Showing 762 results."]
["Cédric, you’re approaching the commercial use limit."]
["Please upgrade to LinkedIn Premium Business, Sales Navigator, or Recruiter to get unlimited people browsing."]
["Try Premium for free"]
["Learn more"]
["Luke Johnston"]
["Luke Johnston  2nd degree connection2nd"]
["Chief Actuary at Manitoba Public Insurance"]
["Winnipeg, Canada Area"]
["Education: University of Manitoba"]
["Kelly Mahoney"]
["1 shared connection"]
["Connect"]
["Alyssa Nigh"]
["Alyssa Nigh  2nd degree connection2nd"]
["Student at the University of Manitoba"]
["Greater Milwaukee Area"]
["Education: University of Manitoba"]
["Marlee Nichols"]
["1 shared connection"]
["Connect"]
["Ray Huynh"]
["Ray Huynh  1st degree connection1st"]
["Actuarial Associate at Canada Life Assurance Company (Barbados Branch)"]
["Barbados"]
["Education: University of Manitoba"]
["Stephen Swenarchuk"]
["Chunli Liang"]
["David Senensky"]
["37 shared connections"]
["Message"]
["Maambo Mujala"]
["Maambo Mujala  1st degree connection1st"]
["Actuarial Associate at New York Life Insurance Company"]
["Greater New York City Area"]
["Education: University of Manitoba"]
["Avi Saper"]
["Arielle Gates"]
["Chunli Liang"]
["41 shared connections"]
["Message"]
["Charles Manty"]
["Charles Manty  2nd degree connection2nd"]
["Investment Consultant at PBI Actuarial Consultants"]
["Vancouver, Canada Area"]
["Education: University of Manitoba"]
["Michael Kula"]
["Guillaume Giasson-Morin, MBA"]
["2 shared connections"]
["Connect"]
["Savannah Yeroschak"]
["Savannah Yeroschak  2nd degree connection2nd"]
["Actuarial Science Student"]
["Winnipeg, Canada Area"]
["Education: University of Manitoba"]
["Ling Chen (Tony) Shi"]
["Beilin Ye"]
["Gabrielle Lemire"]
["5 shared connections"]
["Connect"]
["Landon Stewart"]
["Landon Stewart  1st degree connection1st"]
["Retirement Consulting Associate - Aon Hewitt"]
["Winnipeg, Canada Area"]
["Education: University of Manitoba"]
["Leah Suderman"]
["Bradley Abells"]
["Neil Redpath"]
["38 shared connections"]
["Message"]
["Sydney Rubert"]
["Sydney Rubert Sydney Rubert is a Premium member  2nd degree connection2nd"]
["Actuarial Associate at John Hancock Financial Services"]
["Greater Boston Area"]
["Education: University of Manitoba"]
["Julia Gudmundson"]
["Stephen Swenarchuk"]
["Maja Bakija"]
["24 shared connections"]
["Connect"]
["Pierra Chan"]
["Pierra Chan  3rd degree connection3rd"]
["Senior Actuarial Analyst"]
["Toronto, Canada Area"]
["Education: University of Manitoba"]
["Send InMail"]
["Melissa Luff"]
["Melissa Luff  3rd degree connection3rd"]
["Labour Market and Survey Statistician at Manitoba Bureau of Statistics"]
["Winnipeg, Canada Area"]
["Education: University of Manitoba"]
["Send InMail"]
["Showing 762 results."]
["Cédric, you’re approaching the commercial use limit."]
["Please upgrade to LinkedIn Premium Business, Sales Navigator, or Recruiter to get unlimited people browsing."]
["Try Premium for free"]
["Learn more"]
["Winny Wu"]
["Winny Wu  2nd degree connection2nd"]
["Actuarial Mathematics Student"]
["Winnipeg, Canada Area"]
["Past: Teaching Assistant at University of Manitoba"]
["Calvin Cheng"]
["Cam Bredin, CFA Level II Candidate"]
["2 shared connections"]
["Connect"]
["Cam Bredin, CFA Level II Candidate"]
["Cam Bredin, CFA Level II Candidate Cam Bredin, CFA Level II Candidate is a Premium member  1st degree connection1st"]
["Commodity Logistics Coordinator"]
["Winnipeg, Canada Area"]
["Education: University of Manitoba"]
["Chunli Liang"]
["Barry Franklin"]
["Nicole Barnabé"]
["157 shared connections"]
["Message"]
["Avinash Maniram"]
["Avinash Maniram  3rd degree connection3rd"]
["Consultant, Group and Health Care at PBI Actuarial Consultants Ltd."]
["Vancouver, Canada Area"]
["Past: Instructor - Actuarial Department at Simon Fraser University"]
["Send InMail"]
["Alexander Zeif"]
["Alexander Zeif  2nd degree connection2nd"]
["Double honours graduate in Actuarial Math and Statistics"]
["Winnipeg, Canada Area"]
["Summary: ...graduate of the University of Manitoba in Actuarial..."]
["Aaron Yanofsky, ASA, ACIA, CERA"]
["Mark Acala"]
["2 shared connections"]
["Connect"]
["Talia Pankewycz, FSA"]
["Talia Pankewycz, FSA  2nd degree connection2nd"]
["Assistant Actuary, Group Benefits at Sun Life Financial"]
["Toronto, Canada Area"]
["Education: University of Manitoba"]
["Julia Gudmundson"]
["Bradley Abells"]
["Stephen Swenarchuk"]
["33 shared connections"]
["Connect"]
["Leslee Lefteruk"]
["Leslee Lefteruk  3rd degree connection3rd"]
["Coordinator, Occupancy and Data Management at Western University"]
["London, Canada Area"]
["Education: University of Manitoba"]
["Send InMail"]
["Tyler Smith"]
["Tyler Smith  2nd degree connection2nd"]
["Actuarial and Investment Consultant for Coughlin & Associates Ltd."]
["Canada"]
["Education: University of Manitoba"]
["Julia Gudmundson"]
["Simon Deschenes FSA, FCIA, CFA"]
["Cameron Smart"]
["6 shared connections"]
["Connect"]
["Brenlee Claman"]
["Brenlee Claman  3rd degree connection3rd"]
["Human Resources at Carleton University"]
["Ottawa, Canada Area"]
["Education: University of Manitoba"]
["Send InMail"]
["Bronagh Nazarko, FSA, FCIA"]
["Bronagh Nazarko, FSA, FCIA  1st degree connection1st"]
["Actuary at Manulife Financial"]
["Winnipeg, Canada Area"]
["Education: University of Manitoba"]
["Simon Deschenes FSA, FCIA, CFA"]
["Gerald Hoeppner"]
["Aaron Yanofsky, ASA, ACIA, CERA"]
["12 shared connections"]
["Message"]
["Daniel Neves"]
["Daniel Neves  3rd degree connection3rd"]
["Actuarial & Financial Analyst"]
["Toronto, Canada Area"]
["Education: University of Manitoba"]
["Send InMail"]
["Showing 762 results."]
["Cédric, you’re approaching the commercial use limit."]
["Please upgrade to LinkedIn Premium Business, Sales Navigator, or Recruiter to get unlimited people browsing."]
["Try Premium for free"]
["Learn more"]
["Boaz Michael Twesigye"]
["Boaz Michael Twesigye  2nd degree connection2nd"]
["Actuarial Mathematics and Finance student"]
["Canada"]
["Education: University of Manitoba"]
["Ben-Iddo Manda"]
["Yemurai Bgwoni"]
["Nadia Lapteva"]
["8 shared connections"]
["Connect"]
["Pratik Gupta"]
["Pratik Gupta  2nd degree connection2nd"]
["Actuarial Consultant"]
["Greater New York City Area"]
["Education: University of Manitoba"]
["Arielle Gates"]
["Dhruv Gupta"]
["Amy Baxter"]
["12 shared connections"]
["Connect"]
["Mark Lee, PMP"]
["Mark Lee, PMP  3rd degree connection3rd"]
["Development Manager and Senior Business Consultant at Actuarial System Transformation, Manulife Financial"]
["Toronto, Canada Area"]
["Education: University of Manitoba"]
["Send InMail"]
["Ajay Pandey"]
["Ajay Pandey  2nd degree connection2nd"]
["Business Immigration Officer at Government of Manitoba"]
["Winnipeg, Canada Area"]
["Education: University of Manitoba"]
["Bahareh Khosropanah"]
["1 shared connection"]
["Connect"]
["Kelly Cruise"]
["Kelly Cruise  2nd degree connection2nd"]
["Actuarial Manager at Deloitte"]
["Toronto, Canada Area"]
["Past: Physics/Astronomy/Mathematics/Statistics Lab Demonstrator at University of Manitoba"]
["Hadi Saleh"]
["Michael Kula"]
["Jerry Krecek"]
["3 shared connections"]
["Connect"]
["Tapiwa Maswera"]
["Tapiwa Maswera  2nd degree connection2nd"]
["Actuarial and Quantitative Finance"]
["Winnipeg, Canada Area"]
["Current: Teaching Assistant at University of Manitoba"]
["Kyle Meilleur"]
["1 shared connection"]
["Connect"]
["Tony Maslanka, CFA"]
["Tony Maslanka, CFA  2nd degree connection2nd"]
["Director, Treasury Risk and Compliance at Credit Union Central of Manitoba"]
["Winnipeg, Canada Area"]
["Education: University of Manitoba"]
["Wilson Low"]
["1 shared connection"]
["Connect"]
["Debbie Rehn Doyle, CFA"]
["Debbie Rehn Doyle, CFA  2nd degree connection2nd"]
["Director Treasury/Pensions at MTS (Manitoba Telecom Services)"]
["Winnipeg, Canada Area"]
["Current: Responsible for 5... actuarial valuations..."]
["Lucas Szczepanski"]
["1 shared connection"]
["Connect"]
["Yan Wu"]
["Yan Wu  1st degree connection1st"]
["Manager Group Planning & Risk"]
["Winnipeg, Canada Area"]
["Past: Master student at University of Manitoba"]
["Julia Gudmundson"]
["Stephen Swenarchuk"]
["Gerald Hoeppner"]
["41 shared connections"]
["Message"]
["Kelly Ramsay"]
["Kelly Ramsay  1st degree connection1st"]
["Statistics MSc. Student"]
["Winnipeg, Canada Area"]
["Past: Research Assistant at University of Manitoba"]
["Bradley Abells"]
["Daniel Turenne"]
["Chunli Liang"]
["49 shared connections"]
["Message"]
["Showing 762 results."]
["Cédric, you’re approaching the commercial use limit."]
["Please upgrade to LinkedIn Premium Business, Sales Navigator, or Recruiter to get unlimited people browsing."]
["Try Premium for free"]
["Learn more"]
["Evan Shaw"]
["Evan Shaw  1st degree connection1st"]
["Actuarial Intern at Great-West Life"]
["Winnipeg, Canada Area"]
["Education: University of Manitoba"]
["Leah Suderman"]
["Sasha Towfigh"]
["Justin Gagnon"]
["61 shared connections"]
["Message"]
["Brigitte Scheffer, ACAS"]
["Brigitte Scheffer, ACAS  2nd degree connection2nd"]
["Insurance Professional"]
["Winnipeg, Canada Area"]
["Education: University of Manitoba"]
["Howard Harmatz"]
["Mary Brabston"]
["Chunli Liang"]
["6 shared connections"]
["Connect"]
["Andrea Sherry"]
["Andrea Sherry  2nd degree connection2nd"]
["Vice President, Insurance Solutions The Wawanesa Mutual Insurance Company"]
["Winnipeg, Canada Area"]
["Education: University of Manitoba"]
["Iqbal Shah"]
["Tanner Klippenstein"]
["Stefan Baluta"]
["9 shared connections"]
["Connect"]
["Clayton Zaluski, FCIA, FSA"]
["Clayton Zaluski, FCIA, FSA  1st degree connection1st"]
["Consulting Actuary at Worden Zaluski Consulting Actuaries"]
["Winnipeg, Canada Area"]
["Summary: ...responsibilities, actuarial... other actuarial services. I..."]
["Yan Wu"]
["Stephen Swenarchuk"]
["David Senensky"]
["26 shared connections"]
["Message"]
["Wan Fen (Melanie) Heng"]
["Wan Fen (Melanie) Heng  2nd degree connection2nd"]
["Actuarial Intern at Great Eastern Life"]
["Kuala Lumpur, Malaysia"]
["Current: Grader / marker at University of Manitoba"]
["Chunli Liang"]
["Devin Kinley"]
["Jeffray Nicolas"]
["45 shared connections"]
["Connect"]
["Adam Burns"]
["Adam Burns  2nd degree connection2nd"]
["Actuarial Associate at New York Life Insurance Company"]
["Greater New York City Area"]
["Education: University of Manitoba"]
["Bryn Peppler"]
["Kerem Leylek"]
["Michael Kula"]
["8 shared connections"]
["Connect"]
["Ya(Amy) Tang"]
["Ya(Amy) Tang  2nd degree connection2nd"]
["Actuarial Analyst at ISO (Verisk Analytics)"]
["Greater New York City Area"]
["Education: University of Manitoba"]
["Iqbal Shah"]
["Dhruv Gupta"]
["Amy Baxter"]
["7 shared connections"]
["Connect"]
["Arissa Reis"]
["Arissa Reis  1st degree connection1st"]
["Student at RBC Dominion Securities"]
["Winnipeg, Canada Area"]
["Education: University of Manitoba"]
["Leah Suderman"]
["Selena Kaatz"]
["Cassidy Coutts"]
["34 shared connections"]
["Message"]
["Chris Jansen"]
["Chris Jansen  1st degree connection1st"]
["AVP, Group Business Technology Operations at Great-West Life"]
["Winnipeg, Canada Area"]
["Education: University of Manitoba"]
["Simon Deschenes FSA, FCIA, CFA"]
["David Senensky"]
["Theresa Van Walleghem"]
["34 shared connections"]
["Message"]
["Pervin Baylan İrven"]
["Pervin Baylan İrven  3rd degree connection3rd"]
["Actuarial Science Visiting PhD Student"]
["Winnipeg, Canada Area"]
["Education: University of Manitoba"]
["Send InMail"]
["Showing 762 results."]
["Cédric, you’re approaching the commercial use limit."]
["Please upgrade to LinkedIn Premium Business, Sales Navigator, or Recruiter to get unlimited people browsing."]
["Try Premium for free"]
["Learn more"]
["Ko Yang"]
["Ko Yang  2nd degree connection2nd"]
["Actuarial Associate - ASA/ACIA"]
["Kansas City, Missouri Area"]
["Education: University of Manitoba"]
["Julia Gudmundson"]
["Stephen Swenarchuk"]
["David Senensky"]
["29 shared connections"]
["Connect"]
["Bo Yuan"]
["Bo Yuan  2nd degree connection2nd"]
["Intern at Ernst & Young Hua Ming LLp"]
["Canada"]
["Past: Grader at University of Manitoba"]
["Justin Gagnon"]
["David Senensky"]
["Taylor Caldwell B.Comm (Hons.)"]
["65 shared connections"]
["Connect"]
["Lucas Szczepanski"]
["Lucas Szczepanski  1st degree connection1st"]
["Actuarial Mathematics Student"]
["Winnipeg, Canada Area"]
["Summary: ..., and results oriented actuarial... . Experience in Actuarial..."]
["Leah Suderman"]
["Quinn Kirkpatrick"]
["Sasha Towfigh"]
["74 shared connections"]
["Message"]
["Sai Man, CFA, FSA, MAAA"]
["Sai Man, CFA, FSA, MAAA  2nd degree connection2nd"]
["Actuarial Life Modeling at Pacific Life"]
["Orange County, California Area"]
["Summary: ...actuarial software... management, corporate actuarial..."]
["Edward Swerhone"]
["Gregg Melnyk"]
["Jeff Neufeld"]
["3 shared connections"]
["Connect"]
["David Bailey, CPA, CMA"]
["David Bailey, CPA, CMA  2nd degree connection2nd"]
["Manager, Risk Strategy & Innovation at Province of Manitoba, Treasury Division"]
["Winnipeg, Canada Area"]
["Education: University of Manitoba"]
["Roger Maguet"]
["1 shared connection"]
["Connect"]
["Michael Gussakovsky"]
["Michael Gussakovsky  1st degree connection1st"]
["Special Projects Manager at Birchwood Automotive Group"]
["Winnipeg, Canada Area"]
["Past: Senator at Commerce Students' Association"]
["Owais Jafry"]
["Nicole Barnabé"]
["David Senensky"]
["131 shared connections"]
["Message"]
["Shane Moulton"]
["Shane Moulton  1st degree connection1st"]
["Special Projects Manager at the Birchwood Automotive Group"]
["Winnipeg, Canada Area"]
["Summary: ...the University of Manitoba... , the University of Manitoba..."]
["Ainsley Yoong"]
["Kole Kisil"]
["Curtis Tooke"]
["126 shared connections"]
["Message"]
["Wilson Low"]
["Wilson Low  1st degree connection1st"]
["Value Investor | Financial Services"]
["Winnipeg, Canada Area"]
["Past: Bloomberg Lab Instructor at University of Manitoba"]
["Chunli Liang"]
["Ainsley Yoong"]
["Nicole Barnabé"]
["131 shared connections"]
["Message"]
["Lindsey Rioux, CFA"]
["Lindsey Rioux, CFA  2nd degree connection2nd"]
["Analyst, Equities at GWL Investment Management (GWLIM)"]
["Winnipeg, Canada Area"]
["Education: University of Manitoba"]
["Evan Farough"]
["Ainsley Yoong"]
["Theresa Van Walleghem"]
["17 shared connections"]
["Connect"]
["Rory Mulhern"]
["Rory Mulhern  2nd degree connection2nd"]
["Associate Director at Sun Life Financial"]
["Canada"]
["Education: University of Manitoba"]
["John Horosko"]
["Bronagh Nazarko, FSA, FCIA"]
["Rafe Hunt, FSA"]
["5 shared connections"]
["Connect"]
["Showing 762 results."]
["Cédric, you’re approaching the commercial use limit."]
["Please upgrade to LinkedIn Premium Business, Sales Navigator, or Recruiter to get unlimited people browsing."]
["Try Premium for free"]
["Learn more"]
["Eric Elford"]
["Eric Elford  2nd degree connection2nd"]
["Senior Analyst, Costing & Risk Analysis at Winnipeg Regional Health Authority"]
["Winnipeg, Canada Area"]
["Education: University of Manitoba"]
["Howard Harmatz"]
["Alon Halbrich, FCIA, FSA"]
["Randy D. Penner"]
["13 shared connections"]
["Connect"]
["Kimberly Palatnick, FSA, FCIA"]
["Kimberly Palatnick, FSA, FCIA  2nd degree connection2nd"]
["Director, Group Operations at Wawanesa Life Insurance Company"]
["Winnipeg, Canada Area"]
["Education: University of Manitoba"]
["Avi Saper"]
["Julia Gudmundson"]
["Alon Halbrich, FCIA, FSA"]
["15 shared connections"]
["Connect"]
["Rafe Hunt, FSA"]
["Rafe Hunt, FSA  1st degree connection1st"]
["Actuary at Manulife"]
["Toronto, Canada Area"]
["Education: University of Manitoba"]
["Arielle Gates"]
["Clayton Zaluski, FCIA, FSA"]
["Jordan Gerry"]
["28 shared connections"]
["Message"]
["Gregg Melnyk"]
["Gregg Melnyk  1st degree connection1st"]
["AVP, Group Expense Management & Analysis at Great-West Life"]
["Winnipeg, Canada Area"]
["Education: University of Manitoba"]
["Yan Wu"]
["Aaron Yanofsky, ASA, ACIA, CERA"]
["Shawn Brandson"]
["12 shared connections"]
["Message"]
["Paul Rothery"]
["Paul Rothery  2nd degree connection2nd"]
["Director at Great-West Life"]
["Winnipeg, Canada Area"]
["Education: University of Manitoba"]
["Yan Wu"]
["Justin Scott"]
["Aaron Yanofsky, ASA, ACIA, CERA"]
["11 shared connections"]
["Connect"]
["Li Kee Ong"]
["Li Kee Ong  2nd degree connection2nd"]
["Lecturer & Programme Leader at Asia Pacific University"]
["Malaysia"]
["Current: Lecturer & Programme Leader, Actuarial Studies at Asia Pacific University of Technology and Innovation (APU / APIIT)"]
["Howard Heller"]
["1 shared connection"]
["Connect"]
["Vilok Guliani"]
["Vilok Guliani  1st degree connection1st"]
["Business Analyst, Management Consulting at Deloitte Canada"]
["Winnipeg, Canada Area"]
["Past: Data Entry Specialist at University of Manitoba"]
["Avi Saper"]
["Adam Pawlak"]
["Kate Houston"]
["86 shared connections"]
["Message"]
["Keegan Lacroix"]
["Keegan Lacroix  3rd degree connection3rd"]
["Actuarial Student"]
["Winnipeg, Canada Area"]
["Education: University of Manitoba"]
["Send InMail"]
["Kevin Strong"]
["Kevin Strong  2nd degree connection2nd"]
["Exploring career and business opportunities"]
["Winnipeg, Canada Area"]
["Education: University of Manitoba"]
["Chunli Liang"]
["Ainsley Yoong"]
["Nicole Barnabé"]
["82 shared connections"]
["Connect"]
["Shelley Sjoberg"]
["Shelley Sjoberg  1st degree connection1st"]
["Director, Group Marketing Planning and Field Support at Great-West Life"]
["Winnipeg, Canada Area"]
["Education: University of Manitoba"]
["Yan Wu"]
["Bradley Abells"]
["Chris Jansen"]
["8 shared connections"]
["Message"]
["Showing 762 results."]
["Cédric, you’re approaching the commercial use limit."]
["Please upgrade to LinkedIn Premium Business, Sales Navigator, or Recruiter to get unlimited people browsing."]
["Try Premium for free"]
["Learn more"]
["Charly Pazdor"]
["Charly Pazdor  1st degree connection1st"]
["Consulting actuary at Eckler Ltd."]
["Winnipeg, Canada Area"]
["Education: University of Manitoba"]
["Julia Gudmundson"]
["Iqbal Shah"]
["Bronagh Nazarko, FSA, FCIA"]
["9 shared connections"]
["Message"]
["Derek Dagg"]
["Derek Dagg  1st degree connection1st"]
["I.H. Asper School of Business: Accounting and International Business"]
["Winnipeg, Canada Area"]
["Past: Director of Corporate Relations at University of Manitoba Investment Group"]
["Ivraj Plaha"]
["Owais Jafry"]
["Sasha Towfigh"]
["80 shared connections"]
["Message"]
["Michael Arnold, FSA"]
["Michael Arnold, FSA  2nd degree connection2nd"]
["Owner and CEO, Arnold Tutoring"]
["Canada"]
["Education: University of Manitoba"]
["Julia Gudmundson"]
["Howard Harmatz"]
["Michael Benarroch"]
["26 shared connections"]
["Connect"]
["Faisal Abidi"]
["Faisal Abidi  3rd degree connection3rd"]
["Student at University of Manitoba"]
["Winnipeg, Canada Area"]
["Education: University of Manitoba"]
["Send InMail"]
["Michael Peters"]
["Michael Peters  2nd degree connection2nd"]
["Actuarial Student"]
["Winnipeg, Canada Area"]
["Education: University of Manitoba"]
["Michael Vo"]
["1 shared connection"]
["Connect"]
["Shane O'Connor"]
["Shane O'Connor  1st degree connection1st"]
["at"]
["Winnipeg, Canada Area"]
["Education: University of Manitoba"]
["Leah Suderman"]
["Quinn Kirkpatrick"]
["David Senensky"]
["110 shared connections"]
["Message"]
["Tyler Nguyen"]
["Tyler Nguyen  2nd degree connection2nd"]
["Analyst, Real Estate & Mortgages, Greystone Managed Investments"]
["Winnipeg, Canada Area"]
["Past: Computer Lab Advisor, Scotia Technology Center at Asper School of Business - University of Manitoba"]
["Evan Farough"]
["Justin Gagnon"]
["David Senensky"]
["46 shared connections"]
["Connect"]
["Cory Wiebe"]
["Cory Wiebe  2nd degree connection2nd"]
["Actuary at Sunlife Financial"]
["Canada"]
["Education: University of Manitoba"]
["Rafe Hunt, FSA"]
["Clayton Zaluski, FCIA, FSA"]
["2 shared connections"]
["Connect"]
["Brian Cameron"]
["Brian Cameron  2nd degree connection2nd"]
["Vice President, Actuarial Consulting at OptumInsight"]
["Greater Minneapolis-St. Paul Area"]
["Education: University of Manitoba"]
["Troy Schuster, PHR"]
["1 shared connection"]
["Connect"]
["Aaron Tenenbein"]
["Aaron Tenenbein  2nd degree connection2nd"]
["Professor of Statistics and Actuarial Science at NYU Stern School of Business"]
["Greater New York City Area"]
["Education: University of Manitoba"]
["Howard Heller"]
["1 shared connection"]
["Connect"]
["Showing 762 results."]
["Cédric, you’re approaching the commercial use limit."]
["Please upgrade to LinkedIn Premium Business, Sales Navigator, or Recruiter to get unlimited people browsing."]
["Try Premium for free"]
["Learn more"]
["LinkedIn Member"]
["Actuarial Mathematics Student"]
["Winnipeg, Canada Area"]
["Education: University of Manitoba"]
["Connect"]
["Kyla Herzog"]
["Kyla Herzog  2nd degree connection2nd"]
["Manager at MNP LLP"]
["Winnipeg, Canada Area"]
["Summary: ...from the University Of Manitoba Asper School..."]
["Randy D. Penner"]
["Greg Chubaty"]
["Tara Gousseau, RPR"]
["6 shared connections"]
["Connect"]
["Owais Jafry"]
["Owais Jafry  1st degree connection1st"]
["Student at Asper School of Business"]
["Winnipeg, Canada Area"]
["Education: University of Manitoba"]
["Chunli Liang"]
["Adam Pawlak"]
["Quinn Kirkpatrick"]
["94 shared connections"]
["Message"]
["Krizsia Praznik"]
["Krizsia Praznik  2nd degree connection2nd"]
["Pricing Actuary, International Division at Reinsurance Group of America, Incorporated"]
["Toronto, Canada Area"]
["Education: University of Manitoba"]
["Stuart Klugman"]
["Mary Brabston"]
["Alon Halbrich, FCIA, FSA"]
["10 shared connections"]
["Connect"]
["Josh Rowson"]
["Josh Rowson  2nd degree connection2nd"]
["Senior Leader, Sales and Operations Planning at Princess Auto Ltd."]
["Winnipeg, Canada Area"]
["Education: University of Manitoba"]
["Bryn Peppler"]
["Justin Scott"]
["Michael Vo"]
["6 shared connections"]
["Connect"]
["Mike Daciw"]
["Mike Daciw  2nd degree connection2nd"]
["Director of Corporate Development"]
["Calgary, Canada Area"]
["Summary: ...) after graduating from the University of Manitoba, and spent..."]
["Michael Benarroch"]
["Howard Harmatz"]
["Alon Halbrich, FCIA, FSA"]
["16 shared connections"]
["Connect"]
["Eric Seah"]
["Eric Seah  2nd degree connection2nd"]
["actuarial consultant"]
["Singapore"]
["Education: University of Manitoba"]
["Francis Seah"]
["1 shared connection"]
["Connect"]
["俞京成"]
["俞京成  2nd degree connection2nd"]
["学生 - University of Manitoba"]
["Hangzhou, Zhejiang, China"]
["Education: Asper school of Business, University of Manitoba"]
["Ashley Richard"]
["1 shared connection"]
["Connect"]
["Le Keat Ong"]
["Le Keat Ong  3rd degree connection3rd"]
["AGM, Actuarial and Family Retakaful"]
["Malaysia"]
["Education: University of Manitoba"]
["Send InMail"]
["Joyce Calderon"]
["Joyce Calderon  1st degree connection1st"]
["Business Owner/Manager at NuCosmetique"]
["Winnipeg, Canada Area"]
["Education: University of Manitoba"]
["Chunli Liang"]
["Quinn Kirkpatrick"]
["Jeffray Nicolas"]
["44 shared connections"]
["Message"]
["Showing 762 results."]
["Cédric, you’re approaching the commercial use limit."]
["Please upgrade to LinkedIn Premium Business, Sales Navigator, or Recruiter to get unlimited people browsing."]
["Try Premium for free"]
["Learn more"]
["Sheldon Nemeth"]
["Sheldon Nemeth  2nd degree connection2nd"]
["Modelling Actuary"]
["Winnipeg, Canada Area"]
["Past: Senior Valuation Analyst at Manulife"]
["Howard Heller"]
["Theresa Van Walleghem"]
["Michael Kula"]
["3 shared connections"]
["Connect"]
["Louise Hoeppner, FSA"]
["Louise Hoeppner, FSA  1st degree connection1st"]
["Actuary, Capital Management at Manulife Financial"]
["Toronto, Canada Area"]
["Past: Research Assistant & Office Assistant, Warren Centre for Actuarial Studies and Research at University of Manitoba"]
["Iqbal Shah"]
["Amy Baxter"]
["Gerald Hoeppner"]
["8 shared connections"]
["Message"]
["Jamie Rakhra"]
["Jamie Rakhra  1st degree connection1st"]
["Junior Analyst at Arctic Glacier Premium Ice"]
["Canada"]
["Education: University of Manitoba"]
["Owais Jafry"]
["Sasha Towfigh"]
["Evan Shaw"]
["102 shared connections"]
["Message"]
["Mang Feng"]
["Mang Feng  3rd degree connection3rd"]
["Actuarial analyst"]
["Toronto, Canada Area"]
["Education: University of Manitoba"]
["Send InMail"]
["Bryan Luc"]
["Bryan Luc  1st degree connection1st"]
["New Graduate from the Asper School of Business"]
["Winnipeg, Canada Area"]
["Education: University of Manitoba"]
["Justin Gagnon"]
["David Senensky"]
["Kate Houston"]
["60 shared connections"]
["Message"]
["James LaPage"]
["James LaPage  3rd degree connection3rd"]
["Business Transformation Specialist, Wawanesa Insurance"]
["Winnipeg, Canada Area"]
["Current: Business Transformation Specialist, Actuarial Services at Wawanesa Insurance"]
["Send InMail"]
["Takunda Taimu"]
["Takunda Taimu  3rd degree connection3rd"]
["Actuarial mathematics student."]
["Winnipeg, Canada Area"]
["Education: University of Manitoba"]
["Send InMail"]
["Nora Fien"]
["Nora Fien  2nd degree connection2nd"]
["Articling Student at Fillmore Riley LLP"]
["Winnipeg, Canada Area"]
["Past: Summer Legal Research Assistant at University of Manitoba"]
["Jessica Morrison"]
["Dominique Persechino"]
["Joëlle Saltel"]
["3 shared connections"]
["Connect"]
["Alon Halbrich, FCIA, FSA"]
["Alon Halbrich, FCIA, FSA  1st degree connection1st"]
["Director, Pricing, Defined Benefit Solutions at Sun Life Financial"]
["Canada"]
["Summary: ...of actuarial, investment... at the University..."]
["Shuai Chen"]
["Iqbal Shah"]
["Aaron Yanofsky, ASA, ACIA, CERA"]
["10 shared connections"]
["Message"]
["FARHAN ISLAM"]
["FARHAN ISLAM  2nd degree connection2nd"]
["Adjunct Instructor at International College Manitoba"]
["Winnipeg, Canada Area"]
["Current: Sessional Lecturer and Researcher - Asper School of Business at University of Manitoba"]
["Chunli Liang"]
["Nicole Barnabé"]
["Grant Wainikka"]
["28 shared connections"]
["Connect"]
["Showing 762 results."]
["Cédric, you’re approaching the commercial use limit."]
["Please upgrade to LinkedIn Premium Business, Sales Navigator, or Recruiter to get unlimited people browsing."]
["Try Premium for free"]
["Learn more"]
["Angel Yong"]
["Angel Yong  3rd degree connection3rd"]
["Actuarial Audit Manager, Prudential Corporation Asia"]
["Singapore"]
["Education: University of Manitoba"]
["Send InMail"]
["Ammar Shaheen"]
["Ammar Shaheen Ammar Shaheen is a Premium member  2nd degree connection2nd"]
["Actuarial Grad"]
["Greater Chicago Area"]
["Education: University of Manitoba"]
["Owais Jafry"]
["David Senensky"]
["Kate Houston"]
["40 shared connections"]
["Connect"]
["Sergey Voronin"]
["Sergey Voronin  2nd degree connection2nd"]
["Attended University of Manitoba"]
["Winnipeg, Canada Area"]
["Education: University of Manitoba"]
["Irina Ledenev"]
["1 shared connection"]
["Connect"]
["Irina Ledenev"]
["Irina Ledenev  1st degree connection1st"]
["PeopleSoft Analyst"]
["Winnipeg, Canada Area"]
["Past: Invigilator/Teaching Assistant - Corporate Finance, Financial Accounting and Statistics at University of Manitoba"]
["Yan Wu"]
["Julia Gudmundson"]
["Alon Halbrich, FCIA, FSA"]
["24 shared connections"]
["Message"]
["Brent Simmons"]
["Brent Simmons  2nd degree connection2nd"]
["Senior Managing Director, DB Solutions"]
["Toronto, Canada Area"]
["Summary: ...of experienced actuarial... from the University of Manitoba with a..."]
["Alon Halbrich, FCIA, FSA"]
["Simon Deschenes FSA, FCIA, CFA"]
["Edward Swerhone"]
["10 shared connections"]
["Connect"]
["Lorin Hoeppner"]
["Lorin Hoeppner  3rd degree connection3rd"]
["VP - Life and Annuity Operations - Actuarial at Swiss Re"]
["Dallas/Fort Worth Area"]
["Education: University of Manitoba"]
["Send InMail"]
["Femi Adefabi"]
["Femi Adefabi  2nd degree connection2nd"]
["Student at University of Manitoba."]
["Winnipeg, Canada Area"]
["Education: University of Manitoba"]
["Chunli Liang"]
["Ivraj Plaha"]
["Cameron Smart"]
["5 shared connections"]
["Connect"]
["Maja Dos Santos"]
["Maja Dos Santos  2nd degree connection2nd"]
["FCAS, FCIA, MAAA"]
["Canada"]
["Education: University of Manitoba"]
["Iqbal Shah"]
["Owais Jafry"]
["Michael Kula"]
["7 shared connections"]
["Connect"]
["Yuriy Krepkiy, MMF"]
["Yuriy Krepkiy, MMF  2nd degree connection2nd"]
["Quantitative Finance Professional at IBM"]
["Toronto, Canada Area"]
["Education: University of Manitoba"]
["Howard Harmatz"]
["Kerem Leylek"]
["Maambo Mujala"]
["8 shared connections"]
["Connect"]
["Max Feierstein"]
["Max Feierstein  2nd degree connection2nd"]
["Owner, Mirage Consulting Ltd."]
["Winnipeg, Canada Area"]
["Education: University of Manitoba"]
["Allan Angus"]
["Matt Pierce"]
["Stefan Kristjanson"]
["3 shared connections"]
["Connect"]
["Showing 762 results."]
["Cédric, you’re approaching the commercial use limit."]
["Please upgrade to LinkedIn Premium Business, Sales Navigator, or Recruiter to get unlimited people browsing."]
["Try Premium for free"]
["Learn more"]
["Justine Gratton"]
["Justine Gratton  2nd degree connection2nd"]
["Student at the Asper School of Business"]
["Winnipeg, Canada Area"]
["Education: University of Manitoba"]
["Sasha Towfigh"]
["Jack Sun"]
["Reanne Krupka"]
["33 shared connections"]
["Connect"]
["Loretta Kulchycki"]
["Loretta Kulchycki  2nd degree connection2nd"]
["Vice President, Group Marketing at Great-West Life"]
["Canada"]
["Education: University of Manitoba"]
["Chris Jansen"]
["Theresa Van Walleghem"]
["Shelley Sjoberg"]
["8 shared connections"]
["Connect"]
["Aaron Dufault"]
["Aaron Dufault  2nd degree connection2nd"]
["Director, Non-Par Universal Life Valuation"]
["Kitchener, Canada Area"]
["Education: University of Manitoba"]
["Iqbal Shah"]
["Bronagh Nazarko, FSA, FCIA"]
["Michael Kula"]
["5 shared connections"]
["Connect"]
["Ngoc Ly"]
["Ngoc Ly  2nd degree connection2nd"]
["ASA"]
["Canada"]
["Education: University of Manitoba"]
["Aaron Yanofsky, ASA, ACIA, CERA"]
["Maambo Mujala"]
["Howard Heller"]
["6 shared connections"]
["Connect"]
["Mavis (Xiaoyu) Shang, FSA"]
["Mavis (Xiaoyu) Shang, FSA  2nd degree connection2nd"]
["Senior Director, Financial Actuary & Risk Management at RBC Insurance"]
["Canada"]
["Current: ...for the actuarial financial... , and development of robust actuarial..."]
["Linghua Wei"]
["Chris Jansen"]
["Roger Maguet"]
["5 shared connections"]
["Connect"]
["Alfred Yau"]
["Alfred Yau  2nd degree connection2nd"]
["Compensation Manager, North America Total Rewards at PepsiCo"]
["Toronto, Canada Area"]
["Education: University of Manitoba"]
["Louise Hoeppner, FSA"]
["Shelley Sjoberg"]
["John Horosko"]
["5 shared connections"]
["Connect"]
["David Andrich, CFA"]
["David Andrich, CFA  2nd degree connection2nd"]
["Global Equity Analyst - AGF Management Limited"]
["Toronto, Canada Area"]
["Summary: ...: Actuarial Exams Passed... of Actuarial Practice course"]
["Iqbal Shah"]
["Dhruv Gupta"]
["Gerald Hoeppner"]
["5 shared connections"]
["Connect"]
["Xuan Ren Lim"]
["Xuan Ren Lim  3rd degree connection3rd"]
["Actuarial Officer at Great Eastern Life"]
["Malaysia"]
["Education: University of Manitoba"]
["Send InMail"]
["Daniel Turenne"]
["Daniel Turenne  1st degree connection1st"]
["Research Assistant"]
["Winnipeg, Canada Area"]
["Current: Research Assistant at University of Manitoba"]
["David Senensky"]
["Andrea Leong"]
["Michelle Yelland"]
["14 shared connections"]
["Message"]
["Lynn Grenier-Lew"]
["Lynn Grenier-Lew  2nd degree connection2nd"]
["Head of Global Life and Longevity Products at Reinsurance Group of America, Incorporated"]
["Toronto, Canada Area"]
["Education: University of Manitoba"]
["Iqbal Shah"]
["Dhruv Gupta"]
["Edward Swerhone"]
["6 shared connections"]
["Connect"]
["Showing 762 results."]
["Cédric, you’re approaching the commercial use limit."]
["Please upgrade to LinkedIn Premium Business, Sales Navigator, or Recruiter to get unlimited people browsing."]
["Try Premium for free"]
["Learn more"]
["Ivraj Plaha"]
["Ivraj Plaha  1st degree connection1st"]
["Throw at me a challenge... I throw back a result! Hard working student looking to fulfill his dreams!"]
["Winnipeg, Canada Area"]
["Summary: A third year student... at the University of Manitoba..."]
["Howard Harmatz"]
["Chunli Liang"]
["Gabrielle Lemire"]
["21 shared connections"]
["Message"]
["Huinian-Kelvin Wang"]
["Huinian-Kelvin Wang  2nd degree connection2nd"]
["Underwriter - China Market at Odyssey Re"]
["Toronto, Canada Area"]
["Education: University of Manitoba"]
["Iqbal Shah"]
["Alec Walsh"]
["Jerry Krecek"]
["4 shared connections"]
["Connect"]
["Boon Thye Ho"]
["Boon Thye Ho  2nd degree connection2nd"]
["Actuary at Manulife Financial"]
["Toronto, Canada Area"]
["Education: University of Manitoba"]
["Alon Halbrich, FCIA, FSA"]
["Edward Swerhone"]
["Michael Kula"]
["5 shared connections"]
["Connect"]
["Amy Coates"]
["Amy Coates  2nd degree connection2nd"]
["Owner and Trainer at Stoke Strength and Conditioning"]
["Kitchener, Canada Area"]
["Education: University of Manitoba"]
["Aaron Yanofsky, ASA, ACIA, CERA"]
["Maambo Mujala"]
["Jay Lee, FSA, FCIA"]
["5 shared connections"]
["Connect"]
["Larysa Zubach, FSA, MAAA"]
["Larysa Zubach, FSA, MAAA  2nd degree connection2nd"]
["Principal at Mercer"]
["Toronto, Canada Area"]
["Past: Health Actuary at Aon Hewitt"]
["Edward Swerhone"]
["Jo Bellucci"]
["Jerry Krecek"]
["4 shared connections"]
["Connect"]
["Chen (Victor) Hu"]
["Chen (Victor) Hu  2nd degree connection2nd"]
["Director of Communications at Asper MISA (Management Information Systems Association)"]
["Winnipeg, Canada Area"]
["Current: Food Service Worker at University of Manitoba"]
["Chunli Liang"]
["Yining Wang"]
["Yipin Guo"]
["14 shared connections"]
["Connect"]
["Melissa Davies"]
["Melissa Davies  2nd degree connection2nd"]
["Research Consultant at InterGroup Consultants Ltd."]
["Winnipeg, Canada Area"]
["Education: University of Manitoba"]
["Stephen Thomas"]
["Edrian Soria"]
["Oleksandr Kovalchuk"]
["24 shared connections"]
["Connect"]
["Christi Sisco"]
["Christi Sisco  2nd degree connection2nd"]
["Senior Consultant at Willis Towers Watson"]
["Calgary, Canada Area"]
["Education: University of Manitoba"]
["Bronagh Nazarko, FSA, FCIA"]
["Michael Kula"]
["Charly Pazdor"]
["4 shared connections"]
["Connect"]
["Devon Kirkwood"]
["Devon Kirkwood  2nd degree connection2nd"]
["Associate, Commercial Banking at CIBC"]
["Winnipeg, Canada Area"]
["Education: University of Manitoba"]
["Ainsley Yoong"]
["Nicole Barnabé"]
["Quinn Kirkpatrick"]
["40 shared connections"]
["Connect"]
["Juan Fernando Martins"]
["Juan Fernando Martins  2nd degree connection2nd"]
["Income Tax Auditor at Canada Revenue Agency - Agence du revenu du Canada"]
["Winnipeg, Canada Area"]
["Past: Chief Actuary at Nuevo Mundo Insurance Co., Caracas, Venezuela"]
["Howard Harmatz"]
["Anthony R. Whincup"]
["2 shared connections"]
["Connect"]
["Showing 762 results."]
["Cédric, you’re approaching the commercial use limit."]
["Please upgrade to LinkedIn Premium Business, Sales Navigator, or Recruiter to get unlimited people browsing."]
["Try Premium for free"]
["Learn more"]
["Miranda Ewashko"]
["Miranda Ewashko  2nd degree connection2nd"]
["Student"]
["Winnipeg, Canada Area"]
["Summary: I am a actuarial... at the University of Manitoba..."]
["Mclaren Shaw"]
["Aly Bowles"]
["Aquruss Jhonvier Salvador"]
["12 shared connections"]
["Connect"]
["Karen Kulchyski"]
["Karen Kulchyski  2nd degree connection2nd"]
["Consultant at Willis Towers Watson"]
["Calgary, Canada Area"]
["Education: University of Manitoba"]
["Iqbal Shah"]
["Jay Lee, FSA, FCIA"]
["Brad Bulger, FSA, FCIA"]
["3 shared connections"]
["Connect"]
["John Devos"]
["John Devos  2nd degree connection2nd"]
["Product Line Manager, Seed and Crop Protection at Parrish & Heimbecker"]
["Winnipeg, Canada Area"]
["Education: University of Manitoba"]
["Simon Deschenes FSA, FCIA, CFA"]
["1 shared connection"]
["Connect"]
["Chris Hurlburt"]
["Chris Hurlburt  2nd degree connection2nd"]
["Director, Capital Management at Great-West Life"]
["Winnipeg, Canada Area"]
["Education: University of Manitoba"]
["Simon Deschenes FSA, FCIA, CFA"]
["Edward Swerhone"]
["Aaron Yanofsky, ASA, ACIA, CERA"]
["11 shared connections"]
["Connect"]
["Leo Gu"]
["Leo Gu  2nd degree connection2nd"]
["Assistant Vice President at Swiss Re"]
["Toronto, Canada Area"]
["Education: University of Manitoba"]
["Yan Wu"]
["John Horosko"]
["Anh Pham"]
["3 shared connections"]
["Connect"]
["Hao Gao"]
["Hao Gao  2nd degree connection2nd"]
["Treasurer at London Drugs Action Committee"]
["Winnipeg, Canada Area"]
["Education: University of Manitoba"]
["Ling Chen (Tony) Shi"]
["Jessica Morrison"]
["Chris A Tweten"]
["10 shared connections"]
["Connect"]
["Sehajdeep Sandhu"]
["Sehajdeep Sandhu  2nd degree connection2nd"]
["BComm (Hons) Candidate"]
["Canada"]
["Past: Director of Finance at University of Manitoba Investment Group (UMIG)"]
["Evan Farough"]
["Michael Vo"]
["Arjun Nirula"]
["26 shared connections"]
["Connect"]
["Charlie Allegro"]
["Charlie Allegro  2nd degree connection2nd"]
["Senior Consultant at Willis Towers Watson"]
["Calgary, Canada Area"]
["Education: University of Manitoba"]
["Edward Swerhone"]
["Charly Pazdor"]
["Jay Lee, FSA, FCIA"]
["5 shared connections"]
["Connect"]
["Bartholomew Ghanney"]
["Bartholomew Ghanney  2nd degree connection2nd"]
["Predictive Analyst at Fireseeds North Infrastructure"]
["Winnipeg, Canada Area"]
["Past: Statistician and Research Assistant at University of Manitoba,Winnipeg,Canada"]
["Justin Scott"]
["Dave Kester"]
["Stefan Baluta"]
["8 shared connections"]
["Connect"]
["Naomi Bazak"]
["Naomi Bazak  2nd degree connection2nd"]
["AVP, Industry and Regulatory Affairs at Manulife"]
["Toronto, Canada Area"]
["Education: University of Manitoba"]
["Gerald Hoeppner"]
["Bronagh Nazarko, FSA, FCIA"]
["Guillaume Giasson-Morin, MBA"]
["3 shared connections"]
["Connect"]
["Showing 762 results."]
["Cédric, you’re approaching the commercial use limit."]
["Please upgrade to LinkedIn Premium Business, Sales Navigator, or Recruiter to get unlimited people browsing."]
["Try Premium for free"]
["Learn more"]
["Gerald Hoeppner"]
["Gerald Hoeppner  1st degree connection1st"]
["Group Planning and Risk"]
["Winnipeg, Canada Area"]
["Education: University of Manitoba"]
["Yan Wu"]
["Linghua Wei"]
["Aaron Yanofsky, ASA, ACIA, CERA"]
["10 shared connections"]
["Message"]
["Ryan Ma"]
["Ryan Ma  2nd degree connection2nd"]
["Actuary/Director at Manulife"]
["Toronto, Canada Area"]
["Education: University of Manitoba"]
["Arielle Gates"]
["Iqbal Shah"]
["Jo Bellucci"]
["4 shared connections"]
["Connect"]
["Paul Young"]
["Paul Young  1st degree connection1st"]
["Actuary Student, U of M"]
["Canada"]
["Education: University of Manitoba"]
["Ben Tallin"]
["Jeffrey Umandap"]
["Michael Gussakovsky"]
["29 shared connections"]
["Message"]
["Adam Scarth"]
["Adam Scarth  2nd degree connection2nd"]
["Director, Commercial Lines Pricing and Analytics at Northbridge Financial Corporation"]
["Toronto, Canada Area"]
["Education: University of Manitoba"]
["Keith Chen"]
["Clayton Zaluski, FCIA, FSA"]
["2 shared connections"]
["Connect"]
["Edith Samuels"]
["Edith Samuels  1st degree connection1st"]
["Principal at Mercer"]
["Winnipeg, Canada Area"]
["Education: University of Manitoba"]
["Asherah Bock"]
["Simon Deschenes FSA, FCIA, CFA"]
["Greg Chubaty"]
["13 shared connections"]
["Message"]
["Paul Kawchuk"]
["Paul Kawchuk  2nd degree connection2nd"]
["Equity Analyst at Sarbit Advisory Services Inc"]
["Canada"]
["Past: Homework Club Coordinator at Spence Neighbourhood Association"]
["Rafe Hunt, FSA"]
["Gregg Melnyk"]
["2 shared connections"]
["Connect"]
["Gaetan Ruest"]
["Gaetan Ruest  2nd degree connection2nd"]
["Vice-President of Corporate Research at Investors Group"]
["Winnipeg, Canada Area"]
["Education: University of Manitoba"]
["Chris Jansen"]
["Lucas Szczepanski"]
["Bronagh Nazarko, FSA, FCIA"]
["6 shared connections"]
["Connect"]
["Carole Field, FCIA"]
["Carole Field, FCIA  2nd degree connection2nd"]
["Vice President, Human Resources at ATCO Group"]
["Calgary, Canada Area"]
["Education: University of Manitoba"]
["Jay Lee, FSA, FCIA"]
["Brad Bulger, FSA, FCIA"]
["2 shared connections"]
["Connect"]
["Eli Gotthilf"]
["Eli Gotthilf  2nd degree connection2nd"]
["N/A"]
["Winnipeg, Canada Area"]
["Education: University of Manitoba"]
["Bryn Peppler"]
["Bradley Abells"]
["Daniel Turenne"]
["11 shared connections"]
["Connect"]
["Karthigesan Arasu"]
["Karthigesan Arasu  2nd degree connection2nd"]
["Project Management Assistant at Great-West Life"]
["Winnipeg, Canada Area"]
["Education: University of Manitoba"]
["Edrian Soria"]
["Bryce Riou"]
["Kelly Mahoney"]
["6 shared connections"]
["Connect"]
["Showing 762 results."]
["Cédric, you’re approaching the commercial use limit."]
["Please upgrade to LinkedIn Premium Business, Sales Navigator, or Recruiter to get unlimited people browsing."]
["Try Premium for free"]
["Learn more"]
["Tony C L Williams, FCIA, FSA"]
["Tony C L Williams, FCIA, FSA  2nd degree connection2nd"]
["Consulting Actuary"]
["Vancouver, Canada Area"]
["Summary: ...President of PBI Actuarial... held senior actuarial..."]
["Jerry Krecek"]
["Guillaume Giasson-Morin, MBA"]
["2 shared connections"]
["Connect"]
["Michael McDermid"]
["Michael McDermid Michael McDermid is a Premium member  2nd degree connection2nd"]
["Actuary specializing in processes and controls"]
["Toronto, Canada Area"]
["Past: Director, Internal Audit at Sun Life Financial"]
["Rafe Hunt, FSA"]
["Guillaume Giasson-Morin, MBA"]
["2 shared connections"]
["Connect"]
["Hang Gao"]
["Hang Gao  2nd degree connection2nd"]
["Pension Administrator at Coughlin & Associates"]
["Winnipeg, Canada Area"]
["Education: University of Manitoba"]
["Chunli Liang"]
["Chris A Tweten"]
["Aaron Yanofsky, ASA, ACIA, CERA"]
["6 shared connections"]
["Connect"]
["Ramogi Nyonje, B.Comm(Hons)"]
["Ramogi Nyonje, B.Comm(Hons)  2nd degree connection2nd"]
["ALM Senior Analyst at Great-West Life"]
["Winnipeg, Canada Area"]
["Past: International Student Representative at University of Manitoba Students'​ Union (UMSU)"]
["Chunli Liang"]
["David Loewen"]
["Stefan Baluta"]
["13 shared connections"]
["Connect"]
["Michel Marcon"]
["Michel Marcon  2nd degree connection2nd"]
["Senior Consultant at Willis Towers Watson"]
["Calgary, Canada Area"]
["Education: University of Manitoba"]
["Jay Lee, FSA, FCIA"]
["Brad Bulger, FSA, FCIA"]
["2 shared connections"]
["Connect"]
["Lucinda McMaster"]
["Lucinda McMaster  2nd degree connection2nd"]
["Health and Benefits Practice Leader Calgary at Willis Towers Watson"]
["Calgary, Canada Area"]
["Summary: ...leader of actuarial benefit... in the actuarial analysis..."]
["Jay Lee, FSA, FCIA"]
["Brad Bulger, FSA, FCIA"]
["2 shared connections"]
["Connect"]
["Joel Newbury"]
["Joel Newbury  2nd degree connection2nd"]
["Director, Budgeting and Planning at Great-West Life"]
["Winnipeg, Canada Area"]
["Education: University of Manitoba"]
["Yan Wu"]
["Chris Jansen"]
["Theresa Van Walleghem"]
["6 shared connections"]
["Connect"]
["Kim Doan"]
["Kim Doan  2nd degree connection2nd"]
["Digital Communications Associate at We Are Patio"]
["Vancouver, Canada Area"]
["Education: University of Manitoba"]
["Tanner Klippenstein"]
["Randy D. Penner"]
["Rafe Hunt, FSA"]
["3 shared connections"]
["Connect"]
["Rudy Maharajh"]
["Rudy Maharajh  2nd degree connection2nd"]
["Building and protection of financial security for individuals, families and business owners"]
["Winnipeg, Canada Area"]
["Education: University of Manitoba"]
["Chris Jansen"]
["Charly Pazdor"]
["Roger Maguet"]
["5 shared connections"]
["Connect"]
["Debbie Wiebe"]
["Debbie Wiebe  2nd degree connection2nd"]
["at Great-West Life"]
["Winnipeg, Canada Area"]
["Education: University of Manitoba"]
["Theresa Van Walleghem"]
["Tracy Antoniuk"]
["Joyce Supan"]
["5 shared connections"]
["Connect"]
["Showing 762 results."]
["Cédric, you’re approaching the commercial use limit."]
["Please upgrade to LinkedIn Premium Business, Sales Navigator, or Recruiter to get unlimited people browsing."]
["Try Premium for free"]
["Learn more"]
["Michael Wach"]
["Michael Wach  2nd degree connection2nd"]
["Senior Consultant at Wills Towers Watson"]
["Vancouver, Canada Area"]
["Education: University of Manitoba"]
["Chris Jansen"]
["Brad Bulger, FSA, FCIA"]
["2 shared connections"]
["Connect"]
["Brad Fedorchuk"]
["Brad Fedorchuk  2nd degree connection2nd"]
["VP, Group Major Accounts at Great-West Life"]
["Winnipeg, Canada Area"]
["Education: University of Manitoba"]
["Yan Wu"]
["Chris Jansen"]
["Theresa Van Walleghem"]
["9 shared connections"]
["Connect"]
["Cody Baldauf"]
["Cody Baldauf  1st degree connection1st"]
["Referee Assignor at Phoenix Soccer Association"]
["Winnipeg, Canada Area"]
["Education: University of Manitoba"]
["Connie Chabluk"]
["Wali Naqvi"]
["Sergiu Buda"]
["5 shared connections"]
["Message"]
["Anne Dang"]
["Anne Dang  2nd degree connection2nd"]
["Financial Analyst at Kitchen Craft"]
["Winnipeg, Canada Area"]
["Past: Teaching Assistant (Calculus for Engineering, Techniques of Classical and Linear Algebra) at University of Manitoba"]
["Chunli Liang"]
["Dave Kester"]
["Wilson Low"]
["4 shared connections"]
["Connect"]
["Andrew Kulyk"]
["Andrew Kulyk  2nd degree connection2nd"]
["Actuary at Eckler Ltd."]
["Winnipeg, Canada Area"]
["Education: University of Manitoba"]
["Simon Deschenes FSA, FCIA, CFA"]
["Aaron Yanofsky, ASA, ACIA, CERA"]
["Stefan Baluta"]
["8 shared connections"]
["Connect"]
["Alex Lam"]
["Alex Lam  2nd degree connection2nd"]
["Director, Individual Insurance Valuation at Great-West Life"]
["Winnipeg, Canada Area"]
["Education: University of Manitoba"]
["Yan Wu"]
["Stephen Nighswander-Rempel"]
["Chris Jansen"]
["6 shared connections"]
["Connect"]
["LinkedIn Member"]
["Senior Actuarial Analyst at Delta Dental"]
["San Francisco Bay Area"]
["Education: University of Manitoba"]
["Connect"]
["Gayle Martin"]
["Gayle Martin  3rd degree connection3rd"]
["Supervisor, Client Services, Chamber Group Insurance Plan (Johnston Group Inc.)"]
["Winnipeg, Canada Area"]
["Education: University of Manitoba"]
["Send InMail"]
["Fred Horbaty"]
["Fred Horbaty  2nd degree connection2nd"]
["Director, Finance at Federated Insurance Company of Canada"]
["Winnipeg, Canada Area"]
["Education: University of Manitoba"]
["Greg Chubaty"]
["Kelly Mahoney"]
["Jill Latschislaw"]
["4 shared connections"]
["Connect"]
["Jack Zhang"]
["Jack Zhang  2nd degree connection2nd"]
["System Analytics Analyst At Enbridge"]
["Calgary, Canada Area"]
["Past: Teaching Assistant/Marker at University of Manitoba"]
["Tim Butterfield"]
["1 shared connection"]
["Connect"]
["Showing 762 results."]
["Cédric, you’re approaching the commercial use limit."]
["Please upgrade to LinkedIn Premium Business, Sales Navigator, or Recruiter to get unlimited people browsing."]
["Try Premium for free"]
["Learn more"]
["Angela Morelli"]
["Angela Morelli  2nd degree connection2nd"]
["AVP Group Pricing at Great-West Life"]
["Winnipeg, Canada Area"]
["Education: University of Manitoba"]
["Yan Wu"]
["Chris Jansen"]
["Theresa Van Walleghem"]
["7 shared connections"]
["Connect"]
["Troy Haugen"]
["Troy Haugen  2nd degree connection2nd"]
["SVP, New Business and Claims, Individual Insurance at Great-West Life"]
["Winnipeg, Canada Area"]
["Education: University of Manitoba"]
["Yan Wu"]
["Chris Jansen"]
["Theresa Van Walleghem"]
["5 shared connections"]
["Connect"]
["Kasey Boisselle"]
["Kasey Boisselle Kasey Boisselle is a Premium member  2nd degree connection2nd"]
["President, Group Benefits & Pensions at Belton Boisselle Benefits & Pensions"]
["Winnipeg, Canada Area"]
["Education: University of Manitoba"]
["Tim Butterfield"]
["Theresa Van Walleghem"]
["Gregg Melnyk"]
["6 shared connections"]
["Connect"]
["Clare Cremer"]
["Clare Cremer  3rd degree connection3rd"]
["Independent Management Consulting Professional"]
["Winnipeg, Canada Area"]
["Education: University of Manitoba"]
["Send InMail"]
["LinkedIn Member"]
["Student at University of Alberta"]
["Edmonton, Canada Area"]
["Education: University of Manitoba"]
["Connect"]
["Rui Wang"]
["Rui Wang  2nd degree connection2nd"]
["Branch Manager at RBC"]
["Winnipeg, Canada Area"]
["Education: University of Manitoba"]
["Beilin Ye"]
["Tim Butterfield"]
["Jonathan Lipson"]
["5 shared connections"]
["Connect"]
["Onesime David Deha"]
["Onesime David Deha  2nd degree connection2nd"]
["Étudiant(e) (University of Ghana)"]
["Ghana"]
["Education: University of Manitoba"]
["Ling Chen (Tony) Shi"]
["Tanner Klippenstein"]
["Chunli Liang"]
["7 shared connections"]
["Jason Bean, ASA, B. Comm (Hons)"]
["Jason Bean, ASA, B. Comm (Hons)  2nd degree connection2nd"]
["Senior Associate at BFP | Bajus Financial Partners Ltd."]
["Vancouver, Canada Area"]
["Past: Summer Student at Towers Perrin"]
["Jay Lee, FSA, FCIA"]
["1 shared connection"]
["Connect"]
["Grant Buchanan"]
["Grant Buchanan  2nd degree connection2nd"]
["VP, Reinsurance, Group Office at Manulife Financial"]
["Toronto, Canada Area"]
["Education: University of Manitoba"]
["Edward Swerhone"]
["1 shared connection"]
["Connect"]
["Gordon Clarke B. Comm (Honours), CHRP, CCP"]
["Gordon Clarke B. Comm (Honours), CHRP, CCP  2nd degree connection2nd"]
["HR Professional at Gordon Clarke"]
["Winnipeg, Canada Area"]
["Past: HR Consultant at KPMG/Watson Wyatt"]
["Tim Butterfield"]
["Charly Pazdor"]
["Kelly Mahoney"]
["3 shared connections"]
["Connect"]
["Showing 762 results."]
["Cédric, you’re approaching the commercial use limit."]
["Please upgrade to LinkedIn Premium Business, Sales Navigator, or Recruiter to get unlimited people browsing."]
["Try Premium for free"]
["Learn more"]
["Stephen Lui"]
["Stephen Lui  2nd degree connection2nd"]
["Vice President at IDC Worldsource Insurance Network"]
["Toronto, Canada Area"]
["Education: University of Manitoba"]
["Allan Angus"]
["1 shared connection"]
["Connect"]
["Barry Gros"]
["Barry Gros  2nd degree connection2nd"]
["Consulting Pension Actuary (retired)"]
["British Columbia, Canada"]
["Education: University of Manitoba"]
["Charly Pazdor"]
["1 shared connection"]
["Connect"]
["Wynnell De Landro"]
["Wynnell De Landro  3rd degree connection3rd"]
["Regulator"]
["Toronto, Canada Area"]
["Education: University of Manitoba"]
["Send InMail"]
["Kristin Ramlal, B. Comm. (Hons), PFP®, CIM®"]
["Kristin Ramlal, B. Comm. (Hons), PFP®, CIM®  2nd degree connection2nd"]
["Qtrade Advisor | Securities Specialist"]
["Canada"]
["Summary: ...in Actuarial Mathematics... at the University of Manitoba. Since, I..."]
["Ainsley Yoong"]
["Nelson Camp"]
["2 shared connections"]
["Connect"]
["Martyn Daly"]
["Martyn Daly  2nd degree connection2nd"]
["Regional Director, Group Benefits at Great-West Life"]
["Winnipeg, Canada Area"]
["Education: University of Manitoba"]
["Chris Jansen"]
["Theresa Van Walleghem"]
["Tracy Antoniuk"]
["9 shared connections"]
["Connect"]
["Adam Rogocki"]
["Adam Rogocki  2nd degree connection2nd"]
["Analyst at Canada ICI Capital Corporation"]
["Canada"]
["Education: University of Manitoba"]
["Tanner Klippenstein"]
["Adrian Katchur"]
["Randy D. Penner"]
["10 shared connections"]
["Connect"]
["Sheila Mwema"]
["Sheila Mwema  2nd degree connection2nd"]
["Accounts Receivable and Payable Associate at Arctic Glacier Premium Ice"]
["Winnipeg, Canada Area"]
["Education: University of Manitoba"]
["Ivraj Plaha"]
["Beilin Ye"]
["Ben-Iddo Manda"]
["3 shared connections"]
["Connect"]
["Amanda Evenson, FCIP"]
["Amanda Evenson, FCIP  2nd degree connection2nd"]
["Manager, Product Innovation at Wawanesa Insurance"]
["Manitoba, Canada"]
["Past: Actuarial Technician at Wawanesa Insurance"]
["Jess Evan Davis"]
["1 shared connection"]
["Connect"]
["Samantha Dakin"]
["Samantha Dakin  2nd degree connection2nd"]
["Financial Planning Administrator"]
["Vancouver, Canada Area"]
["Past: Office Administration Manager & Planning Assistant at Gillis Agency Ltd"]
["Allan Angus"]
["1 shared connection"]
["Connect"]
["Robert MacKay, CFA"]
["Robert MacKay, CFA  2nd degree connection2nd"]
["Founding Partner"]
["Winnipeg, Canada Area"]
["Education: University of Manitoba"]
["Howard Harmatz"]
["Edrian Soria"]
["Tim Butterfield"]
["8 shared connections"]
["Connect"]
["Showing 762 results."]
["Cédric, you’re approaching the commercial use limit."]
["Please upgrade to LinkedIn Premium Business, Sales Navigator, or Recruiter to get unlimited people browsing."]
["Try Premium for free"]
["Learn more"]
["Mark Struck"]
["Mark Struck  2nd degree connection2nd"]
["Vice President, Enterprise Risk Management"]
["Winnipeg, Canada Area"]
["Education: University of Manitoba"]
["Clayton Zaluski, FCIA, FSA"]
["Rob Tétrault"]
["Kathy Kirkpatrick"]
["3 shared connections"]
["Connect"]
["Arvelle Zacharias"]
["Arvelle Zacharias  2nd degree connection2nd"]
["Director, Home Pricing - The Co-operators"]
["Kitchener, Canada Area"]
["Education: University of Manitoba"]
["Guillaume Giasson-Morin, MBA"]
["1 shared connection"]
["Connect"]
["Jim Snell"]
["Jim Snell  3rd degree connection3rd"]
["Enjoying Retirement"]
["Winnipeg, Canada Area"]
["Education: University Of Manitoba"]
["Send InMail"]
["Patricia Khoe"]
["Patricia Khoe  2nd degree connection2nd"]
["Consultant, Ellement Consulting Group"]
["Winnipeg, Canada Area"]
["Education: University of Manitoba"]
["Simon Deschenes FSA, FCIA, CFA"]
["Charly Pazdor"]
["2 shared connections"]
["Connect"]
["Jeffrey Huang"]
["Jeffrey Huang  2nd degree connection2nd"]
["Senior Manager, Financial Model Development"]
["Toronto, Canada Area"]
["Education: University of Manitoba"]
["Yan Wu"]
["Theresa Van Walleghem"]
["John Horosko"]
["11 shared connections"]
["Connect"]
["Amhlaoibh Lynch"]
["Amhlaoibh Lynch  2nd degree connection2nd"]
["General Manager at Hannover Re (Ireland) DAC Canadian Life Branch"]
["Toronto, Canada Area"]
["Education: University of Manitoba"]
["Jeff Neufeld"]
["Avi Saper"]
["Edward Swerhone"]
["12 shared connections"]
["Connect"]
["Jasbir Jaswal, CFA"]
["Jasbir Jaswal, CFA  2nd degree connection2nd"]
["Risk Manager at BroadGrain Commodities Inc."]
["Toronto, Canada Area"]
["Education: University of Manitoba"]
["Howard Harmatz"]
["Yeyu Gu"]
["Randy D. Penner"]
["12 shared connections"]
["Connect"]
["Jared Mickall"]
["Jared Mickall  2nd degree connection2nd"]
["Actuary at Mercer"]
["Winnipeg, Canada Area"]
["Current: ...of Mercer's Actuarial Resource... from the University of Manitoba in 2000..."]
["Asherah Bock"]
["Julia Gudmundson"]
["Linghua Wei"]
["11 shared connections"]
["Connect"]
["Ritchie Hok"]
["Ritchie Hok  3rd degree connection3rd"]
["Capital Specialist at Office of the Superintendent of Financial Institutions of Canada"]
["Canada"]
["Education: University of Manitoba"]
["Send InMail"]
["Jimmy Tan, PFP®"]
["Jimmy Tan, PFP®  2nd degree connection2nd"]
["Financial Planner - RBC"]
["Canada"]
["Education: University of Manitoba"]
["Francis Seah"]
["Randy D. Penner"]
["Tim Butterfield"]
["6 shared connections"]
["Connect"]
["Showing 762 results."]
["Cédric, you’re approaching the commercial use limit."]
["Please upgrade to LinkedIn Premium Business, Sales Navigator, or Recruiter to get unlimited people browsing."]
["Try Premium for free"]
["Learn more"]
["Neazul Karim"]
["Neazul Karim  3rd degree connection3rd"]
["Senior Analyst at Xerox"]
["Toronto, Canada Area"]
["Past: Human Resources Assistant at University of Manitoba"]
["Send InMail"]
["Carmen Cochrane"]
["Carmen Cochrane  3rd degree connection3rd"]
["Manager, Data Services at Farm Credit Canada / Financement agricole Canada"]
["Canada"]
["Education: University of Manitoba"]
["Send InMail"]
["Enxi Dong, CFA"]
["Enxi Dong, CFA  2nd degree connection2nd"]
["Senior Capital Management Analyst at GWL"]
["Canada"]
["Education: University of Manitoba"]
["Aaron Yanofsky, ASA, ACIA, CERA"]
["Theresa Van Walleghem"]
["Jo Bellucci"]
["10 shared connections"]
["Connect"]
["Irene Lee"]
["Irene Lee  3rd degree connection3rd"]
["Technical Writer at Buhler Versatile"]
["Winnipeg, Canada Area"]
["Education: University of Manitoba"]
["Send InMail"]
["Anesu Machoko, ACIA,FRM,CAIA,G.Dip.F.E"]
["Anesu Machoko, ACIA,FRM,CAIA,G.Dip.F.E Anesu Machoko, ACIA,FRM,CAIA,G.Dip.F.E is a Premium member  2nd degree connection2nd"]
["MBA & Graduate Diploma, Financial Engineering candidate at Schulich School of Business"]
["Toronto, Canada Area"]
["Education: University of Manitoba"]
["Aaron Yanofsky, ASA, ACIA, CERA"]
["Maambo Mujala"]
["Rafe Hunt, FSA"]
["5 shared connections"]
["Connect"]
["Teck Go"]
["Teck Go  3rd degree connection3rd"]
["Actuary"]
["Toronto, Canada Area"]
["Education: University of Manitoba"]
["Connect"]
["Ron Heck"]
["Ron Heck  3rd degree connection3rd"]
["Business Analyst at Shaw Communications"]
["Calgary, Canada Area"]
["Education: University of Manitoba"]
["Send InMail"]
["Harmandeep Sandhu"]
["Harmandeep Sandhu  2nd degree connection2nd"]
["Software Developer - UX Design - Java - Python - C"]
["Winnipeg, Canada Area"]
["Summary: ..., Finance, Actuarial Studies... at University of Manitoba..."]
["Wilson Low"]
["Jamie Rakhra"]
["2 shared connections"]
["Connect"]
["Sheldon Laveman, FSA, FCIA, PMP"]
["Sheldon Laveman, FSA, FCIA, PMP  2nd degree connection2nd"]
["Business Program Management | Enterprise PMO Executive"]
["Toronto, Canada Area"]
["Education: University of Manitoba"]
["Alon Halbrich, FCIA, FSA"]
["Edward Swerhone"]
["Charly Pazdor"]
["5 shared connections"]
["Connect"]
["Vanessa Heichert, AFIS, CIP"]
["Vanessa Heichert, AFIS, CIP  2nd degree connection2nd"]
["Manager, Business Transformation - Distribution at Wawanesa Insurance"]
["Winnipeg, Canada Area"]
["Education: University of Manitoba"]
["Hetal Patel"]
["Jess Evan Davis"]
["2 shared connections"]
["Connect"]
["Showing 762 results."]
["Cédric, you’re approaching the commercial use limit."]
["Please upgrade to LinkedIn Premium Business, Sales Navigator, or Recruiter to get unlimited people browsing."]
["Try Premium for free"]
["Learn more"]
["Martin Petras"]
["Martin Petras  2nd degree connection2nd"]
["Manager, Commercial Banking"]
["Winnipeg, Canada Area"]
["Education: University of Manitoba"]
["Mclaren Shaw"]
["Michael Kula"]
["Cam Bredin, CFA Level II Candidate"]
["3 shared connections"]
["Connect"]
["Fran Yaffe"]
["Fran Yaffe  2nd degree connection2nd"]
["Principal at Mercer"]
["Winnipeg, Canada Area"]
["Education: University of Manitoba"]
["Edith Samuels"]
["Charly Pazdor"]
["Matt Pierce"]
["3 shared connections"]
["Connect"]
["Cheryl de Leon, FSA, FCIA"]
["Cheryl de Leon, FSA, FCIA  2nd degree connection2nd"]
["Director, NAVA US Reporting & Analytics at Sun Life Financial"]
["Toronto, Canada Area"]
["Current: Director, NAVA US Reporting and Analytics at Sun Life Financial"]
["Iqbal Shah"]
["Alon Halbrich, FCIA, FSA"]
["Troy Schuster, PHR"]
["5 shared connections"]
["Connect"]
["Fatima Calimbas"]
["Fatima Calimbas  2nd degree connection2nd"]
["Sales Analyst at The North West Company"]
["Winnipeg, Canada Area"]
["Summary: ...at the University of Manitoba... in Actuarial Mathematics during..."]
["Mariam Seradilla"]
["JR Alexander"]
["Jess Evan Davis"]
["4 shared connections"]
["Connect"]
["Dave Giesbrecht"]
["Dave Giesbrecht  3rd degree connection3rd"]
["VP, Investment Counselling, Institutional Investment Solutions at Great-West Life"]
["Vancouver, Canada Area"]
["Education: University of Manitoba"]
["Send InMail"]
["Bob Mersereau"]
["Bob Mersereau  3rd degree connection3rd"]
["Associate Vice President, Digital"]
["Calgary, Canada Area"]
["Education: University of Manitoba"]
["Send InMail"]
["Esther Friesen"]
["Esther Friesen  2nd degree connection2nd"]
["Credit/Risk/Lending Leader - Seizes Opportunities/Makes Sound Decisions"]
["Canada"]
["Education: University of Manitoba"]
["Chunli Liang"]
["Randy D. Penner"]
["Greg Chubaty"]
["5 shared connections"]
["Connect"]
["Kim Karpenko, MBA"]
["Kim Karpenko, MBA  2nd degree connection2nd"]
["Finance Professional"]
["Calgary, Canada Area"]
["Past: Pension Clerk at University of Manitoba"]
["Yan Wu"]
["Louise Hoeppner, FSA"]
["Chris Jansen"]
["6 shared connections"]
["Connect"]
["Savvy Ghuman"]
["Savvy Ghuman  2nd degree connection2nd"]
["Client Advisor at RBC"]
["Canada"]
["Education: University of Manitoba"]
["Sean Klayh"]
["Edrian Soria"]
["Maambo Mujala"]
["8 shared connections"]
["Connect"]
["Brad Wallis"]
["Brad Wallis  2nd degree connection2nd"]
["Actuary at Manulife"]
["NCR - National Capital Region, Philippines"]
["Education: University of Manitoba"]
["Gerald Hoeppner"]
["Louise Hoeppner, FSA"]
["Rafe Hunt, FSA"]
["14 shared connections"]
["Connect"]
["Showing 762 results."]
["Cédric, you’re approaching the commercial use limit."]
["Please upgrade to LinkedIn Premium Business, Sales Navigator, or Recruiter to get unlimited people browsing."]
["Try Premium for free"]
["Learn more"]
["Yao Wan"]
["Yao Wan  2nd degree connection2nd"]
["BComm (Hons) graduate"]
["Winnipeg, Canada Area"]
["Past: Academic Tutor at University of Manitoba"]
["Wilson Low"]
["Donna Hall, CPHR"]
["Michael Gussakovsky"]
["3 shared connections"]
["Connect"]
["Corinne Harrison"]
["Corinne Harrison  3rd degree connection3rd"]
["Administrative Professional"]
["London, Canada Area"]
["Past: Administrative Assistant / Academic Counsellor at Department of Statistical & Actuarial Sciences | Western University"]
["Send InMail"]
["August Chow"]
["August Chow  2nd degree connection2nd"]
["Retired"]
["Canada"]
["Education: University of Manitoba"]
["Stuart Klugman"]
["Iqbal Shah"]
["Ron Harasym"]
["4 shared connections"]
["Connect"]
["Andrea Mitchell"]
["Andrea Mitchell  2nd degree connection2nd"]
["--"]
["Winnipeg, Canada Area"]
["Education: University of Manitoba"]
["Gabrielle Lemire"]
["Lucas Szczepanski"]
["Christopher Prendergast"]
["4 shared connections"]
["Connect"]
["Vanessa Izan"]
["Vanessa Izan  3rd degree connection3rd"]
["Consultant at Morneau Shepell"]
["Canada"]
["Education: University of Manitoba"]
["Send InMail"]
["Giang LeGrice"]
["Giang LeGrice  3rd degree connection3rd"]
["Senior Director, Global Business Insights & Analytics at Hootsuite"]
["Vancouver, Canada Area"]
["Education: University of Manitoba"]
["Send InMail"]
["Carlin Thiessen"]
["Carlin Thiessen  2nd degree connection2nd"]
["Experienced Transportation Entrepreneur and Executive"]
["Winnipeg, Canada Area"]
["Education: University of Manitoba"]
["Tim Butterfield"]
["Tara Gousseau, RPR"]
["2 shared connections"]
["Connect"]
["Swan Nguyen"]
["Swan Nguyen  2nd degree connection2nd"]
["_"]
["Winnipeg, Canada Area"]
["Education: University of Manitoba"]
["Alon Halbrich, FCIA, FSA"]
["Michael Kula"]
["2 shared connections"]
["Connect"]
["Jonathan Seah"]
["Jonathan Seah  2nd degree connection2nd"]
["Immigration Consultant at Silver Lining Immigration Inc."]
["Winnipeg, Canada Area"]
["Past: Business Intelligence Analyst (Contract) at University of Manitoba"]
["Francis Seah"]
["1 shared connection"]
["Connect"]
["Tracey Vincent"]
["Tracey Vincent  2nd degree connection2nd"]
["Mercer - Senior Associate, Pension Administration Centre of Excellence"]
["Winnipeg, Canada Area"]
["Education: University of Manitoba"]
["Edith Samuels"]
["Bryan Luc"]
["2 shared connections"]
["Connect"]
["Showing 762 results."]
["Cédric, you’re approaching the commercial use limit."]
["Please upgrade to LinkedIn Premium Business, Sales Navigator, or Recruiter to get unlimited people browsing."]
["Try Premium for free"]
["Learn more"]
["Adam Pazdor"]
["Adam Pazdor  2nd degree connection2nd"]
["Sessional Instructor / Master Student"]
["Winnipeg, Canada Area"]
["Current: Sessional Instructor at University of Manitoba"]
["Charly Pazdor"]
["1 shared connection"]
["Connect"]
["Victoria Ho"]
["Victoria Ho  2nd degree connection2nd"]
["Student at Sauder School of Business at UBC"]
["Winnipeg, Canada Area"]
["Education: University of Manitoba"]
["Kathy Kirkpatrick"]
["Alok Dua"]
["2 shared connections"]
["Connect"]
["Brent Delveaux, CEBS"]
["Brent Delveaux, CEBS  2nd degree connection2nd"]
["Benefits Consultant, TRG Group Benefits and Pensions Inc."]
["Vancouver, Canada Area"]
["Education: University of Manitoba"]
["Chris Jansen"]
["Roger Maguet"]
["Gregg Melnyk"]
["5 shared connections"]
["Connect"]
["Robbie Wu"]
["Robbie Wu  2nd degree connection2nd"]
["Associate Actuary at Manulife Financial Reinsurance Finance"]
["Toronto, Canada Area"]
["Education: University of Manitoba"]
["Iqbal Shah"]
["Chunli Liang"]
["Gerald Hoeppner"]
["5 shared connections"]
["Connect"]
["Alyson Scoths"]
["Alyson Scoths  2nd degree connection2nd"]
["Pension Administrator at Mercer"]
["Winnipeg, Canada Area"]
["Education: University of Manitoba"]
["Aaron Yanofsky, ASA, ACIA, CERA"]
["Chris Jansen"]
["Andrew Hewett"]
["3 shared connections"]
["Connect"]
["Ben Nevile"]
["Ben Nevile  3rd degree connection3rd"]
["CTO at Breather"]
["Montreal, Canada Area"]
["Education: University of Manitoba"]
["Send InMail"]
["Sandee Bachalo"]
["Sandee Bachalo  2nd degree connection2nd"]
["Vice President, Pension, Benefits & Payroll at Investors Group Financial Services Inc."]
["Winnipeg, Canada Area"]
["Education: University of Manitoba"]
["Allan Angus"]
["1 shared connection"]
["Connect"]
["Emmett Ishak"]
["Emmett Ishak  3rd degree connection3rd"]
["--"]
["Toronto, Canada Area"]
["Education: University of Manitoba"]
["Send InMail"]
["Harindra Chandrasena"]
["Harindra Chandrasena  3rd degree connection3rd"]
["Assistant Vice President & Actuary at Swiss Re"]
["Toronto, Canada Area"]
["Education: University of Manitoba"]
["Send InMail"]
["LinkedIn Member"]
["Financial Services Professional"]
["Vancouver, Canada Area"]
["Education: University of Manitoba"]
["Connect"]
["Showing 762 results."]
["Cédric, you’re approaching the commercial use limit."]
["Please upgrade to LinkedIn Premium Business, Sales Navigator, or Recruiter to get unlimited people browsing."]
["Try Premium for free"]
["Learn more"]
["Dino Trudeau"]
["Dino Trudeau  2nd degree connection2nd"]
["Manager Compensation and Benefits at Agrium"]
["Calgary, Canada Area"]
["Education: University of Manitoba"]
["Simon Deschenes FSA, FCIA, CFA"]
["Charly Pazdor"]
["Jay Lee, FSA, FCIA"]
["4 shared connections"]
["Connect"]
["Jason Rempel"]
["Jason Rempel  2nd degree connection2nd"]
["Manager, Pension & Benefits at TransCanada"]
["Calgary, Canada Area"]
["Education: University of Manitoba"]
["Simon Deschenes FSA, FCIA, CFA"]
["Roger Maguet"]
["Jay Lee, FSA, FCIA"]
["4 shared connections"]
["Connect"]
["Naomi Ali, B. Comm (Hons), CAIB, RIB (Ont)"]
["Naomi Ali, B. Comm (Hons), CAIB, RIB (Ont)  2nd degree connection2nd"]
["Director of Underwriting at IC Specialty Brokers LP"]
["Winnipeg, Canada Area"]
["Education: University of Manitoba"]
["Alok Dua"]
["1 shared connection"]
["Connect"]
["Sheila R."]
["Sheila R.  2nd degree connection2nd"]
["Branch Manager at RBC"]
["Edmonton, Canada Area"]
["Education: University of Manitoba"]
["Rob Tétrault"]
["Kelly Mahoney"]
["2 shared connections"]
["Connect"]
["Dimitra Tsourpis"]
["Dimitra Tsourpis  2nd degree connection2nd"]
["Senior Consultant at Aon Hewitt"]
["Vancouver, Canada Area"]
["Summary: ...actuarial analyst... from the University of Calgary with a..."]
["Allan Angus"]
["Brad Bulger, FSA, FCIA"]
["2 shared connections"]
["Connect"]
["Cecilia G."]
["Cecilia G.  3rd degree connection3rd"]
["Senior Analyst at Aon Hewitt"]
["Toronto, Canada Area"]
["Education: University of Manitoba"]
["Send InMail"]
["Dave Gillies"]
["Dave Gillies  3rd degree connection3rd"]
["Enabling Entrepreneurship at Shopify Plus"]
["Winnipeg, Canada Area"]
["Past: Technical Architect at University of Manitoba"]
["Send InMail"]
["Ying Huang, CEBS"]
["Ying Huang, CEBS  2nd degree connection2nd"]
["Underwriting Manager at GroupHEALTH"]
["Vancouver, Canada Area"]
["Summary: ...focused in Actuarial Science from University..."]
["Chunli Liang"]
["Allan Angus"]
["2 shared connections"]
["Connect"]
["Ivan Vakhtine"]
["Ivan Vakhtine  2nd degree connection2nd"]
["Financial Advisor at Scotiabank"]
["Winnipeg, Canada Area"]
["Education: University of Manitoba"]
["Alok Dua"]
["1 shared connection"]
["Connect"]
["Mark Nagelberg"]
["Mark Nagelberg  3rd degree connection3rd"]
["Data Scientist working in Market Research Consulting"]
["Winnipeg, Canada Area"]
["Past: Research Assistant at University of Manitoba"]
["Send InMail"]
["Showing 762 results."]
["Cédric, you’re approaching the commercial use limit."]
["Please upgrade to LinkedIn Premium Business, Sales Navigator, or Recruiter to get unlimited people browsing."]
["Try Premium for free"]
["Learn more"]
["Chris Molinski"]
["Chris Molinski  2nd degree connection2nd"]
["Continuous Improvement Specialist at MasterBrand Cabinets"]
["Winnipeg, Canada Area"]
["Education: University of Manitoba"]
["Jess Evan Davis"]
["1 shared connection"]
["Connect"]
["Punya Wijetunge"]
["Punya Wijetunge  2nd degree connection2nd"]
["Insurance Professional"]
["Winnipeg, Canada Area"]
["Summary: ..., University of Manitoba. My... by Manitoba Hydro..."]
["Chris Jansen"]
["Greg Skubisz"]
["2 shared connections"]
["Connect"]
["Margaret Proven"]
["Margaret Proven  2nd degree connection2nd"]
["Director, HR Total Rewards at Shaw Communications"]
["Winnipeg, Canada Area"]
["Education: University of Manitoba"]
["Kelly Mahoney"]
["1 shared connection"]
["Connect"]
["Ryan O'Hara"]
["Ryan O'Hara  3rd degree connection3rd"]
["Manager - Informatics and Process Improvement - WRHA Emergency Program"]
["Winnipeg, Canada Area"]
["Education: University of Manitoba"]
["Send InMail"]
["Todd Asman"]
["Todd Asman  2nd degree connection2nd"]
["Executive Vice-President, Products and Financial Planning at Investors Group"]
["Winnipeg, Canada Area"]
["Education: University of Manitoba"]
["Clayton Zaluski, FCIA, FSA"]
["1 shared connection"]
["Connect"]
["Scott Nichols"]
["Scott Nichols  2nd degree connection2nd"]
["Senior Risk Analyst at Cross Canada Financial Inc."]
["Winnipeg, Canada Area"]
["Education: University of Manitoba"]
["Alok Dua"]
["1 shared connection"]
["Connect"]
["Carlos Hernandez"]
["Carlos Hernandez  2nd degree connection2nd"]
["Manager, Portfolio Analytics at Scotiabank"]
["Toronto, Canada Area"]
["Education: University of Manitoba"]
["Gabrielle Lemire"]
["Matthew Segal ASA, ACIA"]
["Roger Tran"]
["5 shared connections"]
["Connect"]
["Wayne Fingas"]
["Wayne Fingas  2nd degree connection2nd"]
["Retired Actuary with HR consulting and insurance executive experience"]
["Alberta, Canada"]
["Education: University of Manitoba"]
["Charly Pazdor"]
["Jerry Brown"]
["Brad Bulger, FSA, FCIA"]
["3 shared connections"]
["Connect"]
["Heng He"]
["Heng He  2nd degree connection2nd"]
["Bachelor of Commerce - Honours"]
["Winnipeg, Canada Area"]
["Summary: Graduate from University of Manitoba..."]
["Kira Pearson"]
["1 shared connection"]
["Connect"]
["LinkedIn Member"]
["--"]
["Canada"]
["Education: University of Manitoba"]
["Connect"]
["Showing 762 results."]
["Cédric, you’re approaching the commercial use limit."]
["Please upgrade to LinkedIn Premium Business, Sales Navigator, or Recruiter to get unlimited people browsing."]
["Try Premium for free"]
["Learn more"]
["Siluo Wang"]
["Siluo Wang  2nd degree connection2nd"]
["Program Operations Analyst at Monsanto Company"]
["Canada"]
["Education: University of Manitoba"]
["Ling Chen (Tony) Shi"]
["Kathy Kirkpatrick"]
["2 shared connections"]
["Connect"]
["Joel Stevens"]
["Joel Stevens  3rd degree connection3rd"]
["Electrical Engineering Technologist"]
["Winnipeg, Canada Area"]
["Education: University of Manitoba"]
["Send InMail"]
["Nony Nkwonta"]
["Nony Nkwonta  3rd degree connection3rd"]
["Home Financing Advisor at Scotiabank"]
["Winnipeg, Canada Area"]
["Education: University of Manitoba"]
["Send InMail"]
["Marc Lynch"]
["Marc Lynch  3rd degree connection3rd"]
["President at Randall Plumbing & Heating Limited"]
["Winnipeg, Canada Area"]
["Education: University of Manitoba"]
["Send InMail"]
["Srinah Lutchia"]
["Srinah Lutchia  3rd degree connection3rd"]
["Supervisor at SBM Bank"]
["Winnipeg, Canada Area"]
["Current: Undergraduate Student at University of Manitoba"]
["Send InMail"]
["Brock Zimak"]
["Brock Zimak  2nd degree connection2nd"]
["Broker at PZM Financial"]
["Winnipeg, Canada Area"]
["Education: University of Manitoba, Bcomm Honors"]
["Quinn Kirkpatrick"]
["Arman Iranpour"]
["Mark Acala"]
["14 shared connections"]
["Connect"]
["Garrett Fast"]
["Garrett Fast  2nd degree connection2nd"]
["Financial Security Advisor"]
["Winnipeg, Canada Area"]
["Education: University of Manitoba"]
["Kira Pearson"]
["1 shared connection"]
["Connect"]
["Gwen Yager"]
["Gwen Yager  2nd degree connection2nd"]
["Retired"]
["Calgary, Canada Area"]
["Education: University of Manitoba"]
["Jay Lee, FSA, FCIA"]
["Brad Bulger, FSA, FCIA"]
["2 shared connections"]
["Connect"]
["Jasmine Tabuzo"]
["Jasmine Tabuzo  2nd degree connection2nd"]
["Co-op Student at the Asper School of Business"]
["Winnipeg, Canada Area"]
["Education: Asper School of Business, University of Manitoba"]
["Kira Pearson"]
["1 shared connection"]
["Connect"]
["May Zheng"]
["May Zheng  2nd degree connection2nd"]
["GGY, FSA"]
["Toronto, Canada Area"]
["Education: University of Manitoba"]
["Iqbal Shah"]
["Troy Schuster, PHR"]
["2 shared connections"]
["Connect"]
["Showing 762 results."]
["Cédric, you’re approaching the commercial use limit."]
["Please upgrade to LinkedIn Premium Business, Sales Navigator, or Recruiter to get unlimited people browsing."]
["Try Premium for free"]
["Learn more"]
["Edwin Budianto"]
["Edwin Budianto  2nd degree connection2nd"]
["Education Management Professional"]
["Winnipeg, Canada Area"]
["Past: Grader Marker at University of Manitoba"]
["David Senensky"]
["1 shared connection"]
["Connect"]
["Michelle Gibbs"]
["Michelle Gibbs  2nd degree connection2nd"]
["AVP at Sun Life Financial"]
["Toronto, Canada Area"]
["Education: University of Manitoba"]
["Edward Swerhone"]
["Troy Schuster, PHR"]
["2 shared connections"]
["Connect"]
["Mary Sanders"]
["Mary Sanders  3rd degree connection3rd"]
["Information & Data Integrity Analyst"]
["Winnipeg, Canada Area"]
["Education: University of Manitoba"]
["Send InMail"]
["Firman Steve"]
["Firman Steve  2nd degree connection2nd"]
["Manager, Internal Audit at Great-West Life Assurance Company"]
["Winnipeg, Canada Area"]
["Education: University of Manitoba"]
["Chris Jansen"]
["Roger Maguet"]
["Irina Ledenev"]
["3 shared connections"]
["Connect"]
["Kirk McIntyre"]
["Kirk McIntyre  2nd degree connection2nd"]
["President, Group Insurance Services at Ontario Teachers Insurance Plan"]
["Kitchener, Canada Area"]
["Education: University of Manitoba"]
["Charly Pazdor"]
["1 shared connection"]
["Connect"]
["Jordan B. Peixoto"]
["Jordan B. Peixoto  2nd degree connection2nd"]
["Driven to improve healthcare"]
["Toronto, Canada Area"]
["Education: University of Manitoba"]
["Howard Harmatz"]
["1 shared connection"]
["Connect"]
["Chuck Hamilton, C.Dir., FSA, FCIA"]
["Chuck Hamilton, C.Dir., FSA, FCIA  2nd degree connection2nd"]
["President & CEO at Educators Financial Group Inc."]
["Ottawa, Canada Area"]
["Education: University of Manitoba"]
["Iqbal Shah"]
["1 shared connection"]
["Connect"]
["Gregory Ward"]
["Gregory Ward  2nd degree connection2nd"]
["Data Management, Privacy, and Quality Assurance Administrator at Kenora Chiefs Advisory"]
["Ontario, Canada"]
["Education: University of Manitoba"]
["Chunli Liang"]
["1 shared connection"]
["Connect"]
["Richard Jones"]
["Richard Jones  2nd degree connection2nd"]
["Vice President, Infrastructure and Governance at Wawanesa Insurance"]
["Winnipeg, Canada Area"]
["Education: University of Manitoba"]
["Jess Evan Davis"]
["1 shared connection"]
["Connect"]
["Karen Figueiredo"]
["Karen Figueiredo  2nd degree connection2nd"]
["VP, Global Pension & Benefits at Sun Life Financial"]
["Toronto, Canada Area"]
["Education: University of Manitoba"]
["Edward Swerhone"]
["Charly Pazdor"]
["Troy Schuster, PHR"]
["3 shared connections"]
["Connect"]
["Showing 762 results."]
["Cédric, you’re approaching the commercial use limit."]
["Please upgrade to LinkedIn Premium Business, Sales Navigator, or Recruiter to get unlimited people browsing."]
["Try Premium for free"]
["Learn more"]
["Sherry Wendt"]
["Sherry Wendt  2nd degree connection2nd"]
["Associate General Counsel & Assistant Corporate Secretary at Cenovus Energy"]
["Calgary, Canada Area"]
["Education: University of Manitoba"]
["Simon Deschenes FSA, FCIA, CFA"]
["1 shared connection"]
["Connect"]
["Greg van Ginkel"]
["Greg van Ginkel  2nd degree connection2nd"]
["President, Knight Archer Commercial Insurance"]
["Saskatchewan, Canada"]
["Education: University of Manitoba"]
["Randy D. Penner"]
["1 shared connection"]
["Connect"]
["Rob Rosenblat, FSA, FCIA, C.Dir."]
["Rob Rosenblat, FSA, FCIA, C.Dir.  2nd degree connection2nd"]
["Actuary"]
["Canada"]
["Education: University of Manitoba"]
["Clayton Zaluski, FCIA, FSA"]
["1 shared connection"]
["Connect"]
["Reese Gelley"]
["Reese Gelley  2nd degree connection2nd"]
["Analyst at KPMG Corporate Finance LLC"]
["Washington D.C. Metro Area"]
["Education: University of Manitoba"]
["Evan Farough"]
["Owais Jafry"]
["Stephen Thomas"]
["29 shared connections"]
["Connect"]
["Keith Meyer"]
["Keith Meyer  3rd degree connection3rd"]
["AVP, Information Technology at DMT Development Systems Group Inc."]
["Winnipeg, Canada Area"]
["Education: University of Manitoba"]
["Send InMail"]
["Wendy Mizuno"]
["Wendy Mizuno  2nd degree connection2nd"]
["Partner, Mercer (Canada) Limited"]
["Toronto, Canada Area"]
["Education: University of Manitoba"]
["Charly Pazdor"]
["1 shared connection"]
["Connect"]
["Adrian Yasay"]
["Adrian Yasay  2nd degree connection2nd"]
["Student Asper School of Business--"]
["Winnipeg, Canada Area"]
["Education: University of Manitoba"]
["Karlee Moist"]
["Landon Stewart"]
["2 shared connections"]
["Connect"]
["Andrew Hargrave"]
["Andrew Hargrave  3rd degree connection3rd"]
["Senior Auditor at Cangene Corporation"]
["Winnipeg, Canada Area"]
["Education: University of Manitoba"]
["Send InMail"]
["Richard Gould"]
["Richard Gould  2nd degree connection2nd"]
["ASA"]
["Greater Minneapolis-St. Paul Area"]
["Education: University of Manitoba"]
["Arielle Gates"]
["Bryn Peppler"]
["Aaron Yanofsky, ASA, ACIA, CERA"]
["8 shared connections"]
["Connect"]
["LinkedIn Member"]
["Senior Vice-President, Products & Financial Planning at Investors Group"]
["Winnipeg, Canada Area"]
["Education: University of Manitoba"]
["Connect"]
["Showing 762 results."]
["Cédric, you’re approaching the commercial use limit."]
["Please upgrade to LinkedIn Premium Business, Sales Navigator, or Recruiter to get unlimited people browsing."]
["Try Premium for free"]
["Learn more"]
["Ina Eng"]
["Ina Eng  3rd degree connection3rd"]
["Partner at Ascenda Financial Consultants"]
["Winnipeg, Canada Area"]
["Education: University of Manitoba"]
["Send InMail"]
["Craig Wild"]
["Craig Wild  3rd degree connection3rd"]
["Product Manager at Ceridian"]
["Winnipeg, Canada Area"]
["Education: University of Manitoba"]
["Send InMail"]
["Brett MacKinnon"]
["Brett MacKinnon  3rd degree connection3rd"]
["Vice President and Chief Actuary at Wawanesa Insurance"]
["Winnipeg, Canada Area"]
["Education: University of Manitoba"]
["Send InMail"]
["William (Bill) Sloan"]
["William (Bill) Sloan  3rd degree connection3rd"]
["Financial Risk Manager"]
["Winnipeg, Canada Area"]
["Education: University of Manitoba"]
["Send InMail"]
["LinkedIn Member"]
["Senior Consultant at CGI"]
["Toronto, Canada Area"]
["Education: University of Manitoba"]
["Connect"]
["Louis Ellement"]
["Louis Ellement  2nd degree connection2nd"]
["Retired Actuary"]
["Winnipeg, Canada Area"]
["Education: University of Manitoba"]
["Charly Pazdor"]
["1 shared connection"]
["Connect"]
["Dennis Schettler"]
["Dennis Schettler  2nd degree connection2nd"]
["Financial Services Consultant and Contractor"]
["Toronto, Canada Area"]
["Education: University of Manitoba"]
["Charly Pazdor"]
["1 shared connection"]
["Connect"]
["Jim Bremer"]
["Jim Bremer  3rd degree connection3rd"]
["Independent Investment Management Professional"]
["Toronto, Canada Area"]
["Education: University of Manitoba"]
["Send InMail"]
["Kathryn Qin"]
["Kathryn Qin  2nd degree connection2nd"]
["Corporate VP & Actuary at SCAN Health Plan"]
["Greater Los Angeles Area"]
["Education: University of Manitoba"]
["Jerry Krecek"]
["Troy Schuster, PHR"]
["2 shared connections"]
["Connect"]
["LinkedIn Member"]
["Consultant"]
["Toronto, Canada Area"]
["Education: University of Manitoba"]
["Connect"]
["Showing 762 results."]
["Cédric, you’re approaching the commercial use limit."]
["Please upgrade to LinkedIn Premium Business, Sales Navigator, or Recruiter to get unlimited people browsing."]
["Try Premium for free"]
["Learn more"]
["Tianluo Li"]
["Tianluo Li  2nd degree connection2nd"]
["--"]
["Winnipeg, Canada Area"]
["Education: University of Manitoba"]
["Kira Pearson"]
["1 shared connection"]
["Connect"]
["Sandra Kulchyski"]
["Sandra Kulchyski  3rd degree connection3rd"]
["Commercial Real Estate Appraiser at Altus Group"]
["Winnipeg, Canada Area"]
["Education: University of Manitoba"]
["Send InMail"]
["Tamira Loewen"]
["Tamira Loewen  2nd degree connection2nd"]
["Senior Risk Management Professional"]
["Toronto, Canada Area"]
["Education: University of Manitoba"]
["Iqbal Shah"]
["1 shared connection"]
["Connect"]
["Chang Sheila"]
["Chang Sheila  2nd degree connection2nd"]
["Senior Customer Analyst at ATB financial"]
["Calgary, Canada Area"]
["Education: University of Manitoba"]
["Chunli Liang"]
["1 shared connection"]
["Connect"]
["Phil Rivard"]
["Phil Rivard  2nd degree connection2nd"]
["VP, Pension Policy and Funding at Local Authorities Pension Plan"]
["Edmonton, Canada Area"]
["Education: University of Manitoba"]
["Charly Pazdor"]
["1 shared connection"]
["Connect"]
["Punya Wijetunge"]
["Punya Wijetunge  3rd degree connection3rd"]
["Client and Field Support Senior Analyst- Group Division at Great-West Life"]
["Winnipeg, Canada Area"]
["Education: University of Manitoba"]
["Send InMail"]
["Jason Novak"]
["Jason Novak  2nd degree connection2nd"]
["Director, Group Benefits at Great-West Life"]
["Toronto, Canada Area"]
["Education: University of Manitoba"]
["Chris Jansen"]
["1 shared connection"]
["Connect"]
["Robert Dyck, FRM, CAIA, CIM"]
["Robert Dyck, FRM, CAIA, CIM  3rd degree connection3rd"]
["Head of Investment Analytics at Connor, Clark & Lunn Financial Group"]
["Vancouver, Canada Area"]
["Past: Consultant & Head of Research at API Asset Performance Inc."]
["Send InMail"]
["Mark Christie"]
["Mark Christie  3rd degree connection3rd"]
["Salesforce is hard. I make it less hard."]
["Toronto, Canada Area"]
["Education: University of Manitoba"]
["Send InMail"]
["Aimee Kanyankogote, FRM"]
["Aimee Kanyankogote, FRM  3rd degree connection3rd"]
["FRTB Specialist"]
["Toronto, Canada Area"]
["Education: University of Manitoba"]
["Send InMail"]
["Showing 762 results."]
["Cédric, you’re approaching the commercial use limit."]
["Please upgrade to LinkedIn Premium Business, Sales Navigator, or Recruiter to get unlimited people browsing."]
["Try Premium for free"]
["Learn more"]
["Arnold Shell"]
["Arnold Shell  3rd degree connection3rd"]
["President, Arnold J. Shell Financial Services"]
["Toronto, Canada Area"]
["Education: University of Manitoba"]
["Send InMail"]
["John Stevenson"]
["John Stevenson  3rd degree connection3rd"]
["Regional Vice President at Great-West Life"]
["Toronto, Canada Area"]
["Education: University of Manitoba"]
["Send InMail"]
["See Tong Lim"]
["See Tong Lim  3rd degree connection3rd"]
["Senior Manager at Scotiabank International"]
["Toronto, Canada Area"]
["Education: University of Manitoba"]
["Send InMail"]
["Wendell Krahn, CFA, CPA, CGA, CVA"]
["Wendell Krahn, CFA, CPA, CGA, CVA  3rd degree connection3rd"]
["Financial Modeling, Planning & Analysis, M&A including Valuations and Due Diligence"]
["Ottawa, Canada Area"]
["Education: University of Manitoba"]
["Send InMail"]
["Greg Gillis, CFA, FCIA, FSA"]
["Greg Gillis, CFA, FCIA, FSA  3rd degree connection3rd"]
["Financial Advisor/Consulting Actuary at Lawton Partners"]
["Winnipeg, Canada Area"]
["Past: Vice President at Aon Consulting"]
["Send InMail"]
["Doug Olsen"]
["Doug Olsen  3rd degree connection3rd"]
["Optical Systems Engineer at Shaw Communications"]
["Calgary, Canada Area"]
["Education: University of Manitoba"]
["Send InMail"]
["Claude Boily"]
["Claude Boily  3rd degree connection3rd"]
["Financial Services Professional"]
["Calgary, Canada Area"]
["Education: University of Manitoba"]
["Send InMail"]
["Louise Comeau"]
["Louise Comeau  3rd degree connection3rd"]
["Manager, Financial Services at Department of Finance - Province of Nova Scotia"]
["Halifax, Canada Area"]
["Education: University of Manitoba"]
["Send InMail"]
["LinkedIn Member"]
["General Manager at True North Capital"]
["Toronto, Canada Area"]
["Education: University of Manitoba"]
["Connect"]
["Don Smith"]
["Don Smith  3rd degree connection3rd"]
["Partner at Smith Pension & Actuarial Consultants Inc."]
["Vancouver, Canada Area"]
["Education: University of Manitoba"]
["Send InMail"]
["Showing 762 results."]
["Cédric, you’re approaching the commercial use limit."]
["Please upgrade to LinkedIn Premium Business, Sales Navigator, or Recruiter to get unlimited people browsing."]
["Try Premium for free"]
["Learn more"]
["Zack Wang"]
["Zack Wang  3rd degree connection3rd"]
["Franchise Owner at Edo Japan"]
["Canada"]
["Education: University of Manitoba"]
["Send InMail"]
["Corey Haverstick"]
["Corey Haverstick  2nd degree connection2nd"]
["Retail Associate"]
["Winnipeg, Canada Area"]
["Summary: Attending the University of Manitoba, majoring..."]
["Neil Redpath"]
["Stephen Thomas"]
["hasanur rahman"]
["21 shared connections"]
["Connect"]
["Drew Bailey"]
["Drew Bailey  3rd degree connection3rd"]
["Loss Adjuster at ClaimsPro Inc."]
["London, Canada Area"]
["Education: University of Manitoba"]
["Send InMail"]
["Jeffe Li"]
["Jeffe Li  3rd degree connection3rd"]
["Contracts Manager"]
["Calgary, Canada Area"]
["Education: University of Manitoba"]
["Send InMail"]
["Anne Parsonage"]
["Anne Parsonage  3rd degree connection3rd"]
["Director and Yoga teacher at Yoga from the Heart Canada"]
["Toronto, Canada Area"]
["Education: University of Manitoba"]
["Send InMail"]
["Paul Schaubroeck"]
["Paul Schaubroeck  3rd degree connection3rd"]
["Buyer"]
["Ottawa, Canada Area"]
["Education: University of Manitoba"]
["Send InMail"]
["Gerry Thiessen"]
["Gerry Thiessen  3rd degree connection3rd"]
["Director, Business Development at Sun Life Financial"]
["Vancouver, Canada Area"]
["Past: Account Executive at Sun Life Financial"]
["Send InMail"]
["LinkedIn Member"]
["--"]
["Winnipeg, Canada Area"]
["Education: University of Manitoba"]
["Connect"]
["Dave Poole"]
["Dave Poole  3rd degree connection3rd"]
["Risk Management Consultant"]
["Calgary, Canada Area"]
["Education: University of Manitoba"]
["Send InMail"]
["Shayne Egert"]
["Shayne Egert  3rd degree connection3rd"]
["Director, Corporate Analytics at SGI Canada"]
["Saskatchewan, Canada"]
["Education: University of Manitoba"]
["Send InMail"]
["Showing 762 results."]
["Cédric, you’re approaching the commercial use limit."]
["Please upgrade to LinkedIn Premium Business, Sales Navigator, or Recruiter to get unlimited people browsing."]
["Try Premium for free"]
["Learn more"]
["Jason Wiebe, FCIA, FSAI"]
["Jason Wiebe, FCIA, FSAI  2nd degree connection2nd"]
["Chief Risk Offficer at RGA International Reinsurance Company dac"]
["Ireland"]
["Past: Vice President at RBC Insurance"]
["Iqbal Shah"]
["Edward Swerhone"]
["Gerald Hoeppner"]
["9 shared connections"]
["Connect"]
["Yifan Gao"]
["Yifan Gao  2nd degree connection2nd"]
["--"]
["Canada"]
["Education: University of Manitoba"]
["Bryn Peppler"]
["Aaron Yanofsky, ASA, ACIA, CERA"]
["Maambo Mujala"]
["3 shared connections"]
["Connect"]
["Angus Ng, CISSP PMP Cert.APM"]
["Angus Ng, CISSP PMP Cert.APM  3rd degree connection3rd"]
["Project Manager"]
["Toronto, Canada Area"]
["Education: University of Manitoba"]
["Send InMail"]
["LinkedIn Member"]
["Retail Professional"]
["Winnipeg, Canada Area"]
["Education: University of Manitoba"]
["Connect"]
["Mike Lazaruk"]
["Mike Lazaruk  3rd degree connection3rd"]
["--"]
["Winnipeg, Canada Area"]
["Education: University of Manitoba"]
["Send InMail"]
["Sharon Xu"]
["Sharon Xu  3rd degree connection3rd"]
["Managing Director at Aaron Consulting Inc."]
["Toronto, Canada Area"]
["Education: University of Manitoba"]
["Send InMail"]
["Derek Schaen"]
["Derek Schaen  3rd degree connection3rd"]
["Sales Analyst at Great-West Life"]
["Winnipeg, Canada Area"]
["Education: University of Manitoba"]
["Send InMail"]
["Wei (Gavin) He"]
["Wei (Gavin) He  3rd degree connection3rd"]
["Banking Professional"]
["Calgary, Canada Area"]
["Education: University of Manitoba"]
["Send InMail"]
["Neil Harrison"]
["Neil Harrison  2nd degree connection2nd"]
["Partner at Deloitte Canada"]
["Toronto, Canada Area"]
["Education: University of Manitoba"]
["Kelly Mahoney"]
["1 shared connection"]
["Connect"]
["Stu Starkey"]
["Stu Starkey  2nd degree connection2nd"]
["Transportation Executive"]
["Edmonton, Canada Area"]
["Education: University of Manitoba"]
["Tim Butterfield"]
["1 shared connection"]
["Connect"]
["Showing 762 results."]
["Cédric, you’re approaching the commercial use limit."]
["Please upgrade to LinkedIn Premium Business, Sales Navigator, or Recruiter to get unlimited people browsing."]
["Try Premium for free"]
["Learn more"]
["Shaharyar Noordin"]
["Shaharyar Noordin  1st degree connection1st"]
["Student at Asper School of Business Actuarial Mathematics"]
["Winnipeg, Canada Area"]
["Current: Financial Accounting Grader/Marker at University of Manitoba"]
["Michael Benarroch"]
["Ivraj Plaha"]
["Owais Jafry"]
["24 shared connections"]
["Message"]
["Kenneth Clark"]
["Kenneth Clark  3rd degree connection3rd"]
["Retired Principal at Eckler Ltd."]
["Toronto, Canada Area"]
["Education: University of Manitoba"]
["Send InMail"]
["LinkedIn Member"]
["Actuarial Consultant at Deloitte Consulting, ASA"]
["Greater Minneapolis-St. Paul Area"]
["Past: Consultant at Deloitte Consulting"]
["Connect"]
["Steve Makins"]
["Steve Makins  3rd degree connection3rd"]
["Regional CFO, Canada/Asia"]
["Toronto, Canada Area"]
["Education: University of Manitoba"]
["Send InMail"]
["Marcia P Hunt"]
["Marcia P Hunt  3rd degree connection3rd"]
["President and Principal Broker at Mortgage Alliance Performa Mortgage Inc. , Financial Consultant -- Hunt & Associates"]
["Toronto, Canada Area"]
["Education: University of Manitoba"]
["Send InMail"]
["Philip Fosu"]
["Philip Fosu  3rd degree connection3rd"]
["Consultant at Morneau Shepell"]
["Toronto, Canada Area"]
["Education: University of Manitoba"]
["Send InMail"]
["Sean Hayward"]
["Sean Hayward  2nd degree connection2nd"]
["VP - Solutions Manager, US Risk at FIS"]
["Greater Atlanta Area"]
["Education: University of Manitoba"]
["Iqbal Shah"]
["Ron Harasym"]
["Jerry Krecek"]
["6 shared connections"]
["Connect"]
["Billy Ray Tejones"]
["Billy Ray Tejones  3rd degree connection3rd"]
["Senior Reporting Analyst at Investors Group"]
["Winnipeg, Canada Area"]
["Education: University of Manitoba"]
["Send InMail"]
["Jeff Moir"]
["Jeff Moir Jeff Moir is a Premium member  3rd degree connection3rd"]
["Partner and Lead, Human Capital at Deloitte Canada"]
["Toronto, Canada Area"]
["Education: University of Manitoba"]
["InMail"]
["Tawheed (Taw) Ismail   PMP, CPPP"]
["Tawheed (Taw) Ismail PMP, CPPP  3rd degree connection3rd"]
["Project Manager │ Marketing │ Creative Services | Management"]
["Toronto, Canada Area"]
["Education: University of Manitoba"]
["Send InMail"]
["Showing 762 results."]
["Cédric, you’re approaching the commercial use limit."]
["Please upgrade to LinkedIn Premium Business, Sales Navigator, or Recruiter to get unlimited people browsing."]
["Try Premium for free"]
["Learn more"]
["Sharon Chandler"]
["Sharon Chandler  3rd degree connection3rd"]
["Canadian Cancer Society Regional Representative"]
["Toronto, Canada Area"]
["Education: University of Manitoba"]
["Send InMail"]
["Andrea Sexsmith"]
["Andrea Sexsmith  3rd degree connection3rd"]
["Pharmaceuticals Professional"]
["Saskatchewan, Canada"]
["Education: University of Manitoba"]
["Send InMail"]
["Nicolas Nguyen"]
["Nicolas Nguyen  3rd degree connection3rd"]
["Associate at BMO Financial Group"]
["Montreal, Canada Area"]
["Education: University of Manitoba"]
["Send InMail"]
["Sym Gill"]
["Sym Gill  3rd degree connection3rd"]
["Member of the Board of Trustees at Canadian Wheat Board Retirees Employee Life and Health Trust"]
["Toronto, Canada Area"]
["Education: University of Manitoba"]
["Send InMail"]
["weinan sun"]
["weinan sun  3rd degree connection3rd"]
["--"]
["Canada"]
["Education: University of Manitoba"]
["Send InMail"]
["Tyrell Jolley-Campbell"]
["Tyrell Jolley-Campbell  3rd degree connection3rd"]
["Student at Red River College"]
["Winnipeg, Canada Area"]
["Education: University of Manitoba"]
["Send InMail"]
["Nadine Orr"]
["Nadine Orr  3rd degree connection3rd"]
["VP, Pensions and Benefits at RBC"]
["Toronto, Canada Area"]
["Education: University of Manitoba"]
["Send InMail"]
["James Furutani CIM"]
["James Furutani CIM  3rd degree connection3rd"]
["Senior Associate at Assante Financial Management Ltd."]
["Vancouver, Canada Area"]
["Education: Universtiy of Manitoba"]
["Send InMail"]
["Don Armstrong"]
["Don Armstrong  3rd degree connection3rd"]
["Actuary / Consultant at Donaldson Vincent Associates Limited"]
["Toronto, Canada Area"]
["Education: University of Manitoba"]
["Send InMail"]
["Dawn Power"]
["Dawn Power  3rd degree connection3rd"]
["Actuary/Principal at Eckler Ltd."]
["Canada"]
["Education: University of Manitoba"]
["Send InMail"]
["Showing 762 results."]
["Cédric, you’re approaching the commercial use limit."]
["Please upgrade to LinkedIn Premium Business, Sales Navigator, or Recruiter to get unlimited people browsing."]
["Try Premium for free"]
["Learn more"]
["Gerald Boychuk"]
["Gerald Boychuk  3rd degree connection3rd"]
["Chief Investments Officer"]
["Toronto, Canada Area"]
["Education: University of Manitoba B.Sc., MBA, CFA"]
["Send InMail"]
["yang jin"]
["yang jin  3rd degree connection3rd"]
["Quality Assurance Analyst - Content at CaseWare International Inc."]
["Toronto, Canada Area"]
["Education: University of Manitoba"]
["Send InMail"]
["Parminder Mangat"]
["Parminder Mangat  3rd degree connection3rd"]
["--"]
["Winnipeg, Canada Area"]
["Education: University of Manitoba"]
["Send InMail"]
["John Kmetic"]
["John Kmetic  3rd degree connection3rd"]
["Director, Senior Actuary at Office of the Superintendent of Financial Institutions of Canada"]
["Ottawa, Canada Area"]
["Education: University of Manitoba"]
["Send InMail"]
["Susan Demedash"]
["Susan Demedash  3rd degree connection3rd"]
["Methodologist at Statistics Canada"]
["Canada"]
["Education: University of Manitoba"]
["Send InMail"]
["Igor Mugisha"]
["Igor Mugisha  3rd degree connection3rd"]
["--"]
["Winnipeg, Canada Area"]
["Education: University of Manitoba"]
["Send InMail"]
["Nicole Levesque, CPA, CGA"]
["Nicole Levesque, CPA, CGA  3rd degree connection3rd"]
["Manager, Monitoring"]
["Winnipeg, Canada Area"]
["Education: University of Manitoba"]
["Send InMail"]
["Blake Swedlo"]
["Blake Swedlo  3rd degree connection3rd"]
["Level III Umpire at Baseball Canada"]
["Winnipeg, Canada Area"]
["Education: University of Manitoba"]
["Send InMail"]
["Weilun Zhang"]
["Weilun Zhang  3rd degree connection3rd"]
["Student"]
["Winnipeg, Canada Area"]
["Education: University of Manitoba"]
["Send InMail"]
["Jun Shih"]
["Jun Shih  3rd degree connection3rd"]
["Senior SW Developer at Pason Systems"]
["Calgary, Canada Area"]
["Past: Alumni at University of Manitoba"]
["Send InMail"]
["Showing 762 results."]
["Cédric, you’re approaching the commercial use limit."]
["Please upgrade to LinkedIn Premium Business, Sales Navigator, or Recruiter to get unlimited people browsing."]
["Try Premium for free"]
["Learn more"]
["Deepesh Rijal"]
["Deepesh Rijal  3rd degree connection3rd"]
["Applied Mathematics, Statistics and Economics"]
["Winnipeg, Canada Area"]
["Summary: ...at University of Manitoba, pursuing Actuarial Mathematics..."]
["Send InMail"]
["LinkedIn Member"]
["Associate at RBC"]
["Winnipeg, Canada Area"]
["Education: University of Manitoba"]
["Connect"]
["LinkedIn Member"]
["sales at STAPLES Canada"]
["Winnipeg, Canada Area"]
["Education: university of manitoba"]
["Connect"]
["LinkedIn Member"]
["Manager, I.T. at NGM Investment Ltd"]
["Vancouver, Canada Area"]
["Education: University of Manitoba"]
["Connect"]
["竺心怡"]
["竺心怡  2nd degree connection2nd"]
["corporate actuary"]
["China"]
["Past: Teaching Assistant at University of Manitoba"]
["Daniel Turenne"]
["Chunli Liang"]
["Stephen Thomas"]
["31 shared connections"]
["Connect"]
["Ron Loch"]
["Ron Loch  3rd degree connection3rd"]
["Independent Investment Management Professional"]
["Toronto, Canada Area"]
["Education: University of Manitoba"]
["Send InMail"]
["Louise Thiessen"]
["Louise Thiessen  3rd degree connection3rd"]
["Higher Education Professional"]
["Edmonton, Canada Area"]
["Education: University of Manitoba"]
["Send InMail"]
["Li Dong"]
["Li Dong  2nd degree connection2nd"]
["FSA at Moody's GGY AXIS"]
["Toronto, Canada Area"]
["Education: University of Manitoba"]
["Chunli Liang"]
["1 shared connection"]
["Connect"]
["Darryl Ingham"]
["Darryl Ingham  3rd degree connection3rd"]
["President at Group Health Global Benefit Solutions"]
["Toronto, Canada Area"]
["Education: University of Manitoba"]
["Send InMail"]
["Darrell Peters"]
["Darrell Peters  3rd degree connection3rd"]
["Senior Consultant at Willis Towers Watson (Retired)"]
["Toronto, Canada Area"]
["Education: University of Manitoba"]
["Send InMail"]
["Showing 762 results."]
["Cédric, you’re approaching the commercial use limit."]
["Please upgrade to LinkedIn Premium Business, Sales Navigator, or Recruiter to get unlimited people browsing."]
["Try Premium for free"]
["Learn more"]
["Mathieu Poissant"]
["Mathieu Poissant  3rd degree connection3rd"]
["Statisticien spécialisé en immobilier"]
["Canada"]
["Education: University of Manitoba"]
["Send InMail"]
["Michael Guest"]
["Michael Guest  2nd degree connection2nd"]
["Owner, Guest Consulting"]
["Toronto, Canada Area"]
["Education: University of Manitoba"]
["1 shared connection"]
["Connect"]
["John Louis"]
["John Louis  3rd degree connection3rd"]
["Managing Director at JCL Management Consulting"]
["Calgary, Canada Area"]
["Education: University of Manitoba"]
["Send InMail"]
["Laura Nickols"]
["Laura Nickols  3rd degree connection3rd"]
["Membership Development Representative at Merit Contractors Association"]
["Edmonton, Canada Area"]
["Education: University of Manitoba"]
["Send InMail"]
["Weihong Dan, FSA, FCIA"]
["Weihong Dan, FSA, FCIA  3rd degree connection3rd"]
["GGY AXIS Inc"]
["Toronto, Canada Area"]
["Education: University of Manitoba"]
["Send InMail"]
["Kathy Kirkpatrick"]
["Kathy Kirkpatrick  1st degree connection1st"]
["Career Advisor at Career Development Centre Asper School of Business"]
["Winnipeg, Canada Area"]
["Education: University of Manitoba"]
["Chunli Liang"]
["Owais Jafry"]
["Nicole Barnabé"]
["91 shared connections"]
["Message"]
["Lyle Semchyshyn"]
["Lyle Semchyshyn  2nd degree connection2nd"]
["2nd VP & Corporate Actuary at Security Benefit"]
["Kansas City, Missouri Area"]
["Education: University of Manitoba"]
["Amy Baxter"]
["Ron Harasym"]
["Jo Bellucci"]
["4 shared connections"]
["Connect"]
["Yingjie Zhang, CPA,CGA,MFRM"]
["Yingjie Zhang, CPA,CGA,MFRM  3rd degree connection3rd"]
["Financial Manager at Atelier Capital Partners Inc."]
["Vancouver, Canada Area"]
["Education: University of Manitoba"]
["Send InMail"]
["LinkedIn Member"]
["Pension and Benefits Strategist"]
["Edmonton, Canada Area"]
["Education: University of Manitoba"]
["Connect"]
["Sian McAlpin"]
["Sian McAlpin  2nd degree connection2nd"]
["AVP Finance, Risk & Controls at Sun Life Financial"]
["Greater Boston Area"]
["Education: University of Manitoba"]
["Iqbal Shah"]
["Troy Schuster, PHR"]
["Guillaume Giasson-Morin, MBA"]
["3 shared connections"]
["Connect"]
["Showing 762 results."]
["Cédric, you’re approaching the commercial use limit."]
["Please upgrade to LinkedIn Premium Business, Sales Navigator, or Recruiter to get unlimited people browsing."]
["Try Premium for free"]
["Learn more"]
["Rob Edwards"]
["Rob Edwards  3rd degree connection3rd"]
["Advanced Healthcare Analytics Executive"]
["Greater Los Angeles Area"]
["Past: Staff VP & Actuary III at Anthem, Inc."]
["Send InMail"]
["Gabrielle Martinez"]
["Gabrielle Martinez  3rd degree connection3rd"]
["Member service representative at Access Credit Union"]
["Canada"]
["Education: University of Manitoba"]
["Send InMail"]
["Diana Ginpil PMP"]
["Diana Ginpil PMP  3rd degree connection3rd"]
["PrincipaL, Diana Ginpil Consulting"]
["Toronto, Canada Area"]
["Education: University of Manitoba"]
["Send InMail"]
["Rob Verrier"]
["Rob Verrier  2nd degree connection2nd"]
["Actuary at Genesis Financial Development, Inc."]
["Greater Boston Area"]
["Education: University of Manitoba"]
["Iqbal Shah"]
["Edward Swerhone"]
["Troy Schuster, PHR"]
["3 shared connections"]
["Connect"]
["Brad Rokosh"]
["Brad Rokosh  2nd degree connection2nd"]
["Director, LTC Margin Analytics at Transamerica"]
["Dallas/Fort Worth Area"]
["Education: University of Manitoba"]
["Jerry Krecek"]
["Troy Schuster, PHR"]
["2 shared connections"]
["Connect"]
["LinkedIn Member"]
["Senior Consultant and Actuary at Donaldson Vincent Associates Limited"]
["Toronto, Canada Area"]
["Education: University of Manitoba"]
["Connect"]
["LinkedIn Member"]
["Insurance Professional"]
["Kitchener, Canada Area"]
["Education: University of Manitoba"]
["Connect"]
["Gerald Petkau"]
["Gerald Petkau  2nd degree connection2nd"]
["Senior Vice President, Chief Operating Officer at Blue Cross Blue Shield of North Carolina"]
["Raleigh-Durham, North Carolina Area"]
["Education: University of Manitoba"]
["Jerry Krecek"]
["Troy Schuster, PHR"]
["2 shared connections"]
["Connect"]
["Peter Cliche"]
["Peter Cliche  2nd degree connection2nd"]
["AVP Quantatative Analysis, Enterprise Risk Management at MetLife"]
["Greater New York City Area"]
["Education: University of Manitoba"]
["Amy Baxter"]
["Jo Bellucci"]
["2 shared connections"]
["Connect"]
["Dirk Ackbar"]
["Dirk Ackbar  2nd degree connection2nd"]
["Associate Actuary at KR Consulting"]
["Trinidad and Tobago"]
["Education: University of Manitoba"]
["Dhruv Gupta"]
["Dave Kester"]
["Jerry Brown"]
["3 shared connections"]
["Connect"]
["Showing 762 results."]
["Cédric, you’re approaching the commercial use limit."]
["Please upgrade to LinkedIn Premium Business, Sales Navigator, or Recruiter to get unlimited people browsing."]
["Try Premium for free"]
["Learn more"]
["Frank Reynolds"]
["Frank Reynolds  2nd degree connection2nd"]
["President at Reynolds, Thorvardson, Ltd"]
["Kitchener, Canada Area"]
["Education: University of Manitoba"]
["Alon Halbrich, FCIA, FSA"]
["Dave Kester"]
["2 shared connections"]
["Connect"]
["James Dalton"]
["James Dalton  2nd degree connection2nd"]
["Senior Associate at Mercer"]
["Toronto, Canada Area"]
["Summary: James Dalton is a... from the University of Manitoba..."]
["Simon Deschenes FSA, FCIA, CFA"]
["Louise Hoeppner, FSA"]
["Keith Chen"]
["4 shared connections"]
["Connect"]
["Kim Dwornick"]
["Kim Dwornick  2nd degree connection2nd"]
["Actuary Team Lead at Emerge.me"]
["Greater Minneapolis-St. Paul Area"]
["Education: University of Manitoba"]
["Troy Schuster, PHR"]
["1 shared connection"]
["Connect"]
["Michael Kula"]
["Michael Kula  1st degree connection1st"]
["Vice President at New York Life Insurance Company"]
["Greater New York City Area"]
["Education: University of Manitoba"]
["Alon Halbrich, FCIA, FSA"]
["Rafe Hunt, FSA"]
["Cameron Smart"]
["16 shared connections"]
["Message"]
["LinkedIn Member"]
["--"]
["Toronto, Canada Area"]
["Education: University of Manitoba"]
["Connect"]
["Hal Pedersen"]
["Hal Pedersen  2nd degree connection2nd"]
["Director, Risk & Capital Management Solutions at Conning"]
["Hartford, Connecticut Area"]
["Past: Warren Professor of Actuarial Science at University of Manitoba"]
["Rafe Hunt, FSA"]
["1 shared connection"]
["Connect"]
["My-Hong Truong"]
["My-Hong Truong  2nd degree connection2nd"]
["Retirement Systems Consultant, EA at Willis Towers Watson"]
["Greater Seattle Area"]
["Education: University of Manitoba"]
["Oai Truong"]
["1 shared connection"]
["Connect"]
["John Hong"]
["John Hong  2nd degree connection2nd"]
["Senior Consultant at EY"]
["Greater New York City Area"]
["Education: University of Manitoba"]
["Michael Kula"]
["Thanh Thanh Nguyen"]
["2 shared connections"]
["Connect"]
["Joyce Liew"]
["Joyce Liew  2nd degree connection2nd"]
["--"]
["Winnipeg, Canada Area"]
["Education: University of Manitoba"]
["Roger Maguet"]
["Wilson Low"]
["2 shared connections"]
["Connect"]
["Zhibin Zhang"]
["Zhibin Zhang  2nd degree connection2nd"]
["Actuary at RGA"]
["Beijing City, China"]
["Education: University of Manitoba"]
["Iqbal Shah"]
["Dhruv Gupta"]
["Troy Schuster, PHR"]
["3 shared connections"]
["Connect"]
["Showing 762 results."]
["Cédric, you’re approaching the commercial use limit."]
["Please upgrade to LinkedIn Premium Business, Sales Navigator, or Recruiter to get unlimited people browsing."]
["Try Premium for free"]
["Learn more"]
["Yunan Deng"]
["Yunan Deng  2nd degree connection2nd"]
["--"]
["Bloomington/Normal, Illinois Area"]
["Past: Actuarial Class Teaching Assistant at University of Manitoba"]
["Wilson Low"]
["1 shared connection"]
["Connect"]
["Bertrand Boyle"]
["Bertrand Boyle  3rd degree connection3rd"]
["--"]
["Canada"]
["Education: University of Manitoba"]
["Send InMail"]
["Kelly Grebinsky"]
["Kelly Grebinsky  2nd degree connection2nd"]
["Owner, Actuaries Northwest, LLC"]
["Greater Seattle Area"]
["Education: University of Manitoba"]
["Troy Schuster, PHR"]
["1 shared connection"]
["Connect"]
["Graham Cox"]
["Graham Cox  2nd degree connection2nd"]
["Executive Vice President, Global Risk Management at MetLife"]
["Greater New York City Area"]
["Education: University of Manitoba"]
["Michael Kula"]
["1 shared connection"]
["Connect"]
["Tenny Chong"]
["Tenny Chong  2nd degree connection2nd"]
["Actuary"]
["Hong Kong"]
["Education: University of Manitoba"]
["Troy Schuster, PHR"]
["1 shared connection"]
["Connect"]
["Lucille Doucette"]
["Lucille Doucette  3rd degree connection3rd"]
["--"]
["Alberta, Canada"]
["Education: University of Manitoba"]
["Send InMail"]
["Stephan Bazin"]
["Stephan Bazin  2nd degree connection2nd"]
["Consulting Actuary at Willis Towers Watson"]
["Greater New York City Area"]
["Education: University of Manitoba"]
["Bob DalCortivo"]
["1 shared connection"]
["Connect"]
["Florence Wu -  PhD, AIAA, ASA, MSc"]
["Florence Wu - PhD, AIAA, ASA, MSc  3rd degree connection3rd"]
["Executive Manager > Senior Actuary > Empowering Leader > Cultivate High Performance Teams"]
["Sydney, Australia"]
["Summary: ...model; actuarial software... Actuarial Modelling skills – DFA..."]
["Send InMail"]
["Janine Bender"]
["Janine Bender  2nd degree connection2nd"]
["Life Insurance Consultant"]
["Hartford, Connecticut Area"]
["Education: University of Manitoba"]
["Taylor Mitchell"]
["1 shared connection"]
["Connect"]
["Ron Wan"]
["Ron Wan  3rd degree connection3rd"]
["experienced actuary, insurance and reinsurance, business & product development, risk managment"]
["Hong Kong"]
["Education: University of Manitoba"]
["Send InMail"]
["Showing 762 results."]
["Cédric, you’re approaching the commercial use limit."]
["Please upgrade to LinkedIn Premium Business, Sales Navigator, or Recruiter to get unlimited people browsing."]
["Try Premium for free"]
["Learn more"]
["Katrina Lee-Kwen"]
["Katrina Lee-Kwen  2nd degree connection2nd"]
["Senior Vice-President, Insurance Solutions at Canada Life / Great-West Life / London Life"]
["Winnipeg, Canada Area"]
["Education: University of Manitoba"]
["Chris Jansen"]
["Theresa Van Walleghem"]
["2 shared connections"]
["Connect"]
["Denis Dondo"]
["Denis Dondo  3rd degree connection3rd"]
["VBA developper chez SAIL Plein Air / SAIL Outdoors"]
["Montreal, Canada Area"]
["Summary: ...degree from the University of Manitoba with a major..."]
["Send InMail"]
["Yuan Choong Eng"]
["Yuan Choong Eng  3rd degree connection3rd"]
["Experienced Financial Services Professional"]
["Greater Jakarta Area, Indonesia"]
["Education: University of Manitoba"]
["Send InMail"]
["Chu Yu"]
["Chu Yu  2nd degree connection2nd"]
["PPP Consultant"]
["Chengdu, Sichuan, China"]
["Education: University of Manitoba"]
["Bryn Peppler"]
["Bahruz Fatullali"]
["Chris A Tweten"]
["10 shared connections"]
["Connect"]
["Vivian Gao"]
["Vivian Gao  2nd degree connection2nd"]
["Claims Administrator at BMO Life Assurance"]
["Toronto, Canada Area"]
["Education: University of Manitoba"]
["Howard Harmatz"]
["CHENGZHE WEI"]
["Alok Dua"]
["3 shared connections"]
["Connect"]
["Po Fu"]
["Po Fu  2nd degree connection2nd"]
["Passionate New York Life Agent helping to protect families in Irvine California"]
["Orange County, California Area"]
["Education: University of Manitoba"]
["Troy Schuster, PHR"]
["1 shared connection"]
["Connect"]
["Prakash Vanguri"]
["Prakash Vanguri  3rd degree connection3rd"]
["Head of Enterprise Risk Management"]
["Greater New York City Area"]
["Education: University of Manitoba"]
["Send InMail"]
["Danny Yap"]
["Danny Yap  3rd degree connection3rd"]
["General Manager, Personal Lines"]
["Malaysia"]
["Education: University of Manitoba"]
["Send InMail"]
["Dennis Martin"]
["Dennis Martin  2nd degree connection2nd"]
["Senior Vice-President, Product & Business Development"]
["Indianapolis, Indiana Area"]
["Education: University of Manitoba"]
["Gregg Melnyk"]
["1 shared connection"]
["Connect"]
["Gabriela Macra"]
["Gabriela Macra  3rd degree connection3rd"]
["Head of Reserving at QBE European Operations"]
["London, United Kingdom"]
["Education: University of Manitoba"]
["Send InMail"]
["Showing 762 results."]
["Cédric, you’re approaching the commercial use limit."]
["Please upgrade to LinkedIn Premium Business, Sales Navigator, or Recruiter to get unlimited people browsing."]
["Try Premium for free"]
["Learn more"]
["Stanley Ko"]
["Stanley Ko  3rd degree connection3rd"]
["VP & AA at Ageas Insurance Company (Asia) Limited"]
["Hong Kong"]
["Education: University of Manitoba"]
["Send InMail"]
["Ann Wong"]
["Ann Wong  3rd degree connection3rd"]
["Director of Product Management at Constitution Group"]
["San Francisco Bay Area"]
["Education: University of Manitoba"]
["Send InMail"]
["Henry Wong"]
["Henry Wong  3rd degree connection3rd"]
["HR Business Partner at Euroclear"]
["Hong Kong"]
["Education: University of Manitoba"]
["Send InMail"]
["Avinash Jahajeeah"]
["Avinash Jahajeeah  3rd degree connection3rd"]
["Head - International Banking at Banque des Mascareignes Ltee (BPCE Group)"]
["Mauritius"]
["Education: University of Manitoba"]
["Send InMail"]
["Edward Lim Wei Sin"]
["Edward Lim Wei Sin  3rd degree connection3rd"]
["HSBC Product Implementation"]
["Singapore"]
["Education: University of Manitoba"]
["Send InMail"]
["Doug Brown BCom(Hons), FCIA, FSA"]
["Doug Brown BCom(Hons), FCIA, FSA  3rd degree connection3rd"]
["Executive Vice President and CEO, UK Division at Canada Life"]
["London, United Kingdom"]
["Education: University of Manitoba"]
["Send InMail"]
["Harindra Sebastian"]
["Harindra Sebastian  2nd degree connection2nd"]
["Senior Consulting Actuary at Willis Towers Watson"]
["Greater Atlanta Area"]
["Education: University of Manitoba"]
["Iqbal Shah"]
["Stephen McNamara, FSA, MAAA"]
["Krishna Patel"]
["7 shared connections"]
["Connect"]
["R. Jason Cook"]
["R. Jason Cook  3rd degree connection3rd"]
["Actuary at TigerRisk Partners"]
["Greater Minneapolis-St. Paul Area"]
["Past: Actuarial Analyst at Manitoba Public Insurance"]
["Send InMail"]
["Eli Cohen"]
["Eli Cohen  3rd degree connection3rd"]
["Data Analysis and Project Management Consultant"]
["Flagstaff, Arizona Area"]
["Education: University of Manitoba"]
["Send InMail"]
["Jaiganesh Baskaran"]
["Jaiganesh Baskaran  3rd degree connection3rd"]
["Executive Manager at Zurich Insurance Company Ltd"]
["Kuala Lumpur, Malaysia"]
["Education: University of Manitoba"]
["Send InMail"]
["Showing 762 results."]
["Cédric, you’re approaching the commercial use limit."]
["Please upgrade to LinkedIn Premium Business, Sales Navigator, or Recruiter to get unlimited people browsing."]
["Try Premium for free"]
["Learn more"]
["Avery Cook"]
["Avery Cook  3rd degree connection3rd"]
["Managing Director Global Agriculture Analytics at Aon Benfield"]
["Greater Chicago Area"]
["Education: University of Manitoba"]
["Send InMail"]
["Rob Bacher"]
["Rob Bacher  2nd degree connection2nd"]
["Manager, International Benefits"]
["Houston, Texas Area"]
["Education: University of Manitoba"]
["Charly Pazdor"]
["Jerry Krecek"]
["Troy Schuster, PHR"]
["4 shared connections"]
["Connect"]
["Vernisha Budhia"]
["Vernisha Budhia  2nd degree connection2nd"]
["Student at Asper School of Business"]
["Winnipeg, Canada Area"]
["Past: Actuarial Intern at Great-West Life"]
["Michael Benarroch"]
["Sean Seavers"]
["Shelley Sjoberg"]
["15 shared connections"]
["Connect"]
["Jason Ellement"]
["Jason Ellement  3rd degree connection3rd"]
["Senior Vice President at Callan Associates"]
["San Francisco Bay Area"]
["Education: University of Manitoba"]
["Send InMail"]
["Adrian Kryszak, FSA MAAA"]
["Adrian Kryszak, FSA MAAA  3rd degree connection3rd"]
["Actuary at Cambia Health Solutions"]
["Greater Seattle Area"]
["Education: University of Manitoba"]
["Send InMail"]
["Julie Pavlik"]
["Julie Pavlik  3rd degree connection3rd"]
["Director, Medical Cost Affordability, Community & State at UnitedHealthcare"]
["Greater Minneapolis-St. Paul Area"]
["Education: University of Manitoba"]
["Send InMail"]
["George Melnik"]
["George Melnik  3rd degree connection3rd"]
["Insurance Professional"]
["Kitchener, Canada Area"]
["Education: University of Manitoba"]
["Send InMail"]
["Nancy Williams"]
["Nancy Williams  3rd degree connection3rd"]
["Middle School Math Teacher"]
["Greater Boston Area"]
["Education: University of Manitoba"]
["Send InMail"]
["George Harris"]
["George Harris  2nd degree connection2nd"]
["Volunteering with Cuso International"]
["Winnipeg, Canada Area"]
["Summary: ...between Manitoba and Africa... background in actuarial..."]
["Rolande Kirouac - Workplace Energy"]
["1 shared connection"]
["Connect"]
["Edwin Steinberg, ASA,MAAA"]
["Edwin Steinberg, ASA,MAAA  3rd degree connection3rd"]
["at EJS Associates"]
["Miami/Fort Lauderdale Area"]
["Education: University of Manitoba"]
["Send InMail"]
["Showing 762 results."]
["Cédric, you’re approaching the commercial use limit."]
["Please upgrade to LinkedIn Premium Business, Sales Navigator, or Recruiter to get unlimited people browsing."]
["Try Premium for free"]
["Learn more"]
["Dennis Ho"]
["Dennis Ho  2nd degree connection2nd"]
["CEO at Longitude RE Limited"]
["Bermuda"]
["Education: The University of Manitoba"]
["Ron Harasym"]
["Michael Kula"]
["Guillaume Giasson-Morin, MBA"]
["3 shared connections"]
["Connect"]
["Alice Fontaine"]
["Alice Fontaine  2nd degree connection2nd"]
["President and Consulting Actuary in Life and Health Insurance Industry, FSA, FCIA, MAAA"]
["Austin, Texas Area"]
["Education: University of Manitoba"]
["Stuart Klugman"]
["Dave Kester"]
["Ron Harasym"]
["3 shared connections"]
["Connect"]
["Mike Morhun"]
["Mike Morhun  3rd degree connection3rd"]
["President Sage Pension Resources"]
["Greater Chicago Area"]
["Education: University of Manitoba"]
["Send InMail"]
["Martin Reeves"]
["Martin Reeves  2nd degree connection2nd"]
["VP, Product Solutions at Sun Life Financial Hong Kong"]
["Hong Kong"]
["Education: University of Manitoba"]
["Iqbal Shah"]
["Dhruv Gupta"]
["Alon Halbrich, FCIA, FSA"]
["6 shared connections"]
["Connect"]
["LinkedIn Member"]
["VP of Finance and Administrative Services at Vein Clinic PA"]
["Greater Minneapolis-St. Paul Area"]
["Education: University of Manitoba"]
["Connect"]
["Genghui Wu"]
["Genghui Wu  3rd degree connection3rd"]
["Vice President & Actuary at Prudential Financial"]
["Greater New York City Area"]
["Education: University of Manitoba"]
["Send InMail"]
["Rainer Germann"]
["Rainer Germann  3rd degree connection3rd"]
["Emerging Markets Portfolio Manager"]
["Greater Seattle Area"]
["Education: University of Manitoba"]
["Send InMail"]
["LinkedIn Member"]
["Sales Administration Manager at SG Gaming"]
["Macao"]
["Education: University of Manitoba"]
["Connect"]
["Gordon Creber"]
["Gordon Creber  3rd degree connection3rd"]
["- at GGY AXIS"]
["Toronto, Canada Area"]
["Education: University of Manitoba"]
["Send InMail"]
["Bill Gooden"]
["Bill Gooden  3rd degree connection3rd"]
["President, Gooden Actuarial Consultants Ltd."]
["Calgary, Canada Area"]
["Education: University of Manitoba"]
["Send InMail"]
["Showing 762 results."]
["Cédric, you’re approaching the commercial use limit."]
["Please upgrade to LinkedIn Premium Business, Sales Navigator, or Recruiter to get unlimited people browsing."]
["Try Premium for free"]
["Learn more"]
["Markus Lill"]
["Markus Lill  2nd degree connection2nd"]
["Studium: Technische Universität München"]
["Munich Area, Germany"]
["Education: University of Manitoba"]
["Amber Pohl"]
["Michael Gussakovsky"]
["2 shared connections"]
["Connect"]
["Alex Kogan"]
["Alex Kogan Alex Kogan is a Premium member  2nd degree connection2nd"]
["Senior Vice President and Actuary at Chubb"]
["Greater New York City Area"]
["Education: University of Manitoba"]
["Iqbal Shah"]
["Ron Harasym"]
["Troy Schuster, PHR"]
["6 shared connections"]
["Connect"]
["Kwasi Foh-Asare"]
["Kwasi Foh-Asare Kwasi Foh-Asare is a Premium member  3rd degree connection3rd"]
["Client Service Representative at Investors Group"]
["Winnipeg, Canada Area"]
["Past: Teaching Assistant and Grader/Marker at University of Manitoba"]
["InMail"]
["Frederick Sackey"]
["Frederick Sackey  1st degree connection1st"]
["Actuarial Intern at Great-West Life"]
["Winnipeg, Canada Area"]
["Education: University of Manitoba"]
["Neil Redpath"]
["Ivraj Plaha"]
["Adam Pawlak"]
["49 shared connections"]
["Message"]
["Kumar Kanisan"]
["Kumar Kanisan  2nd degree connection2nd"]
["Senior Manager at Deloitte Consulting"]
["Greater Chicago Area"]
["Education: University of Manitoba"]
["Krishna Patel"]
["Michael Kula"]
["2 shared connections"]
["Connect"]
["Genghui Wu"]
["Genghui Wu  2nd degree connection2nd"]
["Senior Investment Vice President at Prudential Financial"]
["Greater New York City Area"]
["Education: University of Manitoba"]
["Stuart Klugman"]
["Ron Harasym"]
["Michael Kula"]
["4 shared connections"]
["Connect"]
["Bob Chmielnicki"]
["Bob Chmielnicki  3rd degree connection3rd"]
["Financial Advisor at The Co-operators"]
["Canada"]
["Education: University of Manitoba"]
["Send InMail"]
["LinkedIn Member"]
["Leisure, Travel & Tourism Professional"]
["Winnipeg, Canada Area"]
["Education: University of Manitoba"]
["Connect"]
["Philip Fosu"]
["Philip Fosu  3rd degree connection3rd"]
["Consultant at Morneau Sobeco"]
["Toronto, Canada Area"]
["Education: University of Manitoba"]
["Send InMail"]
["LinkedIn Member"]
["Public Works and Government Services Canada"]
["Ottawa, Canada Area"]
["Education: University of Manitoba"]
["Connect"]
["Showing 762 results."]
["Cédric, you’re approaching the commercial use limit."]
["Please upgrade to LinkedIn Premium Business, Sales Navigator, or Recruiter to get unlimited people browsing."]
["Try Premium for free"]
["Learn more"]
["Miao Zhang"]
["Miao Zhang  2nd degree connection2nd"]
["Statistical Data Analyst in Programming, Vaccine"]
["Beijing City, China"]
["Summary: ...from the University of Manitoba... and Actuarial Science..."]
["Yan Wu"]
["1 shared connection"]
["Connect"]
["Georg Huber"]
["Georg Huber  2nd degree connection2nd"]
["Werkstudent im Aktuariat Kraftfahrt/Sach bei Versicherungskammer Bayern"]
["Munich Area, Germany"]
["Education: University of Manitoba"]
["Michael Gussakovsky"]
["1 shared connection"]
["Connect"]
["Vrad Vodrazka"]
["Vrad Vodrazka  2nd degree connection2nd"]
["VP Actuary at Hannover Re"]
["Orlando, Florida Area"]
["Education: University of Manitoba"]
["Troy Schuster, PHR"]
["1 shared connection"]
["Connect"]
["Gord Latter"]
["Gord Latter  2nd degree connection2nd"]
["EVP at Ryan Labs Asset Management"]
["Greater Minneapolis-St. Paul Area"]
["Education: University of Manitoba"]
["Edward Swerhone"]
["1 shared connection"]
["Connect"]
["Marc Rochon"]
["Marc Rochon  2nd degree connection2nd"]
["Director of Analytics at Periscope"]
["Greater Minneapolis-St. Paul Area"]
["Summary: ...in Actuarial Mathematics from the University..."]
["Kyle Meilleur"]
["1 shared connection"]
["Connect"]
["Karen Christie"]
["Karen Christie  2nd degree connection2nd"]
["Consulting Actuary at Towers Watson"]
["Greater Chicago Area"]
["Education: University of Manitoba"]
["Edrian Soria"]
["1 shared connection"]
["Connect"]
["George Kesselman"]
["George Kesselman  2nd degree connection2nd"]
["Revolutionising Insurance via InsurTech"]
["Singapore"]
["Education: University of Manitoba"]
["Dhruv Gupta"]
["Jess Evan Davis"]
["2 shared connections"]
["Connect"]
["Benny Chung-Ying Zee"]
["Benny Chung-Ying Zee  3rd degree connection3rd"]
["Professor/Head of Biostatistics, JC School of Public Health and Primary Care, CUHK"]
["Hong Kong"]
["Education: University of Manitoba"]
["Send InMail"]
["Paul Shapansky"]
["Paul Shapansky Paul Shapansky is a Premium member  2nd degree connection2nd"]
["Partner at B2B CFO® specializing in M&A, Exit Strategies, Increasing Profitability, Cash Flow, and Company Value"]
["Miami/Fort Lauderdale Area"]
["Education: University of Manitoba"]
["Charly Pazdor"]
["1 shared connection"]
["Connect"]
["Jun(Jon) Chang"]
["Jun(Jon) Chang  2nd degree connection2nd"]
["Account Assistant at Aon-COFCO"]
["Shanghai Suburb, China"]
["Education: University of Manitoba"]
["Bryn Peppler"]
["Justin Scott"]
["Aaron Yanofsky, ASA, ACIA, CERA"]
["5 shared connections"]
["Connect"]
["Showing 762 results."]
["Cédric, you’re approaching the commercial use limit."]
["Please upgrade to LinkedIn Premium Business, Sales Navigator, or Recruiter to get unlimited people browsing."]
["Try Premium for free"]
["Learn more"]
["Marissa Strominger"]
["Marissa Strominger Marissa Strominger is a Premium member  3rd degree connection3rd"]
["VP Senior Director Marketing | Expertise in B2B, B2C, Software | Open to New Opportunities"]
["Greater New York City Area"]
["Education: University of Manitoba - Asper School of Business Management"]
["InMail"]
["Judith Segal"]
["Judith Segal  3rd degree connection3rd"]
["Director Biostatistics at Puma Biotechnology"]
["Greater Minneapolis-St. Paul Area"]
["Education: University of Manitoba"]
["Send InMail"]
["Leo He"]
["Leo He  3rd degree connection3rd"]
["Data Analyst Seeking New Opportunities"]
["San Francisco Bay Area"]
["Education: Univesity of Manitoba"]
["Send InMail"]
["Jimmy Lu"]
["Jimmy Lu  3rd degree connection3rd"]
["Partner at Fancy Star China 毅星中国"]
["San Francisco Bay Area"]
["Education: University of Manitoba"]
["Send InMail"]
["Leo Cheung"]
["Leo Cheung  3rd degree connection3rd"]
["Deputy General Manager at Four Seas Mercantile Limited"]
["Hong Kong"]
["Education: University of Manitoba"]
["Send InMail"]
["Kyle Baley"]
["Kyle Baley  3rd degree connection3rd"]
["Software Engineer at Particular Software"]
["Panama"]
["Education: University of Manitoba"]
["Send InMail"]
["Les Kuklinski"]
["Les Kuklinski  3rd degree connection3rd"]
["Senior Solution Architect at CSS International"]
["Greater Los Angeles Area"]
["Education: University of Manitoba"]
["Send InMail"]
["Samuel Suen"]
["Samuel Suen  3rd degree connection3rd"]
["Private Venture Investments"]
["Hong Kong"]
["Education: University of Manitoba"]
["Send InMail"]
["Cheng Wee Cheat"]
["Cheng Wee Cheat  3rd degree connection3rd"]
["Regional Finance Director at Johnson & Johnson"]
["Singapore"]
["Education: University of Manitoba"]
["Send InMail"]
["Kirby Richter"]
["Kirby Richter  3rd degree connection3rd"]
["Principal Database Architect / Administrator at Dell EMC"]
["Greater Minneapolis-St. Paul Area"]
["Education: University of Manitoba"]
["Send InMail"]
["Showing 762 results."]
["Cédric, you’re approaching the commercial use limit."]
["Please upgrade to LinkedIn Premium Business, Sales Navigator, or Recruiter to get unlimited people browsing."]
["Try Premium for free"]
["Learn more"]
["Allen Wu"]
["Allen Wu  3rd degree connection3rd"]
["Bloomberg"]
["Singapore"]
["Education: University of Manitoba"]
["Connect"]
["LinkedIn Member"]
["Wealth Planner UHNW, UBS AG Singapore"]
["Singapore"]
["Education: University of Manitoba"]
["Connect"]
["Edmond Wong"]
["Edmond Wong  3rd degree connection3rd"]
["Strategy Alliance at Metlife LIMITED"]
["Hong Kong"]
["Education: University of Manitoba"]
["Send InMail"]
["Wong Shiaw Shien"]
["Wong Shiaw Shien  3rd degree connection3rd"]
["Mortgage Loan Specialist @ United Overseas Bank (Malaysia) Ltd"]
["Sarawak, Malaysia"]
["Education: University of Manitoba"]
["Send InMail"]
["Paarthiban Krishnan"]
["Paarthiban Krishnan Paarthiban Krishnan is a Premium member  3rd degree connection3rd"]
["Group Controller at ON Semiconductor"]
["Phoenix, Arizona Area"]
["Education: University of Manitoba"]
["Send InMail"]
["Bo Wang"]
["Bo Wang  3rd degree connection3rd"]
["负责人"]
["Shanghai Suburb, China"]
["Education: University of Manitoba"]
["Send InMail"]
["Alex Tan"]
["Alex Tan  3rd degree connection3rd"]
["Founder of GoFun.Asia"]
["Kuala Lumpur, Malaysia"]
["Education: University of Manitoba"]
["Send InMail"]
["David Haverick"]
["David Haverick  3rd degree connection3rd"]
["Sr. Director, Corporate Benefits & HR Finance at PotashCorp"]
["Greater Chicago Area"]
["Education: University of Manitoba"]
["Send InMail"]
["Mel Todd"]
["Mel Todd  3rd degree connection3rd"]
["Managing Principal at COLI Consulting Group LLC"]
["Greensboro/Winston-Salem, North Carolina Area"]
["Education: University of Manitoba"]
["Send InMail"]
["Peggy Man"]
["Peggy Man  3rd degree connection3rd"]
["Associate at Coutts"]
["Hong Kong"]
["Education: University of Manitoba"]
["Send InMail"]
["Showing 762 results."]
["Cédric, you’re approaching the commercial use limit."]
["Please upgrade to LinkedIn Premium Business, Sales Navigator, or Recruiter to get unlimited people browsing."]
["Try Premium for free"]
["Learn more"]
["Dawna Bennett"]
["Dawna Bennett  3rd degree connection3rd"]
["Senior Operations Professional"]
["Greater Denver Area"]
["Education: University of Manitoba"]
["Send InMail"]
["Meng Li"]
["Meng Li  3rd degree connection3rd"]
["Finance"]
["Winnipeg, Canada Area"]
["Education: University of Manitoba"]
["Send InMail"]
["Hong Yick Khor"]
["Hong Yick Khor  3rd degree connection3rd"]
["Planning and Controlling at Allianz SE Reinsurance Branch Asia Pacific"]
["Singapore"]
["Education: University of Manitoba"]
["Send InMail"]
["LinkedIn Member"]
["Insurance Professional"]
["Winnipeg, Canada Area"]
["Education: The University of Manitoba"]
["Connect"]
["Ounesh Reebye"]
["Ounesh Reebye  3rd degree connection3rd"]
["Vice President, Streaming Operations & Metal Sales at Silver Wheaton (Cayman)"]
["Cayman Islands"]
["Education: University of Manitoba"]
["Send InMail"]
["Ivan Lee"]
["Ivan Lee  3rd degree connection3rd"]
["Localization Expert Looking for Opportunities"]
["Greater Seattle Area"]
["Education: University of Manitoba"]
["Send InMail"]
["Geok Bee Teh"]
["Geok Bee Teh  3rd degree connection3rd"]
["Manager at PAMB"]
["Malaysia"]
["Education: University of Manitoba"]
["Send InMail"]
["Karl Froese"]
["Karl Froese  3rd degree connection3rd"]
["Strategic Product Leader | Managed Healthcare |"]
["Greater Minneapolis-St. Paul Area"]
["Education: University of Manitoba"]
["Send InMail"]
["LinkedIn Member"]
["CEO at BridgeWorks, LLC"]
["San Francisco Bay Area"]
["Education: University of Manitoba"]
["Connect"]
["Yi Yang"]
["Yi Yang  2nd degree connection2nd"]
["Supply Chain Operations Analyst"]
["Winnipeg, Canada Area"]
["Education: University of Manitoba"]
["Chunli Liang"]
["1 shared connection"]
["Connect"]
["Showing 762 results."]
["Cédric, you’re approaching the commercial use limit."]
["Please upgrade to LinkedIn Premium Business, Sales Navigator, or Recruiter to get unlimited people browsing."]
["Try Premium for free"]
["Learn more"]
["Dan Anderson"]
["Dan Anderson  2nd degree connection2nd"]
["Financial and Business Analysis - Canada"]
["Toronto, Canada Area"]
["Summary: Intuitive and analytical... professional actuarial..."]
["Charly Pazdor"]
["1 shared connection"]
["Connect"]
["Peter Stalder"]
["Peter Stalder  3rd degree connection3rd"]
["Owner at Peter Stalder Consultant"]
["San Francisco Bay Area"]
["Education: University of Manitoba"]
["Send InMail"]
["Bob Shaw"]
["Bob Shaw Bob Shaw is a Premium member  3rd degree connection3rd"]
["President, Individual Markets at Great-West Financial"]
["Greater Denver Area"]
["Education: University of Manitoba"]
["InMail"]
["Elaine Hwang"]
["Elaine Hwang  3rd degree connection3rd"]
["Director, Benefits Hong Kong at Willis Towers Watson"]
["Hong Kong"]
["Education: University of Manitoba"]
["Send InMail"]
["Sharon Cheung"]
["Sharon Cheung  3rd degree connection3rd"]
["Senior Manager, CEO office"]
["Hong Kong"]
["Education: University of Manitoba"]
["Send InMail"]
["Ivan Chak"]
["Ivan Chak  2nd degree connection2nd"]
["CEO - Life Insurance Hong Kong (Under Preparation) at Fosun Insurance Group"]
["Hong Kong"]
["Past: Chief Marketing Officer at AIA Korea"]
["Iqbal Shah"]
["1 shared connection"]
["Connect"]
["Andrew Schellenberg, CA"]
["Andrew Schellenberg, CA  2nd degree connection2nd"]
["Senior Financial Analyst at Google"]
["San Francisco Bay Area"]
["Education: University of Manitoba"]
["Kelly Mahoney"]
["1 shared connection"]
["Connect"]
["David Grapko"]
["David Grapko  3rd degree connection3rd"]
["Retired at Cigna"]
["Greater Denver Area"]
["Education: University of Manitoba"]
["Send InMail"]
["Marianne Cumming"]
["Marianne Cumming  3rd degree connection3rd"]
["Senior Vice President at Swiss Re"]
["Fort Wayne, Indiana Area"]
["Education: University of Manitoba"]
["Send InMail"]
["May Shuang Yu"]
["May Shuang Yu  3rd degree connection3rd"]
["Senior Pension Actuary at CalPERS"]
["Sacramento, California Area"]
["Education: University of Manitoba"]
["Send InMail"]
["Showing 762 results."]
["Cédric, you’re approaching the commercial use limit."]
["Please upgrade to LinkedIn Premium Business, Sales Navigator, or Recruiter to get unlimited people browsing."]
["Try Premium for free"]
["Learn more"]
["Richard Rougeau"]
["Richard Rougeau  3rd degree connection3rd"]
["Medical Director at AXA"]
["Greater St. Louis Area"]
["Education: University of Manitoba"]
["Send InMail"]
["Albert Lo"]
["Albert Lo  3rd degree connection3rd"]
["Owner, Teamwork Investment Asia Ltd"]
["Hong Kong"]
["Education: University of Manitoba"]
["Send InMail"]
["David Pauls"]
["David Pauls  3rd degree connection3rd"]
["Western Europe Regional Leader, Global Services & Solutions at Willis Towers Watson"]
["Zürich Area, Switzerland"]
["Education: University of Manitoba"]
["Send InMail"]
["Tracy Witter"]
["Tracy Witter  3rd degree connection3rd"]
["Partner, Retirement Market Leader N. California and Pacific Northwest at Aon Hewitt"]
["San Francisco Bay Area"]
["Education: University of Manitoba"]
["Send InMail"]
["Karl Gagnon"]
["Karl Gagnon  3rd degree connection3rd"]
["Assistant Actuary at Allianz Life"]
["Greater Minneapolis-St. Paul Area"]
["Education: University of Manitoba"]
["Send InMail"]
["Michael Fong"]
["Michael Fong  3rd degree connection3rd"]
["Managing Director, Charles Schwab Hong Kong at Charles Schwab"]
["Hong Kong"]
["Education: University of Manitoba"]
["Send InMail"]
["Nicole Delahanty"]
["Nicole Delahanty  3rd degree connection3rd"]
["Pavilion Advisory Group Inc."]
["Greater Minneapolis-St. Paul Area"]
["Education: University of Manitoba"]
["Send InMail"]
["Todd Owen"]
["Todd Owen  3rd degree connection3rd"]
["Chief Executive Officer at Windsor Strategy Solutions"]
["Greater New York City Area"]
["Education: University of Manitoba"]
["Send InMail"]
["Eric Thorlacius"]
["Eric Thorlacius  3rd degree connection3rd"]
["Head Financial Market Risk at Catlin"]
["Washington D.C. Metro Area"]
["Education: University of Manitoba"]
["Send InMail"]
["Chris Drome"]
["Chris Drome  3rd degree connection3rd"]
["Technical Yahoo at Yahoo Search"]
["San Francisco Bay Area"]
["Education: University of Manitoba"]
["Send InMail"]
["Showing 762 results."]
["Cédric, you’re approaching the commercial use limit."]
["Please upgrade to LinkedIn Premium Business, Sales Navigator, or Recruiter to get unlimited people browsing."]
["Try Premium for free"]
["Learn more"]
["Trevor Holland"]
["Trevor Holland  3rd degree connection3rd"]
["Retired from emloyee benefits and actuarual fields"]
["Greater St. Louis Area"]
["Education: University of Manitoba"]
["Send InMail"]
["Wayne Froese"]
["Wayne Froese  3rd degree connection3rd"]
["at MCG Energy Solutions LLC"]
["Greater Minneapolis-St. Paul Area"]
["Education: University of Manitoba"]
["Send InMail"]
["Vivian Chang"]
["Vivian Chang  3rd degree connection3rd"]
["Associate Actuary at WellPoint"]
["Greater Boston Area"]
["Education: University of Manitoba"]
["Send InMail"]
["LinkedIn Member"]
["President & CEO at FPB Financial Strategies Inc."]
["Saskatchewan, Canada"]
["Education: University of Manitoba"]
["Connect"]
["Derek Popkes"]
["Derek Popkes  3rd degree connection3rd"]
["Chief Risk Officer, Europe"]
["Ireland"]
["Education: University of Manitoba"]
["Send InMail"]
["Gabriel Yeung"]
["Gabriel Yeung  3rd degree connection3rd"]
["Vice President HNW Underwriting at AIA"]
["Hong Kong"]
["Education: University of Manitoba"]
["Send InMail"]
["Jane Yeo"]
["Jane Yeo  3rd degree connection3rd"]
["Regional VP at AIG"]
["Singapore"]
["Education: University of Manitoba"]
["Send InMail"]
["Peter Tilley"]
["Peter Tilley  3rd degree connection3rd"]
["Chief Financial Risk Officer at Great-West Financial"]
["Greater Denver Area"]
["Education: University of Manitoba"]
["Send InMail"]
["Marty Rosenbaum"]
["Marty Rosenbaum  3rd degree connection3rd"]
["Senior Health Care Consultant at MRC & Associates"]
["Greater Denver Area"]
["Education: University of Manitoba"]
["Send InMail"]
["Hock Eng Mah"]
["Hock Eng Mah  3rd degree connection3rd"]
["COO at Ozura Firstlogix"]
["Malaysia"]
["Education: University of Manitoba"]
["Send InMail"]
["Showing 762 results."]
["Cédric, you’re approaching the commercial use limit."]
["Please upgrade to LinkedIn Premium Business, Sales Navigator, or Recruiter to get unlimited people browsing."]
["Try Premium for free"]
["Learn more"]
["Vincent Leung"]
["Vincent Leung  3rd degree connection3rd"]
["Branch Manager at Top Image Systems"]
["Hong Kong"]
["Education: University of Manitoba"]
["Send InMail"]
["刘欣"]
["刘欣  3rd degree connection3rd"]
["Inventory Project Manager"]
["Shanghai Suburb, China"]
["Education: University of Manitoba"]
["Send InMail"]
["Yvonne Gao"]
["Yvonne Gao  3rd degree connection3rd"]
["Senior Actuairal Associate at Ernst & Young"]
["China"]
["Education: University of Manitoba"]
["Send InMail"]
["Larry Gerelus"]
["Larry Gerelus  3rd degree connection3rd"]
["Owner, Stag's Hollow Winery"]
["Canada"]
["Education: University of Manitoba"]
["Send InMail"]
["裘國偉博士Caleb Kau, Psy.D."]
["裘國偉博士Caleb Kau, Psy.D.  3rd degree connection3rd"]
["--"]
["Hong Kong"]
["Education: University of Manitoba"]
["Send InMail"]
["Paul Stefansson"]
["Paul Stefansson  3rd degree connection3rd"]
["Leader (former CEO) and Sales Manager with expertise in Discretionary Mandates, Funds, Hedge Funds and Private Equity"]
["Singapore"]
["Education: University of Manitoba"]
["Send InMail"]
["Siew Ding Lo"]
["Siew Ding Lo  3rd degree connection3rd"]
["Associate"]
["Singapore"]
["Education: University of Manitoba"]
["Send InMail"]
["Fred Abbott"]
["Fred Abbott  3rd degree connection3rd"]
["Director of Client Management, Northern California at Willis Towers Watson"]
["San Francisco Bay Area"]
["Summary: Fred Abbott is a Senior... from the University of Manitoba..."]
["Send InMail"]
["Chris Kam, CPA, CGA"]
["Chris Kam, CPA, CGA  3rd degree connection3rd"]
["Financial Analyst at AECOM"]
["Vancouver, Canada Area"]
["Education: University of Manitoba"]
["Send InMail"]
["Raj Bal"]
["Raj Bal  3rd degree connection3rd"]
["Consultant / Healthcare Entrepreneur"]
["Greater Milwaukee Area"]
["Education: University of Manitoba"]
["Send InMail"]
["Showing 762 results."]
["Cédric, you’re approaching the commercial use limit."]
["Please upgrade to LinkedIn Premium Business, Sales Navigator, or Recruiter to get unlimited people browsing."]
["Try Premium for free"]
["Learn more"]
["David Wilson"]
["David Wilson  3rd degree connection3rd"]
["President at Windsor Strategy Partners and Owner, Windsor Strategy Partners"]
["Greater New York City Area"]
["Education: University of Manitoba"]
["Send InMail"]
["Yu Chen Mu"]
["Yu Chen Mu  3rd degree connection3rd"]
["Quantitative Derivatives Analyst at Allianz Life"]
["Greater Minneapolis-St. Paul Area"]
["Education: University of Manitoba"]
["Send InMail"]
["King Lai"]
["King Lai  3rd degree connection3rd"]
["Associate Director at AIA HK"]
["Hong Kong"]
["Education: University of Manitoba"]
["Send InMail"]
["Poong Shen Lai"]
["Poong Shen Lai  3rd degree connection3rd"]
["--"]
["Selangor, Malaysia"]
["Education: University of Manitoba"]
["Send InMail"]
["Shui Lan Joanna Ng"]
["Shui Lan Joanna Ng  3rd degree connection3rd"]
["Statistical Reporting Analyst at WR Berkley"]
["Greater Chicago Area"]
["Education: University of Manitoba"]
["Send InMail"]
["Gai Hing Alex Wong"]
["Gai Hing Alex Wong  3rd degree connection3rd"]
["Executive Director"]
["Hong Kong"]
["Education: University of Manitoba"]
["Send InMail"]
["Bob Zoltok"]
["Bob Zoltok  3rd degree connection3rd"]
["Transitioning to Bridge (cards, not structural)"]
["Vancouver, Canada Area"]
["Education: University of Manitoba"]
["Send InMail"]
["LinkedIn Member"]
["Self Employed"]
["Selangor, Malaysia"]
["Education: University of Manitoba"]
["Connect"]
["Max Ng"]
["Max Ng  3rd degree connection3rd"]
["Business Development Manager at Micon Solid-State Engineering"]
["Hong Kong"]
["Education: University of Manitoba"]
["Send InMail"]
["LinkedIn Member"]
["university of Manitoba毕业"]
["Winnipeg, Canada Area"]
["Education: university of Manitoba"]
["Connect"]
["Showing 762 results."]
["Cédric, you’re approaching the commercial use limit."]
["Please upgrade to LinkedIn Premium Business, Sales Navigator, or Recruiter to get unlimited people browsing."]
["Try Premium for free"]
["Learn more"]
["Daniel Lennington, FSA, EA"]
["Daniel Lennington, FSA, EA  2nd degree connection2nd"]
["Senior Consulting Actuary at Willis Towers Watson"]
["Greater Chicago Area"]
["Education: University of Manitoba"]
["Jerry Krecek"]
["1 shared connection"]
["Connect"]
["LinkedIn Member"]
["Coachpraktijk Vrij Eten"]
["The Hague Area, Netherlands"]
["Summary: OPLEIDINGEN 2014-2015... : University of Manitoba [CA..."]
["Connect"]
["Sam Gu"]
["Sam Gu  2nd degree connection2nd"]
["Master student at Yale School of Public Health"]
["Greater New York City Area"]
["Education: University of Manitoba"]
["Yan Wu"]
["1 shared connection"]
["Connect"]
["Ching-Fai Pang"]
["Ching-Fai Pang  3rd degree connection3rd"]
["principal consultant at Phi Consulting Group, Inc."]
["San Francisco Bay Area"]
["Education: University of Manitoba"]
["Send InMail"]
["LinkedIn Member"]
["Consultant at N-Dimensional Computers inc."]
["Toronto, Canada Area"]
["Education: University of Manitoba"]
["Connect"]
["LinkedIn Member"]
["--"]
["Selangor, Malaysia"]
["Education: University of Manitoba"]
["Connect"]
["Jeff Howatt"]
["Jeff Howatt Jeff Howatt is a Premium member  3rd degree connection3rd"]
["Head of Retirement, Technology and Administration Services, North Asia (Japan and Korea) at Willis Towers Watson"]
["Within 23 wards, Tokyo, Japan"]
["Education: University of Manitoba"]
["Send InMail"]
["Brad Wladyka"]
["Brad Wladyka  3rd degree connection3rd"]
["Owner, Total Mortgage & Credit Services - The MORTGAGE Centre"]
["Winnipeg, Canada Area"]
["Education: University of Manitoba"]
["Send InMail"]
["Lorne Cooper"]
["Lorne Cooper  3rd degree connection3rd"]
["--"]
["Ottawa, Canada Area"]
["Summary: ...and is actuarial consultant... been a actuarial..."]
["Send InMail"]
["Raymond Tam"]
["Raymond Tam  2nd degree connection2nd"]
["Chief Risk Officer, Asia at Ageas"]
["Hong Kong"]
["Education: University of Manitoba"]
["Iqbal Shah"]
["1 shared connection"]
["Connect"]
["Showing 762 results."]
["Cédric, you’re approaching the commercial use limit."]
["Please upgrade to LinkedIn Premium Business, Sales Navigator, or Recruiter to get unlimited people browsing."]
["Try Premium for free"]
["Learn more"]
["LinkedIn Member"]
["Owner, Barca Capital Management"]
["Toronto, Canada Area"]
["Education: University of Manitoba"]
["Connect"]
["Elaine Noel-Bentley"]
["Elaine Noel-Bentley  2nd degree connection2nd"]
["Board member"]
["Calgary, Canada Area"]
["Education: University of Manitoba"]
["Charly Pazdor"]
["1 shared connection"]
["Connect"]
["LinkedIn Member"]
["Independent Financial Services Professional"]
["Melbourne, Australia"]
["Education: University of Manitoba"]
["Connect"]
["K Heather Power"]
["K Heather Power  3rd degree connection3rd"]
["Legislative Representative at Opticians of Manitoba"]
["Winnipeg, Canada Area"]
["Education: University of Manitoba"]
["Send InMail"]
["Jerry Dong"]
["Jerry Dong  3rd degree connection3rd"]
["Head of Asset Allocation and Research Dpt. at Shanghai Life Insurance Co. Ltd"]
["Shanghai City, China"]
["Education: University of Manitoba"]
["Send InMail"]
["Ruiqi Zeng"]
["Ruiqi Zeng  3rd degree connection3rd"]
["Bilingual Market Research Coder at Ipsos in North America"]
["Winnipeg, Canada Area"]
["Education: University of Manitoba"]
["Send InMail"]
["Denis Garand"]
["Denis Garand  3rd degree connection3rd"]
["President at DGA"]
["Saskatchewan, Canada"]
["Education: University of Manitoba"]
["Send InMail"]
["Raman Dhaliwal"]
["Raman Dhaliwal  3rd degree connection3rd"]
["Director Administration at Faculty of Health Sciences- University of Manitoba"]
["Canada"]
["Current: Director of Administration at Faculty of Health Sciences- University of Manitoba"]
["Send InMail"]
["Alfred Schorath"]
["Alfred Schorath  3rd degree connection3rd"]
["Certified Financial Planner at Sun Life Financial"]
["Calgary, Canada Area"]
["Education: University of Manitoba"]
["Send InMail"]
["Matthew Segal ASA, ACIA"]
["Matthew Segal ASA, ACIA  1st degree connection1st"]
["Actuarial Associate at Munich Re Canada"]
["Winnipeg, Canada Area"]
["Past: Statistics Teaching Assistant at University of Manitoba"]
["Chunli Liang"]
["Owais Jafry"]
["David Senensky"]
["136 shared connections"]
["Message"]
["Showing 762 results."]
["Cédric, you’re approaching the commercial use limit."]
["Please upgrade to LinkedIn Premium Business, Sales Navigator, or Recruiter to get unlimited people browsing."]
["Try Premium for free"]
["Learn more"]
["Calvin Cheng"]
["Calvin Cheng  1st degree connection1st"]
["Actuarial Mathematics Student"]
["Winnipeg, Canada Area"]
["Past: Secretary at University of Manitoba Actuarial Club"]
["Chunli Liang"]
["Ben Tallin"]
["Yipin Guo"]
["30 shared connections"]
["Message"]
["LinkedIn Member"]
["Actuary at Baker Actuarial Services"]
["Ottawa, Canada Area"]
["Education: University of Manitoba"]
["Connect"]
["Ian Baker"]
["Ian Baker  3rd degree connection3rd"]
["Consulting Actuary at Baker Actuarial Services"]
["British Columbia, Canada"]
["Education: University of Manitoba"]
["Send InMail"]
["Ling Chen (Tony) Shi"]
["Ling Chen (Tony) Shi  1st degree connection1st"]
["Support Worker At St.Amant Foundation"]
["Winnipeg, Canada Area"]
["Current: Grader/Marker at University of Manitoba"]
["Chunli Liang"]
["Randy D. Penner"]
["Beilin Ye"]
["12 shared connections"]
["Message"]
["Frank Withoos"]
["Frank Withoos  2nd degree connection2nd"]
["Instructor at Kumon of Fort Garry"]
["Winnipeg, Canada Area"]
["Education: University of Manitoba"]
["Iqbal Shah"]
["1 shared connection"]
["Connect"]
["Corwin Zass"]
["Corwin Zass Corwin Zass is a Premium member  3rd degree connection3rd"]
["Actuarial Risk Management Principal & Industry Leading Senior Consulting Actuary serving BDO and Top 30 Accounting Firms"]
["Austin, Texas Area"]
["Summary: ...Actuary of Actuarial Risk... for solid actuarial advice..."]
["Send InMail"]
["Rebecca Burrows"]
["Rebecca Burrows  3rd degree connection3rd"]
["Owner Bleue Coyote Bar & Grill."]
["British Columbia, Canada"]
["Education: University of Manitoba"]
["Send InMail"]
["Margaret Proven"]
["Margaret Proven  3rd degree connection3rd"]
["Director, HR Corporate Office, Exec Comp & Pensions at Canwest"]
["Winnipeg, Canada Area"]
["Education: University of Manitoba"]
["Send InMail"]
["Arkadiusz Bandosz"]
["Arkadiusz Bandosz  2nd degree connection2nd"]
["Managing Director, RGA Italy"]
["Rome Area, Italy"]
["Education: University of Manitoba"]
["Iqbal Shah"]
["Troy Schuster, PHR"]
["2 shared connections"]
["Connect"]
["Ethan Huberman"]
["Ethan Huberman  3rd degree connection3rd"]
["Manager at Jubilee Rose Enterprises Ltd."]
["Vancouver, Canada Area"]
["Education: University of Manitoba"]
["Send InMail"]
["Showing 762 results."]
["Cédric, you’re approaching the commercial use limit."]
["Please upgrade to LinkedIn Premium Business, Sales Navigator, or Recruiter to get unlimited people browsing."]
["Try Premium for free"]
["Learn more"]
["Wayne Macedo"]
["Wayne Macedo  3rd degree connection3rd"]
["AVP - Chief Underwriter and Claims Head - Latin America at SCOR Global Life Americas"]
["Charlotte, North Carolina Area"]
["Education: University of Manitoba"]
["Send InMail"]
["LinkedIn Member"]
["Office Manager at Samena Capital Hong Kong Ltd."]
["Hong Kong"]
["Education: University of Manitoba (Canada)"]
["Connect"]

{"sheet":"User Interface","index":1,"n_rows":26,"n_cols":14,"rows_kept":26,"cut":false,"hidden":false,"merged":[[21,5,21,8],[22,6,22,7],[19,4,20,9],[19,12,20,14],[1,1,2,18],[6,3,8,16],[17,3,18,16]]}
[]
[null,"UMAC Graduate Database"]
[]
[]
[]
[]
[null,null,null,"SHOW ME…"]
[]
[]
[]
[]
[]
[]
[]
[]
[]
[]
[null,null,null,"SEARCH A NAME…"]
[]
[null,null,null,null,"Input",null,null,null,null,null,null,null,"Output"]
[]
[null,null,null,null,null,"Name to search (first or last)",null,null,null,null,null,null,"Name",{"$f":"VLOOKUP(\"*\"&G23&\"*\",'Raw (Cleaned) Data'!C3:H763,1,FALSE)","v":" "}]
[null,null,null,null,null,null,null,null,null,null,null,null,"Position",{"$f":"VLOOKUP(\"*\"&G23&\"*\",'Raw (Cleaned) Data'!C3:H763,2,FALSE)","v":" "}]
[null,null,null,null,null,null,null,null,null,null,null,null,"Company",{"$f":"VLOOKUP(\"*\"&G23&\"*\",'Raw (Cleaned) Data'!C3:H763,3,FALSE)","v":" "}]
[null,null,null,null,null,null,null,null,null,null,null,null,"City",{"$f":"VLOOKUP(\"*\"&G23&\"*\",'Raw (Cleaned) Data'!C3:H763,4,FALSE)","v":" "}]
[null,null,null,null,null,null,null,null,null,null,null,null,"Country",{"$f":"VLOOKUP(\"*\"&G23&\"*\",'Raw (Cleaned) Data'!C3:H763,5,FALSE)","v":" "}]

{"sheet":"Visual 1","index":2,"n_rows":0,"n_cols":0,"rows_kept":0,"cut":false,"hidden":true,"merged":[]}

{"sheet":"Visual 2","index":3,"n_rows":0,"n_cols":0,"rows_kept":0,"cut":false,"hidden":true,"merged":[]}

{"sheet":"Visual 3","index":4,"n_rows":0,"n_cols":0,"rows_kept":0,"cut":false,"hidden":true,"merged":[]}

{"sheet":"Visual 4","index":5,"n_rows":0,"n_cols":0,"rows_kept":0,"cut":false,"hidden":true,"merged":[]}

{"sheet":"Raw (Cleaned) Data","index":6,"n_rows":764,"n_cols":8,"rows_kept":764,"cut":false,"hidden":false,"merged":[]}
[]
[null,"Primary Key","Name","Position","Company","City","Country","Other info"]
[null,null," "," "," "," "," "," "]
[null,1,"Michael Etkin","University of Manitoba Actuarial Club Promotions Coordinator","","Winnipeg","Canada","Current: Actuarial Intern at Manitoba Public Insurance"]
[null,2,"Patrick Solmundson","Actuarial Student","University of Manitoba","Winnipeg","Canada","Summary: ...and articulate actuarial student... of the University of Manitoba..."]
[null,3,"Nolan Kennedy","Actuarial Student","Asper School of Business - University of Manitoba","Winnipeg","Canada","Past: Student Internet Technician at University of Manitoba"]
[null,4,"Ben Tallin","Actuarial Mathematics Student","The University of Manitoba","Winnipeg","Canada","Summary: ...actuarial mathematics... with the University of Manitoba..."]
[null,5,"Eric Dufault","Actuarial Student - University of Manitoba","","Winnipeg","Canada","Current: Actuarial Student at University of Manitoba"]
[null,6,"Yifan Jiang","Actuarial Mathematics & Accounting student","University of Manitoba","Winnipeg","Canada","Education: University of Manitoba"]
[null,7,"Andrew Hewett","Actuary Student","University of Manitoba","Winnipeg","Canada","Education: University of Manitoba"]
[null,8,"Karl Reyes","Actuarial Mathematics Student","the University of Manitoba","Winnipeg","Canada","Education: University of Manitoba"]
[null,9,"Adam Oye","Actuarial Analyst - WCB Manitoba","","Winnipeg","Canada","Current: Actuarial Analyst at WCB Manitoba"]
[null,10,"Sharon, Ruiyun Long","Student","University of Manitoba","Winnipeg","Canada","Education: University of Manitoba"]
[null,11,"Melissa Hrichishen","Actuarial Mathematics Student","University of Manitoba","Winnipeg","Canada","Education: University of Manitoba"]
[null,12,"yan ying wu","Student","University of Manitoba",null,"Canada","Education: University of Manitoba"]
[null,13,"Sean Seavers","Student","University of Manitoba","Winnipeg","Canada","Summary: ...of Manitoba studying Actuarial... - University of Manitoba..."]
[null,14,"Alexander Loscerbo","Student","University of Manitoba","Winnipeg","Canada","Education: University of Manitoba"]
[null,15,"Yash Rajpara","Actuarial Student","University of Manitoba","Winnipeg","Canada","Education: University of Manitoba"]
[null,16,"Trevor Panchyshyn","Student","University of Manitoba","Manitoba","Canada","Education: University of Manitoba"]
[null,17,"Linghua Wei","Research Assistant","University of Manitoba","Winnipeg","Canada","Current: ...Actuarial Research Conference, University of Minnesota..."]
[null,18,"Alexander Sachs","Student","University of Manitoba","Winnipeg","Canada","Education: University of Manitoba"]
[null,19,"Gabrielle Lemire","Student","University of Manitoba","Winnipeg","Canada","Education: University of Manitoba"]
[null,20,"Kim Kim Ly","Account Payable Assistant","University of Manitoba","Winnipeg","Canada","Michael Benarroch"]
[null,21,"Guangyu Xing","Student","University of Manitoba","Winnipeg","Canada","Past: Research Assistant at University of Manitoba"]
[null,22,"Christian Torfason","Student","University of Manitoba","Winnipeg","Canada","Education: University of Manitoba"]
[null,23,"Jeffray Nicolas","Graduate Actuary from the University of Manitoba","","Winnipeg","Canada","Summary: ...in actuarial mathematics... of gaining actuarial..."]
[null,24,"Mengqi Zhang","Student Leadership Development Program Facilitator","University of Manitoba","Winnipeg","Canada","Current: Student Leadership Workshop Facilitator at University of Manitoba"]
[null,25,"Sergiu Buda","Actuarial Student","The Great-West Life Assurance Company","Winnipeg","Canada","Past: Research Assistant at University of Manitoba"]
[null,26,"RONGMEI LI","Actuarial Student","University of Manitoba",null,"Canada","Education: University of Manitoba"]
[null,27,"Aaron Yanofsky, ASA, ACIA, CERA","Actuarial Associate","Great-West Life","Winnipeg","Canada","Past: Marker - Asper School of Business at University of Manitoba"]
[null,28,"Elizabeth Wanke","Actuarial Co-op","Munich Re Canada","Winnipeg","Canada","Past: Co-President at University of Manitoba Actuarial Club"]
[null,29,"chenxi zhao","Student","University of Manitoba","Winnipeg","Canada","Education: University of Manitoba"]
[null,30,"Lorena Ardebol","Student","University of Manitoba","Winnipeg","Canada","Education: University of Manitoba"]
[null,31,"Christian Guevarra","Student","University of Manitoba","Winnipeg","Canada","Education: University of Manitoba"]
[null,32,"Barbara Hanchard","Director","University of Manitoba","Winnipeg","Canada","Past: Senior Actuarial Systems Analyst at Great West Life Assurance"]
[null,33,"Jeffrey Umandap","Actuarial Intern","Great-West Life","Winnipeg","Canada","Education: University of Manitoba"]
[null,34,"David Senensky","Actuarial Associate","Great-West Life","Winnipeg","Canada","Education: University of Manitoba"]
[null,35,"Devin Kinley","Actuarial Intern","Wawanesa Mutual Insurance Co.","Winnipeg","Canada","Past: Interest Theory Grader at University of Manitoba"]
[null,36,"Roger Tran","Actuarial Analyst","Sun Life Financial","Winnipeg","Canada","Education: University of Manitoba"]
[null,37,"PARTHKUMAR PATEL","Accounting Grader/Marker","University of Manitoba","Winnipeg","Canada","Ivraj Plaha"]
[null,38,"Nathania Frederica","Actuarial Student","Investors Group","Winnipeg","Canada","Current: Grader / Marker at University of Manitoba"]
[null,39,"Kyle A. Casalla","Actuarial Analyst","Sun Life Financial, Actuarial Science Student","Winnipeg","Canada","Summary: ...in Actuarial Mathematics... the University of Manitoba..."]
[null,40,"Neil Redpath","Actuarial Intern","Great-West Life","Winnipeg","Canada","Avi Saper"]
[null,41,"Ziwei Jiang","Student","University of Manitoba","Winnipeg","Canada","Education: University of Manitoba"]
[null,42,"Taylor Mitchell","Actuarial Intern","Wawanesa Insurance","Winnipeg","Canada","Education: University of Manitoba"]
[null,43,"Andrea Leong","Actuarial Analyst","Great-West Life","Winnipeg","Canada","Education: University of Manitoba"]
[null,44,"Bradley Abells","Actuarial Intern","Munich Re Canada","Winnipeg","Canada","Education: University of Manitoba"]
[null,45,"Chipwa Banda","Student","University of Manitoba","Winnipeg","Canada","Summary: ...at the University of Manitoba... in Actuarial Mathematics and a..."]
[null,46,"Stefan Baluta","Actuarial Analyst","Wawanesa Insurance","Winnipeg","Canada","Summary: ...of the University of Manitoba... in Actuarial Math and Finance. I..."]
[null,47,"Timothy Rempel","Actuarial Analyst","Great-West Life","Winnipeg","Canada","Education: University of Manitoba"]
[null,48,"Thanh Thanh Nguyen","Actuarial Analyst","Benchmark Decisions Ltd","Winnipeg","Canada","Education: University of Manitoba"]
[null,49,"Alexandra Gorlick","Actuarial Analyst","Ellement Consulting Group","Winnipeg","Canada","Education: University of Manitoba"]
[null,50,"Julia Gudmundson","Actuarial Associate","Great-West Life","Winnipeg","Canada","Education: University of Manitoba"]
[null,51,"Anh Pham","Actuarial Co-op","Aon Hewitt","Vancouver","Canada","Education: University of Manitoba"]
[null,52,"Sean McFetridge","Actuarial Analyst","Mercer","Toronto","Canada","Past: Research Assistant, Executive Compensation at University of Manitoba"]
[null,53,"Ella Nguyen","Student","University of Manitoba","Winnipeg","Canada","Education: University of Manitoba"]
[null,54,"Maria Santiano","Student","University of Manitoba","Winnipeg","Canada","Education: University of Manitoba"]
[null,55,"Brad Perrella","Student","University of Manitoba","Winnipeg","Canada","Education: University of Manitoba"]
[null,56,"Stephen Swenarchuk","Senior Actuarial Associate","Worden Zaluski Consulting Actuaries Ltd.","Winnipeg","Canada","Education: University of Manitoba"]
[null,57,"adam wishnowski","Attended University of Manitoba","","Winnipeg","Canada","Education: University of Manitoba"]
[null,58,"Melanie Skiarski","Actuarial Analyst","Mercer","Toronto","Canada","Past: Co-President at University of Manitoba Actuarial Club"]
[null,59,"Justin Scott","Actuarial Associate","Great-West Life","Manitoba","Canada","Education: University of Manitoba"]
[null,60,"ERICA ASAWO","Attended University of Manitoba","","Winnipeg","Canada","Education: University of Manitoba"]
[null,61,"Shuai Chen","Actuarial Assistant","Manulife","Kitchener","Canada","Past: Grader at University of Manitoba"]
[null,62,"Tinotenda Marova","Assistant Actuarial Analyst","Wawanesa Insurance","Winnipeg","Canada","Past: Student Research Assistant at University of Manitoba"]
[null,63,"Erin Kavanagh","Actuarial Analyst","Great-West Life","Winnipeg","Canada","Education: University of Manitoba"]
[null,64,"Zifeng(Joseph) Qian","Actuarial Analyst","Investors Group","Winnipeg","Canada","Education: University of Manitoba"]
[null,65,"Keri Guenther","Actuarial Summer Student","Great-West Life","Winnipeg","Canada","Past: Co-President at University of Manitoba Actuarial Club"]
[null,66,"Kim Middagh","Benefits Manager","University of Manitoba","Winnipeg","Canada","Current: Manager, Group Insurance at University of Manitoba"]
[null,67,"Francis Seah","Actuarial Intern","Investors Group","Winnipeg","Canada","Past: Part-time Tutor at Self Employed"]
[null,68,"Michael Vo","Actuarial Analyst","Willis Towers Watson","Toronto","Canada","Education: University of Manitoba"]
[null,69,"Tannis Wiebe","Manager","Wawanesa Insurance","Winnipeg","Canada","Education: University of Manitoba"]
[null,70,"Paul Avery","Attended University of Manitoba","","Winnipeg","Canada","Education: University of Manitoba"]
[null,71,"Desiree Ferbers","Actuarial Intern","Great-West Life","Winnipeg","Canada","Summary: ...at the University of Victoria... at the University..."]
[null,72,"Amber Anseeuw, ACAS, ACIA","Manager","Portage Mutual Insurance","Winnipeg","Canada","Education: University of Manitoba"]
[null,73,"Eric Padua","Actuarial Student - Co-op","Great-West Life","Winnipeg","Canada","Summary: ..., Actuarial, Finance... ). Actively pursuing actuarial..."]
[null,74,"Yiming Hu","Actuarial Student","Great-West Life","Winnipeg","Canada","Education: University of Manitoba"]
[null,75,"Vishal Guliani","Actuarial Analyst","","Winnipeg","Canada","Education: University of Manitoba"]
[null,76,"Hadi Saleh","Actuarial Analyst","Deloitte Canada","Toronto","Canada","Education: University of Manitoba"]
[null,77,"Beilin Ye","Actuarial Intern","Manulife","Winnipeg","Canada","Past: Grader/Marker at University of Manitoba"]
[null,78,"Jarrod Mikolajczyk","Assistant Actuarial Analyst","Wawanesa Insurance","Winnipeg","Canada","Education: University of Manitoba"]
[null,79,"Naomi Kirshenblatt","Student","Asper School of Business, University of Manitoba","Ottawa","Canada","Education: University of Manitoba"]
[null,80,"Jan Paolo Medina","Actuarial Analyst","Sun Life Financial","Winnipeg","Canada","Education: University of Manitoba"]
[null,81,"Tanner Klippenstein","Manager Actuarial Pricing - Commercial Lines","Wawanesa Insurance","Winnipeg","Canada","Education: University of Manitoba"]
[null,82,"Asherah Bock","Actuarial Student","","Winnipeg","Canada","Past: Actuarial Intern at Manitoba Public Insurance"]
[null,83,"Rebecca Craig","Student","University of Manitoba","Winnipeg","Canada","Education: University of Manitoba"]
[null,84,"Clive Ngoma","Student","University of Manitoba","Winnipeg","Canada","Education: University of Manitoba"]
[null,85,"Justin Pursaga","Director","Actuarial Analytics","Winnipeg","Canada","Past: Sessional Instructor at University of Manitoba"]
[null,86,"Naitao Zeng(Audrey)","University of Manitoba","","Winnipeg","Canada","Sean Klayh"]
[null,87,"Alexa Simpson","Actuarial Assistant","Great-West Life","Winnipeg","Canada","Past: Teacher’s Assistant - Introduction to Risk Management at University of Manitoba"]
[null,88,"Avi Saper","Actuarial Analyst","","Winnipeg","Canada","Education: University of Manitoba"]
[null,89,"Kerem Leylek","Actuarial Analyst","Mercer","Winnipeg","Canada","Education: University of Manitoba"]
[null,90,"Wayne Heppner","Manager","Wawanesa Insurance","Winnipeg","Canada","Education: University of Manitoba"]
[null,91,"Kyle Meilleur","Actuarial Analyst","Ellement Consulting Group",null,"Canada","Education: University of Manitoba"]
[null,92,"Danrui Li","Student","University of Manitoba","Winnipeg","Canada","Education: University of Manitoba"]
[null,93,"Tafadzwa Alifasi","Student","University of Manitoba","Winnipeg","Canada","Education: University of Manitoba"]
[null,94,"Kondwelani Kalinda","Student","University of Manitoba","Winnipeg","Canada","Education: University of Manitoba"]
[null,95,"Gordon Yestrau","Actuarial Summer Student","Great-West Life","Winnipeg","Canada","Education: University of Manitoba"]
[null,96,"Vivi Rihanti","CPA Student","Great-West Life","Winnipeg","Canada","Past: Grader at University of Manitoba"]
[null,97,"Dylan Allary","Student","University of Manitoba","Winnipeg","Canada","Education: University of Manitoba"]
[null,98,"Cherity Ostapowich","Senior Actuarial Analyst","Wawanesa Insurance","Winnipeg","Canada","Education: University of Manitoba"]
[null,99,"Rowena dela Torre","Actuarial Analyst","Willis Towers Watson","Calgary","Canada","Education: University of Manitoba"]
[null,100,"David Ng","Senior Actuarial Associate","Manulife","Toronto","Canada","Education: University of Manitoba"]
[null,101,"Zoe Jing Chua","Actuarial Analyst","","Winnipeg","Canada","Past: Teaching Assistant at Asper School of Business, University of Manitoba."]
[null,102,"Cara Low","VP Corporate Actuarial & Appointed Actuary","","Winnipeg","Canada","Education: University of Manitoba"]
[null,103,"Jingsha(Sarah) Yuan","Actuarial Assistant","Great-West Life","Winnipeg","Canada","Education: University of Manitoba"]
[null,104,"Mwila Mvula","Student","University of Manitoba","Winnipeg","Canada","Education: University of Manitoba"]
[null,105,"Megan Booth","Actuarial Student","","Winnipeg","Canada","Summary: ...and Actuarial Science. Currently... at the University of Manitoba in the Co..."]
[null,106,"Jared Pursaga","Manager Actuarial Pricing Direct Markets","Wawanesa Insurance","Winnipeg","Canada","Education: University of Manitoba"]
[null,107,"Rosena Chan","Actuarial Analyst","","Kitchener","Canada","Education: University of Manitoba"]
[null,108,"hetty asiamah","Grader/marker","Department of Economics, University of Manitoba","Winnipeg","Canada","Past: teaching assistant at university of ghana( statistics dept)"]
[null,109,"Justin Lasker, ASA, ACIA","Senior Actuarial Analyst","Sunlife",null,"Canada","Education: University of Manitoba"]
[null,110,"Bill MacMillan","Actuarial Consultant","Manulife Financial","Winnipeg","Canada","Education: University of Manitoba"]
[null,111,"Sara Moffat","Actuarial Analyst","Wawanesa Insurance","Winnipeg","Canada","Education: University of Manitoba"]
[null,112,"wajiha shahzad","Student","University of Manitoba","Winnipeg","Canada","Education: University of Manitoba"]
[null,113,"Shiyan Jin","Actuarial Associate","Great-West Life",null,"Canada","Education: University of Manitoba"]
[null,114,"Maxim Kharitonov","Senior Actuarial Analyst","Sun Life Financial","Kitchener","Canada","Education: University of Manitoba"]
[null,115,"Liji Huang","Actuarial Analyst","Great-West Life","Winnipeg","Canada","Education: University of Manitoba"]
[null,116,"Steven Duplak","Student","University of Manitoba","Winnipeg","Canada","Education: University of Manitoba"]
[null,117,"Jenna Young, ASA, ACIA","Senior Actuarial Analyst","Willis Towers Watson","Calgary","Canada","Education: University of Manitoba"]
[null,118,"varun sharma","Actuarial Associate","The Co-operators","Winnipeg","Canada","Summary: Actuarial Analyst... in Insurance and Actuarial..."]
[null,119,"Leon Lo","Student","University of Manitoba","Winnipeg","Canada","Education: University of Manitoba"]
[null,120,"Edward Swerhone","Vice-President","Sun Life Financial","Toronto","Canada","Summary: ...actuarial students... actuarial nature, looking..."]
[null,121,"Sergey Voronin","University Graduate- Actuarial Mathematics","","Toronto","Canada","Education: University of Manitoba"]
[null,122,"Michael Correa","Vice President","Munich Re Canada","Toronto","Canada","Education: University of Manitoba"]
[null,123,"Irina Kretskaia","Actuarial Analyst","Wawanesa Insurance","Winnipeg","Canada","Education: University of Manitoba"]
[null,124,"Wei Wang","Student","University of Manitoba","Winnipeg","Canada","Education: University of Manitoba"]
[null,125,"Faza Raflis","Student","University of Manitoba","Winnipeg","Canada","Education: University of Manitoba"]
[null,126,"Gary Stoller","Actuarial Consultant","School Boards Co-operative Inc.","Toronto","Canada","Education: University of Manitoba"]
[null,127,"Ryan Sharman","Actuarial Co-op","John Hancock Financial Services","Toronto","Canada","Education: University of Manitoba"]
[null,128,"Christopher Prendergast","Actuarial Analyst","Sun Life Financial","Winnipeg","Canada","Summary: ...-Op term as an Actuarial... at the University of Manitoba Asper..."]
[null,129,"Samantha Allen","Associate","Mercer","Toronto","Canada","Education: University of Manitoba"]
[null,130,"Jade Randall","Actuarial Intern","Wawanesa Mutual Insurance","Winnipeg","Canada","Education: University of Manitoba"]
[null,131,"Abel Nyamori","Sales Representative and University Student","","Winnipeg","Canada","Current: Vice President of Corporate Relations at University of Manitoba Investment group"]
[null,132,"Shuo Wang","Actuarial Analyst","Great-West Life",null,"Canada","Education: University of Manitoba"]
[null,133,"Wenqiang Kang","Student","University of Manitoba","Winnipeg","Canada","Education: University of Manitoba"]
[null,134,"Yiran (Cecilia) Lu","Student","University of Manitoba","Winnipeg","Canada","Education: University of Manitoba"]
[null,135,"Hao (Charlie) Zhang","Actuarial Analyst","Workers' Compensation Board","Edmonton","Canada","Education: University of Manitoba"]
[null,136,"ira vashisht","Student","University of Manitoba","Winnipeg","Canada","Education: University of Manitoba"]
[null,137,"Mostofa Sarkar","Social Statistics & Performance Indicators Statistician","Manitoba Bureau of Statistics","Winnipeg","Canada","Past: Research Assistant at University of Manitoba"]
[null,138,"Travis Olson","Manager","Co-operators Life","Saskatchewan","Canada","Education: University of Manitoba"]
[null,139,"Nicole Johnson","Actuarial Officer","Agriculture and Agri-Food Canada","Ottawa","Canada","Education: University of Manitoba"]
[null,140,"Jamie Sutherland","Actuarial student","Asper School of Business","Winnipeg","Canada","Summary: ..., and persistent Actuarial... and grow my actuarial..."]
[null,141,"Fangzhu Shen","Student","University of Manitoba","Winnipeg","Canada","Education: University of Manitoba"]
[null,142,"Emma Gao","Actuarial Manager","Intact","Calgary","Canada","Education: University of Manitoba"]
[null,143,"Lisa Bjornson","Senior Actuarial Analyst","Morneau Shepell","Toronto","Canada","Education: University of Manitoba"]
[null,144,"WENTING LI","Actuarial Graduate","","Winnipeg","Canada","Summary: A recent Actuarial graduate from University..."]
[null,145,"Stephen Szaura","Graduate Student","McGill University","Montreal","Canada","Summary: ...of Management McGill University... and actuarial mathematics..."]
[null,146,"Ella Young","Corporate Director","VCH","Vancouver","Canada","Summary: ...in energy in Manitoba... . Hons (Actuarial Science..."]
[null,147,"Nadia Daoudi","Actuarial Student","","Winnipeg","Canada","Past: Customer Service Representative at University of Manitoba"]
[null,148,"Samantha Gopaul","Student","University of Manitoba","Winnipeg","Canada","Education: University of Manitoba"]
[null,149,"John Campbell","AVP","Manulife Financial","Toronto","Canada","Past: AVP, External Reporting and Policy at Manulife Financial"]
[null,150,"Joiely Evangelista","Actuarial Student","",null,"Canada","Education: University of Manitoba"]
[null,151,"Keith Richtik","Manager","Actuarial Financial Reporting","Winnipeg","Canada","Education: University of Manitoba"]
[null,152,"卢枭","University of Manitoba学生","","Winnipeg","Canada","Education: University of Manitoba"]
[null,153,"Wali Naqvi","Majoring in Actuarial Mathematics","Finance and Minoring in Marketing","Winnipeg","Canada","Current: Student at University of Manitoba"]
[null,154,"Erik W.","Student","the University of Manitoba","Vancouver","Canada","Education: University of Manitoba"]
[null,155,"Stuart Tisdale","Actuarial Analyst - New York Life Insurance Company","","New York","United States","Past: Teaching Assistant - Department of Statistics at University of Manitoba"]
[null,156,"Vladimir Krepkiy","Actuarial Associate","BMO Bank of Montreal",null,"Canada","Education: University of Manitoba"]
[null,157,"Wisdom Ugbah","Student","University of Manitoba",null,"Canada","Education: University of Manitoba"]
[null,158,"Monica Otulak","Student","University of Manitoba","Winnipeg","Canada","Education: University of Manitoba"]
[null,159,"Maryana Gange","Actuarial Analyst","","Winnipeg","Canada","Past: Teacher's Assistant - Introductory Ukrainian and Intermediate Ukrainian at University of Manitoba"]
[null,160,"Cameron Smart","Senior Actuarial Analyst","Cigna","Hartford","United States","Education: University of Manitoba"]
[null,161,"Bryn Peppler","Actuarial Associate","New York Life Insurance Company","New York","United States","Education: University of Manitoba"]
[null,162,"Yemurai Bgwoni","Actuarial Graduate - Asper School of Business","","Winnipeg","Canada","Education: University of Manitoba"]
[null,163,"Dyemila Narrainsawmy","Actuarial Student","University of Manitoba","Winnipeg","Canada","Past: Student Worker at University of Manitoba"]
[null,164,"Jiabin(Francis) Dong","Actuarial Analyst","Aviva Canada","Toronto","Canada","Education: University of Manitoba"]
[null,165,"Hung Manh Le","Actuarial Analyst","","Toronto","Canada","Past: Student Group Resource Centre Coordinator at University of Manitoba Students' Union"]
[null,166,"Ben-Iddo Manda","Actuarial Science Student (BSc) Hons","","Winnipeg","Canada","Current: Student Office Assistant - Donor Relations at University of Manitoba"]
[null,167,"Dan Clark","Actuarial Consultant","DRC Actuarial Services","Toronto","Canada","Education: University of Manitoba"]
[null,168,"Yu Cheng","Senior Actuarial Officer","OSFI","Ottawa","Canada","Education: University of Manitoba"]
[null,169,"Maja Bakija","Actuarial Associate","New York Life | Dancer/Choreographer","New York","United States","Past: Grader/Marker at University of Manitoba"]
[null,170,"Greg Komatich","Actuarial Associate","Financial Services Commission of Ontario","Toronto","Canada","Education: University of Manitoba"]
[null,171,"Carolina Faustino","Senior Actuarial Analyst","Morneau Shepell","Vancouver","Canada","Education: University of Manitoba"]
[null,172,"Krista P Cortez","Sr. Actuarial Assistant","John Hancock","Boston","United States","Past: Lab Demonstrator and Private Tutor at University of Manitoba - Access Program"]
[null,173,"Mingxuan Cheng","Student","University of Manitoba","Huaian","China","Past: Lab technician at University of Manitoba"]
[null,174,"Luke Johnston","Chief Actuary","Manitoba Public Insurance","Winnipeg","Canada","Education: University of Manitoba"]
[null,175,"Alyssa Nigh","Student","the University of Manitoba","Milwaukee","United States","Education: University of Manitoba"]
[null,176,"Ray Huynh","Actuarial Associate","Canada Life Assurance Company (Barbados Branch)",null,"Barbados","Education: University of Manitoba"]
[null,177,"Maambo Mujala","Actuarial Associate","New York Life Insurance Company","New York","United States","Education: University of Manitoba"]
[null,178,"Charles Manty","Investment Consultant","PBI Actuarial Consultants","Vancouver","Canada","Education: University of Manitoba"]
[null,179,"Savannah Yeroschak","Actuarial Science Student","","Winnipeg","Canada","Education: University of Manitoba"]
[null,180,"Landon Stewart","Retirement Consulting Associate - Aon Hewitt","","Winnipeg","Canada","Education: University of Manitoba"]
[null,181,"Sydney Rubert","Actuarial Associate","John Hancock Financial Services","Boston","United States","Education: University of Manitoba"]
[null,182,"Pierra Chan","Senior Actuarial Analyst","","Toronto","Canada","Education: University of Manitoba"]
[null,183,"Melissa Luff","Labour Market and Survey Statistician","Manitoba Bureau of Statistics","Winnipeg","Canada","Education: University of Manitoba"]
[null,184,"Winny Wu","Actuarial Mathematics Student","","Winnipeg","Canada","Past: Teaching Assistant at University of Manitoba"]
[null,185,"Cam Bredin, CFA Level II Candidate","Commodity Logistics Coordinator","","Winnipeg","Canada","Education: University of Manitoba"]
[null,186,"Avinash Maniram","Consultant","PBI Actuarial Consultants Ltd.","Vancouver","Canada","Past: Instructor - Actuarial Department at Simon Fraser University"]
[null,187,"Alexander Zeif","Double honours graduate in Actuarial Math and Statistics","","Winnipeg","Canada","Summary: ...graduate of the University of Manitoba in Actuarial..."]
[null,188,"Talia Pankewycz, FSA","Assistant Actuary","Sun Life Financial","Toronto","Canada","Education: University of Manitoba"]
[null,189,"Leslee Lefteruk","Coordinator","Western University","London","Canada","Education: University of Manitoba"]
[null,190,"Tyler Smith","Actuarial and Investment Consultant for Coughlin & Associates Ltd.","",null,"Canada","Education: University of Manitoba"]
[null,191,"Brenlee Claman","Human Resources","Carleton University","Ottawa","Canada","Education: University of Manitoba"]
[null,192,"Bronagh Nazarko, FSA, FCIA","Actuary","Manulife Financial","Winnipeg","Canada","Education: University of Manitoba"]
[null,193,"Daniel Neves","Actuarial & Financial Analyst","","Toronto","Canada","Education: University of Manitoba"]
[null,194,"Boaz Michael Twesigye","Actuarial Mathematics and Finance student","",null,"Canada","Education: University of Manitoba"]
[null,195,"Pratik Gupta","Actuarial Consultant","","New York","United States","Education: University of Manitoba"]
[null,196,"Mark Lee, PMP","Development Manager and Senior Business Consultant","Actuarial System Transformation, Manulife Financial","Toronto","Canada","Education: University of Manitoba"]
[null,197,"Ajay Pandey","Business Immigration Officer","Government of Manitoba","Winnipeg","Canada","Education: University of Manitoba"]
[null,198,"Kelly Cruise","Actuarial Manager","Deloitte","Toronto","Canada","Past: Physics/Astronomy/Mathematics/Statistics Lab Demonstrator at University of Manitoba"]
[null,199,"Tapiwa Maswera","Actuarial and Quantitative Finance","","Winnipeg","Canada","Current: Teaching Assistant at University of Manitoba"]
[null,200,"Tony Maslanka, CFA","Director","Credit Union Central of Manitoba","Winnipeg","Canada","Education: University of Manitoba"]
[null,201,"Debbie Rehn Doyle, CFA","Director Treasury/Pensions","MTS (Manitoba Telecom Services)","Winnipeg","Canada","Current: Responsible for 5... actuarial valuations..."]
[null,202,"Yan Wu","Manager Group Planning & Risk","","Winnipeg","Canada","Past: Master student at University of Manitoba"]
[null,203,"Kelly Ramsay","Statistics MSc. Student","","Winnipeg","Canada","Past: Research Assistant at University of Manitoba"]
[null,204,"Evan Shaw","Actuarial Intern","Great-West Life","Winnipeg","Canada","Education: University of Manitoba"]
[null,205,"Brigitte Scheffer, ACAS","Insurance Professional","","Winnipeg","Canada","Education: University of Manitoba"]
[null,206,"Andrea Sherry","Vice President","Insurance Solutions The Wawanesa Mutual Insurance Company","Winnipeg","Canada","Education: University of Manitoba"]
[null,207,"Clayton Zaluski, FCIA, FSA","Consulting Actuary","Worden Zaluski Consulting Actuaries","Winnipeg","Canada","Summary: ...responsibilities, actuarial... other actuarial services. I..."]
[null,208,"Wan Fen (Melanie) Heng","Actuarial Intern","Great Eastern Life","Kuala Lumpur","Malaysia","Current: Grader / marker at University of Manitoba"]
[null,209,"Adam Burns","Actuarial Associate","New York Life Insurance Company","New York","United States","Education: University of Manitoba"]
[null,210,"Ya(Amy) Tang","Actuarial Analyst","ISO (Verisk Analytics)","New York","United States","Education: University of Manitoba"]
[null,211,"Arissa Reis","Student","RBC Dominion Securities","Winnipeg","Canada","Education: University of Manitoba"]
[null,212,"Chris Jansen","AVP","Great-West Life","Winnipeg","Canada","Education: University of Manitoba"]
[null,213,"Pervin Baylan İrven","Actuarial Science Visiting PhD Student","","Winnipeg","Canada","Education: University of Manitoba"]
[null,214,"Ko Yang","Actuarial Associate - ASA/ACIA","","Kansas City","United States","Education: University of Manitoba"]
[null,215,"Bo Yuan","Intern","Ernst & Young Hua Ming LLp",null,"Canada","Past: Grader at University of Manitoba"]
[null,216,"Lucas Szczepanski","Actuarial Mathematics Student","","Winnipeg","Canada","Summary: ..., and results oriented actuarial... . Experience in Actuarial..."]
[null,217,"Sai Man, CFA, FSA, MAAA","Actuarial Life Modeling","Pacific Life","Orange County","United States","Summary: ...actuarial software... management, corporate actuarial..."]
[null,218,"David Bailey, CPA, CMA","Manager","Province of Manitoba, Treasury Division","Winnipeg","Canada","Education: University of Manitoba"]
[null,219,"Michael Gussakovsky","Special Projects Manager","Birchwood Automotive Group","Winnipeg","Canada","Past: Senator at Commerce Students' Association"]
[null,220,"Shane Moulton","Special Projects Manager","the Birchwood Automotive Group","Winnipeg","Canada","Summary: ...the University of Manitoba... , the University of Manitoba..."]
[null,221,"Wilson Low","Value Investor | Financial Services","","Winnipeg","Canada","Past: Bloomberg Lab Instructor at University of Manitoba"]
[null,222,"Lindsey Rioux, CFA","Analyst","GWL Investment Management (GWLIM)","Winnipeg","Canada","Education: University of Manitoba"]
[null,223,"Rory Mulhern","Associate Director","Sun Life Financial",null,"Canada","Education: University of Manitoba"]
[null,224,"Eric Elford","Senior Analyst","Winnipeg Regional Health Authority","Winnipeg","Canada","Education: University of Manitoba"]
[null,225,"Kimberly Palatnick, FSA, FCIA","Director","Wawanesa Life Insurance Company","Winnipeg","Canada","Education: University of Manitoba"]
[null,226,"Rafe Hunt, FSA","Actuary","Manulife","Toronto","Canada","Education: University of Manitoba"]
[null,227,"Gregg Melnyk","AVP","Great-West Life","Winnipeg","Canada","Education: University of Manitoba"]
[null,228,"Paul Rothery","Director","Great-West Life","Winnipeg","Canada","Education: University of Manitoba"]
[null,229,"Li Kee Ong","Lecturer & Programme Leader","Asia Pacific University",null,"Malaysia","Current: Lecturer & Programme Leader, Actuarial Studies at Asia Pacific University of Technology and Innovation (APU / APIIT)"]
[null,230,"Vilok Guliani","Business Analyst","Deloitte Canada","Winnipeg","Canada","Past: Data Entry Specialist at University of Manitoba"]
[null,231,"Keegan Lacroix","Actuarial Student","","Winnipeg","Canada","Education: University of Manitoba"]
[null,232,"Kevin Strong","Exploring career and business opportunities","","Winnipeg","Canada","Education: University of Manitoba"]
[null,233,"Shelley Sjoberg","Director","Great-West Life","Winnipeg","Canada","Education: University of Manitoba"]
[null,234,"Charly Pazdor","Consulting actuary","Eckler Ltd.","Winnipeg","Canada","Education: University of Manitoba"]
[null,235,"Derek Dagg","I.H. Asper School of Business: Accounting and International Business","","Winnipeg","Canada","Past: Director of Corporate Relations at University of Manitoba Investment Group"]
[null,236,"Michael Arnold, FSA","Owner and CEO","Arnold Tutoring",null,"Canada","Education: University of Manitoba"]
[null,237,"Faisal Abidi","Student","University of Manitoba","Winnipeg","Canada","Education: University of Manitoba"]
[null,238,"Michael Peters","Actuarial Student","","Winnipeg","Canada","Education: University of Manitoba"]
[null,239,"Shane O'Connor","at","","Winnipeg","Canada","Education: University of Manitoba"]
[null,240,"Tyler Nguyen","Analyst","Real Estate & Mortgages","Winnipeg","Canada","Past: Computer Lab Advisor, Scotia Technology Center at Asper School of Business - University of Manitoba"]
[null,241,"Cory Wiebe","Actuary","Sunlife Financial",null,"Canada","Education: University of Manitoba"]
[null,242,"Brian Cameron","Vice President","OptumInsight","Minneapolis","United States","Education: University of Manitoba"]
[null,243,"Aaron Tenenbein","Professor of Statistics and Actuarial Science","NYU Stern School of Business","New York","United States","Education: University of Manitoba"]
[null,244,"Kyla Herzog","Manager","MNP LLP","Winnipeg","Canada","Summary: ...from the University Of Manitoba Asper School..."]
[null,245,"Owais Jafry","Student","Asper School of Business","Winnipeg","Canada","Education: University of Manitoba"]
[null,246,"Krizsia Praznik","Pricing Actuary","Reinsurance Group of America, Incorporated","Toronto","Canada","Education: University of Manitoba"]
[null,247,"Josh Rowson","Senior Leader","Princess Auto Ltd.","Winnipeg","Canada","Education: University of Manitoba"]
[null,248,"Mike Daciw","Director of Corporate Development","","Calgary","Canada","Summary: ...) after graduating from the University of Manitoba, and spent..."]
[null,249,"Eric Seah","actuarial consultant","",null,"Singapore","Education: University of Manitoba"]
[null,250,"俞京成","学生 - University of Manitoba","","Hangzhou","China","Education: Asper school of Business, University of Manitoba"]
[null,251,"Le Keat Ong","AGM","Actuarial and Family Retakaful",null,"Malaysia","Education: University of Manitoba"]
[null,252,"Joyce Calderon","Business Owner/Manager","NuCosmetique","Winnipeg","Canada","Education: University of Manitoba"]
[null,253,"Sheldon Nemeth","Modelling Actuary","","Winnipeg","Canada","Past: Senior Valuation Analyst at Manulife"]
[null,254,"Louise Hoeppner, FSA","Actuary","Manulife Financial","Toronto","Canada","Past: Research Assistant & Office Assistant, Warren Centre for Actuarial Studies and Research at University of Manitoba"]
[null,255,"Jamie Rakhra","Junior Analyst","Arctic Glacier Premium Ice",null,"Canada","Education: University of Manitoba"]
[null,256,"Mang Feng","Actuarial analyst","","Toronto","Canada","Education: University of Manitoba"]
[null,257,"Bryan Luc","New Graduate from the Asper School of Business","","Winnipeg","Canada","Education: University of Manitoba"]
[null,258,"James LaPage","Business Transformation Specialist","Wawanesa Insurance","Winnipeg","Canada","Current: Business Transformation Specialist, Actuarial Services at Wawanesa Insurance"]
[null,259,"Takunda Taimu","Actuarial mathematics student.","","Winnipeg","Canada","Education: University of Manitoba"]
[null,260,"Nora Fien","Articling Student","Fillmore Riley LLP","Winnipeg","Canada","Past: Summer Legal Research Assistant at University of Manitoba"]
[null,261,"Alon Halbrich, FCIA, FSA","Director","Sun Life Financial",null,"Canada","Summary: ...of actuarial, investment... at the University..."]
[null,262,"FARHAN ISLAM","Adjunct Instructor","International College Manitoba","Winnipeg","Canada","Current: Sessional Lecturer and Researcher - Asper School of Business at University of Manitoba"]
[null,263,"Angel Yong","Actuarial Audit Manager","Prudential Corporation Asia",null,"Singapore","Education: University of Manitoba"]
[null,264,"Ammar Shaheen","Actuarial Grad","","Chicago","United States","Education: University of Manitoba"]
[null,265,"Sergey Voronin","Attended University of Manitoba","","Winnipeg","Canada","Education: University of Manitoba"]
[null,266,"Irina Ledenev","PeopleSoft Analyst","","Winnipeg","Canada","Past: Invigilator/Teaching Assistant - Corporate Finance, Financial Accounting and Statistics at University of Manitoba"]
[null,267,"Brent Simmons","Senior Managing Director","DB Solutions","Toronto","Canada","Summary: ...of experienced actuarial... from the University of Manitoba with a..."]
[null,268,"Lorin Hoeppner","VP - Life and Annuity Operations - Actuarial","Swiss Re","Dallas","United States","Education: University of Manitoba"]
[null,269,"Femi Adefabi","Student","University of Manitoba.","Winnipeg","Canada","Education: University of Manitoba"]
[null,270,"Maja Dos Santos","FCAS","FCIA",null,"Canada","Education: University of Manitoba"]
[null,271,"Yuriy Krepkiy, MMF","Quantitative Finance Professional","IBM","Toronto","Canada","Education: University of Manitoba"]
[null,272,"Max Feierstein","Owner","Mirage Consulting Ltd.","Winnipeg","Canada","Education: University of Manitoba"]
[null,273,"Justine Gratton","Student","the Asper School of Business","Winnipeg","Canada","Education: University of Manitoba"]
[null,274,"Loretta Kulchycki","Vice President","Great-West Life",null,"Canada","Education: University of Manitoba"]
[null,275,"Aaron Dufault","Director","Non-Par Universal Life Valuation","Kitchener","Canada","Education: University of Manitoba"]
[null,276,"Ngoc Ly","ASA","",null,"Canada","Education: University of Manitoba"]
[null,277,"Mavis (Xiaoyu) Shang, FSA","Senior Director","RBC Insurance",null,"Canada","Current: ...for the actuarial financial... , and development of robust actuarial..."]
[null,278,"Alfred Yau","Compensation Manager","PepsiCo","Toronto","Canada","Education: University of Manitoba"]
[null,279,"David Andrich, CFA","Global Equity Analyst - AGF Management Limited","","Toronto","Canada","Summary: ...: Actuarial Exams Passed... of Actuarial Practice course"]
[null,280,"Xuan Ren Lim","Actuarial Officer","Great Eastern Life",null,"Malaysia","Education: University of Manitoba"]
[null,281,"Daniel Turenne","Research Assistant","","Winnipeg","Canada","Current: Research Assistant at University of Manitoba"]
[null,282,"Lynn Grenier-Lew","Head of Global Life and Longevity Products","Reinsurance Group of America, Incorporated","Toronto","Canada","Education: University of Manitoba"]
[null,283,"Ivraj Plaha","Throw","me a challenge... I throw back a result! Hard working student looking to fulfill his dreams!","Winnipeg","Canada","Summary: A third year student... at the University of Manitoba..."]
[null,284,"Huinian-Kelvin Wang","Underwriter - China Market","Odyssey Re","Toronto","Canada","Education: University of Manitoba"]
[null,285,"Boon Thye Ho","Actuary","Manulife Financial","Toronto","Canada","Education: University of Manitoba"]
[null,286,"Amy Coates","Owner and Trainer","Stoke Strength and Conditioning","Kitchener","Canada","Education: University of Manitoba"]
[null,287,"Larysa Zubach, FSA, MAAA","Principal","Mercer","Toronto","Canada","Past: Health Actuary at Aon Hewitt"]
[null,288,"Chen (Victor) Hu","Director of Communications","Asper MISA (Management Information Systems Association)","Winnipeg","Canada","Current: Food Service Worker at University of Manitoba"]
[null,289,"Melissa Davies","Research Consultant","InterGroup Consultants Ltd.","Winnipeg","Canada","Education: University of Manitoba"]
[null,290,"Christi Sisco","Senior Consultant","Willis Towers Watson","Calgary","Canada","Education: University of Manitoba"]
[null,291,"Devon Kirkwood","Associate","CIBC","Winnipeg","Canada","Education: University of Manitoba"]
[null,292,"Juan Fernando Martins","Income Tax Auditor","Canada Revenue Agency - Agence du revenu du Canada","Winnipeg","Canada","Past: Chief Actuary at Nuevo Mundo Insurance Co., Caracas, Venezuela"]
[null,293,"Miranda Ewashko","Student","","Winnipeg","Canada","Summary: I am a actuarial... at the University of Manitoba..."]
[null,294,"Karen Kulchyski","Consultant","Willis Towers Watson","Calgary","Canada","Education: University of Manitoba"]
[null,295,"John Devos","Product Line Manager","Parrish & Heimbecker","Winnipeg","Canada","Education: University of Manitoba"]
[null,296,"Chris Hurlburt","Director","Great-West Life","Winnipeg","Canada","Education: University of Manitoba"]
[null,297,"Leo Gu","Assistant Vice President","Swiss Re","Toronto","Canada","Education: University of Manitoba"]
[null,298,"Hao Gao","Treasurer","London Drugs Action Committee","Winnipeg","Canada","Education: University of Manitoba"]
[null,299,"Sehajdeep Sandhu","BComm (Hons) Candidate","",null,"Canada","Past: Director of Finance at University of Manitoba Investment Group (UMIG)"]
[null,300,"Charlie Allegro","Senior Consultant","Willis Towers Watson","Calgary","Canada","Education: University of Manitoba"]
[null,301,"Bartholomew Ghanney","Predictive Analyst","Fireseeds North Infrastructure","Winnipeg","Canada","Past: Statistician and Research Assistant at University of Manitoba,Winnipeg,Canada"]
[null,302,"Naomi Bazak","AVP","Manulife","Toronto","Canada","Education: University of Manitoba"]
[null,303,"Gerald Hoeppner","Group Planning and Risk","","Winnipeg","Canada","Education: University of Manitoba"]
[null,304,"Ryan Ma","Actuary/Director","Manulife","Toronto","Canada","Education: University of Manitoba"]
[null,305,"Paul Young","Actuary Student","U of M",null,"Canada","Education: University of Manitoba"]
[null,306,"Adam Scarth","Director","Northbridge Financial Corporation","Toronto","Canada","Education: University of Manitoba"]
[null,307,"Edith Samuels","Principal","Mercer","Winnipeg","Canada","Education: University of Manitoba"]
[null,308,"Paul Kawchuk","Equity Analyst","Sarbit Advisory Services Inc",null,"Canada","Past: Homework Club Coordinator at Spence Neighbourhood Association"]
[null,309,"Gaetan Ruest","Vice-President of Corporate Research","Investors Group","Winnipeg","Canada","Education: University of Manitoba"]
[null,310,"Carole Field, FCIA","Vice President","ATCO Group","Calgary","Canada","Education: University of Manitoba"]
[null,311,"Eli Gotthilf","N/A","","Winnipeg","Canada","Education: University of Manitoba"]
[null,312,"Karthigesan Arasu","Project Management Assistant","Great-West Life","Winnipeg","Canada","Education: University of Manitoba"]
[null,313,"Tony C L Williams, FCIA, FSA","Consulting Actuary","","Vancouver","Canada","Summary: ...President of PBI Actuarial... held senior actuarial..."]
[null,314,"Michael McDermid","Actuary specializing in processes and controls","","Toronto","Canada","Past: Director, Internal Audit at Sun Life Financial"]
[null,315,"Hang Gao","Pension Administrator","Coughlin & Associates","Winnipeg","Canada","Education: University of Manitoba"]
[null,316,"Ramogi Nyonje, B.Comm(Hons)","ALM Senior Analyst","Great-West Life","Winnipeg","Canada","Past: International Student Representative at University of Manitoba Students'​ Union (UMSU)"]
[null,317,"Michel Marcon","Senior Consultant","Willis Towers Watson","Calgary","Canada","Education: University of Manitoba"]
[null,318,"Lucinda McMaster","Health and Benefits Practice Leader Calgary","Willis Towers Watson","Calgary","Canada","Summary: ...leader of actuarial benefit... in the actuarial analysis..."]
[null,319,"Joel Newbury","Director","Great-West Life","Winnipeg","Canada","Education: University of Manitoba"]
[null,320,"Kim Doan","Digital Communications Associate","We Are Patio","Vancouver","Canada","Education: University of Manitoba"]
[null,321,"Rudy Maharajh","Building and protection of financial security for individuals","families and business owners","Winnipeg","Canada","Education: University of Manitoba"]
[null,322,"Debbie Wiebe","at Great-West Life","","Winnipeg","Canada","Education: University of Manitoba"]
[null,323,"Michael Wach","Senior Consultant","Wills Towers Watson","Vancouver","Canada","Education: University of Manitoba"]
[null,324,"Brad Fedorchuk","VP","Great-West Life","Winnipeg","Canada","Education: University of Manitoba"]
[null,325,"Cody Baldauf","Referee Assignor","Phoenix Soccer Association","Winnipeg","Canada","Education: University of Manitoba"]
[null,326,"Anne Dang","Financial Analyst","Kitchen Craft","Winnipeg","Canada","Past: Teaching Assistant (Calculus for Engineering, Techniques of Classical and Linear Algebra) at University of Manitoba"]
[null,327,"Andrew Kulyk","Actuary","Eckler Ltd.","Winnipeg","Canada","Education: University of Manitoba"]
[null,328,"Alex Lam","Director","Great-West Life","Winnipeg","Canada","Education: University of Manitoba"]
[null,329,"Gayle Martin","Supervisor","Client Services","Winnipeg","Canada","Education: University of Manitoba"]
[null,330,"Fred Horbaty","Director","Federated Insurance Company of Canada","Winnipeg","Canada","Education: University of Manitoba"]
[null,331,"Jack Zhang","System Analytics Analyst","Enbridge","Calgary","Canada","Past: Teaching Assistant/Marker at University of Manitoba"]
[null,332,"Angela Morelli","AVP Group Pricing","Great-West Life","Winnipeg","Canada","Education: University of Manitoba"]
[null,333,"Troy Haugen","SVP","Great-West Life","Winnipeg","Canada","Education: University of Manitoba"]
[null,334,"Kasey Boisselle","President","Belton Boisselle Benefits & Pensions","Winnipeg","Canada","Education: University of Manitoba"]
[null,335,"Clare Cremer","Independent Management Consulting Professional","","Winnipeg","Canada","Education: University of Manitoba"]
[null,336,"Rui Wang","Branch Manager","RBC","Winnipeg","Canada","Education: University of Manitoba"]
[null,337,"Onesime David Deha","Étudiant(e) (University of Ghana)","",null,"Ghana","Education: University of Manitoba"]
[null,338,"Jason Bean, ASA, B. Comm (Hons)","Senior Associate","BFP | Bajus Financial Partners Ltd.","Vancouver","Canada","Past: Summer Student at Towers Perrin"]
[null,339,"Grant Buchanan","VP","Manulife Financial","Toronto","Canada","Education: University of Manitoba"]
[null,340,"Gordon Clarke B. Comm (Honours), CHRP, CCP","HR Professional","Gordon Clarke","Winnipeg","Canada","Past: HR Consultant at KPMG/Watson Wyatt"]
[null,341,"Stephen Lui","Vice President","IDC Worldsource Insurance Network","Toronto","Canada","Education: University of Manitoba"]
[null,342,"Barry Gros","Consulting Pension Actuary (retired)","","Vancouver","Canada","Education: University of Manitoba"]
[null,343,"Wynnell De Landro","Regulator","","Toronto","Canada","Education: University of Manitoba"]
[null,344,"Kristin Ramlal, B. Comm. (Hons), PFP®, CIM®","Qtrade Advisor | Securities Specialist","",null,"Canada","Summary: ...in Actuarial Mathematics... at the University of Manitoba. Since, I..."]
[null,345,"Martyn Daly","Regional Director","Great-West Life","Winnipeg","Canada","Education: University of Manitoba"]
[null,346,"Adam Rogocki","Analyst","Canada ICI Capital Corporation",null,"Canada","Education: University of Manitoba"]
[null,347,"Sheila Mwema","Accounts Receivable and Payable Associate","Arctic Glacier Premium Ice","Winnipeg","Canada","Education: University of Manitoba"]
[null,348,"Amanda Evenson, FCIP","Manager","Wawanesa Insurance","Manitoba","Canada","Past: Actuarial Technician at Wawanesa Insurance"]
[null,349,"Samantha Dakin","Financial Planning Administrator","","Vancouver","Canada","Past: Office Administration Manager & Planning Assistant at Gillis Agency Ltd"]
[null,350,"Robert MacKay, CFA","Founding Partner","","Winnipeg","Canada","Education: University of Manitoba"]
[null,351,"Mark Struck","Vice President","Enterprise Risk Management","Winnipeg","Canada","Education: University of Manitoba"]
[null,352,"Arvelle Zacharias","Director","Home Pricing - The Co-operators","Kitchener","Canada","Education: University of Manitoba"]
[null,353,"Jim Snell","Enjoying Retirement","","Winnipeg","Canada","Education: University Of Manitoba"]
[null,354,"Patricia Khoe","Consultant","Ellement Consulting Group","Winnipeg","Canada","Education: University of Manitoba"]
[null,355,"Jeffrey Huang","Senior Manager","Financial Model Development","Toronto","Canada","Education: University of Manitoba"]
[null,356,"Amhlaoibh Lynch","General Manager","Hannover Re (Ireland) DAC Canadian Life Branch","Toronto","Canada","Education: University of Manitoba"]
[null,357,"Jasbir Jaswal, CFA","Risk Manager","BroadGrain Commodities Inc.","Toronto","Canada","Education: University of Manitoba"]
[null,358,"Jared Mickall","Actuary","Mercer","Winnipeg","Canada","Current: ...of Mercer's Actuarial Resource... from the University of Manitoba in 2000..."]
[null,359,"Ritchie Hok","Capital Specialist","Office of the Superintendent of Financial Institutions of Canada",null,"Canada","Education: University of Manitoba"]
[null,360,"Jimmy Tan, PFP®","Financial Planner - RBC","",null,"Canada","Education: University of Manitoba"]
[null,361,"Neazul Karim","Senior Analyst","Xerox","Toronto","Canada","Past: Human Resources Assistant at University of Manitoba"]
[null,362,"Carmen Cochrane","Manager","Farm Credit Canada / Financement agricole Canada",null,"Canada","Education: University of Manitoba"]
[null,363,"Enxi Dong, CFA","Senior Capital Management Analyst","GWL",null,"Canada","Education: University of Manitoba"]
[null,364,"Irene Lee","Technical Writer","Buhler Versatile","Winnipeg","Canada","Education: University of Manitoba"]
[null,365,"Anesu Machoko, ACIA,FRM,CAIA,G.Dip.F.E","MBA & Graduate Diploma","Schulich School of Business","Toronto","Canada","Education: University of Manitoba"]
[null,366,"Teck Go","Actuary","","Toronto","Canada","Education: University of Manitoba"]
[null,367,"Ron Heck","Business Analyst","Shaw Communications","Calgary","Canada","Education: University of Manitoba"]
[null,368,"Harmandeep Sandhu","Software Developer - UX Design - Java - Python - C","","Winnipeg","Canada","Summary: ..., Finance, Actuarial Studies... at University of Manitoba..."]
[null,369,"Sheldon Laveman, FSA, FCIA, PMP","Business Program Management | Enterprise PMO Executive","","Toronto","Canada","Education: University of Manitoba"]
[null,370,"Vanessa Heichert, AFIS, CIP","Manager","Wawanesa Insurance","Winnipeg","Canada","Education: University of Manitoba"]
[null,371,"Martin Petras","Manager","Commercial Banking","Winnipeg","Canada","Education: University of Manitoba"]
[null,372,"Fran Yaffe","Principal","Mercer","Winnipeg","Canada","Education: University of Manitoba"]
[null,373,"Cheryl de Leon, FSA, FCIA","Director","Sun Life Financial","Toronto","Canada","Current: Director, NAVA US Reporting and Analytics at Sun Life Financial"]
[null,374,"Fatima Calimbas","Sales Analyst","The North West Company","Winnipeg","Canada","Summary: ...at the University of Manitoba... in Actuarial Mathematics during..."]
[null,375,"Dave Giesbrecht","VP","Great-West Life","Vancouver","Canada","Education: University of Manitoba"]
[null,376,"Bob Mersereau","Associate Vice President","Digital","Calgary","Canada","Education: University of Manitoba"]
[null,377,"Esther Friesen","Credit/Risk/Lending Leader - Seizes Opportunities/Makes Sound Decisions","",null,"Canada","Education: University of Manitoba"]
[null,378,"Kim Karpenko, MBA","Finance Professional","","Calgary","Canada","Past: Pension Clerk at University of Manitoba"]
[null,379,"Savvy Ghuman","Client Advisor","RBC",null,"Canada","Education: University of Manitoba"]
[null,380,"Brad Wallis","Actuary","Manulife",null,"Philippines","Education: University of Manitoba"]
[null,381,"Yao Wan","BComm (Hons) graduate","","Winnipeg","Canada","Past: Academic Tutor at University of Manitoba"]
[null,382,"Corinne Harrison","Administrative Professional","","London","Canada","Past: Administrative Assistant / Academic Counsellor at Department of Statistical & Actuarial Sciences | Western University"]
[null,383,"August Chow","Retired","",null,"Canada","Education: University of Manitoba"]
[null,384,"Andrea Mitchell","--","","Winnipeg","Canada","Education: University of Manitoba"]
[null,385,"Vanessa Izan","Consultant","Morneau Shepell",null,"Canada","Education: University of Manitoba"]
[null,386,"Giang LeGrice","Senior Director","Hootsuite","Vancouver","Canada","Education: University of Manitoba"]
[null,387,"Carlin Thiessen","Experienced Transportation Entrepreneur and Executive","","Winnipeg","Canada","Education: University of Manitoba"]
[null,388,"Swan Nguyen","_","","Winnipeg","Canada","Education: University of Manitoba"]
[null,389,"Jonathan Seah","Immigration Consultant","Silver Lining Immigration Inc.","Winnipeg","Canada","Past: Business Intelligence Analyst (Contract) at University of Manitoba"]
[null,390,"Tracey Vincent","Mercer - Senior Associate","Pension Administration Centre of Excellence","Winnipeg","Canada","Education: University of Manitoba"]
[null,391,"Adam Pazdor","Sessional Instructor / Master Student","","Winnipeg","Canada","Current: Sessional Instructor at University of Manitoba"]
[null,392,"Victoria Ho","Student","Sauder School of Business","Winnipeg","Canada","Education: University of Manitoba"]
[null,393,"Brent Delveaux, CEBS","Benefits Consultant","TRG Group Benefits and Pensions Inc.","Vancouver","Canada","Education: University of Manitoba"]
[null,394,"Robbie Wu","Associate Actuary","Manulife Financial Reinsurance Finance","Toronto","Canada","Education: University of Manitoba"]
[null,395,"Alyson Scoths","Pension Administrator","Mercer","Winnipeg","Canada","Education: University of Manitoba"]
[null,396,"Ben Nevile","CTO","Breather","Montreal","Canada","Education: University of Manitoba"]
[null,397,"Sandee Bachalo","Vice President","Investors Group Financial Services Inc.","Winnipeg","Canada","Education: University of Manitoba"]
[null,398,"Emmett Ishak","--","","Toronto","Canada","Education: University of Manitoba"]
[null,399,"Harindra Chandrasena","Assistant Vice President & Actuary","Swiss Re","Toronto","Canada","Education: University of Manitoba"]
[null,400,"Dino Trudeau","Manager Compensation and Benefits","Agrium","Calgary","Canada","Education: University of Manitoba"]
[null,401,"Jason Rempel","Manager","TransCanada","Calgary","Canada","Education: University of Manitoba"]
[null,402,"Naomi Ali, B. Comm (Hons), CAIB, RIB (Ont)","Director of Underwriting","IC Specialty Brokers LP","Winnipeg","Canada","Education: University of Manitoba"]
[null,403,"Sheila R.","Branch Manager","RBC","Edmonton","Canada","Education: University of Manitoba"]
[null,404,"Dimitra Tsourpis","Senior Consultant","Aon Hewitt","Vancouver","Canada","Summary: ...actuarial analyst... from the University of Calgary with a..."]
[null,405,"Cecilia G.","Senior Analyst","Aon Hewitt","Toronto","Canada","Education: University of Manitoba"]
[null,406,"Dave Gillies","Enabling Entrepreneurship","Shopify Plus","Winnipeg","Canada","Past: Technical Architect at University of Manitoba"]
[null,407,"Ying Huang, CEBS","Underwriting Manager","GroupHEALTH","Vancouver","Canada","Summary: ...focused in Actuarial Science from University..."]
[null,408,"Ivan Vakhtine","Financial Advisor","Scotiabank","Winnipeg","Canada","Education: University of Manitoba"]
[null,409,"Mark Nagelberg","Data Scientist working in Market Research Consulting","","Winnipeg","Canada","Past: Research Assistant at University of Manitoba"]
[null,410,"Chris Molinski","Continuous Improvement Specialist","MasterBrand Cabinets","Winnipeg","Canada","Education: University of Manitoba"]
[null,411,"Punya Wijetunge","Insurance Professional","","Winnipeg","Canada","Summary: ..., University of Manitoba. My... by Manitoba Hydro..."]
[null,412,"Margaret Proven","Director","Shaw Communications","Winnipeg","Canada","Education: University of Manitoba"]
[null,413,"Ryan O'Hara","Manager - Informatics and Process Improvement - WRHA Emergency Program","","Winnipeg","Canada","Education: University of Manitoba"]
[null,414,"Todd Asman","Executive Vice-President","Investors Group","Winnipeg","Canada","Education: University of Manitoba"]
[null,415,"Scott Nichols","Senior Risk Analyst","Cross Canada Financial Inc.","Winnipeg","Canada","Education: University of Manitoba"]
[null,416,"Carlos Hernandez","Manager","Scotiabank","Toronto","Canada","Education: University of Manitoba"]
[null,417,"Wayne Fingas","Retired Actuary with HR consulting and insurance executive experience","","Alberta","Canada","Education: University of Manitoba"]
[null,418,"Heng He","Bachelor of Commerce - Honours","","Winnipeg","Canada","Summary: Graduate from University of Manitoba..."]
[null,419,"Siluo Wang","Program Operations Analyst","Monsanto Company",null,"Canada","Education: University of Manitoba"]
[null,420,"Joel Stevens","Electrical Engineering Technologist","","Winnipeg","Canada","Education: University of Manitoba"]
[null,421,"Nony Nkwonta","Home Financing Advisor","Scotiabank","Winnipeg","Canada","Education: University of Manitoba"]
[null,422,"Marc Lynch","President","Randall Plumbing & Heating Limited","Winnipeg","Canada","Education: University of Manitoba"]
[null,423,"Srinah Lutchia","Supervisor","SBM Bank","Winnipeg","Canada","Current: Undergraduate Student at University of Manitoba"]
[null,424,"Brock Zimak","Broker","PZM Financial","Winnipeg","Canada","Education: University of Manitoba, Bcomm Honors"]
[null,425,"Garrett Fast","Financial Security Advisor","","Winnipeg","Canada","Education: University of Manitoba"]
[null,426,"Gwen Yager","Retired","","Calgary","Canada","Education: University of Manitoba"]
[null,427,"Jasmine Tabuzo","Co-op Student","the Asper School of Business","Winnipeg","Canada","Education: Asper School of Business, University of Manitoba"]
[null,428,"May Zheng","GGY","FSA","Toronto","Canada","Education: University of Manitoba"]
[null,429,"Edwin Budianto","Education Management Professional","","Winnipeg","Canada","Past: Grader Marker at University of Manitoba"]
[null,430,"Michelle Gibbs","AVP","Sun Life Financial","Toronto","Canada","Education: University of Manitoba"]
[null,431,"Mary Sanders","Information & Data Integrity Analyst","","Winnipeg","Canada","Education: University of Manitoba"]
[null,432,"Firman Steve","Manager","Great-West Life Assurance Company","Winnipeg","Canada","Education: University of Manitoba"]
[null,433,"Kirk McIntyre","President","Ontario Teachers Insurance Plan","Kitchener","Canada","Education: University of Manitoba"]
[null,434,"Jordan B. Peixoto","Driven to improve healthcare","","Toronto","Canada","Education: University of Manitoba"]
[null,435,"Chuck Hamilton, C.Dir., FSA, FCIA","President & CEO","Educators Financial Group Inc.","Ottawa","Canada","Education: University of Manitoba"]
[null,436,"Gregory Ward","Data Management","Kenora Chiefs Advisory","Ontario","Canada","Education: University of Manitoba"]
[null,437,"Richard Jones","Vice President","Wawanesa Insurance","Winnipeg","Canada","Education: University of Manitoba"]
[null,438,"Karen Figueiredo","VP","Sun Life Financial","Toronto","Canada","Education: University of Manitoba"]
[null,439,"Sherry Wendt","Associate General Counsel & Assistant Corporate Secretary","Cenovus Energy","Calgary","Canada","Education: University of Manitoba"]
[null,440,"Greg van Ginkel","President","Knight Archer Commercial Insurance","Saskatchewan","Canada","Education: University of Manitoba"]
[null,441,"Rob Rosenblat, FSA, FCIA, C.Dir.","Actuary","",null,"Canada","Education: University of Manitoba"]
[null,442,"Reese Gelley","Analyst","KPMG Corporate Finance LLC","Washington","United States","Education: University of Manitoba"]
[null,443,"Keith Meyer","AVP","DMT Development Systems Group Inc.","Winnipeg","Canada","Education: University of Manitoba"]
[null,444,"Wendy Mizuno","Partner","Mercer (Canada) Limited","Toronto","Canada","Education: University of Manitoba"]
[null,445,"Adrian Yasay","Student Asper School of Business--","","Winnipeg","Canada","Education: University of Manitoba"]
[null,446,"Andrew Hargrave","Senior Auditor","Cangene Corporation","Winnipeg","Canada","Education: University of Manitoba"]
[null,447,"Richard Gould","ASA","","Minneapolis","United States","Education: University of Manitoba"]
[null,448,"Ina Eng","Partner","Ascenda Financial Consultants","Winnipeg","Canada","Education: University of Manitoba"]
[null,449,"Craig Wild","Product Manager","Ceridian","Winnipeg","Canada","Education: University of Manitoba"]
[null,450,"Brett MacKinnon","Vice President and Chief Actuary","Wawanesa Insurance","Winnipeg","Canada","Education: University of Manitoba"]
[null,451,"William (Bill) Sloan","Financial Risk Manager","","Winnipeg","Canada","Education: University of Manitoba"]
[null,452,"Louis Ellement","Retired Actuary","","Winnipeg","Canada","Education: University of Manitoba"]
[null,453,"Dennis Schettler","Financial Services Consultant and Contractor","","Toronto","Canada","Education: University of Manitoba"]
[null,454,"Jim Bremer","Independent Investment Management Professional","","Toronto","Canada","Education: University of Manitoba"]
[null,455,"Kathryn Qin","Corporate VP & Actuary","SCAN Health Plan","Los Angeles","United States","Education: University of Manitoba"]
[null,456,"Tianluo Li","--","","Winnipeg","Canada","Education: University of Manitoba"]
[null,457,"Sandra Kulchyski","Commercial Real Estate Appraiser","Altus Group","Winnipeg","Canada","Education: University of Manitoba"]
[null,458,"Tamira Loewen","Senior Risk Management Professional","","Toronto","Canada","Education: University of Manitoba"]
[null,459,"Chang Sheila","Senior Customer Analyst","ATB financial","Calgary","Canada","Education: University of Manitoba"]
[null,460,"Phil Rivard","VP","Local Authorities Pension Plan","Edmonton","Canada","Education: University of Manitoba"]
[null,461,"Punya Wijetunge","Client and Field Support Senior Analyst- Group Division","Great-West Life","Winnipeg","Canada","Education: University of Manitoba"]
[null,462,"Jason Novak","Director","Great-West Life","Toronto","Canada","Education: University of Manitoba"]
[null,463,"Robert Dyck, FRM, CAIA, CIM","Head of Investment Analytics","Connor, Clark & Lunn Financial Group","Vancouver","Canada","Past: Consultant & Head of Research at API Asset Performance Inc."]
[null,464,"Mark Christie","Salesforce is hard. I make it less hard.","","Toronto","Canada","Education: University of Manitoba"]
[null,465,"Aimee Kanyankogote, FRM","FRTB Specialist","","Toronto","Canada","Education: University of Manitoba"]
[null,466,"Arnold Shell","President","Arnold J. Shell Financial Services","Toronto","Canada","Education: University of Manitoba"]
[null,467,"John Stevenson","Regional Vice President","Great-West Life","Toronto","Canada","Education: University of Manitoba"]
[null,468,"See Tong Lim","Senior Manager","Scotiabank International","Toronto","Canada","Education: University of Manitoba"]
[null,469,"Wendell Krahn, CFA, CPA, CGA, CVA","Financial Modeling","Planning & Analysis","Ottawa","Canada","Education: University of Manitoba"]
[null,470,"Greg Gillis, CFA, FCIA, FSA","Financial Advisor/Consulting Actuary","Lawton Partners","Winnipeg","Canada","Past: Vice President at Aon Consulting"]
[null,471,"Doug Olsen","Optical Systems Engineer","Shaw Communications","Calgary","Canada","Education: University of Manitoba"]
[null,472,"Claude Boily","Financial Services Professional","","Calgary","Canada","Education: University of Manitoba"]
[null,473,"Louise Comeau","Manager","Department of Finance - Province of Nova Scotia","Halifax","Canada","Education: University of Manitoba"]
[null,474,"Don Smith","Partner","Smith Pension & Actuarial Consultants Inc.","Vancouver","Canada","Education: University of Manitoba"]
[null,475,"Zack Wang","Franchise Owner","Edo Japan",null,"Canada","Education: University of Manitoba"]
[null,476,"Corey Haverstick","Retail Associate","","Winnipeg","Canada","Summary: Attending the University of Manitoba, majoring..."]
[null,477,"Drew Bailey","Loss Adjuster","ClaimsPro Inc.","London","Canada","Education: University of Manitoba"]
[null,478,"Jeffe Li","Contracts Manager","","Calgary","Canada","Education: University of Manitoba"]
[null,479,"Anne Parsonage","Director and Yoga teacher","Yoga from the Heart Canada","Toronto","Canada","Education: University of Manitoba"]
[null,480,"Paul Schaubroeck","Buyer","","Ottawa","Canada","Education: University of Manitoba"]
[null,481,"Gerry Thiessen","Director","Sun Life Financial","Vancouver","Canada","Past: Account Executive at Sun Life Financial"]
[null,482,"Dave Poole","Risk Management Consultant","","Calgary","Canada","Education: University of Manitoba"]
[null,483,"Shayne Egert","Director","SGI Canada","Saskatchewan","Canada","Education: University of Manitoba"]
[null,484,"Jason Wiebe, FCIA, FSAI","Chief Risk Offficer","RGA International Reinsurance Company dac",null,"Ireland","Past: Vice President at RBC Insurance"]
[null,485,"Yifan Gao","--","",null,"Canada","Education: University of Manitoba"]
[null,486,"Angus Ng, CISSP PMP Cert.APM","Project Manager","","Toronto","Canada","Education: University of Manitoba"]
[null,487,"Mike Lazaruk","--","","Winnipeg","Canada","Education: University of Manitoba"]
[null,488,"Sharon Xu","Managing Director","Aaron Consulting Inc.","Toronto","Canada","Education: University of Manitoba"]
[null,489,"Derek Schaen","Sales Analyst","Great-West Life","Winnipeg","Canada","Education: University of Manitoba"]
[null,490,"Wei (Gavin) He","Banking Professional","","Calgary","Canada","Education: University of Manitoba"]
[null,491,"Neil Harrison","Partner","Deloitte Canada","Toronto","Canada","Education: University of Manitoba"]
[null,492,"Stu Starkey","Transportation Executive","","Edmonton","Canada","Education: University of Manitoba"]
[null,493,"Shaharyar Noordin","Student","Asper School of Business Actuarial Mathematics","Winnipeg","Canada","Current: Financial Accounting Grader/Marker at University of Manitoba"]
[null,494,"Kenneth Clark","Retired Principal","Eckler Ltd.","Toronto","Canada","Education: University of Manitoba"]
[null,495,"Steve Makins","Regional CFO","Canada/Asia","Toronto","Canada","Education: University of Manitoba"]
[null,496,"Marcia P Hunt","President and Principal Broker","Mortgage Alliance Performa Mortgage Inc. , Financial Consultant -- Hunt & Associates","Toronto","Canada","Education: University of Manitoba"]
[null,497,"Philip Fosu","Consultant","Morneau Shepell","Toronto","Canada","Education: University of Manitoba"]
[null,498,"Sean Hayward","VP - Solutions Manager","FIS","Atlanta","United States","Education: University of Manitoba"]
[null,499,"Billy Ray Tejones","Senior Reporting Analyst","Investors Group","Winnipeg","Canada","Education: University of Manitoba"]
[null,500,"Jeff Moir","Partner and Lead","Deloitte Canada","Toronto","Canada","Education: University of Manitoba"]
[null,501,"Tawheed (Taw) Ismail   PMP, CPPP","Project Manager │ Marketing │ Creative Services | Management","","Toronto","Canada","Education: University of Manitoba"]
[null,502,"Sharon Chandler","Canadian Cancer Society Regional Representative","","Toronto","Canada","Education: University of Manitoba"]
[null,503,"Andrea Sexsmith","Pharmaceuticals Professional","","Saskatchewan","Canada","Education: University of Manitoba"]
[null,504,"Nicolas Nguyen","Associate","BMO Financial Group","Montreal","Canada","Education: University of Manitoba"]
[null,505,"Sym Gill","Member of the Board of Trustees","Canadian Wheat Board Retirees Employee Life and Health Trust","Toronto","Canada","Education: University of Manitoba"]
[null,506,"weinan sun","--","",null,"Canada","Education: University of Manitoba"]
[null,507,"Tyrell Jolley-Campbell","Student","Red River College","Winnipeg","Canada","Education: University of Manitoba"]
[null,508,"Nadine Orr","VP","RBC","Toronto","Canada","Education: University of Manitoba"]
[null,509,"James Furutani CIM","Senior Associate","Assante Financial Management Ltd.","Vancouver","Canada","Education: Universtiy of Manitoba"]
[null,510,"Don Armstrong","Actuary / Consultant","Donaldson Vincent Associates Limited","Toronto","Canada","Education: University of Manitoba"]
[null,511,"Dawn Power","Actuary/Principal","Eckler Ltd.",null,"Canada","Education: University of Manitoba"]
[null,512,"Gerald Boychuk","Chief Investments Officer","","Toronto","Canada","Education: University of Manitoba B.Sc., MBA, CFA"]
[null,513,"yang jin","Quality Assurance Analyst - Content","CaseWare International Inc.","Toronto","Canada","Education: University of Manitoba"]
[null,514,"Parminder Mangat","--","","Winnipeg","Canada","Education: University of Manitoba"]
[null,515,"John Kmetic","Director","Office of the Superintendent of Financial Institutions of Canada","Ottawa","Canada","Education: University of Manitoba"]
[null,516,"Susan Demedash","Methodologist","Statistics Canada",null,"Canada","Education: University of Manitoba"]
[null,517,"Igor Mugisha","--","","Winnipeg","Canada","Education: University of Manitoba"]
[null,518,"Nicole Levesque, CPA, CGA","Manager","Monitoring","Winnipeg","Canada","Education: University of Manitoba"]
[null,519,"Blake Swedlo","Level III Umpire","Baseball Canada","Winnipeg","Canada","Education: University of Manitoba"]
[null,520,"Weilun Zhang","Student","","Winnipeg","Canada","Education: University of Manitoba"]
[null,521,"Jun Shih","Senior SW Developer","Pason Systems","Calgary","Canada","Past: Alumni at University of Manitoba"]
[null,522,"Deepesh Rijal","Applied Mathematics","Statistics and Economics","Winnipeg","Canada","Summary: ...at University of Manitoba, pursuing Actuarial Mathematics..."]
[null,523,"竺心怡","corporate actuary","",null,"China","Past: Teaching Assistant at University of Manitoba"]
[null,524,"Ron Loch","Independent Investment Management Professional","","Toronto","Canada","Education: University of Manitoba"]
[null,525,"Louise Thiessen","Higher Education Professional","","Edmonton","Canada","Education: University of Manitoba"]
[null,526,"Li Dong","FSA","Moody's GGY AXIS","Toronto","Canada","Education: University of Manitoba"]
[null,527,"Darryl Ingham","President","Group Health Global Benefit Solutions","Toronto","Canada","Education: University of Manitoba"]
[null,528,"Darrell Peters","Senior Consultant","Willis Towers Watson (Retired)","Toronto","Canada","Education: University of Manitoba"]
[null,529,"Mathieu Poissant","Statisticien spécialisé en immobilier","",null,"Canada","Education: University of Manitoba"]
[null,530,"Michael Guest","Owner","Guest Consulting","Toronto","Canada","Education: University of Manitoba"]
[null,531,"John Louis","Managing Director","JCL Management Consulting","Calgary","Canada","Education: University of Manitoba"]
[null,532,"Laura Nickols","Membership Development Representative","Merit Contractors Association","Edmonton","Canada","Education: University of Manitoba"]
[null,533,"Weihong Dan, FSA, FCIA","GGY AXIS Inc","","Toronto","Canada","Education: University of Manitoba"]
[null,534,"Kathy Kirkpatrick","Career Advisor","Career Development Centre Asper School of Business","Winnipeg","Canada","Education: University of Manitoba"]
[null,535,"Lyle Semchyshyn","2nd VP & Corporate Actuary","Security Benefit","Kansas City","United States","Education: University of Manitoba"]
[null,536,"Yingjie Zhang, CPA,CGA,MFRM","Financial Manager","Atelier Capital Partners Inc.","Vancouver","Canada","Education: University of Manitoba"]
[null,537,"Sian McAlpin","AVP Finance","Sun Life Financial","Boston","United States","Education: University of Manitoba"]
[null,538,"Rob Edwards","Advanced Healthcare Analytics Executive","","Los Angeles","United States","Past: Staff VP & Actuary III at Anthem, Inc."]
[null,539,"Gabrielle Martinez","Member service representative","Access Credit Union",null,"Canada","Education: University of Manitoba"]
[null,540,"Diana Ginpil PMP","PrincipaL","Diana Ginpil Consulting","Toronto","Canada","Education: University of Manitoba"]
[null,541,"Rob Verrier","Actuary","Genesis Financial Development, Inc.","Boston","United States","Education: University of Manitoba"]
[null,542,"Brad Rokosh","Director","Transamerica","Dallas","United States","Education: University of Manitoba"]
[null,543,"Gerald Petkau","Senior Vice President","Blue Cross Blue Shield of North Carolina","Raleigh-Durham","United States","Education: University of Manitoba"]
[null,544,"Peter Cliche","AVP Quantatative Analysis","MetLife","New York","United States","Education: University of Manitoba"]
[null,545,"Dirk Ackbar","Associate Actuary","KR Consulting",null,"Trinidad and Tobago","Education: University of Manitoba"]
[null,546,"Frank Reynolds","President","Reynolds, Thorvardson, Ltd","Kitchener","Canada","Education: University of Manitoba"]
[null,547,"James Dalton","Senior Associate","Mercer","Toronto","Canada","Summary: James Dalton is a... from the University of Manitoba..."]
[null,548,"Kim Dwornick","Actuary Team Lead","Emerge.me","Minneapolis","United States","Education: University of Manitoba"]
[null,549,"Michael Kula","Vice President","New York Life Insurance Company","New York","United States","Education: University of Manitoba"]
[null,550,"Hal Pedersen","Director","Conning","Hartford","United States","Past: Warren Professor of Actuarial Science at University of Manitoba"]
[null,551,"My-Hong Truong","Retirement Systems Consultant","Willis Towers Watson","Seattle","United States","Education: University of Manitoba"]
[null,552,"John Hong","Senior Consultant","EY","New York","United States","Education: University of Manitoba"]
[null,553,"Joyce Liew","--","","Winnipeg","Canada","Education: University of Manitoba"]
[null,554,"Zhibin Zhang","Actuary","RGA","Beijing","China","Education: University of Manitoba"]
[null,555,"Yunan Deng","--","","Bloomington","United States","Past: Actuarial Class Teaching Assistant at University of Manitoba"]
[null,556,"Bertrand Boyle","--","",null,"Canada","Education: University of Manitoba"]
[null,557,"Kelly Grebinsky","Owner","Actuaries Northwest","Seattle","United States","Education: University of Manitoba"]
[null,558,"Graham Cox","Executive Vice President","MetLife","New York","United States","Education: University of Manitoba"]
[null,559,"Tenny Chong","Actuary","","Hong Kong","China","Education: University of Manitoba"]
[null,560,"Lucille Doucette","--","","Alberta","Canada","Education: University of Manitoba"]
[null,561,"Stephan Bazin","Consulting Actuary","Willis Towers Watson","New York","United States","Education: University of Manitoba"]
[null,562,"Florence Wu -  PhD, AIAA, ASA, MSc","Executive Manager > Senior Actuary > Empowering Leader > Cultivate High Performance Teams","","Sydney","Australia","Summary: ...model; actuarial software... Actuarial Modelling skills – DFA..."]
[null,563,"Janine Bender","Life Insurance Consultant","","Hartford","United States","Education: University of Manitoba"]
[null,564,"Ron Wan","experienced actuary","insurance and reinsurance","Hong Kong","China","Education: University of Manitoba"]
[null,565,"Katrina Lee-Kwen","Senior Vice-President","Canada Life / Great-West Life / London Life","Winnipeg","Canada","Education: University of Manitoba"]
[null,566,"Denis Dondo","VBA developper chez SAIL Plein Air / SAIL Outdoors","","Montreal","Canada","Summary: ...degree from the University of Manitoba with a major..."]
[null,567,"Yuan Choong Eng","Experienced Financial Services Professional","","Jakarta","Indonesia","Education: University of Manitoba"]
[null,568,"Chu Yu","PPP Consultant","","Chengdu","China","Education: University of Manitoba"]
[null,569,"Vivian Gao","Claims Administrator","BMO Life Assurance","Toronto","Canada","Education: University of Manitoba"]
[null,570,"Po Fu","Passionate New York Life Agent helping to protect families in Irvine California","","Orange County","United States","Education: University of Manitoba"]
[null,571,"Prakash Vanguri","Head of Enterprise Risk Management","","New York","United States","Education: University of Manitoba"]
[null,572,"Danny Yap","General Manager","Personal Lines",null,"Malaysia","Education: University of Manitoba"]
[null,573,"Dennis Martin","Senior Vice-President","Product & Business Development","Indianapolis","United States","Education: University of Manitoba"]
[null,574,"Gabriela Macra","Head of Reserving","QBE European Operations","London","United Kingdom","Education: University of Manitoba"]
[null,575,"Stanley Ko","VP & AA","Ageas Insurance Company (Asia) Limited","Hong Kong","China","Education: University of Manitoba"]
[null,576,"Ann Wong","Director of Product Management","Constitution Group","San Francisco","United States","Education: University of Manitoba"]
[null,577,"Henry Wong","HR Business Partner","Euroclear","Hong Kong","China","Education: University of Manitoba"]
[null,578,"Avinash Jahajeeah","Head - International Banking","Banque des Mascareignes Ltee (BPCE Group)",null,"Mauritius","Education: University of Manitoba"]
[null,579,"Edward Lim Wei Sin","HSBC Product Implementation","",null,"Singapore","Education: University of Manitoba"]
[null,580,"Doug Brown BCom(Hons), FCIA, FSA","Executive Vice President and CEO","Canada Life","London","United Kingdom","Education: University of Manitoba"]
[null,581,"Harindra Sebastian","Senior Consulting Actuary","Willis Towers Watson","Atlanta","United States","Education: University of Manitoba"]
[null,582,"R. Jason Cook","Actuary","TigerRisk Partners","Minneapolis","United States","Past: Actuarial Analyst at Manitoba Public Insurance"]
[null,583,"Eli Cohen","Data Analysis and Project Management Consultant","","Flagstaff","United States","Education: University of Manitoba"]
[null,584,"Jaiganesh Baskaran","Executive Manager","Zurich Insurance Company Ltd","Kuala Lumpur","Malaysia","Education: University of Manitoba"]
[null,585,"Avery Cook","Managing Director Global Agriculture Analytics","Aon Benfield","Chicago","United States","Education: University of Manitoba"]
[null,586,"Rob Bacher","Manager","International Benefits","Houston","United States","Education: University of Manitoba"]
[null,587,"Vernisha Budhia","Student","Asper School of Business","Winnipeg","Canada","Past: Actuarial Intern at Great-West Life"]
[null,588,"Jason Ellement","Senior Vice President","Callan Associates","San Francisco","United States","Education: University of Manitoba"]
[null,589,"Adrian Kryszak, FSA MAAA","Actuary","Cambia Health Solutions","Seattle","United States","Education: University of Manitoba"]
[null,590,"Julie Pavlik","Director","UnitedHealthcare","Minneapolis","United States","Education: University of Manitoba"]
[null,591,"George Melnik","Insurance Professional","","Kitchener","Canada","Education: University of Manitoba"]
[null,592,"Nancy Williams","Middle School Math Teacher","","Boston","United States","Education: University of Manitoba"]
[null,593,"George Harris","Volunteering with Cuso International","","Winnipeg","Canada","Summary: ...between Manitoba and Africa... background in actuarial..."]
[null,594,"Edwin Steinberg, ASA,MAAA","at EJS Associates","","Miami","United States","Education: University of Manitoba"]
[null,595,"Dennis Ho","CEO","Longitude RE Limited",null,"Bermuda","Education: The University of Manitoba"]
[null,596,"Alice Fontaine","President and Consulting Actuary in Life and Health Insurance Industry","FSA","Austin","United States","Education: University of Manitoba"]
[null,597,"Mike Morhun","President Sage Pension Resources","","Chicago","United States","Education: University of Manitoba"]
[null,598,"Martin Reeves","VP","Sun Life Financial Hong Kong","Hong Kong","China","Education: University of Manitoba"]
[null,599,"Genghui Wu","Vice President & Actuary","Prudential Financial","New York","United States","Education: University of Manitoba"]
[null,600,"Rainer Germann","Emerging Markets Portfolio Manager","","Seattle","United States","Education: University of Manitoba"]
[null,601,"Gordon Creber","-","GGY AXIS","Toronto","Canada","Education: University of Manitoba"]
[null,602,"Bill Gooden","President","Gooden Actuarial Consultants Ltd.","Calgary","Canada","Education: University of Manitoba"]
[null,603,"Markus Lill","Studium: Technische Universität München","","Munich","Germany","Education: University of Manitoba"]
[null,604,"Alex Kogan","Senior Vice President and Actuary","Chubb","New York","United States","Education: University of Manitoba"]
[null,605,"Kwasi Foh-Asare","Client Service Representative","Investors Group","Winnipeg","Canada","Past: Teaching Assistant and Grader/Marker at University of Manitoba"]
[null,606,"Frederick Sackey","Actuarial Intern","Great-West Life","Winnipeg","Canada","Education: University of Manitoba"]
[null,607,"Kumar Kanisan","Senior Manager","Deloitte Consulting","Chicago","United States","Education: University of Manitoba"]
[null,608,"Genghui Wu","Senior Investment Vice President","Prudential Financial","New York","United States","Education: University of Manitoba"]
[null,609,"Bob Chmielnicki","Financial Advisor","The Co-operators",null,"Canada","Education: University of Manitoba"]
[null,610,"Philip Fosu","Consultant","Morneau Sobeco","Toronto","Canada","Education: University of Manitoba"]
[null,611,"Miao Zhang","Statistical Data Analyst in Programming","Vaccine","Beijing","China","Summary: ...from the University of Manitoba... and Actuarial Science..."]
[null,612,"Georg Huber","Werkstudent im Aktuariat Kraftfahrt/Sach bei Versicherungskammer Bayern","","Munich","Germany","Education: University of Manitoba"]
[null,613,"Vrad Vodrazka","VP Actuary","Hannover Re","Orlando","United States","Education: University of Manitoba"]
[null,614,"Gord Latter","EVP","Ryan Labs Asset Management","Minneapolis","United States","Education: University of Manitoba"]
[null,615,"Marc Rochon","Director of Analytics","Periscope","Minneapolis","United States","Summary: ...in Actuarial Mathematics from the University..."]
[null,616,"Karen Christie","Consulting Actuary","Towers Watson","Chicago","United States","Education: University of Manitoba"]
[null,617,"George Kesselman","Revolutionising Insurance via InsurTech","",null,"Singapore","Education: University of Manitoba"]
[null,618,"Benny Chung-Ying Zee","Professor/Head of Biostatistics","JC School of Public Health and Primary Care","Hong Kong","China","Education: University of Manitoba"]
[null,619,"Paul Shapansky","Partner","B2B CFO® specializing in M&A, Exit Strategies, Increasing Profitability, Cash Flow, and Company Value","Miami","United States","Education: University of Manitoba"]
[null,620,"Jun(Jon) Chang","Account Assistant","Aon-COFCO","Shanghai","China","Education: University of Manitoba"]
[null,621,"Marissa Strominger","VP Senior Director Marketing | Expertise in B2B","B2C","New York","United States","Education: University of Manitoba - Asper School of Business Management"]
[null,622,"Judith Segal","Director Biostatistics","Puma Biotechnology","Minneapolis","United States","Education: University of Manitoba"]
[null,623,"Leo He","Data Analyst Seeking New Opportunities","","San Francisco","United States","Education: Univesity of Manitoba"]
[null,624,"Jimmy Lu","Partner","Fancy Star China 毅星中国","San Francisco","United States","Education: University of Manitoba"]
[null,625,"Leo Cheung","Deputy General Manager","Four Seas Mercantile Limited","Hong Kong","China","Education: University of Manitoba"]
[null,626,"Kyle Baley","Software Engineer","Particular Software",null,"Panama","Education: University of Manitoba"]
[null,627,"Les Kuklinski","Senior Solution Architect","CSS International","Los Angeles","United States","Education: University of Manitoba"]
[null,628,"Samuel Suen","Private Venture Investments","","Hong Kong","China","Education: University of Manitoba"]
[null,629,"Cheng Wee Cheat","Regional Finance Director","Johnson & Johnson",null,"Singapore","Education: University of Manitoba"]
[null,630,"Kirby Richter","Principal Database Architect / Administrator","Dell EMC","Minneapolis","United States","Education: University of Manitoba"]
[null,631,"Allen Wu","Bloomberg","",null,"Singapore","Education: University of Manitoba"]
[null,632,"Edmond Wong","Strategy Alliance","Metlife LIMITED","Hong Kong","China","Education: University of Manitoba"]
[null,633,"Wong Shiaw Shien","Mortgage Loan Specialist ","United Overseas Bank (Malaysia) Ltd","Sarawak","Malaysia","Education: University of Manitoba"]
[null,634,"Paarthiban Krishnan","Group Controller","ON Semiconductor","Phoenix","United States","Education: University of Manitoba"]
[null,635,"Bo Wang","负责人","","Shanghai","China","Education: University of Manitoba"]
[null,636,"Alex Tan","Founder of GoFun.Asia","","Kuala Lumpur","Malaysia","Education: University of Manitoba"]
[null,637,"David Haverick","Sr. Director","PotashCorp","Chicago","United States","Education: University of Manitoba"]
[null,638,"Mel Todd","Managing Principal","COLI Consulting Group LLC","Greensboro","United States","Education: University of Manitoba"]
[null,639,"Peggy Man","Associate","Coutts","Hong Kong","China","Education: University of Manitoba"]
[null,640,"Dawna Bennett","Senior Operations Professional","","Denver","United States","Education: University of Manitoba"]
[null,641,"Meng Li","Finance","","Winnipeg","Canada","Education: University of Manitoba"]
[null,642,"Hong Yick Khor","Planning and Controlling","Allianz SE Reinsurance Branch Asia Pacific",null,"Singapore","Education: University of Manitoba"]
[null,643,"Ounesh Reebye","Vice President","Silver Wheaton (Cayman)",null,"Cayman Islands","Education: University of Manitoba"]
[null,644,"Ivan Lee","Localization Expert Looking for Opportunities","","Seattle","United States","Education: University of Manitoba"]
[null,645,"Geok Bee Teh","Manager","PAMB",null,"Malaysia","Education: University of Manitoba"]
[null,646,"Karl Froese","Strategic Product Leader | Managed Healthcare |","","Minneapolis","United States","Education: University of Manitoba"]
[null,647,"Yi Yang","Supply Chain Operations Analyst","","Winnipeg","Canada","Education: University of Manitoba"]
[null,648,"Dan Anderson","Financial and Business Analysis - Canada","","Toronto","Canada","Summary: Intuitive and analytical... professional actuarial..."]
[null,649,"Peter Stalder","Owner","Peter Stalder Consultant","San Francisco","United States","Education: University of Manitoba"]
[null,650,"Bob Shaw","President","Great-West Financial","Denver","United States","Education: University of Manitoba"]
[null,651,"Elaine Hwang","Director","Willis Towers Watson","Hong Kong","China","Education: University of Manitoba"]
[null,652,"Sharon Cheung","Senior Manager","CEO office","Hong Kong","China","Education: University of Manitoba"]
[null,653,"Ivan Chak","CEO - Life Insurance Hong Kong (Under Preparation)","Fosun Insurance Group","Hong Kong","China","Past: Chief Marketing Officer at AIA Korea"]
[null,654,"Andrew Schellenberg, CA","Senior Financial Analyst","Google","San Francisco","United States","Education: University of Manitoba"]
[null,655,"David Grapko","Retired","Cigna","Denver","United States","Education: University of Manitoba"]
[null,656,"Marianne Cumming","Senior Vice President","Swiss Re","Fort Wayne","United States","Education: University of Manitoba"]
[null,657,"May Shuang Yu","Senior Pension Actuary","CalPERS","Sacramento","United States","Education: University of Manitoba"]
[null,658,"Richard Rougeau","Medical Director","AXA","St. Louis","United States","Education: University of Manitoba"]
[null,659,"Albert Lo","Owner","Teamwork Investment Asia Ltd","Hong Kong","China","Education: University of Manitoba"]
[null,660,"David Pauls","Western Europe Regional Leader","Willis Towers Watson","Zurich","Switzerland","Education: University of Manitoba"]
[null,661,"Tracy Witter","Partner","Aon Hewitt","San Francisco","United States","Education: University of Manitoba"]
[null,662,"Karl Gagnon","Assistant Actuary","Allianz Life","Minneapolis","United States","Education: University of Manitoba"]
[null,663,"Michael Fong","Managing Director","Charles Schwab","Hong Kong","China","Education: University of Manitoba"]
[null,664,"Nicole Delahanty","Pavilion Advisory Group Inc.","","Minneapolis","United States","Education: University of Manitoba"]
[null,665,"Todd Owen","Chief Executive Officer","Windsor Strategy Solutions","New York","United States","Education: University of Manitoba"]
[null,666,"Eric Thorlacius","Head Financial Market Risk","Catlin","Washington","United States","Education: University of Manitoba"]
[null,667,"Chris Drome","Technical Yahoo","Yahoo Search","San Francisco","United States","Education: University of Manitoba"]
[null,668,"Trevor Holland","Retired from emloyee benefits and actuarual fields","","St. Louis","United States","Education: University of Manitoba"]
[null,669,"Wayne Froese","at MCG Energy Solutions LLC","","Minneapolis","United States","Education: University of Manitoba"]
[null,670,"Vivian Chang","Associate Actuary","WellPoint","Boston","United States","Education: University of Manitoba"]
[null,671,"Derek Popkes","Chief Risk Officer","Europe",null,"Ireland","Education: University of Manitoba"]
[null,672,"Gabriel Yeung","Vice President HNW Underwriting","AIA","Hong Kong","China","Education: University of Manitoba"]
[null,673,"Jane Yeo","Regional VP","AIG","Singapore","Singapore","Education: University of Manitoba"]
[null,674,"Peter Tilley","Chief Financial Risk Officer","Great-West Financial","Denver","United States","Education: University of Manitoba"]
[null,675,"Marty Rosenbaum","Senior Health Care Consultant","MRC & Associates","Denver","United States","Education: University of Manitoba"]
[null,676,"Hock Eng Mah","COO","Ozura Firstlogix",null,"Malaysia","Education: University of Manitoba"]
[null,677,"Vincent Leung","Branch Manager","Top Image Systems","Hong Kong","China","Education: University of Manitoba"]
[null,678,"刘欣","Inventory Project Manager","","Shanghai","China","Education: University of Manitoba"]
[null,679,"Yvonne Gao","Senior Actuairal Associate","Ernst & Young",null,"China","Education: University of Manitoba"]
[null,680,"Larry Gerelus","Owner","Stag's Hollow Winery",null,"Canada","Education: University of Manitoba"]
[null,681,"裘國偉博士Caleb Kau, Psy.D.","--","","Hong Kong","China","Education: University of Manitoba"]
[null,682,"Paul Stefansson","Leader (former CEO) and Sales Manager with expertise in Discretionary Mandates","Funds","Singapore","Singapore","Education: University of Manitoba"]
[null,683,"Siew Ding Lo","Associate","","Singapore","Singapore","Education: University of Manitoba"]
[null,684,"Fred Abbott","Director of Client Management","Willis Towers Watson","San Francisco","United States","Summary: Fred Abbott is a Senior... from the University of Manitoba..."]
[null,685,"Chris Kam, CPA, CGA","Financial Analyst","AECOM","Vancouver","Canada","Education: University of Manitoba"]
[null,686,"Raj Bal","Consultant / Healthcare Entrepreneur","","Milwaukee","United States","Education: University of Manitoba"]
[null,687,"David Wilson","President","Windsor Strategy Partners and Owner, Windsor Strategy Partners","New York","United States","Education: University of Manitoba"]
[null,688,"Yu Chen Mu","Quantitative Derivatives Analyst","Allianz Life","Minneapolis","United States","Education: University of Manitoba"]
[null,689,"King Lai","Associate Director","AIA HK","Hong Kong","China","Education: University of Manitoba"]
[null,690,"Poong Shen Lai","--","","Selangor","Malaysia","Education: University of Manitoba"]
[null,691,"Shui Lan Joanna Ng","Statistical Reporting Analyst","WR Berkley","Chicago","United States","Education: University of Manitoba"]
[null,692,"Gai Hing Alex Wong","Executive Director","","Hong Kong","China","Education: University of Manitoba"]
[null,693,"Bob Zoltok","Transitioning to Bridge (cards","not structural)","Vancouver","Canada","Education: University of Manitoba"]
[null,694,"Max Ng","Business Development Manager","Micon Solid-State Engineering","Hong Kong","China","Education: University of Manitoba"]
[null,695,"Daniel Lennington, FSA, EA","Senior Consulting Actuary","Willis Towers Watson","Chicago","United States","Education: University of Manitoba"]
[null,696,"Sam Gu","Master student","Yale School of Public Health","New York","United States","Education: University of Manitoba"]
[null,697,"Ching-Fai Pang","principal consultant","Phi Consulting Group, Inc.","San Francisco","United States","Education: University of Manitoba"]
[null,698,"Jeff Howatt","Head of Retirement","Willis Towers Watson","Tokyo","Japan","Education: University of Manitoba"]
[null,699,"Brad Wladyka","Owner","Total Mortgage & Credit Services - The MORTGAGE Centre","Winnipeg","Canada","Education: University of Manitoba"]
[null,700,"Lorne Cooper","--","","Ottawa","Canada","Summary: ...and is actuarial consultant... been a actuarial..."]
[null,701,"Raymond Tam","Chief Risk Officer","Ageas","Hong Kong","China","Education: University of Manitoba"]
[null,702,"Elaine Noel-Bentley","Board member","","Calgary","Canada","Education: University of Manitoba"]
[null,703,"K Heather Power","Legislative Representative","Opticians of Manitoba","Winnipeg","Canada","Education: University of Manitoba"]
[null,704,"Jerry Dong","Head of Asset Allocation and Research Dpt.","Shanghai Life Insurance Co. Ltd","Shanghai","China","Education: University of Manitoba"]
[null,705,"Ruiqi Zeng","Bilingual Market Research Coder","Ipsos in North America","Winnipeg","Canada","Education: University of Manitoba"]
[null,706,"Denis Garand","President","DGA","Saskatchewan","Canada","Education: University of Manitoba"]
[null,707,"Raman Dhaliwal","Director Administration","Faculty of Health Sciences- University of Manitoba",null,"Canada","Current: Director of Administration at Faculty of Health Sciences- University of Manitoba"]
[null,708,"Alfred Schorath","Certified Financial Planner","Sun Life Financial","Calgary","Canada","Education: University of Manitoba"]
[null,709,"Matthew Segal ASA, ACIA","Actuarial Associate","Munich Re Canada","Winnipeg","Canada","Past: Statistics Teaching Assistant at University of Manitoba"]
[null,710,"Calvin Cheng","Actuarial Mathematics Student","","Winnipeg","Canada","Past: Secretary at University of Manitoba Actuarial Club"]
[null,711,"Ian Baker","Consulting Actuary","Baker Actuarial Services","Vancouver","Canada","Education: University of Manitoba"]
[null,712,"Ling Chen (Tony) Shi","Support Worker","St.Amant Foundation","Winnipeg","Canada","Current: Grader/Marker at University of Manitoba"]
[null,713,"Frank Withoos","Instructor","Kumon of Fort Garry","Winnipeg","Canada","Education: University of Manitoba"]
[null,714,"Corwin Zass","Actuarial Risk Management Principal & Industry Leading Senior Consulting Actuary serving BDO and Top 30 Accounting Firms","","Austin","United States","Summary: ...Actuary of Actuarial Risk... for solid actuarial advice..."]
[null,715,"Rebecca Burrows","Owner Bleue Coyote Bar & Grill.","","Vancouver","Canada","Education: University of Manitoba"]
[null,716,"Margaret Proven","Director","Canwest","Winnipeg","Canada","Education: University of Manitoba"]
[null,717,"Arkadiusz Bandosz","Managing Director","RGA Italy","Rome","Italy","Education: University of Manitoba"]
[null,718,"Ethan Huberman","Manager","Jubilee Rose Enterprises Ltd.","Vancouver","Canada","Education: University of Manitoba"]
[null,719,"Wayne Macedo","AVP - Chief Underwriter and Claims Head - Latin America","SCOR Global Life Americas","Charlotte","United States","Education: University of Manitoba"]
[null,720,"LinkedIn Member","Student","University of Manitoba","Winnipeg","Canada","Summary: ...at the University of Manitoba... in Actuarial Mathematics. I..."]
[null,721,"LinkedIn Member","Student","University of Manitoba","Winnipeg","Canada","Education: University of Manitoba"]
[null,722,"LinkedIn Member","Student","University of Manitoba","Winnipeg","Canada","Education: University of Manitoba"]
[null,723,"LinkedIn Member","Attended University of Manitoba","","Winnipeg","Canada","Education: University of Manitoba"]
[null,724,"LinkedIn Member","Student","University of Manitoba",null,"Canada","Education: University of Manitoba"]
[null,725,"LinkedIn Member","Actuarial Mathematics Student","","Winnipeg","Canada","Education: University of Manitoba"]
[null,726,"LinkedIn Member","Senior Actuarial Analyst","Delta Dental","San Francisco","United States","Education: University of Manitoba"]
[null,727,"LinkedIn Member","Student","University of Alberta","Edmonton","Canada","Education: University of Manitoba"]
[null,728,"LinkedIn Member","Financial Services Professional","","Vancouver","Canada","Education: University of Manitoba"]
[null,729,"LinkedIn Member","--","",null,"Canada","Education: University of Manitoba"]
[null,730,"LinkedIn Member","Senior Vice-President","Investors Group","Winnipeg","Canada","Education: University of Manitoba"]
[null,731,"LinkedIn Member","Senior Consultant","CGI","Toronto","Canada","Education: University of Manitoba"]
[null,732,"LinkedIn Member","Consultant","","Toronto","Canada","Education: University of Manitoba"]
[null,733,"LinkedIn Member","General Manager","True North Capital","Toronto","Canada","Education: University of Manitoba"]
[null,734,"LinkedIn Member","--","","Winnipeg","Canada","Education: University of Manitoba"]
[null,735,"LinkedIn Member","Retail Professional","","Winnipeg","Canada","Education: University of Manitoba"]
[null,736,"LinkedIn Member","Actuarial Consultant","Deloitte Consulting, ASA","Minneapolis","United States","Past: Consultant at Deloitte Consulting"]
[null,737,"LinkedIn Member","Associate","RBC","Winnipeg","Canada","Education: University of Manitoba"]
[null,738,"LinkedIn Member","sales","STAPLES Canada","Winnipeg","Canada","Education: university of manitoba"]
[null,739,"LinkedIn Member","Manager","NGM Investment Ltd","Vancouver","Canada","Education: University of Manitoba"]
[null,740,"LinkedIn Member","Pension and Benefits Strategist","","Edmonton","Canada","Education: University of Manitoba"]
[null,741,"LinkedIn Member","Senior Consultant and Actuary","Donaldson Vincent Associates Limited","Toronto","Canada","Education: University of Manitoba"]
[null,742,"LinkedIn Member","Insurance Professional","","Kitchener","Canada","Education: University of Manitoba"]
[null,743,"LinkedIn Member","--","","Toronto","Canada","Education: University of Manitoba"]
[null,744,"LinkedIn Member","VP of Finance and Administrative Services","Vein Clinic PA","Minneapolis","United States","Education: University of Manitoba"]
[null,745,"LinkedIn Member","Sales Administration Manager","SG Gaming","Macao","Macao","Education: University of Manitoba"]
[null,746,"LinkedIn Member","Leisure","Travel & Tourism Professional","Winnipeg","Canada","Education: University of Manitoba"]
[null,747,"LinkedIn Member","Public Works and Government Services Canada","","Ottawa","Canada","Education: University of Manitoba"]
[null,748,"LinkedIn Member","Wealth Planner UHNW","UBS AG Singapore","Singapore","Singapore","Education: University of Manitoba"]
[null,749,"LinkedIn Member","Insurance Professional","","Winnipeg","Canada","Education: The University of Manitoba"]
[null,750,"LinkedIn Member","CEO","BridgeWorks, LLC","San Francisco","United States","Education: University of Manitoba"]
[null,751,"LinkedIn Member","President & CEO","FPB Financial Strategies Inc.","Saskatchewan","Canada","Education: University of Manitoba"]
[null,752,"LinkedIn Member","Self Employed","","Selangor","Malaysia","Education: University of Manitoba"]
[null,753,"LinkedIn Member","university of Manitoba毕业","","Winnipeg","Canada","Education: university of Manitoba"]
[null,754,"LinkedIn Member","Coachpraktijk Vrij Eten","","Hague","Netherlands","Summary: OPLEIDINGEN 2014-2015... : University of Manitoba [CA..."]
[null,755,"LinkedIn Member","Consultant","N-Dimensional Computers inc.","Toronto","Canada","Education: University of Manitoba"]
[null,756,"LinkedIn Member","--","","Selangor","Malaysia","Education: University of Manitoba"]
[null,757,"LinkedIn Member","Owner","Barca Capital Management","Toronto","Canada","Education: University of Manitoba"]
[null,758,"LinkedIn Member","Independent Financial Services Professional","","Melbourne","Australia","Education: University of Manitoba"]
[null,759,"LinkedIn Member","Actuary","Baker Actuarial Services","Ottawa","Canada","Education: University of Manitoba"]
[null,760,"LinkedIn Member","Office Manager","Samena Capital Hong Kong Ltd.","Hong Kong","China","Education: University of Manitoba (Canada)"]
[null,null,null,"Office Manager@Samena Capital Hong Kong Ltd.",""]

{"sheet":"Cleaning Up + Formulas","index":7,"n_rows":762,"n_cols":23,"rows_kept":762,"cut":false,"hidden":true,"merged":[]}
[null,"Name","Full Position","Position","Company","Other info","City","Country"]
[1,"Michael Etkin","University of Manitoba Actuarial Club Promotions Coordinator","University of Manitoba Actuarial Club Promotions Coordinator","","Current: Actuarial Intern at Manitoba Public Insurance","Winnipeg","Canada"]
[2,"Patrick Solmundson","Actuarial Student, University of Manitoba","Actuarial Student","University of Manitoba","Summary: ...and articulate actuarial student... of the University of Manitoba...","Winnipeg","Canada",null,"Canada",{"$f":"COUNTIF($H$2:$H$761,J3)","v":572},null,"Winnipeg",{"$f":"COUNTIF($G$2:$G$761,M3)","v":312},null,"Student",{"$f":"COUNTIF($C$2:$C$761,\"*Student*\")","v":103},null,"Student",56]
[3,"Nolan Kennedy","Actuarial Student, Asper School of Business - University of Manitoba","Actuarial Student","Asper School of Business - University of Manitoba","Past: Student Internet Technician at University of Manitoba","Winnipeg","Canada",null,"United States",{"$f":"COUNTIF($H$2:$H$761,J4)","v":108},null,"Manitoba",{"$f":"COUNTIF($G$2:$G$761,M4)","v":3},null,"VP",{"$f":"COUNTIF($C$2:$C$761,\"*VP*\")+COUNTIF($C$2:$C$761,\"*Vice-President*\")+COUNTIF($C$2:$C$761,\"*Vice President*\")-COUNTIF($C$2:$C$761,\"*Senior VP*\")+COUNTIF($C$2:$C$761,\"*Senior Vice-President*\")+COUNTIF($C$2:$C$761,\"*Senior Vice President*\")+COUNTIF($C$2:$C$761,\"*Sr. VP*\")+COUNTIF($C$2:$C$761,\"*Sr. Vice-President*\")+COUNTIF($C$2:$C$761,\"*Sr. Vice President*\")","v":67},null,"Actuarial Analyst",32,null,"",""]
[4,"Ben Tallin","Actuarial Mathematics Student at The University of Manitoba","Actuarial Mathematics Student","The University of Manitoba","Summary: ...actuarial mathematics... with the University of Manitoba...","Winnipeg","Canada",null,"China",34,null,"Vancouver",29,null,"President/CEO",{"$f":"COUNTIF($C$2:$C$761,\"*President*\")+COUNTIF($C$2:$C$761,\"*CEO*\")+COUNTIF($C$2:$C$761,\"*Chief Executive Officer*\")","v":57},null,"Director",25]
[5,"Eric Dufault","Actuarial Student - University of Manitoba","Actuarial Student - University of Manitoba","","Current: Actuarial Student at University of Manitoba","Winnipeg","Canada",null,"Barbados",1,null,"Toronto",104,null,"Actuarial Analyst",{"$f":"COUNTIF($C$2:$C$761,\"*Actuarial Analyst*\")","v":45},null,"Manager",20]
[6,"Yifan Jiang","Actuarial Mathematics & Accounting student at University of Manitoba","Actuarial Mathematics & Accounting student","University of Manitoba","Education: University of Manitoba","Winnipeg","Canada",null,"Malaysia",13,null,"Kitchener",10,null,"Intern",{"$f":"COUNTIF($C$2:$C$761,\"*Intern*\")","v":25},null,"--",19]
[7,"Andrew Hewett","Actuary Student at University of Manitoba","Actuary Student","University of Manitoba","Education: University of Manitoba","Winnipeg","Canada",null,"Singapore",11,null,"Ottawa",11,null,"Director",{"$f":"COUNTIF($C$2:$C$761,\"*Director*\")","v":53},null,"Actuary",16]
[8,"Karl Reyes","Actuarial Mathematics Student at the University of Manitoba","Actuarial Mathematics Student","the University of Manitoba","Education: University of Manitoba","Winnipeg","Canada",null,"Ghana",1,null,"Calgary",29,null,"Associate",{"$f":"COUNTIF($C$2:$C$761,\"*Associate*\")","v":48},null,"Actuarial Student",15]
[9,"Adam Oye","Actuarial Analyst - WCB Manitoba","Actuarial Analyst - WCB Manitoba","","Current: Actuarial Analyst at WCB Manitoba","Winnipeg","Canada",null,"Philippines",1,null,"Edmonton",8,null,"Assistant Actuary",{"$f":"COUNTIF($C$2:$C$761,\"*Assistant actu*\")","v":4},null,"Actuarial Associate",15]
[10,"Sharon, Ruiyun Long","Student at University of Manitoba","Student","University of Manitoba","Education: University of Manitoba","Winnipeg","Canada",null,"Ireland",2,null,"Saskatchewan",6,null,"Manager",{"$f":"COUNTIF($C$2:$C$761,\"*Manager*\")","v":63},null,"Actuarial Intern",12]
[11,"Melissa Hrichishen","Actuarial Mathematics Student at University of Manitoba","Actuarial Mathematics Student","University of Manitoba","Education: University of Manitoba","Winnipeg","Canada",null,"Trinidad and Tobago",1,null,"Montreal",4,null,"AVP",{"$f":"COUNTIF($C$2:$C$761,\"*AVP*\")","v":10},null,"Vice President",11]
[12,"yan ying wu","Student at University of Manitoba","Student","University of Manitoba","Education: University of Manitoba",null,"Canada",null,"Australia",2,null,"New York",21,null,"Research",{"$f":"COUNTIF($C$2:$C$761,\"*Research*\")","v":8},null,"President",11]
[13,"Sean Seavers","Student at University of Manitoba","Student","University of Manitoba","Summary: ...of Manitoba studying Actuarial... - University of Manitoba...","Winnipeg","Canada",null,"Indonesia",1,null,"Hartford",3,null,"Professor",{"$f":"COUNTIF($C$2:$C$761,\"*Professor*\")+COUNTIF($C$2:$C$761,\"*lecturer*\")","v":3},null,"Senior Actuarial Analyst",9]
[14,"Alexander Loscerbo","Student at University of Manitoba","Student","University of Manitoba","Education: University of Manitoba","Winnipeg","Canada",null,"United Kingdom",2,null,"Boston",6,null,"Consultant",{"$f":"COUNTIF($C$2:$C$761,\"*Consultant*\")","v":44},null,"Consultant",8]
[15,"Yash Rajpara","Actuarial Student at University of Manitoba","Actuarial Student","University of Manitoba","Education: University of Manitoba","Winnipeg","Canada",null,"Mauritius",1,null,"Huaian",1,null,"Owner",{"$f":"COUNTIF($C$2:$C$761,\"*Owner*\")","v":15},null,"Owner",8]
[16,"Trevor Panchyshyn","Student at University of Manitoba","Student","University of Manitoba","Education: University of Manitoba","Manitoba","Canada",null,"Bermuda",1,null,"Milwaukee",2,null,"Partner",{"$f":"COUNTIF($C$2:$C$761,\"*partner*\")","v":15},null,"Senior Consultant",8]
[17,"Linghua Wei","Research Assistant at University of Manitoba","Research Assistant","University of Manitoba","Current: ...Actuarial Research Conference, University of Minnesota...","Winnipeg","Canada",null,"Germany",2,null,"London",5,null,"Retired",{"$f":"COUNTIF($C$2:$C$761,\"*retired*\")","v":9},null,"Actuarial Mathematics Student",7]
[18,"Alexander Sachs","Student at University of Manitoba","Student","University of Manitoba","Education: University of Manitoba","Winnipeg","Canada",null,"Panama",1,null,"Kuala Lumpur",3,null,"Principal",{"$f":"COUNTIF($C$2:$C$761,\"*Principal*\")","v":11},null,"VP",7]
[19,"Gabrielle Lemire","Student at University of Manitoba","Student","University of Manitoba","Education: University of Manitoba","Winnipeg","Canada",null,"Cayman Islands",1,null,"Kansas City",2,null,"Chief Actuary",{"$f":"COUNTIF($C$2:$C$761,\"*Chief Actuary*\")","v":2},null,"Partner",7]
[20,"Kim Kim Ly","Account Payable Assistant at University of Manitoba","Account Payable Assistant","University of Manitoba","Michael Benarroch","Winnipeg","Canada",null,"Switzerland",1,null,"Orange County",2,null,"Accounting",{"$f":"COUNTIF($C$2:$C$761,\"*Accounting*\")+COUNTIF($C$2:$C$761,\"*accountant*\")+COUNTIF($C$2:$C$761,\"*audit*\")+COUNTIF($C$2:$C$761,\"*auditor*\")+COUNTIF($C$2:$C$761,\"*accounts payable*\")","v":11},null,"Actuarial Consultant",6]
[21,"Guangyu Xing","Student at University of Manitoba","Student","University of Manitoba","Past: Research Assistant at University of Manitoba","Winnipeg","Canada",null,"Japan",1,null,"Minneapolis",16,null,"Senior VP",{"$f":"COUNTIF($C$2:$C$761,\"*Senior VP*\")+COUNTIF($C$2:$C$761,\"*Senior Vice-President*\")+COUNTIF($C$2:$C$761,\"*Senior Vice President*\")+COUNTIF($C$2:$C$761,\"*Sr. VP*\")+COUNTIF($C$2:$C$761,\"*Sr. Vice-President*\")+COUNTIF($C$2:$C$761,\"*Sr. Vice President*\")","v":7},null,"Associate",6]
[22,"Christian Torfason","Student at University of Manitoba","Student","University of Manitoba","Education: University of Manitoba","Winnipeg","Canada",null,"Italy",1,null,"Hangzhou",1,null,null,null,null,"AVP",6]
[23,"Jeffray Nicolas","Graduate Actuary from the University of Manitoba","Graduate Actuary from the University of Manitoba","","Summary: ...in actuarial mathematics... of gaining actuarial...","Winnipeg","Canada",null,"Macao",1,null,"Chicago",8,null,null,null,null,"Consulting Actuary",6]
[24,"Mengqi Zhang","Student Leadership Development Program Facilitator at University of Manitoba","Student Leadership Development Program Facilitator","University of Manitoba","Current: Student Leadership Workshop Facilitator at University of Manitoba","Winnipeg","Canada",null,"Netherlands",1,null,"Dallas",2,null,null,null,null,"Attended University of Manitoba",5]
[25,"Sergiu Buda","Actuarial Student at The Great-West Life Assurance Company","Actuarial Student","The Great-West Life Assurance Company","Past: Research Assistant at University of Manitoba","Winnipeg","Canada",null,null,null,null,"Alberta",2,null,null,null,null,"Insurance Professional",5]
[26,"RONGMEI LI","Actuarial Student at University of Manitoba","Actuarial Student","University of Manitoba","Education: University of Manitoba",null,"Canada",null,null,null,null,"Ontario",1,null,null,null,null,"Analyst",4]
[27,"Aaron Yanofsky, ASA, ACIA, CERA","Actuarial Associate at Great-West Life","Actuarial Associate","Great-West Life","Past: Marker - Asper School of Business at University of Manitoba","Winnipeg","Canada",null,null,null,null,"Washington",2,null,null,null,null,"Principal",4]
[28,"Elizabeth Wanke","Actuarial Co-op at Munich Re Canada","Actuarial Co-op","Munich Re Canada","Past: Co-President at University of Manitoba Actuarial Club","Winnipeg","Canada",null,null,null,null,"Los Angeles",3,null,null,null,null,"Senior Manager",4]
[29,"chenxi zhao","Student at University of Manitoba","Student","University of Manitoba","Education: University of Manitoba","Winnipeg","Canada",null,null,null,null,"Halifax",1,null,null,null,null,"Managing Director",4]
[30,"Lorena Ardebol","Student at University of Manitoba","Student","University of Manitoba","Education: University of Manitoba","Winnipeg","Canada",null,null,null,null,"Atlanta",2,null,null,null,null,"Actuarial Co-op",3]
[31,"Christian Guevarra","Student at University of Manitoba","Student","University of Manitoba","Education: University of Manitoba","Winnipeg","Canada",null,null,null,null,"Raleigh-Durham",1,null,null,null,null,"Actuarial Assistant",3]
[32,"Barbara Hanchard","Director, Staff Benefits at University of Manitoba","Director","University of Manitoba","Past: Senior Actuarial Systems Analyst at Great West Life Assurance","Winnipeg","Canada",null,null,null,null,"Seattle",5,null,null,null,null,"Senior Analyst",3]
[33,"Jeffrey Umandap","Actuarial Intern at Great-West Life","Actuarial Intern","Great-West Life","Education: University of Manitoba","Winnipeg","Canada",null,null,null,null,"Beijing",2,null,null,null,null,"Branch Manager",3]
[34,"David Senensky","Actuarial Associate at Great-West Life","Actuarial Associate","Great-West Life","Education: University of Manitoba","Winnipeg","Canada",null,null,null,null,"Bloomington",1,null,null,null,null,"Senior Associate",3]
[35,"Devin Kinley","Actuarial Intern, Wawanesa Mutual Insurance Co.","Actuarial Intern","Wawanesa Mutual Insurance Co.","Past: Interest Theory Grader at University of Manitoba","Winnipeg","Canada",null,null,null,null,"Hong Kong",23,null,null,null,null,"General Manager",3]
[36,"Roger Tran","Actuarial Analyst at Sun Life Financial","Actuarial Analyst","Sun Life Financial","Education: University of Manitoba","Winnipeg","Canada",null,null,null,null,"Sydney",1,null,null,null,null,"Retired",3]
[37,"PARTHKUMAR PATEL","Accounting Grader/Marker at University of Manitoba","Accounting Grader/Marker","University of Manitoba","Ivraj Plaha","Winnipeg","Canada",null,null,null,null,"Jakarta",1,null,null,null,null,"Associate Actuary",3]
[38,"Nathania Frederica","Actuarial Student at Investors Group","Actuarial Student","Investors Group","Current: Grader / Marker at University of Manitoba","Winnipeg","Canada",null,null,null,null,"Chengdu",1,null,null,null,null,"Senior Vice President",3]
[39,"Kyle A. Casalla","Actuarial Analyst at Sun Life Financial, Actuarial Science Student at Asper School of Business","Actuarial Analyst","Sun Life Financial, Actuarial Science Student","Summary: ...in Actuarial Mathematics... the University of Manitoba...","Winnipeg","Canada",null,null,null,null,"Indianapolis",1,null,null,null,null,"Senior Vice-President",3]
[40,"Neil Redpath","Actuarial Intern at Great-West Life","Actuarial Intern","Great-West Life","Avi Saper","Winnipeg","Canada",null,null,null,null,"San Francisco",12,null,null,null,null,"Actuary Student",2]
[41,"Ziwei Jiang","Student at University of Manitoba","Student","University of Manitoba","Education: University of Manitoba","Winnipeg","Canada",null,null,null,null,"Flagstaff",1,null,null,null,null,"Research Assistant",2]
[42,"Taylor Mitchell","Actuarial Intern at Wawanesa Insurance","Actuarial Intern","Wawanesa Insurance","Education: University of Manitoba","Winnipeg","Canada",null,null,null,null,"Houston",1,null,null,null,null,"Senior Actuarial Associate",2]
[43,"Andrea Leong","Actuarial Analyst at Great-West Life","Actuarial Analyst","Great-West Life","Education: University of Manitoba","Winnipeg","Canada",null,null,null,null,"Miami",2,null,null,null,null,"Assistant Actuarial Analyst",2]
[44,"Bradley Abells","Actuarial Intern at Munich Re Canada","Actuarial Intern","Munich Re Canada","Education: University of Manitoba","Winnipeg","Canada",null,null,null,null,"Austin",2,null,null,null,null,"Actuarial Summer Student",2]
[45,"Chipwa Banda","Student at University of Manitoba","Student","University of Manitoba","Summary: ...at the University of Manitoba... in Actuarial Mathematics and a...","Winnipeg","Canada",null,null,null,null,"Munich",2,null,null,null,null,"Actuarial Officer",2]
[46,"Stefan Baluta","Actuarial Analyst at Wawanesa Insurance","Actuarial Analyst","Wawanesa Insurance","Summary: ...of the University of Manitoba... in Actuarial Math and Finance. I...","Winnipeg","Canada",null,null,null,null,"Orlando",1,null,null,null,null,"Actuarial Manager",2]
[47,"Timothy Rempel","Actuarial Analyst at Great-West Life","Actuarial Analyst","Great-West Life","Education: University of Manitoba","Winnipeg","Canada",null,null,null,null,"Shanghai",4,null,null,null,null,"Assistant Actuary",2]
[48,"Thanh Thanh Nguyen","Actuarial Analyst at Benchmark Decisions Ltd","Actuarial Analyst","Benchmark Decisions Ltd","Education: University of Manitoba","Winnipeg","Canada",null,null,null,null,"Sarawak",1,null,null,null,null,"Special Projects Manager",2]
[49,"Alexandra Gorlick","Actuarial Analyst at Ellement Consulting Group","Actuarial Analyst","Ellement Consulting Group","Education: University of Manitoba","Winnipeg","Canada",null,null,null,null,"Phoenix",1,null,null,null,null,"Associate Director",2]
[50,"Julia Gudmundson","Actuarial Associate at Great-West Life","Actuarial Associate","Great-West Life","Education: University of Manitoba","Winnipeg","Canada",null,null,null,null,"Greensboro",1,null,null,null,null,"Business Analyst",2]
[51,"Anh Pham","Actuarial Co-op at Aon Hewitt","Actuarial Co-op","Aon Hewitt","Education: University of Manitoba","Vancouver","Canada",null,null,null,null,"Denver",5,null,null,null,null,"ASA",2]
[52,"Sean McFetridge","Actuarial Analyst at Mercer","Actuarial Analyst","Mercer","Past: Research Assistant, Executive Compensation at University of Manitoba","Toronto","Canada",null,null,null,null,"Fort Wayne",1,null,null,null,null,"Senior Director",2]
[53,"Ella Nguyen","Student at University of Manitoba","Student","University of Manitoba","Education: University of Manitoba","Winnipeg","Canada",null,null,null,null,"Sacramento",1,null,null,null,null,"Pension Administrator",2]
[54,"Maria Santiano","Student, University of Manitoba","Student","University of Manitoba","Education: University of Manitoba","Winnipeg","Canada",null,null,null,null,"St. Louis",2,null,null,null,null,"Financial Analyst",2]
[55,"Brad Perrella","Student at University of Manitoba","Student","University of Manitoba","Education: University of Manitoba","Winnipeg","Canada",null,null,null,null,"Zurich",1,null,null,null,null,"Supervisor",2]
[56,"Stephen Swenarchuk","Senior Actuarial Associate at Worden Zaluski Consulting Actuaries Ltd.","Senior Actuarial Associate","Worden Zaluski Consulting Actuaries Ltd.","Education: University of Manitoba","Winnipeg","Canada",null,null,null,null,"Singapore",4,null,null,null,null,"Sales Analyst",2]
[57,"adam wishnowski","Attended University of Manitoba","Attended University of Manitoba","","Education: University of Manitoba","Winnipeg","Canada",null,null,null,null,"Selangor",3,null,null,null,null,"Financial Advisor",2]
[58,"Melanie Skiarski","Actuarial Analyst at Mercer","Actuarial Analyst","Mercer","Past: Co-President at University of Manitoba Actuarial Club","Toronto","Canada",null,null,null,null,"Tokyo",1,null,null,null,null,"President & CEO",2]
[59,"Justin Scott","Actuarial Associate at Great-West Life","Actuarial Associate","Great-West Life","Education: University of Manitoba","Manitoba","Canada",null,null,null,null,"Rome",1,null,null,null,null,"Independent Investment Management Professional",2]
[60,"ERICA ASAWO","Attended University of Manitoba","Attended University of Manitoba","","Education: University of Manitoba","Winnipeg","Canada",null,null,null,null,"Charlotte",1,null,null,null,null,"Financial Services Professional",2]
[61,"Shuai Chen","Actuarial Assistant at Manulife","Actuarial Assistant","Manulife","Past: Grader at University of Manitoba","Kitchener","Canada",null,null,null,null,"Macao",1,null,null,null,null,"Senior Consulting Actuary",2]
[62,"Tinotenda Marova","Assistant Actuarial Analyst at Wawanesa Insurance","Assistant Actuarial Analyst","Wawanesa Insurance","Past: Student Research Assistant at University of Manitoba","Winnipeg","Canada",null,null,null,null,"Hague",1,null,null,null,null,"CEO",2]
[63,"Erin Kavanagh","Actuarial Analyst at Great-West Life","Actuarial Analyst","Great-West Life","Education: University of Manitoba","Winnipeg","Canada",null,null,null,null,"Melbourne",1,null,null,null,null,"Chief Risk Officer",2]
[64,"Zifeng(Joseph) Qian","Actuarial Analyst, Corporate Research at Investors Group","Actuarial Analyst","Investors Group","Education: University of Manitoba","Winnipeg","Canada",null,null,null,null,null,null,null,null,null,null,"University of Manitoba Actuarial Club Promotions Coordinator",1]
[65,"Keri Guenther","Actuarial Summer Student at Great-West Life","Actuarial Summer Student","Great-West Life","Past: Co-President at University of Manitoba Actuarial Club","Winnipeg","Canada",null,null,null,null,null,null,null,null,null,null,"Actuarial Student - University of Manitoba",1]
[66,"Kim Middagh","Benefits Manager at University of Manitoba","Benefits Manager","University of Manitoba","Current: Manager, Group Insurance at University of Manitoba","Winnipeg","Canada",null,null,null,null,null,null,null,null,null,null,"Actuarial Mathematics & Accounting student",1]
[67,"Francis Seah","Actuarial Intern at Investors Group","Actuarial Intern","Investors Group","Past: Part-time Tutor at Self Employed","Winnipeg","Canada",null,null,null,null,null,null,null,null,null,null,"Actuarial Analyst - WCB Manitoba",1]
[68,"Michael Vo","Actuarial Analyst at Willis Towers Watson","Actuarial Analyst","Willis Towers Watson","Education: University of Manitoba","Toronto","Canada",null,null,null,null,null,null,null,null,null,null,"Account Payable Assistant",1]
[69,"Tannis Wiebe","Manager, Actuarial Pricing Western Canada at Wawanesa Insurance","Manager","Wawanesa Insurance","Education: University of Manitoba","Winnipeg","Canada",null,null,null,null,null,null,null,null,null,null,"Graduate Actuary from the University of Manitoba",1]
[70,"Paul Avery","Attended University of Manitoba","Attended University of Manitoba","","Education: University of Manitoba","Winnipeg","Canada",null,null,null,null,null,null,null,null,null,null,"Student Leadership Development Program Facilitator",1]
[71,"Desiree Ferbers","Actuarial Intern at Great-West Life","Actuarial Intern","Great-West Life","Summary: ...at the University of Victoria... at the University...","Winnipeg","Canada",null,null,null,null,null,null,null,null,null,null,"Accounting Grader/Marker",1]
[72,"Amber Anseeuw, ACAS, ACIA","Manager, Actuarial Services at Portage Mutual Insurance","Manager","Portage Mutual Insurance","Education: University of Manitoba","Winnipeg","Canada",null,null,null,null,null,null,null,null,null,null,"Benefits Manager",1]
[73,"Eric Padua","Actuarial Student - Co-op at Great-West Life","Actuarial Student - Co-op","Great-West Life","Summary: ..., Actuarial, Finance... ). Actively pursuing actuarial...","Winnipeg","Canada",null,null,null,null,null,null,null,null,null,null,"Actuarial Student - Co-op",1]
[74,"Yiming Hu","Actuarial Student at Great-West Life","Actuarial Student","Great-West Life","Education: University of Manitoba","Winnipeg","Canada",null,null,null,null,null,null,null,null,null,null,"Manager Actuarial Pricing - Commercial Lines",1]
[75,"Vishal Guliani","Actuarial Analyst","Actuarial Analyst","","Education: University of Manitoba","Winnipeg","Canada",null,null,null,null,null,null,null,null,null,null,"University of Manitoba",1]
[76,"Hadi Saleh","Actuarial Analyst at Deloitte Canada","Actuarial Analyst","Deloitte Canada","Education: University of Manitoba","Toronto","Canada",null,null,null,null,null,null,null,null,null,null,"CPA Student",1]
[77,"Beilin Ye","Actuarial Intern at Manulife","Actuarial Intern","Manulife","Past: Grader/Marker at University of Manitoba","Winnipeg","Canada",null,null,null,null,null,null,null,null,null,null,"VP Corporate Actuarial & Appointed Actuary",1]
[78,"Jarrod Mikolajczyk","Assistant Actuarial Analyst at Wawanesa Insurance","Assistant Actuarial Analyst","Wawanesa Insurance","Education: University of Manitoba","Winnipeg","Canada",null,null,null,null,null,null,null,null,null,null,"Manager Actuarial Pricing Direct Markets",1]
[79,"Naomi Kirshenblatt","Student at Asper School of Business, University of Manitoba","Student","Asper School of Business, University of Manitoba","Education: University of Manitoba","Ottawa","Canada",null,null,null,null,null,null,null,null,null,null,"Grader/marker",1]
[80,"Jan Paolo Medina","Actuarial Analyst at Sun Life Financial","Actuarial Analyst","Sun Life Financial","Education: University of Manitoba","Winnipeg","Canada",null,null,null,null,null,null,null,null,null,null,"Vice-President",1]
[81,"Tanner Klippenstein","Manager Actuarial Pricing - Commercial Lines at Wawanesa Insurance","Manager Actuarial Pricing - Commercial Lines","Wawanesa Insurance","Education: University of Manitoba","Winnipeg","Canada",null,null,null,null,null,null,null,null,null,null,"University Graduate- Actuarial Mathematics",1]
[82,"Asherah Bock","Actuarial Student","Actuarial Student","","Past: Actuarial Intern at Manitoba Public Insurance","Winnipeg","Canada",null,null,null,null,null,null,null,null,null,null,"Sales Representative and University Student",1]
[83,"Rebecca Craig","Student at University of Manitoba","Student","University of Manitoba","Education: University of Manitoba","Winnipeg","Canada",null,null,null,null,null,null,null,null,null,null,"Social Statistics & Performance Indicators Statistician",1]
[84,"Clive Ngoma","Student at University of Manitoba","Student","University of Manitoba","Education: University of Manitoba","Winnipeg","Canada",null,null,null,null,null,null,null,null,null,null,"Actuarial Graduate",1]
[85,"Justin Pursaga","Director, Actuarial Analytics","Director","Actuarial Analytics","Past: Sessional Instructor at University of Manitoba","Winnipeg","Canada",null,null,null,null,null,null,null,null,null,null,"Graduate Student",1]
[86,"Naitao Zeng(Audrey)","University of Manitoba","University of Manitoba","","Sean Klayh","Winnipeg","Canada",null,null,null,null,null,null,null,null,null,null,"Corporate Director",1]
[87,"Alexa Simpson","Actuarial Assistant at Great-West Life","Actuarial Assistant","Great-West Life","Past: Teacher’s Assistant - Introduction to Risk Management at University of Manitoba","Winnipeg","Canada",null,null,null,null,null,null,null,null,null,null,"University of Manitoba学生",1]
[88,"Avi Saper","Actuarial Analyst","Actuarial Analyst","","Education: University of Manitoba","Winnipeg","Canada",null,null,null,null,null,null,null,null,null,null,"Majoring in Actuarial Mathematics",1]
[89,"Kerem Leylek","Actuarial Analyst at Mercer","Actuarial Analyst","Mercer","Education: University of Manitoba","Winnipeg","Canada",null,null,null,null,null,null,null,null,null,null,"Actuarial Analyst - New York Life Insurance Company",1]
[90,"Wayne Heppner","Manager, Actuarial Pricing - Eastern Canada at Wawanesa Insurance","Manager","Wawanesa Insurance","Education: University of Manitoba","Winnipeg","Canada",null,null,null,null,null,null,null,null,null,null,"Actuarial Graduate - Asper School of Business",1]
[91,"Kyle Meilleur","Actuarial Analyst at Ellement Consulting Group","Actuarial Analyst","Ellement Consulting Group","Education: University of Manitoba",null,"Canada",null,null,null,null,null,null,null,null,null,null,"Actuarial Science Student (BSc) Hons",1]
[92,"Danrui Li","Student at University of Manitoba","Student","University of Manitoba","Education: University of Manitoba","Winnipeg","Canada",null,null,null,null,null,null,null,null,null,null,"Senior Actuarial Officer",1]
[93,"Tafadzwa Alifasi","Student at University of Manitoba","Student","University of Manitoba","Education: University of Manitoba","Winnipeg","Canada",null,null,null,null,null,null,null,null,null,null,"Sr. Actuarial Assistant",1]
[94,"Kondwelani Kalinda","Student at University of Manitoba","Student","University of Manitoba","Education: University of Manitoba","Winnipeg","Canada",null,null,null,null,null,null,null,null,null,null,"Chief Actuary",1]
[95,"Gordon Yestrau","Actuarial Summer Student at Great-West Life","Actuarial Summer Student","Great-West Life","Education: University of Manitoba","Winnipeg","Canada",null,null,null,null,null,null,null,null,null,null,"Investment Consultant",1]
[96,"Vivi Rihanti","CPA Student, Actuarial Internal Audit at Great-West Life","CPA Student","Great-West Life","Past: Grader at University of Manitoba","Winnipeg","Canada",null,null,null,null,null,null,null,null,null,null,"Actuarial Science Student",1]
[97,"Dylan Allary","Student at University of Manitoba","Student","University of Manitoba","Education: University of Manitoba","Winnipeg","Canada",null,null,null,null,null,null,null,null,null,null,"Retirement Consulting Associate - Aon Hewitt",1]
[98,"Cherity Ostapowich","Senior Actuarial Analyst at Wawanesa Insurance","Senior Actuarial Analyst","Wawanesa Insurance","Education: University of Manitoba","Winnipeg","Canada",null,null,null,null,null,null,null,null,null,null,"Labour Market and Survey Statistician",1]
[99,"Rowena dela Torre","Actuarial Analyst at Willis Towers Watson","Actuarial Analyst","Willis Towers Watson","Education: University of Manitoba","Calgary","Canada",null,null,null,null,null,null,null,null,null,null,"Commodity Logistics Coordinator",1]
[100,"David Ng","Senior Actuarial Associate at Manulife","Senior Actuarial Associate","Manulife","Education: University of Manitoba","Toronto","Canada",null,null,null,null,null,null,null,null,null,null,"Double honours graduate in Actuarial Math and Statistics",1]
[101,"Zoe Jing Chua","Actuarial Analyst","Actuarial Analyst","","Past: Teaching Assistant at Asper School of Business, University of Manitoba.","Winnipeg","Canada",null,null,null,null,null,null,null,null,null,null,"Coordinator",1]
[102,"Cara Low","VP Corporate Actuarial & Appointed Actuary","VP Corporate Actuarial & Appointed Actuary","","Education: University of Manitoba","Winnipeg","Canada",null,null,null,null,null,null,null,null,null,null,"Actuarial and Investment Consultant for Coughlin & Associates Ltd.",1]
[103,"Jingsha(Sarah) Yuan","Actuarial Assistant at Great-West Life","Actuarial Assistant","Great-West Life","Education: University of Manitoba","Winnipeg","Canada",null,null,null,null,null,null,null,null,null,null,"Human Resources",1]
[104,"Mwila Mvula","Student at University of Manitoba","Student","University of Manitoba","Education: University of Manitoba","Winnipeg","Canada",null,null,null,null,null,null,null,null,null,null,"Actuarial & Financial Analyst",1]
[105,"Megan Booth","Actuarial Student","Actuarial Student","","Summary: ...and Actuarial Science. Currently... at the University of Manitoba in the Co...","Winnipeg","Canada",null,null,null,null,null,null,null,null,null,null,"Actuarial Mathematics and Finance student",1]
[106,"Jared Pursaga","Manager Actuarial Pricing Direct Markets at Wawanesa Insurance","Manager Actuarial Pricing Direct Markets","Wawanesa Insurance","Education: University of Manitoba","Winnipeg","Canada",null,null,null,null,null,null,null,null,null,null,"Development Manager and Senior Business Consultant",1]
[107,"Rosena Chan","Actuarial Analyst","Actuarial Analyst","","Education: University of Manitoba","Kitchener","Canada",null,null,null,null,null,null,null,null,null,null,"Business Immigration Officer",1]
[108,"hetty asiamah","Grader/marker at Department of Economics, University of Manitoba","Grader/marker","Department of Economics, University of Manitoba","Past: teaching assistant at university of ghana( statistics dept)","Winnipeg","Canada",null,null,null,null,null,null,null,null,null,null,"Actuarial and Quantitative Finance",1]
[109,"Justin Lasker, ASA, ACIA","Senior Actuarial Analyst at Sunlife","Senior Actuarial Analyst","Sunlife","Education: University of Manitoba",null,"Canada",null,null,null,null,null,null,null,null,null,null,"Director Treasury/Pensions",1]
[110,"Bill MacMillan","Actuarial Consultant at Manulife Financial","Actuarial Consultant","Manulife Financial","Education: University of Manitoba","Winnipeg","Canada",null,null,null,null,null,null,null,null,null,null,"Manager Group Planning & Risk",1]
[111,"Sara Moffat","Actuarial Analyst at Wawanesa Insurance","Actuarial Analyst","Wawanesa Insurance","Education: University of Manitoba","Winnipeg","Canada",null,null,null,null,null,null,null,null,null,null,"Statistics MSc. Student",1]
[112,"wajiha shahzad","Student at University of Manitoba","Student","University of Manitoba","Education: University of Manitoba","Winnipeg","Canada",null,null,null,null,null,null,null,null,null,null,"Actuarial Science Visiting PhD Student",1]
[113,"Shiyan Jin","Actuarial Associate at Great-West Life","Actuarial Associate","Great-West Life","Education: University of Manitoba",null,"Canada",null,null,null,null,null,null,null,null,null,null,"Actuarial Associate - ASA/ACIA",1]
[114,"Maxim Kharitonov","Senior Actuarial Analyst at Sun Life Financial","Senior Actuarial Analyst","Sun Life Financial","Education: University of Manitoba","Kitchener","Canada",null,null,null,null,null,null,null,null,null,null,"Intern",1]
[115,"Liji Huang","Actuarial Analyst at Great-West Life","Actuarial Analyst","Great-West Life","Education: University of Manitoba","Winnipeg","Canada",null,null,null,null,null,null,null,null,null,null,"Actuarial Life Modeling",1]
[116,"Steven Duplak","Student at University of Manitoba","Student","University of Manitoba","Education: University of Manitoba","Winnipeg","Canada",null,null,null,null,null,null,null,null,null,null,"Value Investor | Financial Services",1]
[117,"Jenna Young, ASA, ACIA","Senior Actuarial Analyst at Willis Towers Watson","Senior Actuarial Analyst","Willis Towers Watson","Education: University of Manitoba","Calgary","Canada",null,null,null,null,null,null,null,null,null,null,"Lecturer & Programme Leader",1]
[118,"varun sharma","Actuarial Associate at The Co-operators","Actuarial Associate","The Co-operators","Summary: Actuarial Analyst... in Insurance and Actuarial...","Winnipeg","Canada",null,null,null,null,null,null,null,null,null,null,"Exploring career and business opportunities",1]
[119,"Leon Lo","Student at University of Manitoba","Student","University of Manitoba","Education: University of Manitoba","Winnipeg","Canada",null,null,null,null,null,null,null,null,null,null,"I.H. Asper School of Business: Accounting and International Business",1]
[120,"Edward Swerhone","Vice-President, Actuarial Reporting and Product Management at Sun Life Financial","Vice-President","Sun Life Financial","Summary: ...actuarial students... actuarial nature, looking...","Toronto","Canada",null,null,null,null,null,null,null,null,null,null,"Owner and CEO",1]
[121,"Sergey Voronin","University Graduate- Actuarial Mathematics","University Graduate- Actuarial Mathematics","","Education: University of Manitoba","Toronto","Canada",null,null,null,null,null,null,null,null,null,null,"at",1]
[122,"Michael Correa","Vice President, Global Actuarial Consulting Group at Munich Re Canada","Vice President","Munich Re Canada","Education: University of Manitoba","Toronto","Canada",null,null,null,null,null,null,null,null,null,null,"Professor of Statistics and Actuarial Science",1]
[123,"Irina Kretskaia","Actuarial Analyst at Wawanesa Insurance","Actuarial Analyst","Wawanesa Insurance","Education: University of Manitoba","Winnipeg","Canada",null,null,null,null,null,null,null,null,null,null,"Pricing Actuary",1]
[124,"Wei Wang","Student at University of Manitoba","Student","University of Manitoba","Education: University of Manitoba","Winnipeg","Canada",null,null,null,null,null,null,null,null,null,null,"Senior Leader",1]
[125,"Faza Raflis","Student at University of Manitoba","Student","University of Manitoba","Education: University of Manitoba","Winnipeg","Canada",null,null,null,null,null,null,null,null,null,null,"Director of Corporate Development",1]
[126,"Gary Stoller","Actuarial Consultant at School Boards Co-operative Inc.","Actuarial Consultant","School Boards Co-operative Inc.","Education: University of Manitoba","Toronto","Canada",null,null,null,null,null,null,null,null,null,null,"学生 - University of Manitoba",1]
[127,"Ryan Sharman","Actuarial Co-op at John Hancock Financial Services","Actuarial Co-op","John Hancock Financial Services","Education: University of Manitoba","Toronto","Canada",null,null,null,null,null,null,null,null,null,null,"AGM",1]
[128,"Christopher Prendergast","Actuarial Analyst at Sun Life Financial","Actuarial Analyst","Sun Life Financial","Summary: ...-Op term as an Actuarial... at the University of Manitoba Asper...","Winnipeg","Canada",null,null,null,null,null,null,null,null,null,null,"Business Owner/Manager",1]
[129,"Samantha Allen","Associate at Mercer","Associate","Mercer","Education: University of Manitoba","Toronto","Canada",null,null,null,null,null,null,null,null,null,null,"Modelling Actuary",1]
[130,"Jade Randall","Actuarial Intern at Wawanesa Mutual Insurance","Actuarial Intern","Wawanesa Mutual Insurance","Education: University of Manitoba","Winnipeg","Canada",null,null,null,null,null,null,null,null,null,null,"Junior Analyst",1]
[131,"Abel Nyamori","Sales Representative and University Student","Sales Representative and University Student","","Current: Vice President of Corporate Relations at University of Manitoba Investment group","Winnipeg","Canada",null,null,null,null,null,null,null,null,null,null,"New Graduate from the Asper School of Business",1]
[132,"Shuo Wang","Actuarial Analyst at Great-West Life","Actuarial Analyst","Great-West Life","Education: University of Manitoba",null,"Canada",null,null,null,null,null,null,null,null,null,null,"Business Transformation Specialist",1]
[133,"Wenqiang Kang","Student at University of Manitoba","Student","University of Manitoba","Education: University of Manitoba","Winnipeg","Canada",null,null,null,null,null,null,null,null,null,null,"Actuarial mathematics student.",1]
[134,"Yiran (Cecilia) Lu","Student at University of Manitoba","Student","University of Manitoba","Education: University of Manitoba","Winnipeg","Canada",null,null,null,null,null,null,null,null,null,null,"Articling Student",1]
[135,"Hao (Charlie) Zhang","Actuarial Analyst at Workers' Compensation Board","Actuarial Analyst","Workers' Compensation Board","Education: University of Manitoba","Edmonton","Canada",null,null,null,null,null,null,null,null,null,null,"Adjunct Instructor",1]
[136,"ira vashisht","Student at University of Manitoba","Student","University of Manitoba","Education: University of Manitoba","Winnipeg","Canada",null,null,null,null,null,null,null,null,null,null,"Actuarial Audit Manager",1]
[137,"Mostofa Sarkar","Social Statistics & Performance Indicators Statistician at Manitoba Bureau of Statistics","Social Statistics & Performance Indicators Statistician","Manitoba Bureau of Statistics","Past: Research Assistant at University of Manitoba","Winnipeg","Canada",null,null,null,null,null,null,null,null,null,null,"Actuarial Grad",1]
[138,"Travis Olson","Manager, Group Actuarial Pricing at Co-operators Life","Manager","Co-operators Life","Education: University of Manitoba","Saskatchewan","Canada",null,null,null,null,null,null,null,null,null,null,"PeopleSoft Analyst",1]
[139,"Nicole Johnson","Actuarial Officer at Agriculture and Agri-Food Canada","Actuarial Officer","Agriculture and Agri-Food Canada","Education: University of Manitoba","Ottawa","Canada",null,null,null,null,null,null,null,null,null,null,"Senior Managing Director",1]
[140,"Jamie Sutherland","Actuarial student at Asper School of Business","Actuarial student","Asper School of Business","Summary: ..., and persistent Actuarial... and grow my actuarial...","Winnipeg","Canada",null,null,null,null,null,null,null,null,null,null,"VP - Life and Annuity Operations - Actuarial",1]
[141,"Fangzhu Shen","Student at University of Manitoba","Student","University of Manitoba","Education: University of Manitoba","Winnipeg","Canada",null,null,null,null,null,null,null,null,null,null,"FCAS",1]
[142,"Emma Gao","Actuarial Manager at Intact","Actuarial Manager","Intact","Education: University of Manitoba","Calgary","Canada",null,null,null,null,null,null,null,null,null,null,"Quantitative Finance Professional",1]
[143,"Lisa Bjornson","Senior Actuarial Analyst at Morneau Shepell","Senior Actuarial Analyst","Morneau Shepell","Education: University of Manitoba","Toronto","Canada",null,null,null,null,null,null,null,null,null,null,"Compensation Manager",1]
[144,"WENTING LI","Actuarial Graduate","Actuarial Graduate","","Summary: A recent Actuarial graduate from University...","Winnipeg","Canada",null,null,null,null,null,null,null,null,null,null,"Global Equity Analyst - AGF Management Limited",1]
[145,"Stephen Szaura","Graduate Student at McGill University","Graduate Student","McGill University","Summary: ...of Management McGill University... and actuarial mathematics...","Montreal","Canada",null,null,null,null,null,null,null,null,null,null,"Head of Global Life and Longevity Products",1]
[146,"Ella Young","Corporate Director, Enterprise Risk Management and Director, Care Continuum and Actuarial Analytics at VCH","Corporate Director","VCH","Summary: ...in energy in Manitoba... . Hons (Actuarial Science...","Vancouver","Canada",null,null,null,null,null,null,null,null,null,null,"Throw",1]
[147,"Nadia Daoudi","Actuarial Student","Actuarial Student","","Past: Customer Service Representative at University of Manitoba","Winnipeg","Canada",null,null,null,null,null,null,null,null,null,null,"Underwriter - China Market",1]
[148,"Samantha Gopaul","Student at University of Manitoba","Student","University of Manitoba","Education: University of Manitoba","Winnipeg","Canada",null,null,null,null,null,null,null,null,null,null,"Owner and Trainer",1]
[149,"John Campbell","AVP, Group Finance Actuarial, at Manulife Financial","AVP","Manulife Financial","Past: AVP, External Reporting and Policy at Manulife Financial","Toronto","Canada",null,null,null,null,null,null,null,null,null,null,"Director of Communications",1]
[150,"Joiely Evangelista","Actuarial Student","Actuarial Student","","Education: University of Manitoba",null,"Canada",null,null,null,null,null,null,null,null,null,null,"Research Consultant",1]
[151,"Keith Richtik","Manager, Actuarial Financial Reporting","Manager","Actuarial Financial Reporting","Education: University of Manitoba","Winnipeg","Canada",null,null,null,null,null,null,null,null,null,null,"Income Tax Auditor",1]
[152,"卢枭","University of Manitoba学生","University of Manitoba学生","","Education: University of Manitoba","Winnipeg","Canada",null,null,null,null,null,null,null,null,null,null,"Product Line Manager",1]
[153,"Wali Naqvi","Majoring in Actuarial Mathematics, Finance and Minoring in Marketing","Majoring in Actuarial Mathematics","Finance and Minoring in Marketing","Current: Student at University of Manitoba","Winnipeg","Canada",null,null,null,null,null,null,null,null,null,null,"Assistant Vice President",1]
[154,"Erik W.","Student at the University of Manitoba","Student","the University of Manitoba","Education: University of Manitoba","Vancouver","Canada",null,null,null,null,null,null,null,null,null,null,"Treasurer",1]
[155,"Stuart Tisdale","Actuarial Analyst - New York Life Insurance Company","Actuarial Analyst - New York Life Insurance Company","","Past: Teaching Assistant - Department of Statistics at University of Manitoba","New York","United States",null,null,null,null,null,null,null,null,null,null,"BComm (Hons) Candidate",1]
[156,"Vladimir Krepkiy","Actuarial Associate at BMO Bank of Montreal","Actuarial Associate","BMO Bank of Montreal","Education: University of Manitoba",null,"Canada",null,null,null,null,null,null,null,null,null,null,"Predictive Analyst",1]
[157,"Wisdom Ugbah","Student at University of Manitoba","Student","University of Manitoba","Education: University of Manitoba",null,"Canada",null,null,null,null,null,null,null,null,null,null,"Group Planning and Risk",1]
[158,"Monica Otulak","Student at University of Manitoba","Student","University of Manitoba","Education: University of Manitoba","Winnipeg","Canada",null,null,null,null,null,null,null,null,null,null,"Actuary/Director",1]
[159,"Maryana Gange","Actuarial Analyst","Actuarial Analyst","","Past: Teacher's Assistant - Introductory Ukrainian and Intermediate Ukrainian at University of Manitoba","Winnipeg","Canada",null,null,null,null,null,null,null,null,null,null,"Equity Analyst",1]
[160,"Cameron Smart","Senior Actuarial Analyst at Cigna","Senior Actuarial Analyst","Cigna","Education: University of Manitoba","Hartford","United States",null,null,null,null,null,null,null,null,null,null,"Vice-President of Corporate Research",1]
[161,"Bryn Peppler","Actuarial Associate at New York Life Insurance Company","Actuarial Associate","New York Life Insurance Company","Education: University of Manitoba","New York","United States",null,null,null,null,null,null,null,null,null,null,"N/A",1]
[162,"Yemurai Bgwoni","Actuarial Graduate - Asper School of Business","Actuarial Graduate - Asper School of Business","","Education: University of Manitoba","Winnipeg","Canada",null,null,null,null,null,null,null,null,null,null,"Project Management Assistant",1]
[163,"Dyemila Narrainsawmy","Actuarial Student at University of Manitoba","Actuarial Student","University of Manitoba","Past: Student Worker at University of Manitoba","Winnipeg","Canada",null,null,null,null,null,null,null,null,null,null,"Actuary specializing in processes and controls",1]
[164,"Jiabin(Francis) Dong","Actuarial Analyst at Aviva Canada","Actuarial Analyst","Aviva Canada","Education: University of Manitoba","Toronto","Canada",null,null,null,null,null,null,null,null,null,null,"ALM Senior Analyst",1]
[165,"Hung Manh Le","Actuarial Analyst","Actuarial Analyst","","Past: Student Group Resource Centre Coordinator at University of Manitoba Students' Union","Toronto","Canada",null,null,null,null,null,null,null,null,null,null,"Health and Benefits Practice Leader Calgary",1]
[166,"Ben-Iddo Manda","Actuarial Science Student (BSc) Hons","Actuarial Science Student (BSc) Hons","","Current: Student Office Assistant - Donor Relations at University of Manitoba","Winnipeg","Canada",null,null,null,null,null,null,null,null,null,null,"Digital Communications Associate",1]
[167,"Dan Clark","Actuarial Consultant at DRC Actuarial Services","Actuarial Consultant","DRC Actuarial Services","Education: University of Manitoba","Toronto","Canada",null,null,null,null,null,null,null,null,null,null,"Building and protection of financial security for individuals",1]
[168,"Yu Cheng","Senior Actuarial Officer at OSFI","Senior Actuarial Officer","OSFI","Education: University of Manitoba","Ottawa","Canada",null,null,null,null,null,null,null,null,null,null,"at Great-West Life",1]
[169,"Maja Bakija","Actuarial Associate at New York Life | Dancer/Choreographer","Actuarial Associate","New York Life | Dancer/Choreographer","Past: Grader/Marker at University of Manitoba","New York","United States",null,null,null,null,null,null,null,null,null,null,"Referee Assignor",1]
[170,"Greg Komatich","Actuarial Associate at Financial Services Commission of Ontario","Actuarial Associate","Financial Services Commission of Ontario","Education: University of Manitoba","Toronto","Canada",null,null,null,null,null,null,null,null,null,null,"System Analytics Analyst",1]
[171,"Carolina Faustino","Senior Actuarial Analyst at Morneau Shepell","Senior Actuarial Analyst","Morneau Shepell","Education: University of Manitoba","Vancouver","Canada",null,null,null,null,null,null,null,null,null,null,"AVP Group Pricing",1]
[172,"Krista P Cortez","Sr. Actuarial Assistant at John Hancock","Sr. Actuarial Assistant","John Hancock","Past: Lab Demonstrator and Private Tutor at University of Manitoba - Access Program","Boston","United States",null,null,null,null,null,null,null,null,null,null,"SVP",1]
[173,"Mingxuan Cheng","Student at University of Manitoba","Student","University of Manitoba","Past: Lab technician at University of Manitoba","Huaian","China",null,null,null,null,null,null,null,null,null,null,"Independent Management Consulting Professional",1]
[174,"Luke Johnston","Chief Actuary at Manitoba Public Insurance","Chief Actuary","Manitoba Public Insurance","Education: University of Manitoba","Winnipeg","Canada",null,null,null,null,null,null,null,null,null,null,"Étudiant(e) (University of Ghana)",1]
[175,"Alyssa Nigh","Student at the University of Manitoba","Student","the University of Manitoba","Education: University of Manitoba","Milwaukee","United States",null,null,null,null,null,null,null,null,null,null,"HR Professional",1]
[176,"Ray Huynh","Actuarial Associate at Canada Life Assurance Company (Barbados Branch)","Actuarial Associate","Canada Life Assurance Company (Barbados Branch)","Education: University of Manitoba",null,"Barbados",null,null,null,null,null,null,null,null,null,null,"Consulting Pension Actuary (retired)",1]
[177,"Maambo Mujala","Actuarial Associate at New York Life Insurance Company","Actuarial Associate","New York Life Insurance Company","Education: University of Manitoba","New York","United States",null,null,null,null,null,null,null,null,null,null,"Regulator",1]
[178,"Charles Manty","Investment Consultant at PBI Actuarial Consultants","Investment Consultant","PBI Actuarial Consultants","Education: University of Manitoba","Vancouver","Canada",null,null,null,null,null,null,null,null,null,null,"Qtrade Advisor | Securities Specialist",1]
[179,"Savannah Yeroschak","Actuarial Science Student","Actuarial Science Student","","Education: University of Manitoba","Winnipeg","Canada",null,null,null,null,null,null,null,null,null,null,"Regional Director",1]
[180,"Landon Stewart","Retirement Consulting Associate - Aon Hewitt","Retirement Consulting Associate - Aon Hewitt","","Education: University of Manitoba","Winnipeg","Canada",null,null,null,null,null,null,null,null,null,null,"Accounts Receivable and Payable Associate",1]
[181,"Sydney Rubert","Actuarial Associate at John Hancock Financial Services","Actuarial Associate","John Hancock Financial Services","Education: University of Manitoba","Boston","United States",null,null,null,null,null,null,null,null,null,null,"Financial Planning Administrator",1]
[182,"Pierra Chan","Senior Actuarial Analyst","Senior Actuarial Analyst","","Education: University of Manitoba","Toronto","Canada",null,null,null,null,null,null,null,null,null,null,"Founding Partner",1]
[183,"Melissa Luff","Labour Market and Survey Statistician at Manitoba Bureau of Statistics","Labour Market and Survey Statistician","Manitoba Bureau of Statistics","Education: University of Manitoba","Winnipeg","Canada",null,null,null,null,null,null,null,null,null,null,"Enjoying Retirement",1]
[184,"Winny Wu","Actuarial Mathematics Student","Actuarial Mathematics Student","","Past: Teaching Assistant at University of Manitoba","Winnipeg","Canada",null,null,null,null,null,null,null,null,null,null,"Risk Manager",1]
[185,"Cam Bredin, CFA Level II Candidate","Commodity Logistics Coordinator","Commodity Logistics Coordinator","","Education: University of Manitoba","Winnipeg","Canada",null,null,null,null,null,null,null,null,null,null,"Capital Specialist",1]
[186,"Avinash Maniram","Consultant, Group and Health Care at PBI Actuarial Consultants Ltd.","Consultant","PBI Actuarial Consultants Ltd.","Past: Instructor - Actuarial Department at Simon Fraser University","Vancouver","Canada",null,null,null,null,null,null,null,null,null,null,"Financial Planner - RBC",1]
[187,"Alexander Zeif","Double honours graduate in Actuarial Math and Statistics","Double honours graduate in Actuarial Math and Statistics","","Summary: ...graduate of the University of Manitoba in Actuarial...","Winnipeg","Canada",null,null,null,null,null,null,null,null,null,null,"Senior Capital Management Analyst",1]
[188,"Talia Pankewycz, FSA","Assistant Actuary, Group Benefits at Sun Life Financial","Assistant Actuary","Sun Life Financial","Education: University of Manitoba","Toronto","Canada",null,null,null,null,null,null,null,null,null,null,"Technical Writer",1]
[189,"Leslee Lefteruk","Coordinator, Occupancy and Data Management at Western University","Coordinator","Western University","Education: University of Manitoba","London","Canada",null,null,null,null,null,null,null,null,null,null,"MBA & Graduate Diploma",1]
[190,"Tyler Smith","Actuarial and Investment Consultant for Coughlin & Associates Ltd.","Actuarial and Investment Consultant for Coughlin & Associates Ltd.","","Education: University of Manitoba",null,"Canada",null,null,null,null,null,null,null,null,null,null,"Software Developer - UX Design - Java - Python - C",1]
[191,"Brenlee Claman","Human Resources at Carleton University","Human Resources","Carleton University","Education: University of Manitoba","Ottawa","Canada",null,null,null,null,null,null,null,null,null,null,"Business Program Management | Enterprise PMO Executive",1]
[192,"Bronagh Nazarko, FSA, FCIA","Actuary at Manulife Financial","Actuary","Manulife Financial","Education: University of Manitoba","Winnipeg","Canada",null,null,null,null,null,null,null,null,null,null,"Associate Vice President",1]
[193,"Daniel Neves","Actuarial & Financial Analyst","Actuarial & Financial Analyst","","Education: University of Manitoba","Toronto","Canada",null,null,null,null,null,null,null,null,null,null,"Credit/Risk/Lending Leader - Seizes Opportunities/Makes Sound Decisions",1]
[194,"Boaz Michael Twesigye","Actuarial Mathematics and Finance student","Actuarial Mathematics and Finance student","","Education: University of Manitoba",null,"Canada",null,null,null,null,null,null,null,null,null,null,"Finance Professional",1]
[195,"Pratik Gupta","Actuarial Consultant","Actuarial Consultant","","Education: University of Manitoba","New York","United States",null,null,null,null,null,null,null,null,null,null,"Client Advisor",1]
[196,"Mark Lee, PMP","Development Manager and Senior Business Consultant at Actuarial System Transformation, Manulife Financial","Development Manager and Senior Business Consultant","Actuarial System Transformation, Manulife Financial","Education: University of Manitoba","Toronto","Canada",null,null,null,null,null,null,null,null,null,null,"BComm (Hons) graduate",1]
[197,"Ajay Pandey","Business Immigration Officer at Government of Manitoba","Business Immigration Officer","Government of Manitoba","Education: University of Manitoba","Winnipeg","Canada",null,null,null,null,null,null,null,null,null,null,"Administrative Professional",1]
[198,"Kelly Cruise","Actuarial Manager at Deloitte","Actuarial Manager","Deloitte","Past: Physics/Astronomy/Mathematics/Statistics Lab Demonstrator at University of Manitoba","Toronto","Canada",null,null,null,null,null,null,null,null,null,null,"Experienced Transportation Entrepreneur and Executive",1]
[199,"Tapiwa Maswera","Actuarial and Quantitative Finance","Actuarial and Quantitative Finance","","Current: Teaching Assistant at University of Manitoba","Winnipeg","Canada",null,null,null,null,null,null,null,null,null,null,"_",1]
[200,"Tony Maslanka, CFA","Director, Treasury Risk and Compliance at Credit Union Central of Manitoba","Director","Credit Union Central of Manitoba","Education: University of Manitoba","Winnipeg","Canada",null,null,null,null,null,null,null,null,null,null,"Immigration Consultant",1]
[201,"Debbie Rehn Doyle, CFA","Director Treasury/Pensions at MTS (Manitoba Telecom Services)","Director Treasury/Pensions","MTS (Manitoba Telecom Services)","Current: Responsible for 5... actuarial valuations...","Winnipeg","Canada",null,null,null,null,null,null,null,null,null,null,"Mercer - Senior Associate",1]
[202,"Yan Wu","Manager Group Planning & Risk","Manager Group Planning & Risk","","Past: Master student at University of Manitoba","Winnipeg","Canada",null,null,null,null,null,null,null,null,null,null,"Sessional Instructor / Master Student",1]
[203,"Kelly Ramsay","Statistics MSc. Student","Statistics MSc. Student","","Past: Research Assistant at University of Manitoba","Winnipeg","Canada",null,null,null,null,null,null,null,null,null,null,"Benefits Consultant",1]
[204,"Evan Shaw","Actuarial Intern at Great-West Life","Actuarial Intern","Great-West Life","Education: University of Manitoba","Winnipeg","Canada",null,null,null,null,null,null,null,null,null,null,"CTO",1]
[205,"Brigitte Scheffer, ACAS","Insurance Professional","Insurance Professional","","Education: University of Manitoba","Winnipeg","Canada",null,null,null,null,null,null,null,null,null,null,"Assistant Vice President & Actuary",1]
[206,"Andrea Sherry","Vice President, Insurance Solutions The Wawanesa Mutual Insurance Company","Vice President","Insurance Solutions The Wawanesa Mutual Insurance Company","Education: University of Manitoba","Winnipeg","Canada",null,null,null,null,null,null,null,null,null,null,"Manager Compensation and Benefits",1]
[207,"Clayton Zaluski, FCIA, FSA","Consulting Actuary at Worden Zaluski Consulting Actuaries","Consulting Actuary","Worden Zaluski Consulting Actuaries","Summary: ...responsibilities, actuarial... other actuarial services. I...","Winnipeg","Canada",null,null,null,null,null,null,null,null,null,null,"Director of Underwriting",1]
[208,"Wan Fen (Melanie) Heng","Actuarial Intern at Great Eastern Life","Actuarial Intern","Great Eastern Life","Current: Grader / marker at University of Manitoba","Kuala Lumpur","Malaysia",null,null,null,null,null,null,null,null,null,null,"Enabling Entrepreneurship",1]
[209,"Adam Burns","Actuarial Associate at New York Life Insurance Company","Actuarial Associate","New York Life Insurance Company","Education: University of Manitoba","New York","United States",null,null,null,null,null,null,null,null,null,null,"Underwriting Manager",1]
[210,"Ya(Amy) Tang","Actuarial Analyst at ISO (Verisk Analytics)","Actuarial Analyst","ISO (Verisk Analytics)","Education: University of Manitoba","New York","United States",null,null,null,null,null,null,null,null,null,null,"Data Scientist working in Market Research Consulting",1]
[211,"Arissa Reis","Student at RBC Dominion Securities","Student","RBC Dominion Securities","Education: University of Manitoba","Winnipeg","Canada",null,null,null,null,null,null,null,null,null,null,"Continuous Improvement Specialist",1]
[212,"Chris Jansen","AVP, Group Business Technology Operations at Great-West Life","AVP","Great-West Life","Education: University of Manitoba","Winnipeg","Canada",null,null,null,null,null,null,null,null,null,null,"Manager - Informatics and Process Improvement - WRHA Emergency Program",1]
[213,"Pervin Baylan İrven","Actuarial Science Visiting PhD Student","Actuarial Science Visiting PhD Student","","Education: University of Manitoba","Winnipeg","Canada",null,null,null,null,null,null,null,null,null,null,"Executive Vice-President",1]
[214,"Ko Yang","Actuarial Associate - ASA/ACIA","Actuarial Associate - ASA/ACIA","","Education: University of Manitoba","Kansas City","United States",null,null,null,null,null,null,null,null,null,null,"Senior Risk Analyst",1]
[215,"Bo Yuan","Intern at Ernst & Young Hua Ming LLp","Intern","Ernst & Young Hua Ming LLp","Past: Grader at University of Manitoba",null,"Canada",null,null,null,null,null,null,null,null,null,null,"Retired Actuary with HR consulting and insurance executive experience",1]
[216,"Lucas Szczepanski","Actuarial Mathematics Student","Actuarial Mathematics Student","","Summary: ..., and results oriented actuarial... . Experience in Actuarial...","Winnipeg","Canada",null,null,null,null,null,null,null,null,null,null,"Bachelor of Commerce - Honours",1]
[217,"Sai Man, CFA, FSA, MAAA","Actuarial Life Modeling at Pacific Life","Actuarial Life Modeling","Pacific Life","Summary: ...actuarial software... management, corporate actuarial...","Orange County","United States",null,null,null,null,null,null,null,null,null,null,"Program Operations Analyst",1]
[218,"David Bailey, CPA, CMA","Manager, Risk Strategy & Innovation at Province of Manitoba, Treasury Division","Manager","Province of Manitoba, Treasury Division","Education: University of Manitoba","Winnipeg","Canada",null,null,null,null,null,null,null,null,null,null,"Electrical Engineering Technologist",1]
[219,"Michael Gussakovsky","Special Projects Manager at Birchwood Automotive Group","Special Projects Manager","Birchwood Automotive Group","Past: Senator at Commerce Students' Association","Winnipeg","Canada",null,null,null,null,null,null,null,null,null,null,"Home Financing Advisor",1]
[220,"Shane Moulton","Special Projects Manager at the Birchwood Automotive Group","Special Projects Manager","the Birchwood Automotive Group","Summary: ...the University of Manitoba... , the University of Manitoba...","Winnipeg","Canada",null,null,null,null,null,null,null,null,null,null,"Broker",1]
[221,"Wilson Low","Value Investor | Financial Services","Value Investor | Financial Services","","Past: Bloomberg Lab Instructor at University of Manitoba","Winnipeg","Canada",null,null,null,null,null,null,null,null,null,null,"Financial Security Advisor",1]
[222,"Lindsey Rioux, CFA","Analyst, Equities at GWL Investment Management (GWLIM)","Analyst","GWL Investment Management (GWLIM)","Education: University of Manitoba","Winnipeg","Canada",null,null,null,null,null,null,null,null,null,null,"Co-op Student",1]
[223,"Rory Mulhern","Associate Director at Sun Life Financial","Associate Director","Sun Life Financial","Education: University of Manitoba",null,"Canada",null,null,null,null,null,null,null,null,null,null,"GGY",1]
[224,"Eric Elford","Senior Analyst, Costing & Risk Analysis at Winnipeg Regional Health Authority","Senior Analyst","Winnipeg Regional Health Authority","Education: University of Manitoba","Winnipeg","Canada",null,null,null,null,null,null,null,null,null,null,"Education Management Professional",1]
[225,"Kimberly Palatnick, FSA, FCIA","Director, Group Operations at Wawanesa Life Insurance Company","Director","Wawanesa Life Insurance Company","Education: University of Manitoba","Winnipeg","Canada",null,null,null,null,null,null,null,null,null,null,"Information & Data Integrity Analyst",1]
[226,"Rafe Hunt, FSA","Actuary at Manulife","Actuary","Manulife","Education: University of Manitoba","Toronto","Canada",null,null,null,null,null,null,null,null,null,null,"Driven to improve healthcare",1]
[227,"Gregg Melnyk","AVP, Group Expense Management & Analysis at Great-West Life","AVP","Great-West Life","Education: University of Manitoba","Winnipeg","Canada",null,null,null,null,null,null,null,null,null,null,"Data Management",1]
[228,"Paul Rothery","Director at Great-West Life","Director","Great-West Life","Education: University of Manitoba","Winnipeg","Canada",null,null,null,null,null,null,null,null,null,null,"Associate General Counsel & Assistant Corporate Secretary",1]
[229,"Li Kee Ong","Lecturer & Programme Leader at Asia Pacific University","Lecturer & Programme Leader","Asia Pacific University","Current: Lecturer & Programme Leader, Actuarial Studies at Asia Pacific University of Technology and Innovation (APU / APIIT)",null,"Malaysia",null,null,null,null,null,null,null,null,null,null,"Student Asper School of Business--",1]
[230,"Vilok Guliani","Business Analyst, Management Consulting at Deloitte Canada","Business Analyst","Deloitte Canada","Past: Data Entry Specialist at University of Manitoba","Winnipeg","Canada",null,null,null,null,null,null,null,null,null,null,"Senior Auditor",1]
[231,"Keegan Lacroix","Actuarial Student","Actuarial Student","","Education: University of Manitoba","Winnipeg","Canada",null,null,null,null,null,null,null,null,null,null,"Product Manager",1]
[232,"Kevin Strong","Exploring career and business opportunities","Exploring career and business opportunities","","Education: University of Manitoba","Winnipeg","Canada",null,null,null,null,null,null,null,null,null,null,"Vice President and Chief Actuary",1]
[233,"Shelley Sjoberg","Director, Group Marketing Planning and Field Support at Great-West Life","Director","Great-West Life","Education: University of Manitoba","Winnipeg","Canada",null,null,null,null,null,null,null,null,null,null,"Financial Risk Manager",1]
[234,"Charly Pazdor","Consulting actuary at Eckler Ltd.","Consulting actuary","Eckler Ltd.","Education: University of Manitoba","Winnipeg","Canada",null,null,null,null,null,null,null,null,null,null,"Retired Actuary",1]
[235,"Derek Dagg","I.H. Asper School of Business: Accounting and International Business","I.H. Asper School of Business: Accounting and International Business","","Past: Director of Corporate Relations at University of Manitoba Investment Group","Winnipeg","Canada",null,null,null,null,null,null,null,null,null,null,"Financial Services Consultant and Contractor",1]
[236,"Michael Arnold, FSA","Owner and CEO, Arnold Tutoring","Owner and CEO","Arnold Tutoring","Education: University of Manitoba",null,"Canada",null,null,null,null,null,null,null,null,null,null,"Corporate VP & Actuary",1]
[237,"Faisal Abidi","Student at University of Manitoba","Student","University of Manitoba","Education: University of Manitoba","Winnipeg","Canada",null,null,null,null,null,null,null,null,null,null,"Commercial Real Estate Appraiser",1]
[238,"Michael Peters","Actuarial Student","Actuarial Student","","Education: University of Manitoba","Winnipeg","Canada",null,null,null,null,null,null,null,null,null,null,"Senior Risk Management Professional",1]
[239,"Shane O'Connor","at","at","","Education: University of Manitoba","Winnipeg","Canada",null,null,null,null,null,null,null,null,null,null,"Senior Customer Analyst",1]
[240,"Tyler Nguyen","Analyst, Real Estate & Mortgages, Greystone Managed Investments","Analyst","Real Estate & Mortgages","Past: Computer Lab Advisor, Scotia Technology Center at Asper School of Business - University of Manitoba","Winnipeg","Canada",null,null,null,null,null,null,null,null,null,null,"Client and Field Support Senior Analyst- Group Division",1]
[241,"Cory Wiebe","Actuary at Sunlife Financial","Actuary","Sunlife Financial","Education: University of Manitoba",null,"Canada",null,null,null,null,null,null,null,null,null,null,"Head of Investment Analytics",1]
[242,"Brian Cameron","Vice President, Actuarial Consulting at OptumInsight","Vice President","OptumInsight","Education: University of Manitoba","Minneapolis","United States",null,null,null,null,null,null,null,null,null,null,"Salesforce is hard. I make it less hard.",1]
[243,"Aaron Tenenbein","Professor of Statistics and Actuarial Science at NYU Stern School of Business","Professor of Statistics and Actuarial Science","NYU Stern School of Business","Education: University of Manitoba","New York","United States",null,null,null,null,null,null,null,null,null,null,"FRTB Specialist",1]
[244,"Kyla Herzog","Manager at MNP LLP","Manager","MNP LLP","Summary: ...from the University Of Manitoba Asper School...","Winnipeg","Canada",null,null,null,null,null,null,null,null,null,null,"Regional Vice President",1]
[245,"Owais Jafry","Student at Asper School of Business","Student","Asper School of Business","Education: University of Manitoba","Winnipeg","Canada",null,null,null,null,null,null,null,null,null,null,"Financial Modeling",1]
[246,"Krizsia Praznik","Pricing Actuary, International Division at Reinsurance Group of America, Incorporated","Pricing Actuary","Reinsurance Group of America, Incorporated","Education: University of Manitoba","Toronto","Canada",null,null,null,null,null,null,null,null,null,null,"Financial Advisor/Consulting Actuary",1]
[247,"Josh Rowson","Senior Leader, Sales and Operations Planning at Princess Auto Ltd.","Senior Leader","Princess Auto Ltd.","Education: University of Manitoba","Winnipeg","Canada",null,null,null,null,null,null,null,null,null,null,"Optical Systems Engineer",1]
[248,"Mike Daciw","Director of Corporate Development","Director of Corporate Development","","Summary: ...) after graduating from the University of Manitoba, and spent...","Calgary","Canada",null,null,null,null,null,null,null,null,null,null,"Franchise Owner",1]
[249,"Eric Seah","actuarial consultant","actuarial consultant","","Education: University of Manitoba",null,"Singapore",null,null,null,null,null,null,null,null,null,null,"Retail Associate",1]
[250,"俞京成","学生 - University of Manitoba","学生 - University of Manitoba","","Education: Asper school of Business, University of Manitoba","Hangzhou","China",null,null,null,null,null,null,null,null,null,null,"Loss Adjuster",1]
[251,"Le Keat Ong","AGM, Actuarial and Family Retakaful","AGM","Actuarial and Family Retakaful","Education: University of Manitoba",null,"Malaysia",null,null,null,null,null,null,null,null,null,null,"Contracts Manager",1]
[252,"Joyce Calderon","Business Owner/Manager at NuCosmetique","Business Owner/Manager","NuCosmetique","Education: University of Manitoba","Winnipeg","Canada",null,null,null,null,null,null,null,null,null,null,"Director and Yoga teacher",1]
[253,"Sheldon Nemeth","Modelling Actuary","Modelling Actuary","","Past: Senior Valuation Analyst at Manulife","Winnipeg","Canada",null,null,null,null,null,null,null,null,null,null,"Buyer",1]
[254,"Louise Hoeppner, FSA","Actuary, Capital Management at Manulife Financial","Actuary","Manulife Financial","Past: Research Assistant & Office Assistant, Warren Centre for Actuarial Studies and Research at University of Manitoba","Toronto","Canada",null,null,null,null,null,null,null,null,null,null,"Risk Management Consultant",1]
[255,"Jamie Rakhra","Junior Analyst at Arctic Glacier Premium Ice","Junior Analyst","Arctic Glacier Premium Ice","Education: University of Manitoba",null,"Canada",null,null,null,null,null,null,null,null,null,null,"Chief Risk Offficer",1]
[256,"Mang Feng","Actuarial analyst","Actuarial analyst","","Education: University of Manitoba","Toronto","Canada",null,null,null,null,null,null,null,null,null,null,"Project Manager",1]
[257,"Bryan Luc","New Graduate from the Asper School of Business","New Graduate from the Asper School of Business","","Education: University of Manitoba","Winnipeg","Canada",null,null,null,null,null,null,null,null,null,null,"Banking Professional",1]
[258,"James LaPage","Business Transformation Specialist, Wawanesa Insurance","Business Transformation Specialist","Wawanesa Insurance","Current: Business Transformation Specialist, Actuarial Services at Wawanesa Insurance","Winnipeg","Canada",null,null,null,null,null,null,null,null,null,null,"Transportation Executive",1]
[259,"Takunda Taimu","Actuarial mathematics student.","Actuarial mathematics student.","","Education: University of Manitoba","Winnipeg","Canada",null,null,null,null,null,null,null,null,null,null,"Retired Principal",1]
[260,"Nora Fien","Articling Student at Fillmore Riley LLP","Articling Student","Fillmore Riley LLP","Past: Summer Legal Research Assistant at University of Manitoba","Winnipeg","Canada",null,null,null,null,null,null,null,null,null,null,"Regional CFO",1]
[261,"Alon Halbrich, FCIA, FSA","Director, Pricing, Defined Benefit Solutions at Sun Life Financial","Director","Sun Life Financial","Summary: ...of actuarial, investment... at the University...",null,"Canada",null,null,null,null,null,null,null,null,null,null,"President and Principal Broker",1]
[262,"FARHAN ISLAM","Adjunct Instructor at International College Manitoba","Adjunct Instructor","International College Manitoba","Current: Sessional Lecturer and Researcher - Asper School of Business at University of Manitoba","Winnipeg","Canada",null,null,null,null,null,null,null,null,null,null,"VP - Solutions Manager",1]
[263,"Angel Yong","Actuarial Audit Manager, Prudential Corporation Asia","Actuarial Audit Manager","Prudential Corporation Asia","Education: University of Manitoba",null,"Singapore",null,null,null,null,null,null,null,null,null,null,"Senior Reporting Analyst",1]
[264,"Ammar Shaheen","Actuarial Grad","Actuarial Grad","","Education: University of Manitoba","Chicago","United States",null,null,null,null,null,null,null,null,null,null,"Partner and Lead",1]
[265,"Sergey Voronin","Attended University of Manitoba","Attended University of Manitoba","","Education: University of Manitoba","Winnipeg","Canada",null,null,null,null,null,null,null,null,null,null,"Project Manager │ Marketing │ Creative Services | Management",1]
[266,"Irina Ledenev","PeopleSoft Analyst","PeopleSoft Analyst","","Past: Invigilator/Teaching Assistant - Corporate Finance, Financial Accounting and Statistics at University of Manitoba","Winnipeg","Canada",null,null,null,null,null,null,null,null,null,null,"Canadian Cancer Society Regional Representative",1]
[267,"Brent Simmons","Senior Managing Director, DB Solutions","Senior Managing Director","DB Solutions","Summary: ...of experienced actuarial... from the University of Manitoba with a...","Toronto","Canada",null,null,null,null,null,null,null,null,null,null,"Pharmaceuticals Professional",1]
[268,"Lorin Hoeppner","VP - Life and Annuity Operations - Actuarial at Swiss Re","VP - Life and Annuity Operations - Actuarial","Swiss Re","Education: University of Manitoba","Dallas","United States",null,null,null,null,null,null,null,null,null,null,"Member of the Board of Trustees",1]
[269,"Femi Adefabi","Student at University of Manitoba.","Student","University of Manitoba.","Education: University of Manitoba","Winnipeg","Canada",null,null,null,null,null,null,null,null,null,null,"Actuary / Consultant",1]
[270,"Maja Dos Santos","FCAS, FCIA, MAAA","FCAS","FCIA","Education: University of Manitoba",null,"Canada",null,null,null,null,null,null,null,null,null,null,"Actuary/Principal",1]
[271,"Yuriy Krepkiy, MMF","Quantitative Finance Professional at IBM","Quantitative Finance Professional","IBM","Education: University of Manitoba","Toronto","Canada",null,null,null,null,null,null,null,null,null,null,"Chief Investments Officer",1]
[272,"Max Feierstein","Owner, Mirage Consulting Ltd.","Owner","Mirage Consulting Ltd.","Education: University of Manitoba","Winnipeg","Canada",null,null,null,null,null,null,null,null,null,null,"Quality Assurance Analyst - Content",1]
[273,"Justine Gratton","Student at the Asper School of Business","Student","the Asper School of Business","Education: University of Manitoba","Winnipeg","Canada",null,null,null,null,null,null,null,null,null,null,"Methodologist",1]
[274,"Loretta Kulchycki","Vice President, Group Marketing at Great-West Life","Vice President","Great-West Life","Education: University of Manitoba",null,"Canada",null,null,null,null,null,null,null,null,null,null,"Level III Umpire",1]
[275,"Aaron Dufault","Director, Non-Par Universal Life Valuation","Director","Non-Par Universal Life Valuation","Education: University of Manitoba","Kitchener","Canada",null,null,null,null,null,null,null,null,null,null,"Senior SW Developer",1]
[276,"Ngoc Ly","ASA","ASA","","Education: University of Manitoba",null,"Canada",null,null,null,null,null,null,null,null,null,null,"Applied Mathematics",1]
[277,"Mavis (Xiaoyu) Shang, FSA","Senior Director, Financial Actuary & Risk Management at RBC Insurance","Senior Director","RBC Insurance","Current: ...for the actuarial financial... , and development of robust actuarial...",null,"Canada",null,null,null,null,null,null,null,null,null,null,"corporate actuary",1]
[278,"Alfred Yau","Compensation Manager, North America Total Rewards at PepsiCo","Compensation Manager","PepsiCo","Education: University of Manitoba","Toronto","Canada",null,null,null,null,null,null,null,null,null,null,"Higher Education Professional",1]
[279,"David Andrich, CFA","Global Equity Analyst - AGF Management Limited","Global Equity Analyst - AGF Management Limited","","Summary: ...: Actuarial Exams Passed... of Actuarial Practice course","Toronto","Canada",null,null,null,null,null,null,null,null,null,null,"FSA",1]
[280,"Xuan Ren Lim","Actuarial Officer at Great Eastern Life","Actuarial Officer","Great Eastern Life","Education: University of Manitoba",null,"Malaysia",null,null,null,null,null,null,null,null,null,null,"Statisticien spécialisé en immobilier",1]
[281,"Daniel Turenne","Research Assistant","Research Assistant","","Current: Research Assistant at University of Manitoba","Winnipeg","Canada",null,null,null,null,null,null,null,null,null,null,"Membership Development Representative",1]
[282,"Lynn Grenier-Lew","Head of Global Life and Longevity Products at Reinsurance Group of America, Incorporated","Head of Global Life and Longevity Products","Reinsurance Group of America, Incorporated","Education: University of Manitoba","Toronto","Canada",null,null,null,null,null,null,null,null,null,null,"GGY AXIS Inc",1]
[283,"Ivraj Plaha","Throw at me a challenge... I throw back a result! Hard working student looking to fulfill his dreams!","Throw","me a challenge... I throw back a result! Hard working student looking to fulfill his dreams!","Summary: A third year student... at the University of Manitoba...","Winnipeg","Canada",null,null,null,null,null,null,null,null,null,null,"Career Advisor",1]
[284,"Huinian-Kelvin Wang","Underwriter - China Market at Odyssey Re","Underwriter - China Market","Odyssey Re","Education: University of Manitoba","Toronto","Canada",null,null,null,null,null,null,null,null,null,null,"2nd VP & Corporate Actuary",1]
[285,"Boon Thye Ho","Actuary at Manulife Financial","Actuary","Manulife Financial","Education: University of Manitoba","Toronto","Canada",null,null,null,null,null,null,null,null,null,null,"Financial Manager",1]
[286,"Amy Coates","Owner and Trainer at Stoke Strength and Conditioning","Owner and Trainer","Stoke Strength and Conditioning","Education: University of Manitoba","Kitchener","Canada",null,null,null,null,null,null,null,null,null,null,"AVP Finance",1]
[287,"Larysa Zubach, FSA, MAAA","Principal at Mercer","Principal","Mercer","Past: Health Actuary at Aon Hewitt","Toronto","Canada",null,null,null,null,null,null,null,null,null,null,"Advanced Healthcare Analytics Executive",1]
[288,"Chen (Victor) Hu","Director of Communications at Asper MISA (Management Information Systems Association)","Director of Communications","Asper MISA (Management Information Systems Association)","Current: Food Service Worker at University of Manitoba","Winnipeg","Canada",null,null,null,null,null,null,null,null,null,null,"Member service representative",1]
[289,"Melissa Davies","Research Consultant at InterGroup Consultants Ltd.","Research Consultant","InterGroup Consultants Ltd.","Education: University of Manitoba","Winnipeg","Canada",null,null,null,null,null,null,null,null,null,null,"AVP Quantatative Analysis",1]
[290,"Christi Sisco","Senior Consultant at Willis Towers Watson","Senior Consultant","Willis Towers Watson","Education: University of Manitoba","Calgary","Canada",null,null,null,null,null,null,null,null,null,null,"Actuary Team Lead",1]
[291,"Devon Kirkwood","Associate, Commercial Banking at CIBC","Associate","CIBC","Education: University of Manitoba","Winnipeg","Canada",null,null,null,null,null,null,null,null,null,null,"Retirement Systems Consultant",1]
[292,"Juan Fernando Martins","Income Tax Auditor at Canada Revenue Agency - Agence du revenu du Canada","Income Tax Auditor","Canada Revenue Agency - Agence du revenu du Canada","Past: Chief Actuary at Nuevo Mundo Insurance Co., Caracas, Venezuela","Winnipeg","Canada",null,null,null,null,null,null,null,null,null,null,"Executive Vice President",1]
[293,"Miranda Ewashko","Student","Student","","Summary: I am a actuarial... at the University of Manitoba...","Winnipeg","Canada",null,null,null,null,null,null,null,null,null,null,"Executive Manager > Senior Actuary > Empowering Leader > Cultivate High Performance Teams",1]
[294,"Karen Kulchyski","Consultant at Willis Towers Watson","Consultant","Willis Towers Watson","Education: University of Manitoba","Calgary","Canada",null,null,null,null,null,null,null,null,null,null,"Life Insurance Consultant",1]
[295,"John Devos","Product Line Manager, Seed and Crop Protection at Parrish & Heimbecker","Product Line Manager","Parrish & Heimbecker","Education: University of Manitoba","Winnipeg","Canada",null,null,null,null,null,null,null,null,null,null,"experienced actuary",1]
[296,"Chris Hurlburt","Director, Capital Management at Great-West Life","Director","Great-West Life","Education: University of Manitoba","Winnipeg","Canada",null,null,null,null,null,null,null,null,null,null,"VBA developper chez SAIL Plein Air / SAIL Outdoors",1]
[297,"Leo Gu","Assistant Vice President at Swiss Re","Assistant Vice President","Swiss Re","Education: University of Manitoba","Toronto","Canada",null,null,null,null,null,null,null,null,null,null,"Experienced Financial Services Professional",1]
[298,"Hao Gao","Treasurer at London Drugs Action Committee","Treasurer","London Drugs Action Committee","Education: University of Manitoba","Winnipeg","Canada",null,null,null,null,null,null,null,null,null,null,"PPP Consultant",1]
[299,"Sehajdeep Sandhu","BComm (Hons) Candidate","BComm (Hons) Candidate","","Past: Director of Finance at University of Manitoba Investment Group (UMIG)",null,"Canada",null,null,null,null,null,null,null,null,null,null,"Claims Administrator",1]
[300,"Charlie Allegro","Senior Consultant at Willis Towers Watson","Senior Consultant","Willis Towers Watson","Education: University of Manitoba","Calgary","Canada",null,null,null,null,null,null,null,null,null,null,"Passionate New York Life Agent helping to protect families in Irvine California",1]
[301,"Bartholomew Ghanney","Predictive Analyst at Fireseeds North Infrastructure","Predictive Analyst","Fireseeds North Infrastructure","Past: Statistician and Research Assistant at University of Manitoba,Winnipeg,Canada","Winnipeg","Canada",null,null,null,null,null,null,null,null,null,null,"Head of Enterprise Risk Management",1]
[302,"Naomi Bazak","AVP, Industry and Regulatory Affairs at Manulife","AVP","Manulife","Education: University of Manitoba","Toronto","Canada",null,null,null,null,null,null,null,null,null,null,"Head of Reserving",1]
[303,"Gerald Hoeppner","Group Planning and Risk","Group Planning and Risk","","Education: University of Manitoba","Winnipeg","Canada",null,null,null,null,null,null,null,null,null,null,"VP & AA",1]
[304,"Ryan Ma","Actuary/Director at Manulife","Actuary/Director","Manulife","Education: University of Manitoba","Toronto","Canada",null,null,null,null,null,null,null,null,null,null,"Director of Product Management",1]
[305,"Paul Young","Actuary Student, U of M","Actuary Student","U of M","Education: University of Manitoba",null,"Canada",null,null,null,null,null,null,null,null,null,null,"HR Business Partner",1]
[306,"Adam Scarth","Director, Commercial Lines Pricing and Analytics at Northbridge Financial Corporation","Director","Northbridge Financial Corporation","Education: University of Manitoba","Toronto","Canada",null,null,null,null,null,null,null,null,null,null,"Head - International Banking",1]
[307,"Edith Samuels","Principal at Mercer","Principal","Mercer","Education: University of Manitoba","Winnipeg","Canada",null,null,null,null,null,null,null,null,null,null,"HSBC Product Implementation",1]
[308,"Paul Kawchuk","Equity Analyst at Sarbit Advisory Services Inc","Equity Analyst","Sarbit Advisory Services Inc","Past: Homework Club Coordinator at Spence Neighbourhood Association",null,"Canada",null,null,null,null,null,null,null,null,null,null,"Executive Vice President and CEO",1]
[309,"Gaetan Ruest","Vice-President of Corporate Research at Investors Group","Vice-President of Corporate Research","Investors Group","Education: University of Manitoba","Winnipeg","Canada",null,null,null,null,null,null,null,null,null,null,"Data Analysis and Project Management Consultant",1]
[310,"Carole Field, FCIA","Vice President, Human Resources at ATCO Group","Vice President","ATCO Group","Education: University of Manitoba","Calgary","Canada",null,null,null,null,null,null,null,null,null,null,"Executive Manager",1]
[311,"Eli Gotthilf","N/A","N/A","","Education: University of Manitoba","Winnipeg","Canada",null,null,null,null,null,null,null,null,null,null,"Managing Director Global Agriculture Analytics",1]
[312,"Karthigesan Arasu","Project Management Assistant at Great-West Life","Project Management Assistant","Great-West Life","Education: University of Manitoba","Winnipeg","Canada",null,null,null,null,null,null,null,null,null,null,"Middle School Math Teacher",1]
[313,"Tony C L Williams, FCIA, FSA","Consulting Actuary","Consulting Actuary","","Summary: ...President of PBI Actuarial... held senior actuarial...","Vancouver","Canada",null,null,null,null,null,null,null,null,null,null,"Volunteering with Cuso International",1]
[314,"Michael McDermid","Actuary specializing in processes and controls","Actuary specializing in processes and controls","","Past: Director, Internal Audit at Sun Life Financial","Toronto","Canada",null,null,null,null,null,null,null,null,null,null,"at EJS Associates",1]
[315,"Hang Gao","Pension Administrator at Coughlin & Associates","Pension Administrator","Coughlin & Associates","Education: University of Manitoba","Winnipeg","Canada",null,null,null,null,null,null,null,null,null,null,"President and Consulting Actuary in Life and Health Insurance Industry",1]
[316,"Ramogi Nyonje, B.Comm(Hons)","ALM Senior Analyst at Great-West Life","ALM Senior Analyst","Great-West Life","Past: International Student Representative at University of Manitoba Students'​ Union (UMSU)","Winnipeg","Canada",null,null,null,null,null,null,null,null,null,null,"President Sage Pension Resources",1]
[317,"Michel Marcon","Senior Consultant at Willis Towers Watson","Senior Consultant","Willis Towers Watson","Education: University of Manitoba","Calgary","Canada",null,null,null,null,null,null,null,null,null,null,"Vice President & Actuary",1]
[318,"Lucinda McMaster","Health and Benefits Practice Leader Calgary at Willis Towers Watson","Health and Benefits Practice Leader Calgary","Willis Towers Watson","Summary: ...leader of actuarial benefit... in the actuarial analysis...","Calgary","Canada",null,null,null,null,null,null,null,null,null,null,"Emerging Markets Portfolio Manager",1]
[319,"Joel Newbury","Director, Budgeting and Planning at Great-West Life","Director","Great-West Life","Education: University of Manitoba","Winnipeg","Canada",null,null,null,null,null,null,null,null,null,null,"-",1]
[320,"Kim Doan","Digital Communications Associate at We Are Patio","Digital Communications Associate","We Are Patio","Education: University of Manitoba","Vancouver","Canada",null,null,null,null,null,null,null,null,null,null,"Studium: Technische Universität München",1]
[321,"Rudy Maharajh","Building and protection of financial security for individuals, families and business owners","Building and protection of financial security for individuals","families and business owners","Education: University of Manitoba","Winnipeg","Canada",null,null,null,null,null,null,null,null,null,null,"Senior Vice President and Actuary",1]
[322,"Debbie Wiebe","at Great-West Life","at Great-West Life","","Education: University of Manitoba","Winnipeg","Canada",null,null,null,null,null,null,null,null,null,null,"Client Service Representative",1]
[323,"Michael Wach","Senior Consultant at Wills Towers Watson","Senior Consultant","Wills Towers Watson","Education: University of Manitoba","Vancouver","Canada",null,null,null,null,null,null,null,null,null,null,"Senior Investment Vice President",1]
[324,"Brad Fedorchuk","VP, Group Major Accounts at Great-West Life","VP","Great-West Life","Education: University of Manitoba","Winnipeg","Canada",null,null,null,null,null,null,null,null,null,null,"Statistical Data Analyst in Programming",1]
[325,"Cody Baldauf","Referee Assignor at Phoenix Soccer Association","Referee Assignor","Phoenix Soccer Association","Education: University of Manitoba","Winnipeg","Canada",null,null,null,null,null,null,null,null,null,null,"Werkstudent im Aktuariat Kraftfahrt/Sach bei Versicherungskammer Bayern",1]
[326,"Anne Dang","Financial Analyst at Kitchen Craft","Financial Analyst","Kitchen Craft","Past: Teaching Assistant (Calculus for Engineering, Techniques of Classical and Linear Algebra) at University of Manitoba","Winnipeg","Canada",null,null,null,null,null,null,null,null,null,null,"VP Actuary",1]
[327,"Andrew Kulyk","Actuary at Eckler Ltd.","Actuary","Eckler Ltd.","Education: University of Manitoba","Winnipeg","Canada",null,null,null,null,null,null,null,null,null,null,"EVP",1]
[328,"Alex Lam","Director, Individual Insurance Valuation at Great-West Life","Director","Great-West Life","Education: University of Manitoba","Winnipeg","Canada",null,null,null,null,null,null,null,null,null,null,"Director of Analytics",1]
[329,"Gayle Martin","Supervisor, Client Services, Chamber Group Insurance Plan (Johnston Group Inc.)","Supervisor","Client Services","Education: University of Manitoba","Winnipeg","Canada",null,null,null,null,null,null,null,null,null,null,"Revolutionising Insurance via InsurTech",1]
[330,"Fred Horbaty","Director, Finance at Federated Insurance Company of Canada","Director","Federated Insurance Company of Canada","Education: University of Manitoba","Winnipeg","Canada",null,null,null,null,null,null,null,null,null,null,"Professor/Head of Biostatistics",1]
[331,"Jack Zhang","System Analytics Analyst At Enbridge","System Analytics Analyst","Enbridge","Past: Teaching Assistant/Marker at University of Manitoba","Calgary","Canada",null,null,null,null,null,null,null,null,null,null,"Account Assistant",1]
[332,"Angela Morelli","AVP Group Pricing at Great-West Life","AVP Group Pricing","Great-West Life","Education: University of Manitoba","Winnipeg","Canada",null,null,null,null,null,null,null,null,null,null,"VP Senior Director Marketing | Expertise in B2B",1]
[333,"Troy Haugen","SVP, New Business and Claims, Individual Insurance at Great-West Life","SVP","Great-West Life","Education: University of Manitoba","Winnipeg","Canada",null,null,null,null,null,null,null,null,null,null,"Director Biostatistics",1]
[334,"Kasey Boisselle","President, Group Benefits & Pensions at Belton Boisselle Benefits & Pensions","President","Belton Boisselle Benefits & Pensions","Education: University of Manitoba","Winnipeg","Canada",null,null,null,null,null,null,null,null,null,null,"Data Analyst Seeking New Opportunities",1]
[335,"Clare Cremer","Independent Management Consulting Professional","Independent Management Consulting Professional","","Education: University of Manitoba","Winnipeg","Canada",null,null,null,null,null,null,null,null,null,null,"Deputy General Manager",1]
[336,"Rui Wang","Branch Manager at RBC","Branch Manager","RBC","Education: University of Manitoba","Winnipeg","Canada",null,null,null,null,null,null,null,null,null,null,"Software Engineer",1]
[337,"Onesime David Deha","Étudiant(e) (University of Ghana)","Étudiant(e) (University of Ghana)","","Education: University of Manitoba",null,"Ghana",null,null,null,null,null,null,null,null,null,null,"Senior Solution Architect",1]
[338,"Jason Bean, ASA, B. Comm (Hons)","Senior Associate at BFP | Bajus Financial Partners Ltd.","Senior Associate","BFP | Bajus Financial Partners Ltd.","Past: Summer Student at Towers Perrin","Vancouver","Canada",null,null,null,null,null,null,null,null,null,null,"Private Venture Investments",1]
[339,"Grant Buchanan","VP, Reinsurance, Group Office at Manulife Financial","VP","Manulife Financial","Education: University of Manitoba","Toronto","Canada",null,null,null,null,null,null,null,null,null,null,"Regional Finance Director",1]
[340,"Gordon Clarke B. Comm (Honours), CHRP, CCP","HR Professional at Gordon Clarke","HR Professional","Gordon Clarke","Past: HR Consultant at KPMG/Watson Wyatt","Winnipeg","Canada",null,null,null,null,null,null,null,null,null,null,"Principal Database Architect / Administrator",1]
[341,"Stephen Lui","Vice President at IDC Worldsource Insurance Network","Vice President","IDC Worldsource Insurance Network","Education: University of Manitoba","Toronto","Canada",null,null,null,null,null,null,null,null,null,null,"Bloomberg",1]
[342,"Barry Gros","Consulting Pension Actuary (retired)","Consulting Pension Actuary (retired)","","Education: University of Manitoba","Vancouver","Canada",null,null,null,null,null,null,null,null,null,null,"Strategy Alliance",1]
[343,"Wynnell De Landro","Regulator","Regulator","","Education: University of Manitoba","Toronto","Canada",null,null,null,null,null,null,null,null,null,null,"Mortgage Loan Specialist ",1]
[344,"Kristin Ramlal, B. Comm. (Hons), PFP®, CIM®","Qtrade Advisor | Securities Specialist","Qtrade Advisor | Securities Specialist","","Summary: ...in Actuarial Mathematics... at the University of Manitoba. Since, I...",null,"Canada",null,null,null,null,null,null,null,null,null,null,"Group Controller",1]
[345,"Martyn Daly","Regional Director, Group Benefits at Great-West Life","Regional Director","Great-West Life","Education: University of Manitoba","Winnipeg","Canada",null,null,null,null,null,null,null,null,null,null,"负责人",1]
[346,"Adam Rogocki","Analyst at Canada ICI Capital Corporation","Analyst","Canada ICI Capital Corporation","Education: University of Manitoba",null,"Canada",null,null,null,null,null,null,null,null,null,null,"Founder of GoFun.Asia",1]
[347,"Sheila Mwema","Accounts Receivable and Payable Associate at Arctic Glacier Premium Ice","Accounts Receivable and Payable Associate","Arctic Glacier Premium Ice","Education: University of Manitoba","Winnipeg","Canada",null,null,null,null,null,null,null,null,null,null,"Sr. Director",1]
[348,"Amanda Evenson, FCIP","Manager, Product Innovation at Wawanesa Insurance","Manager","Wawanesa Insurance","Past: Actuarial Technician at Wawanesa Insurance","Manitoba","Canada",null,null,null,null,null,null,null,null,null,null,"Managing Principal",1]
[349,"Samantha Dakin","Financial Planning Administrator","Financial Planning Administrator","","Past: Office Administration Manager & Planning Assistant at Gillis Agency Ltd","Vancouver","Canada",null,null,null,null,null,null,null,null,null,null,"Senior Operations Professional",1]
[350,"Robert MacKay, CFA","Founding Partner","Founding Partner","","Education: University of Manitoba","Winnipeg","Canada",null,null,null,null,null,null,null,null,null,null,"Finance",1]
[351,"Mark Struck","Vice President, Enterprise Risk Management","Vice President","Enterprise Risk Management","Education: University of Manitoba","Winnipeg","Canada",null,null,null,null,null,null,null,null,null,null,"Planning and Controlling",1]
[352,"Arvelle Zacharias","Director, Home Pricing - The Co-operators","Director","Home Pricing - The Co-operators","Education: University of Manitoba","Kitchener","Canada",null,null,null,null,null,null,null,null,null,null,"Localization Expert Looking for Opportunities",1]
[353,"Jim Snell","Enjoying Retirement","Enjoying Retirement","","Education: University Of Manitoba","Winnipeg","Canada",null,null,null,null,null,null,null,null,null,null,"Strategic Product Leader | Managed Healthcare |",1]
[354,"Patricia Khoe","Consultant, Ellement Consulting Group","Consultant","Ellement Consulting Group","Education: University of Manitoba","Winnipeg","Canada",null,null,null,null,null,null,null,null,null,null,"Supply Chain Operations Analyst",1]
[355,"Jeffrey Huang","Senior Manager, Financial Model Development","Senior Manager","Financial Model Development","Education: University of Manitoba","Toronto","Canada",null,null,null,null,null,null,null,null,null,null,"Financial and Business Analysis - Canada",1]
[356,"Amhlaoibh Lynch","General Manager at Hannover Re (Ireland) DAC Canadian Life Branch","General Manager","Hannover Re (Ireland) DAC Canadian Life Branch","Education: University of Manitoba","Toronto","Canada",null,null,null,null,null,null,null,null,null,null,"CEO - Life Insurance Hong Kong (Under Preparation)",1]
[357,"Jasbir Jaswal, CFA","Risk Manager at BroadGrain Commodities Inc.","Risk Manager","BroadGrain Commodities Inc.","Education: University of Manitoba","Toronto","Canada",null,null,null,null,null,null,null,null,null,null,"Senior Financial Analyst",1]
[358,"Jared Mickall","Actuary at Mercer","Actuary","Mercer","Current: ...of Mercer's Actuarial Resource... from the University of Manitoba in 2000...","Winnipeg","Canada",null,null,null,null,null,null,null,null,null,null,"Senior Pension Actuary",1]
[359,"Ritchie Hok","Capital Specialist at Office of the Superintendent of Financial Institutions of Canada","Capital Specialist","Office of the Superintendent of Financial Institutions of Canada","Education: University of Manitoba",null,"Canada",null,null,null,null,null,null,null,null,null,null,"Medical Director",1]
[360,"Jimmy Tan, PFP®","Financial Planner - RBC","Financial Planner - RBC","","Education: University of Manitoba",null,"Canada",null,null,null,null,null,null,null,null,null,null,"Western Europe Regional Leader",1]
[361,"Neazul Karim","Senior Analyst at Xerox","Senior Analyst","Xerox","Past: Human Resources Assistant at University of Manitoba","Toronto","Canada",null,null,null,null,null,null,null,null,null,null,"Pavilion Advisory Group Inc.",1]
[362,"Carmen Cochrane","Manager, Data Services at Farm Credit Canada / Financement agricole Canada","Manager","Farm Credit Canada / Financement agricole Canada","Education: University of Manitoba",null,"Canada",null,null,null,null,null,null,null,null,null,null,"Chief Executive Officer",1]
[363,"Enxi Dong, CFA","Senior Capital Management Analyst at GWL","Senior Capital Management Analyst","GWL","Education: University of Manitoba",null,"Canada",null,null,null,null,null,null,null,null,null,null,"Head Financial Market Risk",1]
[364,"Irene Lee","Technical Writer at Buhler Versatile","Technical Writer","Buhler Versatile","Education: University of Manitoba","Winnipeg","Canada",null,null,null,null,null,null,null,null,null,null,"Technical Yahoo",1]
[365,"Anesu Machoko, ACIA,FRM,CAIA,G.Dip.F.E","MBA & Graduate Diploma, Financial Engineering candidate at Schulich School of Business","MBA & Graduate Diploma","Schulich School of Business","Education: University of Manitoba","Toronto","Canada",null,null,null,null,null,null,null,null,null,null,"Retired from emloyee benefits and actuarual fields",1]
[366,"Teck Go","Actuary","Actuary","","Education: University of Manitoba","Toronto","Canada",null,null,null,null,null,null,null,null,null,null,"at MCG Energy Solutions LLC",1]
[367,"Ron Heck","Business Analyst at Shaw Communications","Business Analyst","Shaw Communications","Education: University of Manitoba","Calgary","Canada",null,null,null,null,null,null,null,null,null,null,"Vice President HNW Underwriting",1]
[368,"Harmandeep Sandhu","Software Developer - UX Design - Java - Python - C","Software Developer - UX Design - Java - Python - C","","Summary: ..., Finance, Actuarial Studies... at University of Manitoba...","Winnipeg","Canada",null,null,null,null,null,null,null,null,null,null,"Regional VP",1]
[369,"Sheldon Laveman, FSA, FCIA, PMP","Business Program Management | Enterprise PMO Executive","Business Program Management | Enterprise PMO Executive","","Education: University of Manitoba","Toronto","Canada",null,null,null,null,null,null,null,null,null,null,"Chief Financial Risk Officer",1]
[370,"Vanessa Heichert, AFIS, CIP","Manager, Business Transformation - Distribution at Wawanesa Insurance","Manager","Wawanesa Insurance","Education: University of Manitoba","Winnipeg","Canada",null,null,null,null,null,null,null,null,null,null,"Senior Health Care Consultant",1]
[371,"Martin Petras","Manager, Commercial Banking","Manager","Commercial Banking","Education: University of Manitoba","Winnipeg","Canada",null,null,null,null,null,null,null,null,null,null,"COO",1]
[372,"Fran Yaffe","Principal at Mercer","Principal","Mercer","Education: University of Manitoba","Winnipeg","Canada",null,null,null,null,null,null,null,null,null,null,"Inventory Project Manager",1]
[373,"Cheryl de Leon, FSA, FCIA","Director, NAVA US Reporting & Analytics at Sun Life Financial","Director","Sun Life Financial","Current: Director, NAVA US Reporting and Analytics at Sun Life Financial","Toronto","Canada",null,null,null,null,null,null,null,null,null,null,"Senior Actuairal Associate",1]
[374,"Fatima Calimbas","Sales Analyst at The North West Company","Sales Analyst","The North West Company","Summary: ...at the University of Manitoba... in Actuarial Mathematics during...","Winnipeg","Canada",null,null,null,null,null,null,null,null,null,null,"Leader (former CEO) and Sales Manager with expertise in Discretionary Mandates",1]
[375,"Dave Giesbrecht","VP, Investment Counselling, Institutional Investment Solutions at Great-West Life","VP","Great-West Life","Education: University of Manitoba","Vancouver","Canada",null,null,null,null,null,null,null,null,null,null,"Director of Client Management",1]
[376,"Bob Mersereau","Associate Vice President, Digital","Associate Vice President","Digital","Education: University of Manitoba","Calgary","Canada",null,null,null,null,null,null,null,null,null,null,"Consultant / Healthcare Entrepreneur",1]
[377,"Esther Friesen","Credit/Risk/Lending Leader - Seizes Opportunities/Makes Sound Decisions","Credit/Risk/Lending Leader - Seizes Opportunities/Makes Sound Decisions","","Education: University of Manitoba",null,"Canada",null,null,null,null,null,null,null,null,null,null,"Quantitative Derivatives Analyst",1]
[378,"Kim Karpenko, MBA","Finance Professional","Finance Professional","","Past: Pension Clerk at University of Manitoba","Calgary","Canada",null,null,null,null,null,null,null,null,null,null,"Statistical Reporting Analyst",1]
[379,"Savvy Ghuman","Client Advisor at RBC","Client Advisor","RBC","Education: University of Manitoba",null,"Canada",null,null,null,null,null,null,null,null,null,null,"Executive Director",1]
[380,"Brad Wallis","Actuary at Manulife","Actuary","Manulife","Education: University of Manitoba",null,"Philippines",null,null,null,null,null,null,null,null,null,null,"Transitioning to Bridge (cards",1]
[381,"Yao Wan","BComm (Hons) graduate","BComm (Hons) graduate","","Past: Academic Tutor at University of Manitoba","Winnipeg","Canada",null,null,null,null,null,null,null,null,null,null,"Business Development Manager",1]
[382,"Corinne Harrison","Administrative Professional","Administrative Professional","","Past: Administrative Assistant / Academic Counsellor at Department of Statistical & Actuarial Sciences | Western University","London","Canada",null,null,null,null,null,null,null,null,null,null,"Master student",1]
[383,"August Chow","Retired","Retired","","Education: University of Manitoba",null,"Canada",null,null,null,null,null,null,null,null,null,null,"principal consultant",1]
[384,"Andrea Mitchell","--","--","","Education: University of Manitoba","Winnipeg","Canada",null,null,null,null,null,null,null,null,null,null,"Head of Retirement",1]
[385,"Vanessa Izan","Consultant at Morneau Shepell","Consultant","Morneau Shepell","Education: University of Manitoba",null,"Canada",null,null,null,null,null,null,null,null,null,null,"Board member",1]
[386,"Giang LeGrice","Senior Director, Global Business Insights & Analytics at Hootsuite","Senior Director","Hootsuite","Education: University of Manitoba","Vancouver","Canada",null,null,null,null,null,null,null,null,null,null,"Legislative Representative",1]
[387,"Carlin Thiessen","Experienced Transportation Entrepreneur and Executive","Experienced Transportation Entrepreneur and Executive","","Education: University of Manitoba","Winnipeg","Canada",null,null,null,null,null,null,null,null,null,null,"Head of Asset Allocation and Research Dpt.",1]
[388,"Swan Nguyen","_","_","","Education: University of Manitoba","Winnipeg","Canada",null,null,null,null,null,null,null,null,null,null,"Bilingual Market Research Coder",1]
[389,"Jonathan Seah","Immigration Consultant at Silver Lining Immigration Inc.","Immigration Consultant","Silver Lining Immigration Inc.","Past: Business Intelligence Analyst (Contract) at University of Manitoba","Winnipeg","Canada",null,null,null,null,null,null,null,null,null,null,"Director Administration",1]
[390,"Tracey Vincent","Mercer - Senior Associate, Pension Administration Centre of Excellence","Mercer - Senior Associate","Pension Administration Centre of Excellence","Education: University of Manitoba","Winnipeg","Canada",null,null,null,null,null,null,null,null,null,null,"Certified Financial Planner",1]
[391,"Adam Pazdor","Sessional Instructor / Master Student","Sessional Instructor / Master Student","","Current: Sessional Instructor at University of Manitoba","Winnipeg","Canada",null,null,null,null,null,null,null,null,null,null,"Support Worker",1]
[392,"Victoria Ho","Student at Sauder School of Business at UBC","Student","Sauder School of Business","Education: University of Manitoba","Winnipeg","Canada",null,null,null,null,null,null,null,null,null,null,"Instructor",1]
[393,"Brent Delveaux, CEBS","Benefits Consultant, TRG Group Benefits and Pensions Inc.","Benefits Consultant","TRG Group Benefits and Pensions Inc.","Education: University of Manitoba","Vancouver","Canada",null,null,null,null,null,null,null,null,null,null,"Actuarial Risk Management Principal & Industry Leading Senior Consulting Actuary serving BDO and Top 30 Accounting Firms",1]
[394,"Robbie Wu","Associate Actuary at Manulife Financial Reinsurance Finance","Associate Actuary","Manulife Financial Reinsurance Finance","Education: University of Manitoba","Toronto","Canada",null,null,null,null,null,null,null,null,null,null,"Owner Bleue Coyote Bar & Grill.",1]
[395,"Alyson Scoths","Pension Administrator at Mercer","Pension Administrator","Mercer","Education: University of Manitoba","Winnipeg","Canada",null,null,null,null,null,null,null,null,null,null,"AVP - Chief Underwriter and Claims Head - Latin America",1]
[396,"Ben Nevile","CTO at Breather","CTO","Breather","Education: University of Manitoba","Montreal","Canada",null,null,null,null,null,null,null,null,null,null,"Retail Professional",1]
[397,"Sandee Bachalo","Vice President, Pension, Benefits & Payroll at Investors Group Financial Services Inc.","Vice President","Investors Group Financial Services Inc.","Education: University of Manitoba","Winnipeg","Canada",null,null,null,null,null,null,null,null,null,null,"sales",1]
[398,"Emmett Ishak","--","--","","Education: University of Manitoba","Toronto","Canada",null,null,null,null,null,null,null,null,null,null,"Pension and Benefits Strategist",1]
[399,"Harindra Chandrasena","Assistant Vice President & Actuary at Swiss Re","Assistant Vice President & Actuary","Swiss Re","Education: University of Manitoba","Toronto","Canada",null,null,null,null,null,null,null,null,null,null,"Senior Consultant and Actuary",1]
[400,"Dino Trudeau","Manager Compensation and Benefits at Agrium","Manager Compensation and Benefits","Agrium","Education: University of Manitoba","Calgary","Canada",null,null,null,null,null,null,null,null,null,null,"VP of Finance and Administrative Services",1]
[401,"Jason Rempel","Manager, Pension & Benefits at TransCanada","Manager","TransCanada","Education: University of Manitoba","Calgary","Canada",null,null,null,null,null,null,null,null,null,null,"Sales Administration Manager",1]
[402,"Naomi Ali, B. Comm (Hons), CAIB, RIB (Ont)","Director of Underwriting at IC Specialty Brokers LP","Director of Underwriting","IC Specialty Brokers LP","Education: University of Manitoba","Winnipeg","Canada",null,null,null,null,null,null,null,null,null,null,"Leisure",1]
[403,"Sheila R.","Branch Manager at RBC","Branch Manager","RBC","Education: University of Manitoba","Edmonton","Canada",null,null,null,null,null,null,null,null,null,null,"Public Works and Government Services Canada",1]
[404,"Dimitra Tsourpis","Senior Consultant at Aon Hewitt","Senior Consultant","Aon Hewitt","Summary: ...actuarial analyst... from the University of Calgary with a...","Vancouver","Canada",null,null,null,null,null,null,null,null,null,null,"Wealth Planner UHNW",1]
[405,"Cecilia G.","Senior Analyst at Aon Hewitt","Senior Analyst","Aon Hewitt","Education: University of Manitoba","Toronto","Canada",null,null,null,null,null,null,null,null,null,null,"Self Employed",1]
[406,"Dave Gillies","Enabling Entrepreneurship at Shopify Plus","Enabling Entrepreneurship","Shopify Plus","Past: Technical Architect at University of Manitoba","Winnipeg","Canada",null,null,null,null,null,null,null,null,null,null,"university of Manitoba毕业",1]
[407,"Ying Huang, CEBS","Underwriting Manager at GroupHEALTH","Underwriting Manager","GroupHEALTH","Summary: ...focused in Actuarial Science from University...","Vancouver","Canada",null,null,null,null,null,null,null,null,null,null,"Coachpraktijk Vrij Eten",1]
[408,"Ivan Vakhtine","Financial Advisor at Scotiabank","Financial Advisor","Scotiabank","Education: University of Manitoba","Winnipeg","Canada",null,null,null,null,null,null,null,null,null,null,"Independent Financial Services Professional",1]
[409,"Mark Nagelberg","Data Scientist working in Market Research Consulting","Data Scientist working in Market Research Consulting","","Past: Research Assistant at University of Manitoba","Winnipeg","Canada",null,null,null,null,null,null,null,null,null,null,"Office Manager",1]
[410,"Chris Molinski","Continuous Improvement Specialist at MasterBrand Cabinets","Continuous Improvement Specialist","MasterBrand Cabinets","Education: University of Manitoba","Winnipeg","Canada"]
[411,"Punya Wijetunge","Insurance Professional","Insurance Professional","","Summary: ..., University of Manitoba. My... by Manitoba Hydro...","Winnipeg","Canada"]
[412,"Margaret Proven","Director, HR Total Rewards at Shaw Communications","Director","Shaw Communications","Education: University of Manitoba","Winnipeg","Canada"]
[413,"Ryan O'Hara","Manager - Informatics and Process Improvement - WRHA Emergency Program","Manager - Informatics and Process Improvement - WRHA Emergency Program","","Education: University of Manitoba","Winnipeg","Canada"]
[414,"Todd Asman","Executive Vice-President, Products and Financial Planning at Investors Group","Executive Vice-President","Investors Group","Education: University of Manitoba","Winnipeg","Canada"]
[415,"Scott Nichols","Senior Risk Analyst at Cross Canada Financial Inc.","Senior Risk Analyst","Cross Canada Financial Inc.","Education: University of Manitoba","Winnipeg","Canada"]
[416,"Carlos Hernandez","Manager, Portfolio Analytics at Scotiabank","Manager","Scotiabank","Education: University of Manitoba","Toronto","Canada"]
[417,"Wayne Fingas","Retired Actuary with HR consulting and insurance executive experience","Retired Actuary with HR consulting and insurance executive experience","","Education: University of Manitoba","Alberta","Canada"]
[418,"Heng He","Bachelor of Commerce - Honours","Bachelor of Commerce - Honours","","Summary: Graduate from University of Manitoba...","Winnipeg","Canada"]
[419,"Siluo Wang","Program Operations Analyst at Monsanto Company","Program Operations Analyst","Monsanto Company","Education: University of Manitoba",null,"Canada"]
[420,"Joel Stevens","Electrical Engineering Technologist","Electrical Engineering Technologist","","Education: University of Manitoba","Winnipeg","Canada"]
[421,"Nony Nkwonta","Home Financing Advisor at Scotiabank","Home Financing Advisor","Scotiabank","Education: University of Manitoba","Winnipeg","Canada"]
[422,"Marc Lynch","President at Randall Plumbing & Heating Limited","President","Randall Plumbing & Heating Limited","Education: University of Manitoba","Winnipeg","Canada"]
[423,"Srinah Lutchia","Supervisor at SBM Bank","Supervisor","SBM Bank","Current: Undergraduate Student at University of Manitoba","Winnipeg","Canada"]
[424,"Brock Zimak","Broker at PZM Financial","Broker","PZM Financial","Education: University of Manitoba, Bcomm Honors","Winnipeg","Canada"]
[425,"Garrett Fast","Financial Security Advisor","Financial Security Advisor","","Education: University of Manitoba","Winnipeg","Canada"]
[426,"Gwen Yager","Retired","Retired","","Education: University of Manitoba","Calgary","Canada"]
[427,"Jasmine Tabuzo","Co-op Student at the Asper School of Business","Co-op Student","the Asper School of Business","Education: Asper School of Business, University of Manitoba","Winnipeg","Canada"]
[428,"May Zheng","GGY, FSA","GGY","FSA","Education: University of Manitoba","Toronto","Canada"]
[429,"Edwin Budianto","Education Management Professional","Education Management Professional","","Past: Grader Marker at University of Manitoba","Winnipeg","Canada"]
[430,"Michelle Gibbs","AVP at Sun Life Financial","AVP","Sun Life Financial","Education: University of Manitoba","Toronto","Canada"]
[431,"Mary Sanders","Information & Data Integrity Analyst","Information & Data Integrity Analyst","","Education: University of Manitoba","Winnipeg","Canada"]
[432,"Firman Steve","Manager, Internal Audit at Great-West Life Assurance Company","Manager","Great-West Life Assurance Company","Education: University of Manitoba","Winnipeg","Canada"]
[433,"Kirk McIntyre","President, Group Insurance Services at Ontario Teachers Insurance Plan","President","Ontario Teachers Insurance Plan","Education: University of Manitoba","Kitchener","Canada"]
[434,"Jordan B. Peixoto","Driven to improve healthcare","Driven to improve healthcare","","Education: University of Manitoba","Toronto","Canada"]
[435,"Chuck Hamilton, C.Dir., FSA, FCIA","President & CEO at Educators Financial Group Inc.","President & CEO","Educators Financial Group Inc.","Education: University of Manitoba","Ottawa","Canada"]
[436,"Gregory Ward","Data Management, Privacy, and Quality Assurance Administrator at Kenora Chiefs Advisory","Data Management","Kenora Chiefs Advisory","Education: University of Manitoba","Ontario","Canada"]
[437,"Richard Jones","Vice President, Infrastructure and Governance at Wawanesa Insurance","Vice President","Wawanesa Insurance","Education: University of Manitoba","Winnipeg","Canada"]
[438,"Karen Figueiredo","VP, Global Pension & Benefits at Sun Life Financial","VP","Sun Life Financial","Education: University of Manitoba","Toronto","Canada"]
[439,"Sherry Wendt","Associate General Counsel & Assistant Corporate Secretary at Cenovus Energy","Associate General Counsel & Assistant Corporate Secretary","Cenovus Energy","Education: University of Manitoba","Calgary","Canada"]
[440,"Greg van Ginkel","President, Knight Archer Commercial Insurance","President","Knight Archer Commercial Insurance","Education: University of Manitoba","Saskatchewan","Canada"]
[441,"Rob Rosenblat, FSA, FCIA, C.Dir.","Actuary","Actuary","","Education: University of Manitoba",null,"Canada"]
[442,"Reese Gelley","Analyst at KPMG Corporate Finance LLC","Analyst","KPMG Corporate Finance LLC","Education: University of Manitoba","Washington","United States"]
[443,"Keith Meyer","AVP, Information Technology at DMT Development Systems Group Inc.","AVP","DMT Development Systems Group Inc.","Education: University of Manitoba","Winnipeg","Canada"]
[444,"Wendy Mizuno","Partner, Mercer (Canada) Limited","Partner","Mercer (Canada) Limited","Education: University of Manitoba","Toronto","Canada"]
[445,"Adrian Yasay","Student Asper School of Business--","Student Asper School of Business--","","Education: University of Manitoba","Winnipeg","Canada"]
[446,"Andrew Hargrave","Senior Auditor at Cangene Corporation","Senior Auditor","Cangene Corporation","Education: University of Manitoba","Winnipeg","Canada"]
[447,"Richard Gould","ASA","ASA","","Education: University of Manitoba","Minneapolis","United States"]
[448,"Ina Eng","Partner at Ascenda Financial Consultants","Partner","Ascenda Financial Consultants","Education: University of Manitoba","Winnipeg","Canada"]
[449,"Craig Wild","Product Manager at Ceridian","Product Manager","Ceridian","Education: University of Manitoba","Winnipeg","Canada"]
[450,"Brett MacKinnon","Vice President and Chief Actuary at Wawanesa Insurance","Vice President and Chief Actuary","Wawanesa Insurance","Education: University of Manitoba","Winnipeg","Canada"]
[451,"William (Bill) Sloan","Financial Risk Manager","Financial Risk Manager","","Education: University of Manitoba","Winnipeg","Canada"]
[452,"Louis Ellement","Retired Actuary","Retired Actuary","","Education: University of Manitoba","Winnipeg","Canada"]
[453,"Dennis Schettler","Financial Services Consultant and Contractor","Financial Services Consultant and Contractor","","Education: University of Manitoba","Toronto","Canada"]
[454,"Jim Bremer","Independent Investment Management Professional","Independent Investment Management Professional","","Education: University of Manitoba","Toronto","Canada"]
[455,"Kathryn Qin","Corporate VP & Actuary at SCAN Health Plan","Corporate VP & Actuary","SCAN Health Plan","Education: University of Manitoba","Los Angeles","United States"]
[456,"Tianluo Li","--","--","","Education: University of Manitoba","Winnipeg","Canada"]
[457,"Sandra Kulchyski","Commercial Real Estate Appraiser at Altus Group","Commercial Real Estate Appraiser","Altus Group","Education: University of Manitoba","Winnipeg","Canada"]
[458,"Tamira Loewen","Senior Risk Management Professional","Senior Risk Management Professional","","Education: University of Manitoba","Toronto","Canada"]
[459,"Chang Sheila","Senior Customer Analyst at ATB financial","Senior Customer Analyst","ATB financial","Education: University of Manitoba","Calgary","Canada"]
[460,"Phil Rivard","VP, Pension Policy and Funding at Local Authorities Pension Plan","VP","Local Authorities Pension Plan","Education: University of Manitoba","Edmonton","Canada"]
[461,"Punya Wijetunge","Client and Field Support Senior Analyst- Group Division at Great-West Life","Client and Field Support Senior Analyst- Group Division","Great-West Life","Education: University of Manitoba","Winnipeg","Canada"]
[462,"Jason Novak","Director, Group Benefits at Great-West Life","Director","Great-West Life","Education: University of Manitoba","Toronto","Canada"]
[463,"Robert Dyck, FRM, CAIA, CIM","Head of Investment Analytics at Connor, Clark & Lunn Financial Group","Head of Investment Analytics","Connor, Clark & Lunn Financial Group","Past: Consultant & Head of Research at API Asset Performance Inc.","Vancouver","Canada"]
[464,"Mark Christie","Salesforce is hard. I make it less hard.","Salesforce is hard. I make it less hard.","","Education: University of Manitoba","Toronto","Canada"]
[465,"Aimee Kanyankogote, FRM","FRTB Specialist","FRTB Specialist","","Education: University of Manitoba","Toronto","Canada"]
[466,"Arnold Shell","President, Arnold J. Shell Financial Services","President","Arnold J. Shell Financial Services","Education: University of Manitoba","Toronto","Canada"]
[467,"John Stevenson","Regional Vice President at Great-West Life","Regional Vice President","Great-West Life","Education: University of Manitoba","Toronto","Canada"]
[468,"See Tong Lim","Senior Manager at Scotiabank International","Senior Manager","Scotiabank International","Education: University of Manitoba","Toronto","Canada"]
[469,"Wendell Krahn, CFA, CPA, CGA, CVA","Financial Modeling, Planning & Analysis, M&A including Valuations and Due Diligence","Financial Modeling","Planning & Analysis","Education: University of Manitoba","Ottawa","Canada"]
[470,"Greg Gillis, CFA, FCIA, FSA","Financial Advisor/Consulting Actuary at Lawton Partners","Financial Advisor/Consulting Actuary","Lawton Partners","Past: Vice President at Aon Consulting","Winnipeg","Canada"]
[471,"Doug Olsen","Optical Systems Engineer at Shaw Communications","Optical Systems Engineer","Shaw Communications","Education: University of Manitoba","Calgary","Canada"]
[472,"Claude Boily","Financial Services Professional","Financial Services Professional","","Education: University of Manitoba","Calgary","Canada"]
[473,"Louise Comeau","Manager, Financial Services at Department of Finance - Province of Nova Scotia","Manager","Department of Finance - Province of Nova Scotia","Education: University of Manitoba","Halifax","Canada"]
[474,"Don Smith","Partner at Smith Pension & Actuarial Consultants Inc.","Partner","Smith Pension & Actuarial Consultants Inc.","Education: University of Manitoba","Vancouver","Canada"]
[475,"Zack Wang","Franchise Owner at Edo Japan","Franchise Owner","Edo Japan","Education: University of Manitoba",null,"Canada"]
[476,"Corey Haverstick","Retail Associate","Retail Associate","","Summary: Attending the University of Manitoba, majoring...","Winnipeg","Canada"]
[477,"Drew Bailey","Loss Adjuster at ClaimsPro Inc.","Loss Adjuster","ClaimsPro Inc.","Education: University of Manitoba","London","Canada"]
[478,"Jeffe Li","Contracts Manager","Contracts Manager","","Education: University of Manitoba","Calgary","Canada"]
[479,"Anne Parsonage","Director and Yoga teacher at Yoga from the Heart Canada","Director and Yoga teacher","Yoga from the Heart Canada","Education: University of Manitoba","Toronto","Canada"]
[480,"Paul Schaubroeck","Buyer","Buyer","","Education: University of Manitoba","Ottawa","Canada"]
[481,"Gerry Thiessen","Director, Business Development at Sun Life Financial","Director","Sun Life Financial","Past: Account Executive at Sun Life Financial","Vancouver","Canada"]
[482,"Dave Poole","Risk Management Consultant","Risk Management Consultant","","Education: University of Manitoba","Calgary","Canada"]
[483,"Shayne Egert","Director, Corporate Analytics at SGI Canada","Director","SGI Canada","Education: University of Manitoba","Saskatchewan","Canada"]
[484,"Jason Wiebe, FCIA, FSAI","Chief Risk Offficer at RGA International Reinsurance Company dac","Chief Risk Offficer","RGA International Reinsurance Company dac","Past: Vice President at RBC Insurance",null,"Ireland"]
[485,"Yifan Gao","--","--","","Education: University of Manitoba",null,"Canada"]
[486,"Angus Ng, CISSP PMP Cert.APM","Project Manager","Project Manager","","Education: University of Manitoba","Toronto","Canada"]
[487,"Mike Lazaruk","--","--","","Education: University of Manitoba","Winnipeg","Canada"]
[488,"Sharon Xu","Managing Director at Aaron Consulting Inc.","Managing Director","Aaron Consulting Inc.","Education: University of Manitoba","Toronto","Canada"]
[489,"Derek Schaen","Sales Analyst at Great-West Life","Sales Analyst","Great-West Life","Education: University of Manitoba","Winnipeg","Canada"]
[490,"Wei (Gavin) He","Banking Professional","Banking Professional","","Education: University of Manitoba","Calgary","Canada"]
[491,"Neil Harrison","Partner at Deloitte Canada","Partner","Deloitte Canada","Education: University of Manitoba","Toronto","Canada"]
[492,"Stu Starkey","Transportation Executive","Transportation Executive","","Education: University of Manitoba","Edmonton","Canada"]
[493,"Shaharyar Noordin","Student at Asper School of Business Actuarial Mathematics","Student","Asper School of Business Actuarial Mathematics","Current: Financial Accounting Grader/Marker at University of Manitoba","Winnipeg","Canada"]
[494,"Kenneth Clark","Retired Principal at Eckler Ltd.","Retired Principal","Eckler Ltd.","Education: University of Manitoba","Toronto","Canada"]
[495,"Steve Makins","Regional CFO, Canada/Asia","Regional CFO","Canada/Asia","Education: University of Manitoba","Toronto","Canada"]
[496,"Marcia P Hunt","President and Principal Broker at Mortgage Alliance Performa Mortgage Inc. , Financial Consultant -- Hunt & Associates","President and Principal Broker","Mortgage Alliance Performa Mortgage Inc. , Financial Consultant -- Hunt & Associates","Education: University of Manitoba","Toronto","Canada"]
[497,"Philip Fosu","Consultant at Morneau Shepell","Consultant","Morneau Shepell","Education: University of Manitoba","Toronto","Canada"]
[498,"Sean Hayward","VP - Solutions Manager, US Risk at FIS","VP - Solutions Manager","FIS","Education: University of Manitoba","Atlanta","United States"]
[499,"Billy Ray Tejones","Senior Reporting Analyst at Investors Group","Senior Reporting Analyst","Investors Group","Education: University of Manitoba","Winnipeg","Canada"]
[500,"Jeff Moir","Partner and Lead, Human Capital at Deloitte Canada","Partner and Lead","Deloitte Canada","Education: University of Manitoba","Toronto","Canada"]
[501,"Tawheed (Taw) Ismail   PMP, CPPP","Project Manager │ Marketing │ Creative Services | Management","Project Manager │ Marketing │ Creative Services | Management","","Education: University of Manitoba","Toronto","Canada"]
[502,"Sharon Chandler","Canadian Cancer Society Regional Representative","Canadian Cancer Society Regional Representative","","Education: University of Manitoba","Toronto","Canada"]
[503,"Andrea Sexsmith","Pharmaceuticals Professional","Pharmaceuticals Professional","","Education: University of Manitoba","Saskatchewan","Canada"]
[504,"Nicolas Nguyen","Associate at BMO Financial Group","Associate","BMO Financial Group","Education: University of Manitoba","Montreal","Canada"]
[505,"Sym Gill","Member of the Board of Trustees at Canadian Wheat Board Retirees Employee Life and Health Trust","Member of the Board of Trustees","Canadian Wheat Board Retirees Employee Life and Health Trust","Education: University of Manitoba","Toronto","Canada"]
[506,"weinan sun","--","--","","Education: University of Manitoba",null,"Canada"]
[507,"Tyrell Jolley-Campbell","Student at Red River College","Student","Red River College","Education: University of Manitoba","Winnipeg","Canada"]
[508,"Nadine Orr","VP, Pensions and Benefits at RBC","VP","RBC","Education: University of Manitoba","Toronto","Canada"]
[509,"James Furutani CIM","Senior Associate at Assante Financial Management Ltd.","Senior Associate","Assante Financial Management Ltd.","Education: Universtiy of Manitoba","Vancouver","Canada"]
[510,"Don Armstrong","Actuary / Consultant at Donaldson Vincent Associates Limited","Actuary / Consultant","Donaldson Vincent Associates Limited","Education: University of Manitoba","Toronto","Canada"]
[511,"Dawn Power","Actuary/Principal at Eckler Ltd.","Actuary/Principal","Eckler Ltd.","Education: University of Manitoba",null,"Canada"]
[512,"Gerald Boychuk","Chief Investments Officer","Chief Investments Officer","","Education: University of Manitoba B.Sc., MBA, CFA","Toronto","Canada"]
[513,"yang jin","Quality Assurance Analyst - Content at CaseWare International Inc.","Quality Assurance Analyst - Content","CaseWare International Inc.","Education: University of Manitoba","Toronto","Canada"]
[514,"Parminder Mangat","--","--","","Education: University of Manitoba","Winnipeg","Canada"]
[515,"John Kmetic","Director, Senior Actuary at Office of the Superintendent of Financial Institutions of Canada","Director","Office of the Superintendent of Financial Institutions of Canada","Education: University of Manitoba","Ottawa","Canada"]
[516,"Susan Demedash","Methodologist at Statistics Canada","Methodologist","Statistics Canada","Education: University of Manitoba",null,"Canada"]
[517,"Igor Mugisha","--","--","","Education: University of Manitoba","Winnipeg","Canada"]
[518,"Nicole Levesque, CPA, CGA","Manager, Monitoring","Manager","Monitoring","Education: University of Manitoba","Winnipeg","Canada"]
[519,"Blake Swedlo","Level III Umpire at Baseball Canada","Level III Umpire","Baseball Canada","Education: University of Manitoba","Winnipeg","Canada"]
[520,"Weilun Zhang","Student","Student","","Education: University of Manitoba","Winnipeg","Canada"]
[521,"Jun Shih","Senior SW Developer at Pason Systems","Senior SW Developer","Pason Systems","Past: Alumni at University of Manitoba","Calgary","Canada"]
[522,"Deepesh Rijal","Applied Mathematics, Statistics and Economics","Applied Mathematics","Statistics and Economics","Summary: ...at University of Manitoba, pursuing Actuarial Mathematics...","Winnipeg","Canada"]
[523,"竺心怡","corporate actuary","corporate actuary","","Past: Teaching Assistant at University of Manitoba",null,"China"]
[524,"Ron Loch","Independent Investment Management Professional","Independent Investment Management Professional","","Education: University of Manitoba","Toronto","Canada"]
[525,"Louise Thiessen","Higher Education Professional","Higher Education Professional","","Education: University of Manitoba","Edmonton","Canada"]
[526,"Li Dong","FSA at Moody's GGY AXIS","FSA","Moody's GGY AXIS","Education: University of Manitoba","Toronto","Canada"]
[527,"Darryl Ingham","President at Group Health Global Benefit Solutions","President","Group Health Global Benefit Solutions","Education: University of Manitoba","Toronto","Canada"]
[528,"Darrell Peters","Senior Consultant at Willis Towers Watson (Retired)","Senior Consultant","Willis Towers Watson (Retired)","Education: University of Manitoba","Toronto","Canada"]
[529,"Mathieu Poissant","Statisticien spécialisé en immobilier","Statisticien spécialisé en immobilier","","Education: University of Manitoba",null,"Canada"]
[530,"Michael Guest","Owner, Guest Consulting","Owner","Guest Consulting","Education: University of Manitoba","Toronto","Canada"]
[531,"John Louis","Managing Director at JCL Management Consulting","Managing Director","JCL Management Consulting","Education: University of Manitoba","Calgary","Canada"]
[532,"Laura Nickols","Membership Development Representative at Merit Contractors Association","Membership Development Representative","Merit Contractors Association","Education: University of Manitoba","Edmonton","Canada"]
[533,"Weihong Dan, FSA, FCIA","GGY AXIS Inc","GGY AXIS Inc","","Education: University of Manitoba","Toronto","Canada"]
[534,"Kathy Kirkpatrick","Career Advisor at Career Development Centre Asper School of Business","Career Advisor","Career Development Centre Asper School of Business","Education: University of Manitoba","Winnipeg","Canada"]
[535,"Lyle Semchyshyn","2nd VP & Corporate Actuary at Security Benefit","2nd VP & Corporate Actuary","Security Benefit","Education: University of Manitoba","Kansas City","United States"]
[536,"Yingjie Zhang, CPA,CGA,MFRM","Financial Manager at Atelier Capital Partners Inc.","Financial Manager","Atelier Capital Partners Inc.","Education: University of Manitoba","Vancouver","Canada"]
[537,"Sian McAlpin","AVP Finance, Risk & Controls at Sun Life Financial","AVP Finance","Sun Life Financial","Education: University of Manitoba","Boston","United States"]
[538,"Rob Edwards","Advanced Healthcare Analytics Executive","Advanced Healthcare Analytics Executive","","Past: Staff VP & Actuary III at Anthem, Inc.","Los Angeles","United States"]
[539,"Gabrielle Martinez","Member service representative at Access Credit Union","Member service representative","Access Credit Union","Education: University of Manitoba",null,"Canada"]
[540,"Diana Ginpil PMP","PrincipaL, Diana Ginpil Consulting","PrincipaL","Diana Ginpil Consulting","Education: University of Manitoba","Toronto","Canada"]
[541,"Rob Verrier","Actuary at Genesis Financial Development, Inc.","Actuary","Genesis Financial Development, Inc.","Education: University of Manitoba","Boston","United States"]
[542,"Brad Rokosh","Director, LTC Margin Analytics at Transamerica","Director","Transamerica","Education: University of Manitoba","Dallas","United States"]
[543,"Gerald Petkau","Senior Vice President, Chief Operating Officer at Blue Cross Blue Shield of North Carolina","Senior Vice President","Blue Cross Blue Shield of North Carolina","Education: University of Manitoba","Raleigh-Durham","United States"]
[544,"Peter Cliche","AVP Quantatative Analysis, Enterprise Risk Management at MetLife","AVP Quantatative Analysis","MetLife","Education: University of Manitoba","New York","United States"]
[545,"Dirk Ackbar","Associate Actuary at KR Consulting","Associate Actuary","KR Consulting","Education: University of Manitoba",null,"Trinidad and Tobago"]
[546,"Frank Reynolds","President at Reynolds, Thorvardson, Ltd","President","Reynolds, Thorvardson, Ltd","Education: University of Manitoba","Kitchener","Canada"]
[547,"James Dalton","Senior Associate at Mercer","Senior Associate","Mercer","Summary: James Dalton is a... from the University of Manitoba...","Toronto","Canada"]
[548,"Kim Dwornick","Actuary Team Lead at Emerge.me","Actuary Team Lead","Emerge.me","Education: University of Manitoba","Minneapolis","United States"]
[549,"Michael Kula","Vice President at New York Life Insurance Company","Vice President","New York Life Insurance Company","Education: University of Manitoba","New York","United States"]
[550,"Hal Pedersen","Director, Risk & Capital Management Solutions at Conning","Director","Conning","Past: Warren Professor of Actuarial Science at University of Manitoba","Hartford","United States"]
[551,"My-Hong Truong","Retirement Systems Consultant, EA at Willis Towers Watson","Retirement Systems Consultant","Willis Towers Watson","Education: University of Manitoba","Seattle","United States"]
[552,"John Hong","Senior Consultant at EY","Senior Consultant","EY","Education: University of Manitoba","New York","United States"]
[553,"Joyce Liew","--","--","","Education: University of Manitoba","Winnipeg","Canada"]
[554,"Zhibin Zhang","Actuary at RGA","Actuary","RGA","Education: University of Manitoba","Beijing","China"]
[555,"Yunan Deng","--","--","","Past: Actuarial Class Teaching Assistant at University of Manitoba","Bloomington","United States"]
[556,"Bertrand Boyle","--","--","","Education: University of Manitoba",null,"Canada"]
[557,"Kelly Grebinsky","Owner, Actuaries Northwest, LLC","Owner","Actuaries Northwest","Education: University of Manitoba","Seattle","United States"]
[558,"Graham Cox","Executive Vice President, Global Risk Management at MetLife","Executive Vice President","MetLife","Education: University of Manitoba","New York","United States"]
[559,"Tenny Chong","Actuary","Actuary","","Education: University of Manitoba","Hong Kong","China"]
[560,"Lucille Doucette","--","--","","Education: University of Manitoba","Alberta","Canada"]
[561,"Stephan Bazin","Consulting Actuary at Willis Towers Watson","Consulting Actuary","Willis Towers Watson","Education: University of Manitoba","New York","United States"]
[562,"Florence Wu -  PhD, AIAA, ASA, MSc","Executive Manager > Senior Actuary > Empowering Leader > Cultivate High Performance Teams","Executive Manager > Senior Actuary > Empowering Leader > Cultivate High Performance Teams","","Summary: ...model; actuarial software... Actuarial Modelling skills – DFA...","Sydney","Australia"]
[563,"Janine Bender","Life Insurance Consultant","Life Insurance Consultant","","Education: University of Manitoba","Hartford","United States"]
[564,"Ron Wan","experienced actuary, insurance and reinsurance, business & product development, risk managment","experienced actuary","insurance and reinsurance","Education: University of Manitoba","Hong Kong","China"]
[565,"Katrina Lee-Kwen","Senior Vice-President, Insurance Solutions at Canada Life / Great-West Life / London Life","Senior Vice-President","Canada Life / Great-West Life / London Life","Education: University of Manitoba","Winnipeg","Canada"]
[566,"Denis Dondo","VBA developper chez SAIL Plein Air / SAIL Outdoors","VBA developper chez SAIL Plein Air / SAIL Outdoors","","Summary: ...degree from the University of Manitoba with a major...","Montreal","Canada"]
[567,"Yuan Choong Eng","Experienced Financial Services Professional","Experienced Financial Services Professional","","Education: University of Manitoba","Jakarta","Indonesia"]
[568,"Chu Yu","PPP Consultant","PPP Consultant","","Education: University of Manitoba","Chengdu","China"]
[569,"Vivian Gao","Claims Administrator at BMO Life Assurance","Claims Administrator","BMO Life Assurance","Education: University of Manitoba","Toronto","Canada"]
[570,"Po Fu","Passionate New York Life Agent helping to protect families in Irvine California","Passionate New York Life Agent helping to protect families in Irvine California","","Education: University of Manitoba","Orange County","United States"]
[571,"Prakash Vanguri","Head of Enterprise Risk Management","Head of Enterprise Risk Management","","Education: University of Manitoba","New York","United States"]
[572,"Danny Yap","General Manager, Personal Lines","General Manager","Personal Lines","Education: University of Manitoba",null,"Malaysia"]
[573,"Dennis Martin","Senior Vice-President, Product & Business Development","Senior Vice-President","Product & Business Development","Education: University of Manitoba","Indianapolis","United States"]
[574,"Gabriela Macra","Head of Reserving at QBE European Operations","Head of Reserving","QBE European Operations","Education: University of Manitoba","London","United Kingdom"]
[575,"Stanley Ko","VP & AA at Ageas Insurance Company (Asia) Limited","VP & AA","Ageas Insurance Company (Asia) Limited","Education: University of Manitoba","Hong Kong","China"]
[576,"Ann Wong","Director of Product Management at Constitution Group","Director of Product Management","Constitution Group","Education: University of Manitoba","San Francisco","United States"]
[577,"Henry Wong","HR Business Partner at Euroclear","HR Business Partner","Euroclear","Education: University of Manitoba","Hong Kong","China"]
[578,"Avinash Jahajeeah","Head - International Banking at Banque des Mascareignes Ltee (BPCE Group)","Head - International Banking","Banque des Mascareignes Ltee (BPCE Group)","Education: University of Manitoba",null,"Mauritius"]
[579,"Edward Lim Wei Sin","HSBC Product Implementation","HSBC Product Implementation","","Education: University of Manitoba",null,"Singapore"]
[580,"Doug Brown BCom(Hons), FCIA, FSA","Executive Vice President and CEO, UK Division at Canada Life","Executive Vice President and CEO","Canada Life","Education: University of Manitoba","London","United Kingdom"]
[581,"Harindra Sebastian","Senior Consulting Actuary at Willis Towers Watson","Senior Consulting Actuary","Willis Towers Watson","Education: University of Manitoba","Atlanta","United States"]
[582,"R. Jason Cook","Actuary at TigerRisk Partners","Actuary","TigerRisk Partners","Past: Actuarial Analyst at Manitoba Public Insurance","Minneapolis","United States"]
[583,"Eli Cohen","Data Analysis and Project Management Consultant","Data Analysis and Project Management Consultant","","Education: University of Manitoba","Flagstaff","United States"]
[584,"Jaiganesh Baskaran","Executive Manager at Zurich Insurance Company Ltd","Executive Manager","Zurich Insurance Company Ltd","Education: University of Manitoba","Kuala Lumpur","Malaysia"]
[585,"Avery Cook","Managing Director Global Agriculture Analytics at Aon Benfield","Managing Director Global Agriculture Analytics","Aon Benfield","Education: University of Manitoba","Chicago","United States"]
[586,"Rob Bacher","Manager, International Benefits","Manager","International Benefits","Education: University of Manitoba","Houston","United States"]
[587,"Vernisha Budhia","Student at Asper School of Business","Student","Asper School of Business","Past: Actuarial Intern at Great-West Life","Winnipeg","Canada"]
[588,"Jason Ellement","Senior Vice President at Callan Associates","Senior Vice President","Callan Associates","Education: University of Manitoba","San Francisco","United States"]
[589,"Adrian Kryszak, FSA MAAA","Actuary at Cambia Health Solutions","Actuary","Cambia Health Solutions","Education: University of Manitoba","Seattle","United States"]
[590,"Julie Pavlik","Director, Medical Cost Affordability, Community & State at UnitedHealthcare","Director","UnitedHealthcare","Education: University of Manitoba","Minneapolis","United States"]
[591,"George Melnik","Insurance Professional","Insurance Professional","","Education: University of Manitoba","Kitchener","Canada"]
[592,"Nancy Williams","Middle School Math Teacher","Middle School Math Teacher","","Education: University of Manitoba","Boston","United States"]
[593,"George Harris","Volunteering with Cuso International","Volunteering with Cuso International","","Summary: ...between Manitoba and Africa... background in actuarial...","Winnipeg","Canada"]
[594,"Edwin Steinberg, ASA,MAAA","at EJS Associates","at EJS Associates","","Education: University of Manitoba","Miami","United States"]
[595,"Dennis Ho","CEO at Longitude RE Limited","CEO","Longitude RE Limited","Education: The University of Manitoba",null,"Bermuda"]
[596,"Alice Fontaine","President and Consulting Actuary in Life and Health Insurance Industry, FSA, FCIA, MAAA","President and Consulting Actuary in Life and Health Insurance Industry","FSA","Education: University of Manitoba","Austin","United States"]
[597,"Mike Morhun","President Sage Pension Resources","President Sage Pension Resources","","Education: University of Manitoba","Chicago","United States"]
[598,"Martin Reeves","VP, Product Solutions at Sun Life Financial Hong Kong","VP","Sun Life Financial Hong Kong","Education: University of Manitoba","Hong Kong","China"]
[599,"Genghui Wu","Vice President & Actuary at Prudential Financial","Vice President & Actuary","Prudential Financial","Education: University of Manitoba","New York","United States"]
[600,"Rainer Germann","Emerging Markets Portfolio Manager","Emerging Markets Portfolio Manager","","Education: University of Manitoba","Seattle","United States"]
[601,"Gordon Creber","- at GGY AXIS","-","GGY AXIS","Education: University of Manitoba","Toronto","Canada"]
[602,"Bill Gooden","President, Gooden Actuarial Consultants Ltd.","President","Gooden Actuarial Consultants Ltd.","Education: University of Manitoba","Calgary","Canada"]
[603,"Markus Lill","Studium: Technische Universität München","Studium: Technische Universität München","","Education: University of Manitoba","Munich","Germany"]
[604,"Alex Kogan","Senior Vice President and Actuary at Chubb","Senior Vice President and Actuary","Chubb","Education: University of Manitoba","New York","United States"]
[605,"Kwasi Foh-Asare","Client Service Representative at Investors Group","Client Service Representative","Investors Group","Past: Teaching Assistant and Grader/Marker at University of Manitoba","Winnipeg","Canada"]
[606,"Frederick Sackey","Actuarial Intern at Great-West Life","Actuarial Intern","Great-West Life","Education: University of Manitoba","Winnipeg","Canada"]
[607,"Kumar Kanisan","Senior Manager at Deloitte Consulting","Senior Manager","Deloitte Consulting","Education: University of Manitoba","Chicago","United States"]
[608,"Genghui Wu","Senior Investment Vice President at Prudential Financial","Senior Investment Vice President","Prudential Financial","Education: University of Manitoba","New York","United States"]
[609,"Bob Chmielnicki","Financial Advisor at The Co-operators","Financial Advisor","The Co-operators","Education: University of Manitoba",null,"Canada"]
[610,"Philip Fosu","Consultant at Morneau Sobeco","Consultant","Morneau Sobeco","Education: University of Manitoba","Toronto","Canada"]
[611,"Miao Zhang","Statistical Data Analyst in Programming, Vaccine","Statistical Data Analyst in Programming","Vaccine","Summary: ...from the University of Manitoba... and Actuarial Science...","Beijing","China"]
[612,"Georg Huber","Werkstudent im Aktuariat Kraftfahrt/Sach bei Versicherungskammer Bayern","Werkstudent im Aktuariat Kraftfahrt/Sach bei Versicherungskammer Bayern","","Education: University of Manitoba","Munich","Germany"]
[613,"Vrad Vodrazka","VP Actuary at Hannover Re","VP Actuary","Hannover Re","Education: University of Manitoba","Orlando","United States"]
[614,"Gord Latter","EVP at Ryan Labs Asset Management","EVP","Ryan Labs Asset Management","Education: University of Manitoba","Minneapolis","United States"]
[615,"Marc Rochon","Director of Analytics at Periscope","Director of Analytics","Periscope","Summary: ...in Actuarial Mathematics from the University...","Minneapolis","United States"]
[616,"Karen Christie","Consulting Actuary at Towers Watson","Consulting Actuary","Towers Watson","Education: University of Manitoba","Chicago","United States"]
[617,"George Kesselman","Revolutionising Insurance via InsurTech","Revolutionising Insurance via InsurTech","","Education: University of Manitoba",null,"Singapore"]
[618,"Benny Chung-Ying Zee","Professor/Head of Biostatistics, JC School of Public Health and Primary Care, CUHK","Professor/Head of Biostatistics","JC School of Public Health and Primary Care","Education: University of Manitoba","Hong Kong","China"]
[619,"Paul Shapansky","Partner at B2B CFO® specializing in M&A, Exit Strategies, Increasing Profitability, Cash Flow, and Company Value","Partner","B2B CFO® specializing in M&A, Exit Strategies, Increasing Profitability, Cash Flow, and Company Value","Education: University of Manitoba","Miami","United States"]
[620,"Jun(Jon) Chang","Account Assistant at Aon-COFCO","Account Assistant","Aon-COFCO","Education: University of Manitoba","Shanghai","China"]
[621,"Marissa Strominger","VP Senior Director Marketing | Expertise in B2B, B2C, Software | Open to New Opportunities","VP Senior Director Marketing | Expertise in B2B","B2C","Education: University of Manitoba - Asper School of Business Management","New York","United States"]
[622,"Judith Segal","Director Biostatistics at Puma Biotechnology","Director Biostatistics","Puma Biotechnology","Education: University of Manitoba","Minneapolis","United States"]
[623,"Leo He","Data Analyst Seeking New Opportunities","Data Analyst Seeking New Opportunities","","Education: Univesity of Manitoba","San Francisco","United States"]
[624,"Jimmy Lu","Partner at Fancy Star China 毅星中国","Partner","Fancy Star China 毅星中国","Education: University of Manitoba","San Francisco","United States"]
[625,"Leo Cheung","Deputy General Manager at Four Seas Mercantile Limited","Deputy General Manager","Four Seas Mercantile Limited","Education: University of Manitoba","Hong Kong","China"]
[626,"Kyle Baley","Software Engineer at Particular Software","Software Engineer","Particular Software","Education: University of Manitoba",null,"Panama"]
[627,"Les Kuklinski","Senior Solution Architect at CSS International","Senior Solution Architect","CSS International","Education: University of Manitoba","Los Angeles","United States"]
[628,"Samuel Suen","Private Venture Investments","Private Venture Investments","","Education: University of Manitoba","Hong Kong","China"]
[629,"Cheng Wee Cheat","Regional Finance Director at Johnson & Johnson","Regional Finance Director","Johnson & Johnson","Education: University of Manitoba",null,"Singapore"]
[630,"Kirby Richter","Principal Database Architect / Administrator at Dell EMC","Principal Database Architect / Administrator","Dell EMC","Education: University of Manitoba","Minneapolis","United States"]
[631,"Allen Wu","Bloomberg","Bloomberg","","Education: University of Manitoba",null,"Singapore"]
[632,"Edmond Wong","Strategy Alliance at Metlife LIMITED","Strategy Alliance","Metlife LIMITED","Education: University of Manitoba","Hong Kong","China"]
[633,"Wong Shiaw Shien","Mortgage Loan Specialist @ United Overseas Bank (Malaysia) Ltd","Mortgage Loan Specialist ","United Overseas Bank (Malaysia) Ltd","Education: University of Manitoba","Sarawak","Malaysia"]
[634,"Paarthiban Krishnan","Group Controller at ON Semiconductor","Group Controller","ON Semiconductor","Education: University of Manitoba","Phoenix","United States"]
[635,"Bo Wang","负责人","负责人","","Education: University of Manitoba","Shanghai","China"]
[636,"Alex Tan","Founder of GoFun.Asia","Founder of GoFun.Asia","","Education: University of Manitoba","Kuala Lumpur","Malaysia"]
[637,"David Haverick","Sr. Director, Corporate Benefits & HR Finance at PotashCorp","Sr. Director","PotashCorp","Education: University of Manitoba","Chicago","United States"]
[638,"Mel Todd","Managing Principal at COLI Consulting Group LLC","Managing Principal","COLI Consulting Group LLC","Education: University of Manitoba","Greensboro","United States"]
[639,"Peggy Man","Associate at Coutts","Associate","Coutts","Education: University of Manitoba","Hong Kong","China"]
[640,"Dawna Bennett","Senior Operations Professional","Senior Operations Professional","","Education: University of Manitoba","Denver","United States"]
[641,"Meng Li","Finance","Finance","","Education: University of Manitoba","Winnipeg","Canada"]
[642,"Hong Yick Khor","Planning and Controlling at Allianz SE Reinsurance Branch Asia Pacific","Planning and Controlling","Allianz SE Reinsurance Branch Asia Pacific","Education: University of Manitoba",null,"Singapore"]
[643,"Ounesh Reebye","Vice President, Streaming Operations & Metal Sales at Silver Wheaton (Cayman)","Vice President","Silver Wheaton (Cayman)","Education: University of Manitoba",null,"Cayman Islands"]
[644,"Ivan Lee","Localization Expert Looking for Opportunities","Localization Expert Looking for Opportunities","","Education: University of Manitoba","Seattle","United States"]
[645,"Geok Bee Teh","Manager at PAMB","Manager","PAMB","Education: University of Manitoba",null,"Malaysia"]
[646,"Karl Froese","Strategic Product Leader | Managed Healthcare |","Strategic Product Leader | Managed Healthcare |","","Education: University of Manitoba","Minneapolis","United States"]
[647,"Yi Yang","Supply Chain Operations Analyst","Supply Chain Operations Analyst","","Education: University of Manitoba","Winnipeg","Canada"]
[648,"Dan Anderson","Financial and Business Analysis - Canada","Financial and Business Analysis - Canada","","Summary: Intuitive and analytical... professional actuarial...","Toronto","Canada"]
[649,"Peter Stalder","Owner at Peter Stalder Consultant","Owner","Peter Stalder Consultant","Education: University of Manitoba","San Francisco","United States"]
[650,"Bob Shaw","President, Individual Markets at Great-West Financial","President","Great-West Financial","Education: University of Manitoba","Denver","United States"]
[651,"Elaine Hwang","Director, Benefits Hong Kong at Willis Towers Watson","Director","Willis Towers Watson","Education: University of Manitoba","Hong Kong","China"]
[652,"Sharon Cheung","Senior Manager, CEO office","Senior Manager","CEO office","Education: University of Manitoba","Hong Kong","China"]
[653,"Ivan Chak","CEO - Life Insurance Hong Kong (Under Preparation) at Fosun Insurance Group","CEO - Life Insurance Hong Kong (Under Preparation)","Fosun Insurance Group","Past: Chief Marketing Officer at AIA Korea","Hong Kong","China"]
[654,"Andrew Schellenberg, CA","Senior Financial Analyst at Google","Senior Financial Analyst","Google","Education: University of Manitoba","San Francisco","United States"]
[655,"David Grapko","Retired at Cigna","Retired","Cigna","Education: University of Manitoba","Denver","United States"]
[656,"Marianne Cumming","Senior Vice President at Swiss Re","Senior Vice President","Swiss Re","Education: University of Manitoba","Fort Wayne","United States"]
[657,"May Shuang Yu","Senior Pension Actuary at CalPERS","Senior Pension Actuary","CalPERS","Education: University of Manitoba","Sacramento","United States"]
[658,"Richard Rougeau","Medical Director at AXA","Medical Director","AXA","Education: University of Manitoba","St. Louis","United States"]
[659,"Albert Lo","Owner, Teamwork Investment Asia Ltd","Owner","Teamwork Investment Asia Ltd","Education: University of Manitoba","Hong Kong","China"]
[660,"David Pauls","Western Europe Regional Leader, Global Services & Solutions at Willis Towers Watson","Western Europe Regional Leader","Willis Towers Watson","Education: University of Manitoba","Zurich","Switzerland"]
[661,"Tracy Witter","Partner, Retirement Market Leader N. California and Pacific Northwest at Aon Hewitt","Partner","Aon Hewitt","Education: University of Manitoba","San Francisco","United States"]
[662,"Karl Gagnon","Assistant Actuary at Allianz Life","Assistant Actuary","Allianz Life","Education: University of Manitoba","Minneapolis","United States"]
[663,"Michael Fong","Managing Director, Charles Schwab Hong Kong at Charles Schwab","Managing Director","Charles Schwab","Education: University of Manitoba","Hong Kong","China"]
[664,"Nicole Delahanty","Pavilion Advisory Group Inc.","Pavilion Advisory Group Inc.","","Education: University of Manitoba","Minneapolis","United States"]
[665,"Todd Owen","Chief Executive Officer at Windsor Strategy Solutions","Chief Executive Officer","Windsor Strategy Solutions","Education: University of Manitoba","New York","United States"]
[666,"Eric Thorlacius","Head Financial Market Risk at Catlin","Head Financial Market Risk","Catlin","Education: University of Manitoba","Washington","United States"]
[667,"Chris Drome","Technical Yahoo at Yahoo Search","Technical Yahoo","Yahoo Search","Education: University of Manitoba","San Francisco","United States"]
[668,"Trevor Holland","Retired from emloyee benefits and actuarual fields","Retired from emloyee benefits and actuarual fields","","Education: University of Manitoba","St. Louis","United States"]
[669,"Wayne Froese","at MCG Energy Solutions LLC","at MCG Energy Solutions LLC","","Education: University of Manitoba","Minneapolis","United States"]
[670,"Vivian Chang","Associate Actuary at WellPoint","Associate Actuary","WellPoint","Education: University of Manitoba","Boston","United States"]
[671,"Derek Popkes","Chief Risk Officer, Europe","Chief Risk Officer","Europe","Education: University of Manitoba",null,"Ireland"]
[672,"Gabriel Yeung","Vice President HNW Underwriting at AIA","Vice President HNW Underwriting","AIA","Education: University of Manitoba","Hong Kong","China"]
[673,"Jane Yeo","Regional VP at AIG","Regional VP","AIG","Education: University of Manitoba","Singapore","Singapore"]
[674,"Peter Tilley","Chief Financial Risk Officer at Great-West Financial","Chief Financial Risk Officer","Great-West Financial","Education: University of Manitoba","Denver","United States"]
[675,"Marty Rosenbaum","Senior Health Care Consultant at MRC & Associates","Senior Health Care Consultant","MRC & Associates","Education: University of Manitoba","Denver","United States"]
[676,"Hock Eng Mah","COO at Ozura Firstlogix","COO","Ozura Firstlogix","Education: University of Manitoba",null,"Malaysia"]
[677,"Vincent Leung","Branch Manager at Top Image Systems","Branch Manager","Top Image Systems","Education: University of Manitoba","Hong Kong","China"]
[678,"刘欣","Inventory Project Manager","Inventory Project Manager","","Education: University of Manitoba","Shanghai","China"]
[679,"Yvonne Gao","Senior Actuairal Associate at Ernst & Young","Senior Actuairal Associate","Ernst & Young","Education: University of Manitoba",null,"China"]
[680,"Larry Gerelus","Owner, Stag's Hollow Winery","Owner","Stag's Hollow Winery","Education: University of Manitoba",null,"Canada"]
[681,"裘國偉博士Caleb Kau, Psy.D.","--","--","","Education: University of Manitoba","Hong Kong","China"]
[682,"Paul Stefansson","Leader (former CEO) and Sales Manager with expertise in Discretionary Mandates, Funds, Hedge Funds and Private Equity","Leader (former CEO) and Sales Manager with expertise in Discretionary Mandates","Funds","Education: University of Manitoba","Singapore","Singapore"]
[683,"Siew Ding Lo","Associate","Associate","","Education: University of Manitoba","Singapore","Singapore"]
[684,"Fred Abbott","Director of Client Management, Northern California at Willis Towers Watson","Director of Client Management","Willis Towers Watson","Summary: Fred Abbott is a Senior... from the University of Manitoba...","San Francisco","United States"]
[685,"Chris Kam, CPA, CGA","Financial Analyst at AECOM","Financial Analyst","AECOM","Education: University of Manitoba","Vancouver","Canada"]
[686,"Raj Bal","Consultant / Healthcare Entrepreneur","Consultant / Healthcare Entrepreneur","","Education: University of Manitoba","Milwaukee","United States"]
[687,"David Wilson","President at Windsor Strategy Partners and Owner, Windsor Strategy Partners","President","Windsor Strategy Partners and Owner, Windsor Strategy Partners","Education: University of Manitoba","New York","United States"]
[688,"Yu Chen Mu","Quantitative Derivatives Analyst at Allianz Life","Quantitative Derivatives Analyst","Allianz Life","Education: University of Manitoba","Minneapolis","United States"]
[689,"King Lai","Associate Director at AIA HK","Associate Director","AIA HK","Education: University of Manitoba","Hong Kong","China"]
[690,"Poong Shen Lai","--","--","","Education: University of Manitoba","Selangor","Malaysia"]
[691,"Shui Lan Joanna Ng","Statistical Reporting Analyst at WR Berkley","Statistical Reporting Analyst","WR Berkley","Education: University of Manitoba","Chicago","United States"]
[692,"Gai Hing Alex Wong","Executive Director","Executive Director","","Education: University of Manitoba","Hong Kong","China"]
[693,"Bob Zoltok","Transitioning to Bridge (cards, not structural)","Transitioning to Bridge (cards","not structural)","Education: University of Manitoba","Vancouver","Canada"]
[694,"Max Ng","Business Development Manager at Micon Solid-State Engineering","Business Development Manager","Micon Solid-State Engineering","Education: University of Manitoba","Hong Kong","China"]
[695,"Daniel Lennington, FSA, EA","Senior Consulting Actuary at Willis Towers Watson","Senior Consulting Actuary","Willis Towers Watson","Education: University of Manitoba","Chicago","United States"]
[696,"Sam Gu","Master student at Yale School of Public Health","Master student","Yale School of Public Health","Education: University of Manitoba","New York","United States"]
[697,"Ching-Fai Pang","principal consultant at Phi Consulting Group, Inc.","principal consultant","Phi Consulting Group, Inc.","Education: University of Manitoba","San Francisco","United States"]
[698,"Jeff Howatt","Head of Retirement, Technology and Administration Services, North Asia (Japan and Korea) at Willis Towers Watson","Head of Retirement","Willis Towers Watson","Education: University of Manitoba","Tokyo","Japan"]
[699,"Brad Wladyka","Owner, Total Mortgage & Credit Services - The MORTGAGE Centre","Owner","Total Mortgage & Credit Services - The MORTGAGE Centre","Education: University of Manitoba","Winnipeg","Canada"]
[700,"Lorne Cooper","--","--","","Summary: ...and is actuarial consultant... been a actuarial...","Ottawa","Canada"]
[701,"Raymond Tam","Chief Risk Officer, Asia at Ageas","Chief Risk Officer","Ageas","Education: University of Manitoba","Hong Kong","China"]
[702,"Elaine Noel-Bentley","Board member","Board member","","Education: University of Manitoba","Calgary","Canada"]
[703,"K Heather Power","Legislative Representative at Opticians of Manitoba","Legislative Representative","Opticians of Manitoba","Education: University of Manitoba","Winnipeg","Canada"]
[704,"Jerry Dong","Head of Asset Allocation and Research Dpt. at Shanghai Life Insurance Co. Ltd","Head of Asset Allocation and Research Dpt.","Shanghai Life Insurance Co. Ltd","Education: University of Manitoba","Shanghai","China"]
[705,"Ruiqi Zeng","Bilingual Market Research Coder at Ipsos in North America","Bilingual Market Research Coder","Ipsos in North America","Education: University of Manitoba","Winnipeg","Canada"]
[706,"Denis Garand","President at DGA","President","DGA","Education: University of Manitoba","Saskatchewan","Canada"]
[707,"Raman Dhaliwal","Director Administration at Faculty of Health Sciences- University of Manitoba","Director Administration","Faculty of Health Sciences- University of Manitoba","Current: Director of Administration at Faculty of Health Sciences- University of Manitoba",null,"Canada"]
[708,"Alfred Schorath","Certified Financial Planner at Sun Life Financial","Certified Financial Planner","Sun Life Financial","Education: University of Manitoba","Calgary","Canada"]
[709,"Matthew Segal ASA, ACIA","Actuarial Associate at Munich Re Canada","Actuarial Associate","Munich Re Canada","Past: Statistics Teaching Assistant at University of Manitoba","Winnipeg","Canada"]
[710,"Calvin Cheng","Actuarial Mathematics Student","Actuarial Mathematics Student","","Past: Secretary at University of Manitoba Actuarial Club","Winnipeg","Canada"]
[711,"Ian Baker","Consulting Actuary at Baker Actuarial Services","Consulting Actuary","Baker Actuarial Services","Education: University of Manitoba","Vancouver","Canada"]
[712,"Ling Chen (Tony) Shi","Support Worker At St.Amant Foundation","Support Worker","St.Amant Foundation","Current: Grader/Marker at University of Manitoba","Winnipeg","Canada"]
[713,"Frank Withoos","Instructor at Kumon of Fort Garry","Instructor","Kumon of Fort Garry","Education: University of Manitoba","Winnipeg","Canada"]
[714,"Corwin Zass","Actuarial Risk Management Principal & Industry Leading Senior Consulting Actuary serving BDO and Top 30 Accounting Firms","Actuarial Risk Management Principal & Industry Leading Senior Consulting Actuary serving BDO and Top 30 Accounting Firms","","Summary: ...Actuary of Actuarial Risk... for solid actuarial advice...","Austin","United States"]
[715,"Rebecca Burrows","Owner Bleue Coyote Bar & Grill.","Owner Bleue Coyote Bar & Grill.","","Education: University of Manitoba","Vancouver","Canada"]
[716,"Margaret Proven","Director, HR Corporate Office, Exec Comp & Pensions at Canwest","Director","Canwest","Education: University of Manitoba","Winnipeg","Canada"]
[717,"Arkadiusz Bandosz","Managing Director, RGA Italy","Managing Director","RGA Italy","Education: University of Manitoba","Rome","Italy"]
[718,"Ethan Huberman","Manager at Jubilee Rose Enterprises Ltd.","Manager","Jubilee Rose Enterprises Ltd.","Education: University of Manitoba","Vancouver","Canada"]
[719,"Wayne Macedo","AVP - Chief Underwriter and Claims Head - Latin America at SCOR Global Life Americas","AVP - Chief Underwriter and Claims Head - Latin America","SCOR Global Life Americas","Education: University of Manitoba","Charlotte","United States"]
[720,"LinkedIn Member","Student at University of Manitoba","Student","University of Manitoba","Summary: ...at the University of Manitoba... in Actuarial Mathematics. I...","Winnipeg","Canada"]
[721,"LinkedIn Member","Student at University of Manitoba","Student","University of Manitoba","Education: University of Manitoba","Winnipeg","Canada"]
[722,"LinkedIn Member","Student at University of Manitoba","Student","University of Manitoba","Education: University of Manitoba","Winnipeg","Canada"]
[723,"LinkedIn Member","Attended University of Manitoba","Attended University of Manitoba","","Education: University of Manitoba","Winnipeg","Canada"]
[724,"LinkedIn Member","Student at University of Manitoba","Student","University of Manitoba","Education: University of Manitoba",null,"Canada"]
[725,"LinkedIn Member","Actuarial Mathematics Student","Actuarial Mathematics Student","","Education: University of Manitoba","Winnipeg","Canada"]
[726,"LinkedIn Member","Senior Actuarial Analyst at Delta Dental","Senior Actuarial Analyst","Delta Dental","Education: University of Manitoba","San Francisco","United States"]
[727,"LinkedIn Member","Student at University of Alberta","Student","University of Alberta","Education: University of Manitoba","Edmonton","Canada"]
[728,"LinkedIn Member","Financial Services Professional","Financial Services Professional","","Education: University of Manitoba","Vancouver","Canada"]
[729,"LinkedIn Member","--","--","","Education: University of Manitoba",null,"Canada"]
[730,"LinkedIn Member","Senior Vice-President, Products & Financial Planning at Investors Group","Senior Vice-President","Investors Group","Education: University of Manitoba","Winnipeg","Canada"]
[731,"LinkedIn Member","Senior Consultant at CGI","Senior Consultant","CGI","Education: University of Manitoba","Toronto","Canada"]
[732,"LinkedIn Member","Consultant","Consultant","","Education: University of Manitoba","Toronto","Canada"]
[733,"LinkedIn Member","General Manager at True North Capital","General Manager","True North Capital","Education: University of Manitoba","Toronto","Canada"]
[734,"LinkedIn Member","--","--","","Education: University of Manitoba","Winnipeg","Canada"]
[735,"LinkedIn Member","Retail Professional","Retail Professional","","Education: University of Manitoba","Winnipeg","Canada"]
[736,"LinkedIn Member","Actuarial Consultant at Deloitte Consulting, ASA","Actuarial Consultant","Deloitte Consulting, ASA","Past: Consultant at Deloitte Consulting","Minneapolis","United States"]
[737,"LinkedIn Member","Associate at RBC","Associate","RBC","Education: University of Manitoba","Winnipeg","Canada"]
[738,"LinkedIn Member","sales at STAPLES Canada","sales","STAPLES Canada","Education: university of manitoba","Winnipeg","Canada"]
[739,"LinkedIn Member","Manager, I.T. at NGM Investment Ltd","Manager","NGM Investment Ltd","Education: University of Manitoba","Vancouver","Canada"]
[740,"LinkedIn Member","Pension and Benefits Strategist","Pension and Benefits Strategist","","Education: University of Manitoba","Edmonton","Canada"]
[741,"LinkedIn Member","Senior Consultant and Actuary at Donaldson Vincent Associates Limited","Senior Consultant and Actuary","Donaldson Vincent Associates Limited","Education: University of Manitoba","Toronto","Canada"]
[742,"LinkedIn Member","Insurance Professional","Insurance Professional","","Education: University of Manitoba","Kitchener","Canada"]
[743,"LinkedIn Member","--","--","","Education: University of Manitoba","Toronto","Canada"]
[744,"LinkedIn Member","VP of Finance and Administrative Services at Vein Clinic PA","VP of Finance and Administrative Services","Vein Clinic PA","Education: University of Manitoba","Minneapolis","United States"]
[745,"LinkedIn Member","Sales Administration Manager at SG Gaming","Sales Administration Manager","SG Gaming","Education: University of Manitoba","Macao","Macao"]
[746,"LinkedIn Member","Leisure, Travel & Tourism Professional","Leisure","Travel & Tourism Professional","Education: University of Manitoba","Winnipeg","Canada"]
[747,"LinkedIn Member","Public Works and Government Services Canada","Public Works and Government Services Canada","","Education: University of Manitoba","Ottawa","Canada"]
[748,"LinkedIn Member","Wealth Planner UHNW, UBS AG Singapore","Wealth Planner UHNW","UBS AG Singapore","Education: University of Manitoba","Singapore","Singapore"]
[749,"LinkedIn Member","Insurance Professional","Insurance Professional","","Education: The University of Manitoba","Winnipeg","Canada"]
[750,"LinkedIn Member","CEO at BridgeWorks, LLC","CEO","BridgeWorks, LLC","Education: University of Manitoba","San Francisco","United States"]
[751,"LinkedIn Member","President & CEO at FPB Financial Strategies Inc.","President & CEO","FPB Financial Strategies Inc.","Education: University of Manitoba","Saskatchewan","Canada"]
[752,"LinkedIn Member","Self Employed","Self Employed","","Education: University of Manitoba","Selangor","Malaysia"]
[753,"LinkedIn Member","university of Manitoba毕业","university of Manitoba毕业","","Education: university of Manitoba","Winnipeg","Canada"]
[754,"LinkedIn Member","Coachpraktijk Vrij Eten","Coachpraktijk Vrij Eten","","Summary: OPLEIDINGEN 2014-2015... : University of Manitoba [CA...","Hague","Netherlands"]
[755,"LinkedIn Member","Consultant at N-Dimensional Computers inc.","Consultant","N-Dimensional Computers inc.","Education: University of Manitoba","Toronto","Canada"]
[756,"LinkedIn Member","--","--","","Education: University of Manitoba","Selangor","Malaysia"]
[757,"LinkedIn Member","Owner, Barca Capital Management","Owner","Barca Capital Management","Education: University of Manitoba","Toronto","Canada"]
[758,"LinkedIn Member","Independent Financial Services Professional","Independent Financial Services Professional","","Education: University of Manitoba","Melbourne","Australia"]
[759,"LinkedIn Member","Actuary at Baker Actuarial Services","Actuary","Baker Actuarial Services","Education: University of Manitoba","Ottawa","Canada"]
[760,"LinkedIn Member","Office Manager at Samena Capital Hong Kong Ltd.","Office Manager","Samena Capital Hong Kong Ltd.","Education: University of Manitoba (Canada)","Hong Kong","China"]
[null,null,null,"Office Manager@Samena Capital Hong Kong Ltd.",""]

{"sheet":"Sheet4","index":8,"n_rows":761,"n_cols":7,"rows_kept":761,"cut":false,"hidden":true,"merged":[]}
["",{"$f":"IF(C1=\"\",E1,C1)","v":0},null,"University of Manitoba Actuarial Club Promotions Coordinator"]
["University of Manitoba",{"$f":"IF(C2=\"\",E2,C2)","v":" University of Manitoba"},null,"Actuarial Student"," University of Manitoba"]
["Asper School of Business - University of Manitoba"," Asper School of Business - University of Manitoba",null,"Actuarial Student"," Asper School of Business - University of Manitoba"]
["The University of Manitoba","The University of Manitoba","The University of Manitoba","Actuarial Mathematics Student"]
["",0,null,"Actuarial Student - University of Manitoba"]
["University of Manitoba","University of Manitoba","University of Manitoba","Actuarial Mathematics & Accounting student"]
["University of Manitoba","University of Manitoba","University of Manitoba","Actuary Student"]
["the University of Manitoba","the University of Manitoba","the University of Manitoba","Actuarial Mathematics Student"]
["",0,null,"Actuarial Analyst - WCB Manitoba"]
["University of Manitoba","University of Manitoba","University of Manitoba","Student"]
["University of Manitoba","University of Manitoba","University of Manitoba","Actuarial Mathematics Student"]
["University of Manitoba","University of Manitoba","University of Manitoba","Student"]
["University of Manitoba","University of Manitoba","University of Manitoba","Student"]
["University of Manitoba","University of Manitoba","University of Manitoba","Student"]
["University of Manitoba","University of Manitoba","University of Manitoba","Actuarial Student"]
["University of Manitoba","University of Manitoba","University of Manitoba","Student"]
["University of Manitoba","University of Manitoba","University of Manitoba","Research Assistant"]
["University of Manitoba","University of Manitoba","University of Manitoba","Student"]
["University of Manitoba","University of Manitoba","University of Manitoba","Student"]
["University of Manitoba","University of Manitoba","University of Manitoba","Account Payable Assistant"]
["University of Manitoba","University of Manitoba","University of Manitoba","Student"]
["University of Manitoba","University of Manitoba","University of Manitoba","Student"]
["",0,null,"Graduate Actuary from the University of Manitoba"]
["University of Manitoba","University of Manitoba","University of Manitoba","Student Leadership Development Program Facilitator"]
["The Great-West Life Assurance Company","The Great-West Life Assurance Company","The Great-West Life Assurance Company","Actuarial Student"]
["University of Manitoba","University of Manitoba","University of Manitoba","Actuarial Student"]
["Great-West Life","Great-West Life","Great-West Life","Actuarial Associate"]
["Munich Re Canada","Munich Re Canada","Munich Re Canada","Actuarial Co-op"]
["University of Manitoba","University of Manitoba","University of Manitoba","Student"]
["University of Manitoba","University of Manitoba","University of Manitoba","Student"]
["University of Manitoba","University of Manitoba","University of Manitoba","Student"]
["University of Manitoba","University of Manitoba","University of Manitoba","Director"," Staff Benefits"]
["Great-West Life","Great-West Life","Great-West Life","Actuarial Intern"]
["Great-West Life","Great-West Life","Great-West Life","Actuarial Associate"]
["Wawanesa Mutual Insurance Co."," Wawanesa Mutual Insurance Co.",null,"Actuarial Intern"," Wawanesa Mutual Insurance Co."]
["Sun Life Financial","Sun Life Financial","Sun Life Financial","Actuarial Analyst"]
["University of Manitoba","University of Manitoba","University of Manitoba","Accounting Grader/Marker"]
["Investors Group","Investors Group","Investors Group","Actuarial Student"]
["Sun Life Financial, Actuarial Science Student","Sun Life Financial, Actuarial Science Student","Sun Life Financial, Actuarial Science Student","Actuarial Analyst"]
["Great-West Life","Great-West Life","Great-West Life","Actuarial Intern"]
["University of Manitoba","University of Manitoba","University of Manitoba","Student"]
["Wawanesa Insurance","Wawanesa Insurance","Wawanesa Insurance","Actuarial Intern"]
["Great-West Life","Great-West Life","Great-West Life","Actuarial Analyst"]
["Munich Re Canada","Munich Re Canada","Munich Re Canada","Actuarial Intern"]
["University of Manitoba","University of Manitoba","University of Manitoba","Student"]
["Wawanesa Insurance","Wawanesa Insurance","Wawanesa Insurance","Actuarial Analyst"]
["Great-West Life","Great-West Life","Great-West Life","Actuarial Analyst"]
["Benchmark Decisions Ltd","Benchmark Decisions Ltd","Benchmark Decisions Ltd","Actuarial Analyst"]
["Ellement Consulting Group","Ellement Consulting Group","Ellement Consulting Group","Actuarial Analyst"]
["Great-West Life","Great-West Life","Great-West Life","Actuarial Associate"]
["Aon Hewitt","Aon Hewitt","Aon Hewitt","Actuarial Co-op"]
["Mercer","Mercer","Mercer","Actuarial Analyst"]
["University of Manitoba","University of Manitoba","University of Manitoba","Student"]
["University of Manitoba"," University of Manitoba",null,"Student"," University of Manitoba"]
["University of Manitoba","University of Manitoba","University of Manitoba","Student"]
["Worden Zaluski Consulting Actuaries Ltd.","Worden Zaluski Consulting Actuaries Ltd.","Worden Zaluski Consulting Actuaries Ltd.","Senior Actuarial Associate"]
["",0,null,"Attended University of Manitoba"]
["Mercer","Mercer","Mercer","Actuarial Analyst"]
["Great-West Life","Great-West Life","Great-West Life","Actuarial Associate"]
["",0,null,"Attended University of Manitoba"]
["Manulife","Manulife","Manulife","Actuarial Assistant"]
["Wawanesa Insurance","Wawanesa Insurance","Wawanesa Insurance","Assistant Actuarial Analyst"]
["Great-West Life","Great-West Life","Great-West Life","Actuarial Analyst"]
["Investors Group","Investors Group","Investors Group","Actuarial Analyst"," Corporate Research"]
["Great-West Life","Great-West Life","Great-West Life","Actuarial Summer Student"]
["University of Manitoba",{"$f":"IF(C66=\"\",E66,C66)","v":"University of Manitoba"},"University of Manitoba","Benefits Manager"]
["Investors Group","Investors Group","Investors Group","Actuarial Intern"]
["Willis Towers Watson","Willis Towers Watson","Willis Towers Watson","Actuarial Analyst"]
["Wawanesa Insurance","Wawanesa Insurance","Wawanesa Insurance","Manager"," Actuarial Pricing Western Canada"]
["",0,null,"Attended University of Manitoba"]
["Great-West Life","Great-West Life","Great-West Life","Actuarial Intern"]
["Portage Mutual Insurance","Portage Mutual Insurance","Portage Mutual Insurance","Manager"," Actuarial Services"]
["Great-West Life","Great-West Life","Great-West Life","Actuarial Student - Co-op"]
["Great-West Life","Great-West Life","Great-West Life","Actuarial Student"]
["",0,null,"Actuarial Analyst"]
["Deloitte Canada","Deloitte Canada","Deloitte Canada","Actuarial Analyst"]
["Manulife","Manulife","Manulife","Actuarial Intern"]
["Wawanesa Insurance","Wawanesa Insurance","Wawanesa Insurance","Assistant Actuarial Analyst"]
["Asper School of Business, University of Manitoba","Asper School of Business, University of Manitoba","Asper School of Business, University of Manitoba","Student"]
["Sun Life Financial","Sun Life Financial","Sun Life Financial","Actuarial Analyst"]
["Wawanesa Insurance","Wawanesa Insurance","Wawanesa Insurance","Manager Actuarial Pricing - Commercial Lines"]
["",0,null,"Actuarial Student"]
["University of Manitoba","University of Manitoba","University of Manitoba","Student"]
["University of Manitoba","University of Manitoba","University of Manitoba","Student"]
["Actuarial Analytics"," Actuarial Analytics",null,"Director"," Actuarial Analytics"]
["",0,null,"University of Manitoba"]
["Great-West Life","Great-West Life","Great-West Life","Actuarial Assistant"]
["",0,null,"Actuarial Analyst"]
["Mercer","Mercer","Mercer","Actuarial Analyst"]
["Wawanesa Insurance","Wawanesa Insurance","Wawanesa Insurance","Manager"," Actuarial Pricing - Eastern Canada"]
["Ellement Consulting Group","Ellement Consulting Group","Ellement Consulting Group","Actuarial Analyst"]
["University of Manitoba","University of Manitoba","University of Manitoba","Student"]
["University of Manitoba","University of Manitoba","University of Manitoba","Student"]
["University of Manitoba","University of Manitoba","University of Manitoba","Student"]
["Great-West Life","Great-West Life","Great-West Life","Actuarial Summer Student"]
["Great-West Life","Great-West Life","Great-West Life","CPA Student"," Actuarial Internal Audit"]
["University of Manitoba","University of Manitoba","University of Manitoba","Student"]
["Wawanesa Insurance","Wawanesa Insurance","Wawanesa Insurance","Senior Actuarial Analyst"]
["Willis Towers Watson","Willis Towers Watson","Willis Towers Watson","Actuarial Analyst"]
["Manulife","Manulife","Manulife","Senior Actuarial Associate"]
["",0,null,"Actuarial Analyst"]
["",0,null,"VP Corporate Actuarial & Appointed Actuary"]
["Great-West Life","Great-West Life","Great-West Life","Actuarial Assistant"]
["University of Manitoba","University of Manitoba","University of Manitoba","Student"]
["",0,null,"Actuarial Student"]
["Wawanesa Insurance","Wawanesa Insurance","Wawanesa Insurance","Manager Actuarial Pricing Direct Markets"]
["",0,null,"Actuarial Analyst"]
["Department of Economics, University of Manitoba","Department of Economics, University of Manitoba","Department of Economics, University of Manitoba","Grader/marker"]
["Sunlife","Sunlife","Sunlife","Senior Actuarial Analyst"]
["Manulife Financial","Manulife Financial","Manulife Financial","Actuarial Consultant"]
["Wawanesa Insurance","Wawanesa Insurance","Wawanesa Insurance","Actuarial Analyst"]
["University of Manitoba","University of Manitoba","University of Manitoba","Student"]
["Great-West Life","Great-West Life","Great-West Life","Actuarial Associate"]
["Sun Life Financial","Sun Life Financial","Sun Life Financial","Senior Actuarial Analyst"]
["Great-West Life","Great-West Life","Great-West Life","Actuarial Analyst"]
["University of Manitoba","University of Manitoba","University of Manitoba","Student"]
["Willis Towers Watson","Willis Towers Watson","Willis Towers Watson","Senior Actuarial Analyst"]
["The Co-operators","The Co-operators","The Co-operators","Actuarial Associate"]
["University of Manitoba","University of Manitoba","University of Manitoba","Student"]
["Sun Life Financial","Sun Life Financial","Sun Life Financial","Vice-President"," Actuarial Reporting and Product Management"]
["",0,null,"University Graduate- Actuarial Mathematics"]
["Munich Re Canada","Munich Re Canada","Munich Re Canada","Vice President"," Global Actuarial Consulting Group"]
["Wawanesa Insurance","Wawanesa Insurance","Wawanesa Insurance","Actuarial Analyst"]
["University of Manitoba","University of Manitoba","University of Manitoba","Student"]
["University of Manitoba","University of Manitoba","University of Manitoba","Student"]
["School Boards Co-operative Inc.","School Boards Co-operative Inc.","School Boards Co-operative Inc.","Actuarial Consultant"]
["John Hancock Financial Services","John Hancock Financial Services","John Hancock Financial Services","Actuarial Co-op"]
["Sun Life Financial","Sun Life Financial","Sun Life Financial","Actuarial Analyst"]
["Mercer","Mercer","Mercer","Associate"]
["Wawanesa Mutual Insurance",{"$f":"IF(C130=\"\",E130,C130)","v":"Wawanesa Mutual Insurance"},"Wawanesa Mutual Insurance","Actuarial Intern"]
["",0,null,"Sales Representative and University Student"]
["Great-West Life","Great-West Life","Great-West Life","Actuarial Analyst"]
["University of Manitoba","University of Manitoba","University of Manitoba","Student"]
["University of Manitoba","University of Manitoba","University of Manitoba","Student"]
["Workers' Compensation Board","Workers' Compensation Board","Workers' Compensation Board","Actuarial Analyst"]
["University of Manitoba","University of Manitoba","University of Manitoba","Student"]
["Manitoba Bureau of Statistics","Manitoba Bureau of Statistics","Manitoba Bureau of Statistics","Social Statistics & Performance Indicators Statistician"]
["Co-operators Life","Co-operators Life","Co-operators Life","Manager"," Group Actuarial Pricing"]
["Agriculture and Agri-Food Canada","Agriculture and Agri-Food Canada","Agriculture and Agri-Food Canada","Actuarial Officer"]
["Asper School of Business","Asper School of Business","Asper School of Business","Actuarial student"]
["University of Manitoba","University of Manitoba","University of Manitoba","Student"]
["Intact","Intact","Intact","Actuarial Manager"]
["Morneau Shepell","Morneau Shepell","Morneau Shepell","Senior Actuarial Analyst"]
["",0,null,"Actuarial Graduate"]
["McGill University","McGill University","McGill University","Graduate Student"]
["VCH","VCH","VCH","Corporate Director"," Enterprise Risk Management and Director"," Care Continuum and Actuarial Analytics"]
["",0,null,"Actuarial Student"]
["University of Manitoba","University of Manitoba","University of Manitoba","Student"]
["Manulife Financial","Manulife Financial","Manulife Financial","AVP"," Group Finance Actuarial"]
["",0,null,"Actuarial Student"]
["Actuarial Financial Reporting"," Actuarial Financial Reporting",null,"Manager"," Actuarial Financial Reporting"]
["",0,null,"University of Manitoba学生"]
["Finance and Minoring in Marketing"," Finance and Minoring in Marketing",null,"Majoring in Actuarial Mathematics"," Finance and Minoring in Marketing"]
["the University of Manitoba","the University of Manitoba","the University of Manitoba","Student"]
["",0,null,"Actuarial Analyst - New York Life Insurance Company"]
["BMO Bank of Montreal","BMO Bank of Montreal","BMO Bank of Montreal","Actuarial Associate"]
["University of Manitoba","University of Manitoba","University of Manitoba","Student"]
["University of Manitoba","University of Manitoba","University of Manitoba","Student"]
["",0,null,"Actuarial Analyst"]
["Cigna","Cigna","Cigna","Senior Actuarial Analyst"]
["New York Life Insurance Company","New York Life Insurance Company","New York Life Insurance Company","Actuarial Associate"]
["",0,null,"Actuarial Graduate - Asper School of Business"]
["University of Manitoba","University of Manitoba","University of Manitoba","Actuarial Student"]
["Aviva Canada","Aviva Canada","Aviva Canada","Actuarial Analyst"]
["",0,null,"Actuarial Analyst"]
["",0,null,"Actuarial Science Student (BSc) Hons"]
["DRC Actuarial Services","DRC Actuarial Services","DRC Actuarial Services","Actuarial Consultant"]
["OSFI","OSFI","OSFI","Senior Actuarial Officer"]
["New York Life | Dancer/Choreographer","New York Life | Dancer/Choreographer","New York Life | Dancer/Choreographer","Actuarial Associate"]
["Financial Services Commission of Ontario","Financial Services Commission of Ontario","Financial Services Commission of Ontario","Actuarial Associate"]
["Morneau Shepell","Morneau Shepell","Morneau Shepell","Senior Actuarial Analyst"]
["John Hancock","John Hancock","John Hancock","Sr. Actuarial Assistant"]
["University of Manitoba","University of Manitoba","University of Manitoba","Student"]
["Manitoba Public Insurance","Manitoba Public Insurance","Manitoba Public Insurance","Chief Actuary"]
["the University of Manitoba","the University of Manitoba","the University of Manitoba","Student"]
["Canada Life Assurance Company (Barbados Branch)","Canada Life Assurance Company (Barbados Branch)","Canada Life Assurance Company (Barbados Branch)","Actuarial Associate"]
["New York Life Insurance Company","New York Life Insurance Company","New York Life Insurance Company","Actuarial Associate"]
["PBI Actuarial Consultants","PBI Actuarial Consultants","PBI Actuarial Consultants","Investment Consultant"]
["",0,null,"Actuarial Science Student"]
["",0,null,"Retirement Consulting Associate - Aon Hewitt"]
["John Hancock Financial Services","John Hancock Financial Services","John Hancock Financial Services","Actuarial Associate"]
["",0,null,"Senior Actuarial Analyst"]
["Manitoba Bureau of Statistics","Manitoba Bureau of Statistics","Manitoba Bureau of Statistics","Labour Market and Survey Statistician"]
["",0,null,"Actuarial Mathematics Student"]
["",0,null,"Commodity Logistics Coordinator"]
["PBI Actuarial Consultants Ltd.","PBI Actuarial Consultants Ltd.","PBI Actuarial Consultants Ltd.","Consultant"," Group and Health Care"]
["",0,null,"Double honours graduate in Actuarial Math and Statistics"]
["Sun Life Financial","Sun Life Financial","Sun Life Financial","Assistant Actuary"," Group Benefits"]
["Western University","Western University","Western University","Coordinator"," Occupancy and Data Management"]
["",0,null,"Actuarial and Investment Consultant for Coughlin & Associates Ltd."]
["Carleton University","Carleton University","Carleton University","Human Resources"]
["Manulife Financial","Manulife Financial","Manulife Financial","Actuary"]
["",0,null,"Actuarial & Financial Analyst"]
["",{"$f":"IF(C194=\"\",E194,C194)","v":0},null,"Actuarial Mathematics and Finance student"]
["",0,null,"Actuarial Consultant"]
["Actuarial System Transformation, Manulife Financial","Actuarial System Transformation, Manulife Financial","Actuarial System Transformation, Manulife Financial","Development Manager and Senior Business Consultant"]
["Government of Manitoba","Government of Manitoba","Government of Manitoba","Business Immigration Officer"]
["Deloitte","Deloitte","Deloitte","Actuarial Manager"]
["",0,null,"Actuarial and Quantitative Finance"]
["Credit Union Central of Manitoba","Credit Union Central of Manitoba","Credit Union Central of Manitoba","Director"," Treasury Risk and Compliance"]
["MTS (Manitoba Telecom Services)","MTS (Manitoba Telecom Services)","MTS (Manitoba Telecom Services)","Director Treasury/Pensions"]
["",0,null,"Manager Group Planning & Risk"]
["",0,null,"Statistics MSc. Student"]
["Great-West Life","Great-West Life","Great-West Life","Actuarial Intern"]
["",0,null,"Insurance Professional"]
["Insurance Solutions The Wawanesa Mutual Insurance Company"," Insurance Solutions The Wawanesa Mutual Insurance Company",null,"Vice President"," Insurance Solutions The Wawanesa Mutual Insurance Company"]
["Worden Zaluski Consulting Actuaries","Worden Zaluski Consulting Actuaries","Worden Zaluski Consulting Actuaries","Consulting Actuary"]
["Great Eastern Life","Great Eastern Life","Great Eastern Life","Actuarial Intern"]
["New York Life Insurance Company","New York Life Insurance Company","New York Life Insurance Company","Actuarial Associate"]
["ISO (Verisk Analytics)","ISO (Verisk Analytics)","ISO (Verisk Analytics)","Actuarial Analyst"]
["RBC Dominion Securities","RBC Dominion Securities","RBC Dominion Securities","Student"]
["Great-West Life","Great-West Life","Great-West Life","AVP"," Group Business Technology Operations"]
["",0,null,"Actuarial Science Visiting PhD Student"]
["",0,null,"Actuarial Associate - ASA/ACIA"]
["Ernst & Young Hua Ming LLp","Ernst & Young Hua Ming LLp","Ernst & Young Hua Ming LLp","Intern"]
["",0,null,"Actuarial Mathematics Student"]
["Pacific Life","Pacific Life","Pacific Life","Actuarial Life Modeling"]
["Province of Manitoba, Treasury Division","Province of Manitoba, Treasury Division","Province of Manitoba, Treasury Division","Manager"," Risk Strategy & Innovation"]
["Birchwood Automotive Group","Birchwood Automotive Group","Birchwood Automotive Group","Special Projects Manager"]
["the Birchwood Automotive Group","the Birchwood Automotive Group","the Birchwood Automotive Group","Special Projects Manager"]
["",0,null,"Value Investor | Financial Services"]
["GWL Investment Management (GWLIM)","GWL Investment Management (GWLIM)","GWL Investment Management (GWLIM)","Analyst"," Equities"]
["Sun Life Financial","Sun Life Financial","Sun Life Financial","Associate Director"]
["Winnipeg Regional Health Authority","Winnipeg Regional Health Authority","Winnipeg Regional Health Authority","Senior Analyst"," Costing & Risk Analysis"]
["Wawanesa Life Insurance Company","Wawanesa Life Insurance Company","Wawanesa Life Insurance Company","Director"," Group Operations"]
["Manulife","Manulife","Manulife","Actuary"]
["Great-West Life","Great-West Life","Great-West Life","AVP"," Group Expense Management & Analysis"]
["Great-West Life","Great-West Life","Great-West Life","Director"]
["Asia Pacific University","Asia Pacific University","Asia Pacific University","Lecturer & Programme Leader"]
["Deloitte Canada","Deloitte Canada","Deloitte Canada","Business Analyst"," Management Consulting"]
["",0,null,"Actuarial Student"]
["",0,null,"Exploring career and business opportunities"]
["Great-West Life","Great-West Life","Great-West Life","Director"," Group Marketing Planning and Field Support"]
["Eckler Ltd.","Eckler Ltd.","Eckler Ltd.","Consulting actuary"]
["",0,null,"I.H. Asper School of Business: Accounting and International Business"]
["Arnold Tutoring"," Arnold Tutoring",null,"Owner and CEO"," Arnold Tutoring"]
["University of Manitoba","University of Manitoba","University of Manitoba","Student"]
["",0,null,"Actuarial Student"]
["",0,null,"at"]
["Real Estate & Mortgages"," Real Estate & Mortgages",null,"Analyst"," Real Estate & Mortgages"," Greystone Managed Investments"]
["Sunlife Financial","Sunlife Financial","Sunlife Financial","Actuary"]
["OptumInsight","OptumInsight","OptumInsight","Vice President"," Actuarial Consulting"]
["NYU Stern School of Business","NYU Stern School of Business","NYU Stern School of Business","Professor of Statistics and Actuarial Science"]
["MNP LLP","MNP LLP","MNP LLP","Manager"]
["Asper School of Business","Asper School of Business","Asper School of Business","Student"]
["Reinsurance Group of America, Incorporated","Reinsurance Group of America, Incorporated","Reinsurance Group of America, Incorporated","Pricing Actuary"," International Division"]
["Princess Auto Ltd.","Princess Auto Ltd.","Princess Auto Ltd.","Senior Leader"," Sales and Operations Planning"]
["",0,null,"Director of Corporate Development"]
["",0,null,"actuarial consultant"]
["",0,null,"学生 - University of Manitoba"]
["Actuarial and Family Retakaful"," Actuarial and Family Retakaful",null,"AGM"," Actuarial and Family Retakaful"]
["NuCosmetique","NuCosmetique","NuCosmetique","Business Owner/Manager"]
["",0,null,"Modelling Actuary"]
["Manulife Financial","Manulife Financial","Manulife Financial","Actuary"," Capital Management"]
["Arctic Glacier Premium Ice","Arctic Glacier Premium Ice","Arctic Glacier Premium Ice","Junior Analyst"]
["",0,null,"Actuarial analyst"]
["",0,null,"New Graduate from the Asper School of Business"]
["Wawanesa Insurance",{"$f":"IF(C258=\"\",E258,C258)","v":" Wawanesa Insurance"},null,"Business Transformation Specialist"," Wawanesa Insurance"]
["",0,null,"Actuarial mathematics student."]
["Fillmore Riley LLP","Fillmore Riley LLP","Fillmore Riley LLP","Articling Student"]
["Sun Life Financial","Sun Life Financial","Sun Life Financial","Director"," Pricing"," Defined Benefit Solutions"]
["International College Manitoba","International College Manitoba","International College Manitoba","Adjunct Instructor"]
["Prudential Corporation Asia"," Prudential Corporation Asia",null,"Actuarial Audit Manager"," Prudential Corporation Asia"]
["",0,null,"Actuarial Grad"]
["",0,null,"Attended University of Manitoba"]
["",0,null,"PeopleSoft Analyst"]
["DB Solutions"," DB Solutions",null,"Senior Managing Director"," DB Solutions"]
["Swiss Re","Swiss Re","Swiss Re","VP - Life and Annuity Operations - Actuarial"]
["University of Manitoba.","University of Manitoba.","University of Manitoba.","Student"]
["FCIA"," FCIA",null,"FCAS"," FCIA"," MAAA"]
["IBM","IBM","IBM","Quantitative Finance Professional"]
["Mirage Consulting Ltd."," Mirage Consulting Ltd.",null,"Owner"," Mirage Consulting Ltd."]
["the Asper School of Business","the Asper School of Business","the Asper School of Business","Student"]
["Great-West Life","Great-West Life","Great-West Life","Vice President"," Group Marketing"]
["Non-Par Universal Life Valuation"," Non-Par Universal Life Valuation",null,"Director"," Non-Par Universal Life Valuation"]
["",0,null,"ASA"]
["RBC Insurance","RBC Insurance","RBC Insurance","Senior Director"," Financial Actuary & Risk Management"]
["PepsiCo","PepsiCo","PepsiCo","Compensation Manager"," North America Total Rewards"]
["",0,null,"Global Equity Analyst - AGF Management Limited"]
["Great Eastern Life","Great Eastern Life","Great Eastern Life","Actuarial Officer"]
["",0,null,"Research Assistant"]
["Reinsurance Group of America, Incorporated","Reinsurance Group of America, Incorporated","Reinsurance Group of America, Incorporated","Head of Global Life and Longevity Products"]
["me a challenge... I throw back a result! Hard working student looking to fulfill his dreams!","me a challenge... I throw back a result! Hard working student looking to fulfill his dreams!","me a challenge... I throw back a result! Hard working student looking to fulfill his dreams!","Throw"]
["Odyssey Re","Odyssey Re","Odyssey Re","Underwriter - China Market"]
["Manulife Financial","Manulife Financial","Manulife Financial","Actuary"]
["Stoke Strength and Conditioning","Stoke Strength and Conditioning","Stoke Strength and Conditioning","Owner and Trainer"]
["Mercer","Mercer","Mercer","Principal"]
["Asper MISA (Management Information Systems Association)","Asper MISA (Management Information Systems Association)","Asper MISA (Management Information Systems Association)","Director of Communications"]
["InterGroup Consultants Ltd.","InterGroup Consultants Ltd.","InterGroup Consultants Ltd.","Research Consultant"]
["Willis Towers Watson","Willis Towers Watson","Willis Towers Watson","Senior Consultant"]
["CIBC","CIBC","CIBC","Associate"," Commercial Banking"]
["Canada Revenue Agency - Agence du revenu du Canada","Canada Revenue Agency - Agence du revenu du Canada","Canada Revenue Agency - Agence du revenu du Canada","Income Tax Auditor"]
["",0,null,"Student"]
["Willis Towers Watson","Willis Towers Watson","Willis Towers Watson","Consultant"]
["Parrish & Heimbecker","Parrish & Heimbecker","Parrish & Heimbecker","Product Line Manager"," Seed and Crop Protection"]
["Great-West Life","Great-West Life","Great-West Life","Director"," Capital Management"]
["Swiss Re","Swiss Re","Swiss Re","Assistant Vice President"]
["London Drugs Action Committee","London Drugs Action Committee","London Drugs Action Committee","Treasurer"]
["",0,null,"BComm (Hons) Candidate"]
["Willis Towers Watson","Willis Towers Watson","Willis Towers Watson","Senior Consultant"]
["Fireseeds North Infrastructure","Fireseeds North Infrastructure","Fireseeds North Infrastructure","Predictive Analyst"]
["Manulife","Manulife","Manulife","AVP"," Industry and Regulatory Affairs"]
["",0,null,"Group Planning and Risk"]
["Manulife","Manulife","Manulife","Actuary/Director"]
["U of M"," U of M",null,"Actuary Student"," U of M"]
["Northbridge Financial Corporation","Northbridge Financial Corporation","Northbridge Financial Corporation","Director"," Commercial Lines Pricing and Analytics"]
["Mercer","Mercer","Mercer","Principal"]
["Sarbit Advisory Services Inc","Sarbit Advisory Services Inc","Sarbit Advisory Services Inc","Equity Analyst"]
["Investors Group","Investors Group","Investors Group","Vice-President of Corporate Research"]
["ATCO Group","ATCO Group","ATCO Group","Vice President"," Human Resources"]
["",0,null,"N/A"]
["Great-West Life","Great-West Life","Great-West Life","Project Management Assistant"]
["",0,null,"Consulting Actuary"]
["",0,null,"Actuary specializing in processes and controls"]
["Coughlin & Associates","Coughlin & Associates","Coughlin & Associates","Pension Administrator"]
["Great-West Life","Great-West Life","Great-West Life","ALM Senior Analyst"]
["Willis Towers Watson","Willis Towers Watson","Willis Towers Watson","Senior Consultant"]
["Willis Towers Watson","Willis Towers Watson","Willis Towers Watson","Health and Benefits Practice Leader Calgary"]
["Great-West Life","Great-West Life","Great-West Life","Director"," Budgeting and Planning"]
["We Are Patio","We Are Patio","We Are Patio","Digital Communications Associate"]
["families and business owners"," families and business owners",null,"Building and protection of financial security for individuals"," families and business owners"]
["",{"$f":"IF(C322=\"\",E322,C322)","v":0},null,"at Great-West Life"]
["Wills Towers Watson","Wills Towers Watson","Wills Towers Watson","Senior Consultant"]
["Great-West Life","Great-West Life","Great-West Life","VP"," Group Major Accounts"]
["Phoenix Soccer Association","Phoenix Soccer Association","Phoenix Soccer Association","Referee Assignor"]
["Kitchen Craft","Kitchen Craft","Kitchen Craft","Financial Analyst"]
["Eckler Ltd.","Eckler Ltd.","Eckler Ltd.","Actuary"]
["Great-West Life","Great-West Life","Great-West Life","Director"," Individual Insurance Valuation"]
["Client Services"," Client Services",null,"Supervisor"," Client Services"," Chamber Group Insurance Plan (Johnston Group Inc.)"]
["Federated Insurance Company of Canada","Federated Insurance Company of Canada","Federated Insurance Company of Canada","Director"," Finance"]
["Enbridge","Enbridge","Enbridge","System Analytics Analyst"]
["Great-West Life","Great-West Life","Great-West Life","AVP Group Pricing"]
["Great-West Life","Great-West Life","Great-West Life","SVP"," New Business and Claims"," Individual Insurance"]
["Belton Boisselle Benefits & Pensions","Belton Boisselle Benefits & Pensions","Belton Boisselle Benefits & Pensions","President"," Group Benefits & Pensions"]
["",0,null,"Independent Management Consulting Professional"]
["RBC","RBC","RBC","Branch Manager"]
["",0,null,"Étudiant(e) (University of Ghana)"]
["BFP | Bajus Financial Partners Ltd.","BFP | Bajus Financial Partners Ltd.","BFP | Bajus Financial Partners Ltd.","Senior Associate"]
["Manulife Financial","Manulife Financial","Manulife Financial","VP"," Reinsurance"," Group Office"]
["Gordon Clarke","Gordon Clarke","Gordon Clarke","HR Professional"]
["IDC Worldsource Insurance Network","IDC Worldsource Insurance Network","IDC Worldsource Insurance Network","Vice President"]
["",0,null,"Consulting Pension Actuary (retired)"]
["",0,null,"Regulator"]
["",0,null,"Qtrade Advisor | Securities Specialist"]
["Great-West Life","Great-West Life","Great-West Life","Regional Director"," Group Benefits"]
["Canada ICI Capital Corporation","Canada ICI Capital Corporation","Canada ICI Capital Corporation","Analyst"]
["Arctic Glacier Premium Ice","Arctic Glacier Premium Ice","Arctic Glacier Premium Ice","Accounts Receivable and Payable Associate"]
["Wawanesa Insurance","Wawanesa Insurance","Wawanesa Insurance","Manager"," Product Innovation"]
["",0,null,"Financial Planning Administrator"]
["",0,null,"Founding Partner"]
["Enterprise Risk Management"," Enterprise Risk Management",null,"Vice President"," Enterprise Risk Management"]
["Home Pricing - The Co-operators"," Home Pricing - The Co-operators",null,"Director"," Home Pricing - The Co-operators"]
["",0,null,"Enjoying Retirement"]
["Ellement Consulting Group"," Ellement Consulting Group",null,"Consultant"," Ellement Consulting Group"]
["Financial Model Development"," Financial Model Development",null,"Senior Manager"," Financial Model Development"]
["Hannover Re (Ireland) DAC Canadian Life Branch","Hannover Re (Ireland) DAC Canadian Life Branch","Hannover Re (Ireland) DAC Canadian Life Branch","General Manager"]
["BroadGrain Commodities Inc.","BroadGrain Commodities Inc.","BroadGrain Commodities Inc.","Risk Manager"]
["Mercer","Mercer","Mercer","Actuary"]
["Office of the Superintendent of Financial Institutions of Canada","Office of the Superintendent of Financial Institutions of Canada","Office of the Superintendent of Financial Institutions of Canada","Capital Specialist"]
["",0,null,"Financial Planner - RBC"]
["Xerox","Xerox","Xerox","Senior Analyst"]
["Farm Credit Canada / Financement agricole Canada","Farm Credit Canada / Financement agricole Canada","Farm Credit Canada / Financement agricole Canada","Manager"," Data Services"]
["GWL","GWL","GWL","Senior Capital Management Analyst"]
["Buhler Versatile","Buhler Versatile","Buhler Versatile","Technical Writer"]
["Schulich School of Business","Schulich School of Business","Schulich School of Business","MBA & Graduate Diploma"," Financial Engineering candidate"]
["",0,null,"Actuary"]
["Shaw Communications","Shaw Communications","Shaw Communications","Business Analyst"]
["",0,null,"Software Developer - UX Design - Java - Python - C"]
["",0,null,"Business Program Management | Enterprise PMO Executive"]
["Wawanesa Insurance","Wawanesa Insurance","Wawanesa Insurance","Manager"," Business Transformation - Distribution"]
["Commercial Banking"," Commercial Banking",null,"Manager"," Commercial Banking"]
["Mercer","Mercer","Mercer","Principal"]
["Sun Life Financial","Sun Life Financial","Sun Life Financial","Director"," NAVA US Reporting & Analytics"]
["The North West Company","The North West Company","The North West Company","Sales Analyst"]
["Great-West Life","Great-West Life","Great-West Life","VP"," Investment Counselling"," Institutional Investment Solutions"]
["Digital"," Digital",null,"Associate Vice President"," Digital"]
["",0,null,"Credit/Risk/Lending Leader - Seizes Opportunities/Makes Sound Decisions"]
["",0,null,"Finance Professional"]
["RBC","RBC","RBC","Client Advisor"]
["Manulife","Manulife","Manulife","Actuary"]
["",0,null,"BComm (Hons) graduate"]
["",0,null,"Administrative Professional"]
["",0,null,"Retired"]
["",0,null,"--"]
["Morneau Shepell","Morneau Shepell","Morneau Shepell","Consultant"]
["Hootsuite",{"$f":"IF(C386=\"\",E386,C386)","v":"Hootsuite"},"Hootsuite","Senior Director"," Global Business Insights & Analytics"]
["",0,null,"Experienced Transportation Entrepreneur and Executive"]
["",0,null,"_"]
["Silver Lining Immigration Inc.","Silver Lining Immigration Inc.","Silver Lining Immigration Inc.","Immigration Consultant"]
["Pension Administration Centre of Excellence"," Pension Administration Centre of Excellence",null,"Mercer - Senior Associate"," Pension Administration Centre of Excellence"]
["",0,null,"Sessional Instructor / Master Student"]
["Sauder School of Business","Sauder School of Business","Sauder School of Business","Student"]
["TRG Group Benefits and Pensions Inc."," TRG Group Benefits and Pensions Inc.",null,"Benefits Consultant"," TRG Group Benefits and Pensions Inc."]
["Manulife Financial Reinsurance Finance","Manulife Financial Reinsurance Finance","Manulife Financial Reinsurance Finance","Associate Actuary"]
["Mercer","Mercer","Mercer","Pension Administrator"]
["Breather","Breather","Breather","CTO"]
["Investors Group Financial Services Inc.","Investors Group Financial Services Inc.","Investors Group Financial Services Inc.","Vice President"," Pension"," Benefits & Payroll"]
["",0,null,"--"]
["Swiss Re","Swiss Re","Swiss Re","Assistant Vice President & Actuary"]
["Agrium","Agrium","Agrium","Manager Compensation and Benefits"]
["TransCanada","TransCanada","TransCanada","Manager"," Pension & Benefits"]
["IC Specialty Brokers LP","IC Specialty Brokers LP","IC Specialty Brokers LP","Director of Underwriting"]
["RBC","RBC","RBC","Branch Manager"]
["Aon Hewitt","Aon Hewitt","Aon Hewitt","Senior Consultant"]
["Aon Hewitt","Aon Hewitt","Aon Hewitt","Senior Analyst"]
["Shopify Plus","Shopify Plus","Shopify Plus","Enabling Entrepreneurship"]
["GroupHEALTH","GroupHEALTH","GroupHEALTH","Underwriting Manager"]
["Scotiabank","Scotiabank","Scotiabank","Financial Advisor"]
["",0,null,"Data Scientist working in Market Research Consulting"]
["MasterBrand Cabinets","MasterBrand Cabinets","MasterBrand Cabinets","Continuous Improvement Specialist"]
["",0,null,"Insurance Professional"]
["Shaw Communications","Shaw Communications","Shaw Communications","Director"," HR Total Rewards"]
["",0,null,"Manager - Informatics and Process Improvement - WRHA Emergency Program"]
["Investors Group","Investors Group","Investors Group","Executive Vice-President"," Products and Financial Planning"]
["Cross Canada Financial Inc.","Cross Canada Financial Inc.","Cross Canada Financial Inc.","Senior Risk Analyst"]
["Scotiabank","Scotiabank","Scotiabank","Manager"," Portfolio Analytics"]
["",0,null,"Retired Actuary with HR consulting and insurance executive experience"]
["",0,null,"Bachelor of Commerce - Honours"]
["Monsanto Company","Monsanto Company","Monsanto Company","Program Operations Analyst"]
["",0,null,"Electrical Engineering Technologist"]
["Scotiabank","Scotiabank","Scotiabank","Home Financing Advisor"]
["Randall Plumbing & Heating Limited","Randall Plumbing & Heating Limited","Randall Plumbing & Heating Limited","President"]
["SBM Bank","SBM Bank","SBM Bank","Supervisor"]
["PZM Financial","PZM Financial","PZM Financial","Broker"]
["",0,null,"Financial Security Advisor"]
["",0,null,"Retired"]
["the Asper School of Business","the Asper School of Business","the Asper School of Business","Co-op Student"]
["FSA"," FSA",null,"GGY"," FSA"]
["",0,null,"Education Management Professional"]
["Sun Life Financial","Sun Life Financial","Sun Life Financial","AVP"]
["",0,null,"Information & Data Integrity Analyst"]
["Great-West Life Assurance Company","Great-West Life Assurance Company","Great-West Life Assurance Company","Manager"," Internal Audit"]
["Ontario Teachers Insurance Plan","Ontario Teachers Insurance Plan","Ontario Teachers Insurance Plan","President"," Group Insurance Services"]
["",0,null,"Driven to improve healthcare"]
["Educators Financial Group Inc.","Educators Financial Group Inc.","Educators Financial Group Inc.","President & CEO"]
["Kenora Chiefs Advisory","Kenora Chiefs Advisory","Kenora Chiefs Advisory","Data Management"," Privacy"," and Quality Assurance Administrator"]
["Wawanesa Insurance","Wawanesa Insurance","Wawanesa Insurance","Vice President"," Infrastructure and Governance"]
["Sun Life Financial","Sun Life Financial","Sun Life Financial","VP"," Global Pension & Benefits"]
["Cenovus Energy","Cenovus Energy","Cenovus Energy","Associate General Counsel & Assistant Corporate Secretary"]
["Knight Archer Commercial Insurance"," Knight Archer Commercial Insurance",null,"President"," Knight Archer Commercial Insurance"]
["",0,null,"Actuary"]
["KPMG Corporate Finance LLC","KPMG Corporate Finance LLC","KPMG Corporate Finance LLC","Analyst"]
["DMT Development Systems Group Inc.","DMT Development Systems Group Inc.","DMT Development Systems Group Inc.","AVP"," Information Technology"]
["Mercer (Canada) Limited"," Mercer (Canada) Limited",null,"Partner"," Mercer (Canada) Limited"]
["",0,null,"Student Asper School of Business--"]
["Cangene Corporation","Cangene Corporation","Cangene Corporation","Senior Auditor"]
["",0,null,"ASA"]
["Ascenda Financial Consultants","Ascenda Financial Consultants","Ascenda Financial Consultants","Partner"]
["Ceridian","Ceridian","Ceridian","Product Manager"]
["Wawanesa Insurance",{"$f":"IF(C450=\"\",E450,C450)","v":"Wawanesa Insurance"},"Wawanesa Insurance","Vice President and Chief Actuary"]
["",0,null,"Financial Risk Manager"]
["",0,null,"Retired Actuary"]
["",0,null,"Financial Services Consultant and Contractor"]
["",0,null,"Independent Investment Management Professional"]
["SCAN Health Plan","SCAN Health Plan","SCAN Health Plan","Corporate VP & Actuary"]
["",0,null,"--"]
["Altus Group","Altus Group","Altus Group","Commercial Real Estate Appraiser"]
["",0,null,"Senior Risk Management Professional"]
["ATB financial","ATB financial","ATB financial","Senior Customer Analyst"]
["Local Authorities Pension Plan","Local Authorities Pension Plan","Local Authorities Pension Plan","VP"," Pension Policy and Funding"]
["Great-West Life","Great-West Life","Great-West Life","Client and Field Support Senior Analyst- Group Division"]
["Great-West Life","Great-West Life","Great-West Life","Director"," Group Benefits"]
["Connor, Clark & Lunn Financial Group","Connor, Clark & Lunn Financial Group","Connor, Clark & Lunn Financial Group","Head of Investment Analytics"]
["",0,null,"Salesforce is hard. I make it less hard."]
["",0,null,"FRTB Specialist"]
["Arnold J. Shell Financial Services"," Arnold J. Shell Financial Services",null,"President"," Arnold J. Shell Financial Services"]
["Great-West Life","Great-West Life","Great-West Life","Regional Vice President"]
["Scotiabank International","Scotiabank International","Scotiabank International","Senior Manager"]
["Planning & Analysis"," Planning & Analysis",null,"Financial Modeling"," Planning & Analysis"," M&A including Valuations and Due Diligence"]
["Lawton Partners","Lawton Partners","Lawton Partners","Financial Advisor/Consulting Actuary"]
["Shaw Communications","Shaw Communications","Shaw Communications","Optical Systems Engineer"]
["",0,null,"Financial Services Professional"]
["Department of Finance - Province of Nova Scotia","Department of Finance - Province of Nova Scotia","Department of Finance - Province of Nova Scotia","Manager"," Financial Services"]
["Smith Pension & Actuarial Consultants Inc.","Smith Pension & Actuarial Consultants Inc.","Smith Pension & Actuarial Consultants Inc.","Partner"]
["Edo Japan","Edo Japan","Edo Japan","Franchise Owner"]
["",0,null,"Retail Associate"]
["ClaimsPro Inc.","ClaimsPro Inc.","ClaimsPro Inc.","Loss Adjuster"]
["",0,null,"Contracts Manager"]
["Yoga from the Heart Canada","Yoga from the Heart Canada","Yoga from the Heart Canada","Director and Yoga teacher"]
["",0,null,"Buyer"]
["Sun Life Financial","Sun Life Financial","Sun Life Financial","Director"," Business Development"]
["",0,null,"Risk Management Consultant"]
["SGI Canada","SGI Canada","SGI Canada","Director"," Corporate Analytics"]
["RGA International Reinsurance Company dac","RGA International Reinsurance Company dac","RGA International Reinsurance Company dac","Chief Risk Offficer"]
["",0,null,"--"]
["",0,null,"Project Manager"]
["",0,null,"--"]
["Aaron Consulting Inc.","Aaron Consulting Inc.","Aaron Consulting Inc.","Managing Director"]
["Great-West Life","Great-West Life","Great-West Life","Sales Analyst"]
["",0,null,"Banking Professional"]
["Deloitte Canada","Deloitte Canada","Deloitte Canada","Partner"]
["",0,null,"Transportation Executive"]
["Asper School of Business Actuarial Mathematics","Asper School of Business Actuarial Mathematics","Asper School of Business Actuarial Mathematics","Student"]
["Eckler Ltd.","Eckler Ltd.","Eckler Ltd.","Retired Principal"]
["Canada/Asia"," Canada/Asia",null,"Regional CFO"," Canada/Asia"]
["Mortgage Alliance Performa Mortgage Inc. , Financial Consultant -- Hunt & Associates","Mortgage Alliance Performa Mortgage Inc. , Financial Consultant -- Hunt & Associates","Mortgage Alliance Performa Mortgage Inc. , Financial Consultant -- Hunt & Associates","President and Principal Broker"]
["Morneau Shepell","Morneau Shepell","Morneau Shepell","Consultant"]
["FIS","FIS","FIS","VP - Solutions Manager"," US Risk"]
["Investors Group","Investors Group","Investors Group","Senior Reporting Analyst"]
["Deloitte Canada","Deloitte Canada","Deloitte Canada","Partner and Lead"," Human Capital"]
["",0,null,"Project Manager │ Marketing │ Creative Services | Management"]
["",0,null,"Canadian Cancer Society Regional Representative"]
["",0,null,"Pharmaceuticals Professional"]
["BMO Financial Group","BMO Financial Group","BMO Financial Group","Associate"]
["Canadian Wheat Board Retirees Employee Life and Health Trust","Canadian Wheat Board Retirees Employee Life and Health Trust","Canadian Wheat Board Retirees Employee Life and Health Trust","Member of the Board of Trustees"]
["",0,null,"--"]
["Red River College","Red River College","Red River College","Student"]
["RBC","RBC","RBC","VP"," Pensions and Benefits"]
["Assante Financial Management Ltd.","Assante Financial Management Ltd.","Assante Financial Management Ltd.","Senior Associate"]
["Donaldson Vincent Associates Limited","Donaldson Vincent Associates Limited","Donaldson Vincent Associates Limited","Actuary / Consultant"]
["Eckler Ltd.","Eckler Ltd.","Eckler Ltd.","Actuary/Principal"]
["",0,null,"Chief Investments Officer"]
["CaseWare International Inc.","CaseWare International Inc.","CaseWare International Inc.","Quality Assurance Analyst - Content"]
["",{"$f":"IF(C514=\"\",E514,C514)","v":0},null,"--"]
["Office of the Superintendent of Financial Institutions of Canada","Office of the Superintendent of Financial Institutions of Canada","Office of the Superintendent of Financial Institutions of Canada","Director"," Senior Actuary"]
["Statistics Canada","Statistics Canada","Statistics Canada","Methodologist"]
["",0,null,"--"]
["Monitoring"," Monitoring",null,"Manager"," Monitoring"]
["Baseball Canada","Baseball Canada","Baseball Canada","Level III Umpire"]
["",0,null,"Student"]
["Pason Systems","Pason Systems","Pason Systems","Senior SW Developer"]
["Statistics and Economics"," Statistics and Economics",null,"Applied Mathematics"," Statistics and Economics"]
["",0,null,"corporate actuary"]
["",0,null,"Independent Investment Management Professional"]
["",0,null,"Higher Education Professional"]
["Moody's GGY AXIS","Moody's GGY AXIS","Moody's GGY AXIS","FSA"]
["Group Health Global Benefit Solutions","Group Health Global Benefit Solutions","Group Health Global Benefit Solutions","President"]
["Willis Towers Watson (Retired)","Willis Towers Watson (Retired)","Willis Towers Watson (Retired)","Senior Consultant"]
["",0,null,"Statisticien spécialisé en immobilier"]
["Guest Consulting"," Guest Consulting",null,"Owner"," Guest Consulting"]
["JCL Management Consulting","JCL Management Consulting","JCL Management Consulting","Managing Director"]
["Merit Contractors Association","Merit Contractors Association","Merit Contractors Association","Membership Development Representative"]
["",0,null,"GGY AXIS Inc"]
["Career Development Centre Asper School of Business","Career Development Centre Asper School of Business","Career Development Centre Asper School of Business","Career Advisor"]
["Security Benefit","Security Benefit","Security Benefit","2nd VP & Corporate Actuary"]
["Atelier Capital Partners Inc.","Atelier Capital Partners Inc.","Atelier Capital Partners Inc.","Financial Manager"]
["Sun Life Financial","Sun Life Financial","Sun Life Financial","AVP Finance"," Risk & Controls"]
["",0,null,"Advanced Healthcare Analytics Executive"]
["Access Credit Union","Access Credit Union","Access Credit Union","Member service representative"]
["Diana Ginpil Consulting"," Diana Ginpil Consulting",null,"PrincipaL"," Diana Ginpil Consulting"]
["Genesis Financial Development, Inc.","Genesis Financial Development, Inc.","Genesis Financial Development, Inc.","Actuary"]
["Transamerica","Transamerica","Transamerica","Director"," LTC Margin Analytics"]
["Blue Cross Blue Shield of North Carolina","Blue Cross Blue Shield of North Carolina","Blue Cross Blue Shield of North Carolina","Senior Vice President"," Chief Operating Officer"]
["MetLife","MetLife","MetLife","AVP Quantatative Analysis"," Enterprise Risk Management"]
["KR Consulting","KR Consulting","KR Consulting","Associate Actuary"]
["Reynolds, Thorvardson, Ltd","Reynolds, Thorvardson, Ltd","Reynolds, Thorvardson, Ltd","President"]
["Mercer","Mercer","Mercer","Senior Associate"]
["Emerge.me","Emerge.me","Emerge.me","Actuary Team Lead"]
["New York Life Insurance Company","New York Life Insurance Company","New York Life Insurance Company","Vice President"]
["Conning","Conning","Conning","Director"," Risk & Capital Management Solutions"]
["Willis Towers Watson","Willis Towers Watson","Willis Towers Watson","Retirement Systems Consultant"," EA"]
["EY","EY","EY","Senior Consultant"]
["",0,null,"--"]
["RGA","RGA","RGA","Actuary"]
["",0,null,"--"]
["",0,null,"--"]
["Actuaries Northwest"," Actuaries Northwest",null,"Owner"," Actuaries Northwest"," LLC"]
["MetLife","MetLife","MetLife","Executive Vice President"," Global Risk Management"]
["",0,null,"Actuary"]
["",0,null,"--"]
["Willis Towers Watson","Willis Towers Watson","Willis Towers Watson","Consulting Actuary"]
["",0,null,"Executive Manager > Senior Actuary > Empowering Leader > Cultivate High Performance Teams"]
["",0,null,"Life Insurance Consultant"]
["insurance and reinsurance"," insurance and reinsurance",null,"experienced actuary"," insurance and reinsurance"," business & product development"," risk managment"]
["Canada Life / Great-West Life / London Life","Canada Life / Great-West Life / London Life","Canada Life / Great-West Life / London Life","Senior Vice-President"," Insurance Solutions"]
["",0,null,"VBA developper chez SAIL Plein Air / SAIL Outdoors"]
["",0,null,"Experienced Financial Services Professional"]
["",0,null,"PPP Consultant"]
["BMO Life Assurance","BMO Life Assurance","BMO Life Assurance","Claims Administrator"]
["",0,null,"Passionate New York Life Agent helping to protect families in Irvine California"]
["",0,null,"Head of Enterprise Risk Management"]
["Personal Lines"," Personal Lines",null,"General Manager"," Personal Lines"]
["Product & Business Development"," Product & Business Development",null,"Senior Vice-President"," Product & Business Development"]
["QBE European Operations","QBE European Operations","QBE European Operations","Head of Reserving"]
["Ageas Insurance Company (Asia) Limited","Ageas Insurance Company (Asia) Limited","Ageas Insurance Company (Asia) Limited","VP & AA"]
["Constitution Group","Constitution Group","Constitution Group","Director of Product Management"]
["Euroclear","Euroclear","Euroclear","HR Business Partner"]
["Banque des Mascareignes Ltee (BPCE Group)",{"$f":"IF(C578=\"\",E578,C578)","v":"Banque des Mascareignes Ltee (BPCE Group)"},"Banque des Mascareignes Ltee (BPCE Group)","Head - International Banking"]
["",0,null,"HSBC Product Implementation"]
["Canada Life","Canada Life","Canada Life","Executive Vice President and CEO"," UK Division"]
["Willis Towers Watson","Willis Towers Watson","Willis Towers Watson","Senior Consulting Actuary"]
["TigerRisk Partners","TigerRisk Partners","TigerRisk Partners","Actuary"]
["",0,null,"Data Analysis and Project Management Consultant"]
["Zurich Insurance Company Ltd","Zurich Insurance Company Ltd","Zurich Insurance Company Ltd","Executive Manager"]
["Aon Benfield","Aon Benfield","Aon Benfield","Managing Director Global Agriculture Analytics"]
["International Benefits"," International Benefits",null,"Manager"," International Benefits"]
["Asper School of Business","Asper School of Business","Asper School of Business","Student"]
["Callan Associates","Callan Associates","Callan Associates","Senior Vice President"]
["Cambia Health Solutions","Cambia Health Solutions","Cambia Health Solutions","Actuary"]
["UnitedHealthcare","UnitedHealthcare","UnitedHealthcare","Director"," Medical Cost Affordability"," Community & State"]
["",0,null,"Insurance Professional"]
["",0,null,"Middle School Math Teacher"]
["",0,null,"Volunteering with Cuso International"]
["",0,null,"at EJS Associates"]
["Longitude RE Limited","Longitude RE Limited","Longitude RE Limited","CEO"]
["FSA"," FSA",null,"President and Consulting Actuary in Life and Health Insurance Industry"," FSA"," FCIA"," MAAA"]
["",0,null,"President Sage Pension Resources"]
["Sun Life Financial Hong Kong","Sun Life Financial Hong Kong","Sun Life Financial Hong Kong","VP"," Product Solutions"]
["Prudential Financial","Prudential Financial","Prudential Financial","Vice President & Actuary"]
["",0,null,"Emerging Markets Portfolio Manager"]
["GGY AXIS","GGY AXIS","GGY AXIS","-"]
["Gooden Actuarial Consultants Ltd."," Gooden Actuarial Consultants Ltd.",null,"President"," Gooden Actuarial Consultants Ltd."]
["",0,null,"Studium: Technische Universität München"]
["Chubb","Chubb","Chubb","Senior Vice President and Actuary"]
["Investors Group","Investors Group","Investors Group","Client Service Representative"]
["Great-West Life","Great-West Life","Great-West Life","Actuarial Intern"]
["Deloitte Consulting","Deloitte Consulting","Deloitte Consulting","Senior Manager"]
["Prudential Financial","Prudential Financial","Prudential Financial","Senior Investment Vice President"]
["The Co-operators","The Co-operators","The Co-operators","Financial Advisor"]
["Morneau Sobeco","Morneau Sobeco","Morneau Sobeco","Consultant"]
["Vaccine"," Vaccine",null,"Statistical Data Analyst in Programming"," Vaccine"]
["",0,null,"Werkstudent im Aktuariat Kraftfahrt/Sach bei Versicherungskammer Bayern"]
["Hannover Re","Hannover Re","Hannover Re","VP Actuary"]
["Ryan Labs Asset Management","Ryan Labs Asset Management","Ryan Labs Asset Management","EVP"]
["Periscope","Periscope","Periscope","Director of Analytics"]
["Towers Watson","Towers Watson","Towers Watson","Consulting Actuary"]
["",0,null,"Revolutionising Insurance via InsurTech"]
["JC School of Public Health and Primary Care"," JC School of Public Health and Primary Care",null,"Professor/Head of Biostatistics"," JC School of Public Health and Primary Care"," CUHK"]
["B2B CFO® specializing in M&A, Exit Strategies, Increasing Profitability, Cash Flow, and Company Value","B2B CFO® specializing in M&A, Exit Strategies, Increasing Profitability, Cash Flow, and Company Value","B2B CFO® specializing in M&A, Exit Strategies, Increasing Profitability, Cash Flow, and Company Value","Partner"]
["Aon-COFCO","Aon-COFCO","Aon-COFCO","Account Assistant"]
["B2C"," B2C",null,"VP Senior Director Marketing | Expertise in B2B"," B2C"," Software | Open to New Opportunities"]
["Puma Biotechnology","Puma Biotechnology","Puma Biotechnology","Director Biostatistics"]
["",0,null,"Data Analyst Seeking New Opportunities"]
["Fancy Star China 毅星中国","Fancy Star China 毅星中国","Fancy Star China 毅星中国","Partner"]
["Four Seas Mercantile Limited","Four Seas Mercantile Limited","Four Seas Mercantile Limited","Deputy General Manager"]
["Particular Software","Particular Software","Particular Software","Software Engineer"]
["CSS International","CSS International","CSS International","Senior Solution Architect"]
["",0,null,"Private Venture Investments"]
["Johnson & Johnson","Johnson & Johnson","Johnson & Johnson","Regional Finance Director"]
["Dell EMC","Dell EMC","Dell EMC","Principal Database Architect / Administrator"]
["",0,null,"Bloomberg"]
["Metlife LIMITED","Metlife LIMITED","Metlife LIMITED","Strategy Alliance"]
["United Overseas Bank (Malaysia) Ltd"," United Overseas Bank (Malaysia) Ltd"," United Overseas Bank (Malaysia) Ltd","Mortgage Loan Specialist "]
["ON Semiconductor","ON Semiconductor","ON Semiconductor","Group Controller"]
["",0,null,"负责人"]
["",0,null,"Founder of GoFun.Asia"]
["PotashCorp","PotashCorp","PotashCorp","Sr. Director"," Corporate Benefits & HR Finance"]
["COLI Consulting Group LLC","COLI Consulting Group LLC","COLI Consulting Group LLC","Managing Principal"]
["Coutts","Coutts","Coutts","Associate"]
["",0,null,"Senior Operations Professional"]
["",0,null,"Finance"]
["Allianz SE Reinsurance Branch Asia Pacific",{"$f":"IF(C642=\"\",E642,C642)","v":"Allianz SE Reinsurance Branch Asia Pacific"},"Allianz SE Reinsurance Branch Asia Pacific","Planning and Controlling"]
["Silver Wheaton (Cayman)","Silver Wheaton (Cayman)","Silver Wheaton (Cayman)","Vice President"," Streaming Operations & Metal Sales"]
["",0,null,"Localization Expert Looking for Opportunities"]
["PAMB","PAMB","PAMB","Manager"]
["",0,null,"Strategic Product Leader | Managed Healthcare |"]
["",0,null,"Supply Chain Operations Analyst"]
["",0,null,"Financial and Business Analysis - Canada"]
["Peter Stalder Consultant","Peter Stalder Consultant","Peter Stalder Consultant","Owner"]
["Great-West Financial","Great-West Financial","Great-West Financial","President"," Individual Markets"]
["Willis Towers Watson","Willis Towers Watson","Willis Towers Watson","Director"," Benefits Hong Kong"]
["CEO office"," CEO office",null,"Senior Manager"," CEO office"]
["Fosun Insurance Group","Fosun Insurance Group","Fosun Insurance Group","CEO - Life Insurance Hong Kong (Under Preparation)"]
["Google","Google","Google","Senior Financial Analyst"]
["Cigna","Cigna","Cigna","Retired"]
["Swiss Re","Swiss Re","Swiss Re","Senior Vice President"]
["CalPERS","CalPERS","CalPERS","Senior Pension Actuary"]
["AXA","AXA","AXA","Medical Director"]
["Teamwork Investment Asia Ltd"," Teamwork Investment Asia Ltd",null,"Owner"," Teamwork Investment Asia Ltd"]
["Willis Towers Watson","Willis Towers Watson","Willis Towers Watson","Western Europe Regional Leader"," Global Services & Solutions"]
["Aon Hewitt","Aon Hewitt","Aon Hewitt","Partner"," Retirement Market Leader N. California and Pacific Northwest"]
["Allianz Life","Allianz Life","Allianz Life","Assistant Actuary"]
["Charles Schwab","Charles Schwab","Charles Schwab","Managing Director"," Charles Schwab Hong Kong"]
["",0,null,"Pavilion Advisory Group Inc."]
["Windsor Strategy Solutions","Windsor Strategy Solutions","Windsor Strategy Solutions","Chief Executive Officer"]
["Catlin","Catlin","Catlin","Head Financial Market Risk"]
["Yahoo Search","Yahoo Search","Yahoo Search","Technical Yahoo"]
["",0,null,"Retired from emloyee benefits and actuarual fields"]
["",0,null,"at MCG Energy Solutions LLC"]
["WellPoint","WellPoint","WellPoint","Associate Actuary"]
["Europe"," Europe",null,"Chief Risk Officer"," Europe"]
["AIA","AIA","AIA","Vice President HNW Underwriting"]
["AIG","AIG","AIG","Regional VP"]
["Great-West Financial","Great-West Financial","Great-West Financial","Chief Financial Risk Officer"]
["MRC & Associates","MRC & Associates","MRC & Associates","Senior Health Care Consultant"]
["Ozura Firstlogix","Ozura Firstlogix","Ozura Firstlogix","COO"]
["Top Image Systems","Top Image Systems","Top Image Systems","Branch Manager"]
["",0,null,"Inventory Project Manager"]
["Ernst & Young","Ernst & Young","Ernst & Young","Senior Actuairal Associate"]
["Stag's Hollow Winery"," Stag's Hollow Winery",null,"Owner"," Stag's Hollow Winery"]
["",0,null,"--"]
["Funds"," Funds",null,"Leader (former CEO) and Sales Manager with expertise in Discretionary Mandates"," Funds"," Hedge Funds and Private Equity"]
["",0,null,"Associate"]
["Willis Towers Watson","Willis Towers Watson","Willis Towers Watson","Director of Client Management"," Northern California"]
["AECOM","AECOM","AECOM","Financial Analyst"]
["",0,null,"Consultant / Healthcare Entrepreneur"]
["Windsor Strategy Partners and Owner, Windsor Strategy Partners","Windsor Strategy Partners and Owner, Windsor Strategy Partners","Windsor Strategy Partners and Owner, Windsor Strategy Partners","President"]
["Allianz Life","Allianz Life","Allianz Life","Quantitative Derivatives Analyst"]
["AIA HK","AIA HK","AIA HK","Associate Director"]
["",0,null,"--"]
["WR Berkley","WR Berkley","WR Berkley","Statistical Reporting Analyst"]
["",0,null,"Executive Director"]
["not structural)"," not structural)",null,"Transitioning to Bridge (cards"," not structural)"]
["Micon Solid-State Engineering","Micon Solid-State Engineering","Micon Solid-State Engineering","Business Development Manager"]
["Willis Towers Watson","Willis Towers Watson","Willis Towers Watson","Senior Consulting Actuary"]
["Yale School of Public Health","Yale School of Public Health","Yale School of Public Health","Master student"]
["Phi Consulting Group, Inc.","Phi Consulting Group, Inc.","Phi Consulting Group, Inc.","principal consultant"]
["Willis Towers Watson","Willis Towers Watson","Willis Towers Watson","Head of Retirement"," Technology and Administration Services"," North Asia (Japan and Korea)"]
["Total Mortgage & Credit Services - The MORTGAGE Centre"," Total Mortgage & Credit Services - The MORTGAGE Centre",null,"Owner"," Total Mortgage & Credit Services - The MORTGAGE Centre"]
["",0,null,"--"]
["Ageas","Ageas","Ageas","Chief Risk Officer"," Asia"]
["",0,null,"Board member"]
["Opticians of Manitoba","Opticians of Manitoba","Opticians of Manitoba","Legislative Representative"]
["Shanghai Life Insurance Co. Ltd","Shanghai Life Insurance Co. Ltd","Shanghai Life Insurance Co. Ltd","Head of Asset Allocation and Research Dpt."]
["Ipsos in North America","Ipsos in North America","Ipsos in North America","Bilingual Market Research Coder"]
["DGA",{"$f":"IF(C706=\"\",E706,C706)","v":"DGA"},"DGA","President"]
["Faculty of Health Sciences- University of Manitoba","Faculty of Health Sciences- University of Manitoba","Faculty of Health Sciences- University of Manitoba","Director Administration"]
["Sun Life Financial","Sun Life Financial","Sun Life Financial","Certified Financial Planner"]
["Munich Re Canada","Munich Re Canada","Munich Re Canada","Actuarial Associate"]
["",0,null,"Actuarial Mathematics Student"]
["Baker Actuarial Services","Baker Actuarial Services","Baker Actuarial Services","Consulting Actuary"]
["St.Amant Foundation","St.Amant Foundation","St.Amant Foundation","Support Worker"]
["Kumon of Fort Garry","Kumon of Fort Garry","Kumon of Fort Garry","Instructor"]
["",0,null,"Actuarial Risk Management Principal & Industry Leading Senior Consulting Actuary serving BDO and Top 30 Accounting Firms"]
["",0,null,"Owner Bleue Coyote Bar & Grill."]
["Canwest","Canwest","Canwest","Director"," HR Corporate Office"," Exec Comp & Pensions"]
["RGA Italy"," RGA Italy",null,"Managing Director"," RGA Italy"]
["Jubilee Rose Enterprises Ltd.","Jubilee Rose Enterprises Ltd.","Jubilee Rose Enterprises Ltd.","Manager"]
["SCOR Global Life Americas","SCOR Global Life Americas","SCOR Global Life Americas","AVP - Chief Underwriter and Claims Head - Latin America"]
["University of Manitoba","University of Manitoba","University of Manitoba","Student"]
["University of Manitoba","University of Manitoba","University of Manitoba","Student"]
["University of Manitoba","University of Manitoba","University of Manitoba","Student"]
["",0,null,"Attended University of Manitoba"]
["University of Manitoba","University of Manitoba","University of Manitoba","Student"]
["",0,null,"Actuarial Mathematics Student"]
["Delta Dental","Delta Dental","Delta Dental","Senior Actuarial Analyst"]
["University of Alberta","University of Alberta","University of Alberta","Student"]
["",0,null,"Financial Services Professional"]
["",0,null,"--"]
["Investors Group","Investors Group","Investors Group","Senior Vice-President"," Products & Financial Planning"]
["CGI","CGI","CGI","Senior Consultant"]
["",0,null,"Consultant"]
["True North Capital","True North Capital","True North Capital","General Manager"]
["",0,null,"--"]
["",0,null,"Retail Professional"]
["Deloitte Consulting, ASA","Deloitte Consulting, ASA","Deloitte Consulting, ASA","Actuarial Consultant"]
["RBC","RBC","RBC","Associate"]
["STAPLES Canada","STAPLES Canada","STAPLES Canada","sales"]
["NGM Investment Ltd","NGM Investment Ltd","NGM Investment Ltd","Manager"," I.T."]
["",0,null,"Pension and Benefits Strategist"]
["Donaldson Vincent Associates Limited","Donaldson Vincent Associates Limited","Donaldson Vincent Associates Limited","Senior Consultant and Actuary"]
["",0,null,"Insurance Professional"]
["",0,null,"--"]
["Vein Clinic PA","Vein Clinic PA","Vein Clinic PA","VP of Finance and Administrative Services"]
["SG Gaming","SG Gaming","SG Gaming","Sales Administration Manager"]
["Travel & Tourism Professional"," Travel & Tourism Professional",null,"Leisure"," Travel & Tourism Professional"]
["",0,null,"Public Works and Government Services Canada"]
["UBS AG Singapore"," UBS AG Singapore",null,"Wealth Planner UHNW"," UBS AG Singapore"]
["",0,null,"Insurance Professional"]
["BridgeWorks, LLC","BridgeWorks, LLC","BridgeWorks, LLC","CEO"]
["FPB Financial Strategies Inc.","FPB Financial Strategies Inc.","FPB Financial Strategies Inc.","President & CEO"]
["",0,null,"Self Employed"]
["",0,null,"university of Manitoba毕业"]
["",0,null,"Coachpraktijk Vrij Eten"]
["N-Dimensional Computers inc.","N-Dimensional Computers inc.","N-Dimensional Computers inc.","Consultant"]
["",0,null,"--"]
["Barca Capital Management"," Barca Capital Management",null,"Owner"," Barca Capital Management"]
["",0,null,"Independent Financial Services Professional"]
["Baker Actuarial Services","Baker Actuarial Services","Baker Actuarial Services","Actuary"]
["Samena Capital Hong Kong Ltd.","Samena Capital Hong Kong Ltd.","Samena Capital Hong Kong Ltd.","Office Manager"]
["",0,null,"Office Manager@Samena Capital Hong Kong Ltd."]

{"sheet":"City Freq","index":9,"n_rows":62,"n_cols":2,"rows_kept":62,"cut":false,"hidden":true,"merged":[]}
["Winnipeg",312]
["Toronto",104]
["Vancouver",29]
["Calgary",29]
["Hong Kong",23]
["New York",21]
["Minneapolis",16]
["San Francisco",12]
["Ottawa",11]
["Kitchener",10]
["Edmonton",8]
["Chicago",8]
["Saskatchewan",6]
["Boston",6]
["London",5]
["Seattle",5]
["Denver",5]
["Montreal",4]
["Shanghai",4]
["Singapore",4]
["Manitoba",3]
["Hartford",3]
["Kuala Lumpur",3]
["Los Angeles",3]
["Selangor",3]
["Milwaukee",2]
["Kansas City",2]
["Orange County",2]
["Dallas",2]
["Alberta",2]
["Washington",2]
["Atlanta",2]
["Beijing",2]
["Miami",2]
["Austin",2]
["Munich",2]
["St. Louis",2]
["Huaian",1]
["Hangzhou",1]
["Ontario",1]
["Halifax",1]
["Raleigh-Durham",1]
["Bloomington",1]
["Sydney",1]
["Jakarta",1]
["Chengdu",1]
["Indianapolis",1]
["Flagstaff",1]
["Houston",1]
["Orlando",1]
["Sarawak",1]
["Phoenix",1]
["Greensboro",1]
["Fort Wayne",1]
["Sacramento",1]
["Zurich",1]
["Tokyo",1]
["Rome",1]
["Charlotte",1]
["Macao",1]
["Hague",1]
["Melbourne",1]

{"sheet":"Country Freq","index":10,"n_rows":23,"n_cols":2,"rows_kept":23,"cut":false,"hidden":true,"merged":[]}
["Canada",572]
["United States",108]
["China",34]
["Barbados",1]
["Malaysia",13]
["Singapore",11]
["Ghana",1]
["Philippines",1]
["Ireland",2]
["Trinidad and Tobago",1]
["Australia",2]
["Indonesia",1]
["United Kingdom",2]
["Mauritius",1]
["Bermuda",1]
["Germany",2]
["Panama",1]
["Cayman Islands",1]
["Switzerland",1]
["Japan",1]
["Italy",1]
["Macao",1]
["Netherlands",1]

{"sheet":"Position","index":11,"n_rows":20,"n_cols":2,"rows_kept":20,"cut":false,"hidden":true,"merged":[]}
["Student",103]
["VP",67]
["Manager",63]
["President/CEO",57]
["Director",53]
["Associate",48]
["Actuarial Analyst",45]
["Consultant",44]
["Intern",25]
["Partner",15]
["Owner",15]
["Principal",11]
["Accounting",11]
["AVP",10]
["Retired",9]
["Research",8]
["Senior VP",7]
["Assistant Actuary",4]
["Professor",3]
["Chief Actuary",2]

{"sheet":"Sheet11","index":12,"n_rows":27,"n_cols":6,"rows_kept":27,"cut":false,"hidden":true,"merged":[]}
[null,null,"First Letter","UMAC Alumni","Rest of World"]
[null,null,"A",8.0263157894736856E-2,4.8949999999999994E-2,{"$f":"D2-E2","v":3.1313157894736862E-2}]
[null,null,"B",4.8684210526315788E-2,3.7450000000000004E-2,{"$f":"D3-E3","v":1.1234210526315784E-2}]
[null,null,"C",5.526315789473684E-2,5.985E-2,-4.58684210526316E-3]
[null,null,"D",6.1842105263157893E-2,7.5819999999999999E-2,-1.3977894736842106E-2]
[null,null,"E",3.5526315789473684E-2,3.4140000000000004E-2,1.3863157894736799E-3]
[null,null,"F",1.973684210526316E-2,1.898E-2,7.5684210526315993E-4]
[null,null,"G",4.4736842105263158E-2,3.6680000000000004E-2,8.0568421052631539E-3]
[null,null,"H",1.973684210526316E-2,2.0920000000000001E-2,-1.1831578947368408E-3]
[null,null,"I",1.4473684210526316E-2,3.8E-3,1.0673684210526316E-2]
[null,null,"J",7.7631578947368426E-2,0.15881999999999999,-8.1188421052631563E-2]
[null,null,"K",5.526315789473684E-2,2.6160000000000003E-2,2.9103157894736838E-2]
[null,null,"L",9.6052631578947376E-2,3.2120000000000003E-2,6.393263157894738E-2]
[null,null,"M",8.1578947368421056E-2,6.9599999999999995E-2,1.1978947368421061E-2]
[null,null,"N",2.5000000000000001E-2,1.1379999999999999E-2,1.3620000000000002E-2]
[null,null,"O",3.9473684210526317E-3,4.1700000000000001E-3,-2.2263157894736839E-4]
[null,null,"P",3.5526315789473684E-2,2.5019999999999997E-2,1.0506315789473687E-2]
[null,null,"Q",0,4.8000000000000001E-4,-4.8000000000000001E-4]
[null,null,"R",4.7368421052631587E-2,2.5400000000000002E-3,4.4828421052631587E-2]
[null,null,"S",7.3684210526315796E-2,4.0780000000000004E-2,3.2904210526315793E-2]
[null,null,"T",3.6842105263157898E-2,4.2529999999999998E-2,-5.6878947368421001E-3]
[null,null,"U",0,1E-4,-1E-4]
[null,null,"V",1.7105263157894738E-2,6.5400000000000007E-3,1.0565263157894737E-2]
[null,null,"W",2.8947368421052631E-2,4.2160000000000003E-2,-1.3212631578947372E-2]
[null,null,"X",1.3157894736842105E-3,1.2999999999999999E-4,1.1857894736842106E-3]
[null,null,"Y",2.6315789473684213E-2,1.2999999999999999E-4,2.6185789473684211E-2]
[null,null,"Z",6.5789473684210531E-3,1.2700000000000001E-3,5.3089473684210528E-3]